Workbook

Sheet MENU
L4: =+TABLAS!A79 -> 1-2-3-Total--------
L5: =+TABLAS!A115 -> 1-2-3-Total--------
L6: =+TABLAS!A150 -> 1-2-3-Total--------
L7: =+TABLAS!A184 -> 1-2-3-Total--------
L8: =+TABLAS!A220 -> 1-2-3-Total--------
L9: =+GETPIVOTDATA(" f20087901",TABLAS!$A$252) -> 4783
H27: CONTROL DE MESES
H29: =+TABLAS!A79 -> 1-2-3-Total--------
C30: =+INFORME!P13 -> __ENE_MAR_2025

Sheet TABLAS (hidden)
C8: Valores | I8: Tabla | J8: =IF(I9="(Todas)","CUSCO ","") -> 
C9: RED | D9: 03 - LA CONVENCION | I9: =IF(MID(D9,1,2)="99","(All)",MID(D9,1,2)) -> 03 | J9: =IF(I9="(All)"," ",I9) -> 03 | M9: =LEN(MID(D9,5,90)) -> 14 | O9: =IF(MID(D9,6,5)="(All)","",D9) -> 03 - LA CONVENCION
C10: Micro RED | D10: 0399 - (All) | I10: =IF(MID(D10,3,2)="99","(All)",MID(D10,1,4)) -> (All) | M10: =LEN(MID(D10,7,90)) -> 6 | O10: =IF(MID(D10,8,5)="(All)","",D10) -> 
C11: Establecimiento | D11: 999999999 - (All) | I11: =IF(OR(MID(D11,1,9)="999999999",MID(D11,1,9)="000000000"),"(All)",MID(D11,1,9)) -> (All) | M11: =LEN(MID(D11,12,90)) -> 6 | O11: =IF(MID(D11,13,5)="(All)","",D11) -> 
C12: Provincia | D12: 00 - (All) | I12: =IF(MID(D12,1,2)="00","(All)",MID(D12,1,2)) -> (All) | M12: =LEN(MID(D12,6,90)) -> 5 | O12: =IF(MID(D12,6,5)="(All)","",D12) -> 
C13: Distrito | D13: 0000 - (All) | I13: =IF(OR(MID(D13,1,4)="0000",MID(D13,3,2)="00"),"(All)",MID(D13,1,4)) -> (All) | M13: =LEN(MID(D13,8,90)) -> 5 | O13: =IF(MID(D13,8,5)="(All)","",D13) -> 
C14: Ejecutira | D14: 99 - (ALL) | I14: =IF(MID(D14,1,2)="99","(All)",MID(D14,1,2)) -> (All) | M14: =LEN(MID(D14,5,90)) -> 6 | O14: =IF(MID(D14,6,5)="(All)","",D14) -> 
C16: Año | D16: 2025 | I16: =+D16 -> 2025 | J16: =IF(I16="(Todas)"," ",I16) -> 2025
B20: 1 | C20: 1 | D20: 1 | E20: 0 | F20: 0 | G20: 0 | H20: 0 | I20: 0 | J20: 0 | K20: 0 | L20: 0 | M20: 0 | N20: =SUM(B20:M20) -> 3
B21: =IF(B20=1,"ENERO","") -> ENERO | C21: =IF(C20=1,"FEBRERO","") -> FEBRERO | D21: =IF(D20=1,"MARZO","") -> MARZO | E21: =IF(E20=1,"ABRIL","") ->  | F21: =IF(F20=1,"MAYO","") ->  | G21: =IF(G20=1,"JUNIO","") ->  | H21: =IF(H20=1,"JULIO","") ->  | I21: =IF(I20=1,"AGOSTO","") ->  | J21: =IF(J20=1,"SETIEMBRE","") ->  | K21: =IF(K20=1,"OCTUBRE","") ->  | L21: =IF(L20=1,"NOVIEMBRE","") ->  | M21: =IF(M20=1,"DICIEMBRE","") ->  | N21: =IF(B20=1,B21,IF(C20=1,C21,IF(D20=1,D21,IF(E20=1,E21,IF(F20=1,F21,IF(G20=1,G21,IF(H20=1,H21,IF(I20=1,I21,IF(J20=1,J21,IF(K20=1,K21,IF(L20=1,L21,IF(M20=1,M21,"")))))))))))) -> ENERO
N22: =IF(N20=1,N21,"") -> 
B23: 2 | C23: 4 | D23: 6 | N23: =MIN(B23:M23) -> 2 | O23: =MAX(B23:M23) -> 6 | P23: =MAX(C23:N23) -> 6
B24: =IF(B23=2,"ENE","") -> ENE | C24: =IF(C23=4,"FEB","") -> FEB | D24: =IF(D23=6,"MAR","") -> MAR | E24: =IF(E23=8,"ABR","") ->  | F24: =IF(F23=10,"MAY","") ->  | G24: =IF(G23=12,"JUN","") ->  | H24: =IF(H23=14,"JUL","") ->  | I24: =IF(I23=16,"AGO","") ->  | J24: =IF(J23=18,"SET","") ->  | K24: =IF(K23=20,"OCT","") ->  | L24: =IF(L23=22,"NOV","") ->  | M24: =IF(M23=24,"DIC","") ->  | N24: =IF(N23=B23,B24,IF(N23=C23,C24,IF(N23=D23,D24,IF(N23=E23,E24,IF(N23=F23,F24,IF(N23=G23,G24,IF(N23=H23,#REF!,IF(N23=I23,I24,IF(N23=J23,J24,IF(N23=K23,K24,IF(N23=L23,L24,IF(N23=M23,M24,"")))))))))))) -> ENE | O24: =IF(O23=C23,C24,IF(O23=D23,D24,IF(O23=E23,E24,IF(O23=F23,F24,IF(O23=G23,G24,IF(O23=H23,H24,IF(O23=I23,I24,IF(O23=J23,J24,IF(O23=K23,K24,IF(O23=L23,L24,IF(O23=M23,M24,""))))))))))) -> MAR | P24: =IF(P23=D23,D24,IF(P23=E23,E24,IF(P23=F23,F24,IF(P23=G23,G24,IF(P23=H23,H24,IF(P23=I23,I24,IF(P23=J23,J24,IF(P23=K23,K24,IF(P23=L23,L24,IF(P23=M23,M24,IF(P23=N23,N24,""))))))))))) -> MAR
N25: =CONCATENATE(N24," - ",O24) -> ENE - MAR
N26: =IF(N23=O23,N22,N25) -> ENE - MAR
A48: MATERNO_01
A49: ANNO | B49: 2025
A50: cod_red | B50: 03
A51: codmic | B51: (Todas)
A52: cod_prov | B52: (Todas)
A53: coddist | B53: (Todas)
A54: cod_estab | B54: (Todas)
A55: cod_eje | B55: (Todas)
B57: Valores
A58: Etiquetas de fila | B58: BAS001 | C58: BAS002 | D58: BAS003 | E58: BAS004 | F58: BAS005 | G58: BAS006 | H58: BAS007 | I58: BAS008 | J58: BAS009 | K58: BAS010 | L58: BAS011 | M58: BAS012 | N58: BAS013 | O58: BAS014 | P58: BAS015 | Q58: BAS016 | R58: BAS017 | S58: BAS018 | T58: BAS019 | U58: BAS020 | V58: BAS021 | W58: BAS022 | X58: BAS023 | Y58: BAS024 | Z58: BAS025 | AA58: BAS026 | AB58: BAS027 | AC58: BAS028 | AD58: BAS029 | AE58: BAS030 | AF58: BAS031 | AG58: BAS032 | AH58: BAS033 | AI58: BAS034 | AJ58: BAS035 | AK58: BAS036 | AL58: BAS037 | AM58: BAS038 | AN58: BAS039 | AO58: BAS040 | AP58: BAS041 | AQ58: BAS042 | AR58: BAS043 | AS58: BAS044 | AT58: BAS045 | AU58: BAS046 | AV58: BAS047 | AW58: BAS048 | AX58: BAS049 | AY58: BAS050 | AZ58: BAS051 | BA58: BAS052 | BB58: BAS053 | BC58: BAS054 | BD58: BAS055 | BE58: BAS056 | BF58: BAS057 | BG58: BAS058 | BH58: BAS059 | BI58: BAS060 | BJ58: BAS061 | BK58: BAS062 | BL58: BAS063 | BM58: BAS064 | BN58: BAS065 | BO58: BAS066 | BP58: BAS067 | BQ58: BAS068 | BR58: BAS069 | BS58: BAS070 | BT58: BAS071 | BU58: BAS072 | BV58: BAS073 | BW58: BAS074 | BX58: BAS075 | BY58: BAS076 | BZ58: BAS077 | CA58: BAS078 | CB58: BAS079 | CC58: BAS080 | CD58: BAS081 | CE58: BAS082 | CF58: BAS083 | CG58: BAS084 | CH58: BAS085 | CI58: BAS086 | CJ58: BAS087 | CK58: BAS088 | CL58: BAS089 | CM58: BAS090 | CN58: BAS091 | CO58: BAS092 | CP58: BAS093 | CQ58: BAS094 | CR58: BAS095 | CS58: BAS096 | CT58: BAS097 | CU58: BAS098 | CV58: BAS099 | CW58: BAS100 | CX58: BAS101 | CY58: BAS102 | CZ58: BAS103 | DA58: BAS104 | DB58: BAS105 | DC58: BAS106 | DD58: BAS107 | DE58: BAS108 | DF58: BAS109 | DG58: BAS110 | DH58: BAS111 | DI58: BAS112 | DJ58: BAS113 | DK58: BAS114 | DL58: BAS115 | DM58: BAS116 | DN58: BAS117 | DO58: BAS118 | DP58: BAS119 | DQ58: BAS120 | DR58: BAS121 | DS58: BAS122 | DT58: BAS123 | DU58: BAS124 | DV58: BAS125 | DW58: BAS126 | DX58: BAS127 | DY58: BAS128 | DZ58: BAS129 | EA58: BAS130 | EB58: BAS131 | EC58: BAS132 | ED58: BAS133 | EE58: BAS134 | EF58: BAS135 | EG58: BAS136 | EH58: BAS137 | EI58: BAS138 | EJ58: BAS139 | EK58: BAS140 | EL58: BAS141 | EM58: BAS142 | EN58: BAS143 | EO58: BAS144 | EP58: BAS145 | EQ58: BAS146 | ER58: BAS147 | ES58: BAS148 | ET58: BAS149 | EU58: BAS150 | EV58: BAS151 | EW58: BAS152 | EX58: BAS153 | EY58: BAS154 | EZ58: BAS155 | FA58: BAS156 | FB58: BAS157 | FC58: BAS158 | FD58: BAS159 | FE58: BAS160 | FF58: BAS161 | FG58: BAS162 | FH58: BAS163 | FI58: BAS164 | FJ58: BAS165 | FK58: BAS166 | FL58: BAS167 | FM58: BAS168 | FN58: BAS169 | FO58: BAS170 | FP58: BAS171 | FQ58: BAS172 | FR58: BAS173 | FS58: BAS174 | FT58: BAS175 | FU58: BAS176 | FV58: BAS177 | FW58: BAS178 | FX58: BAS179 | FY58: BAS180 | FZ58: BAS181 | GA58: BAS182 | GB58: BAS183 | GC58: BAS184 | GD58: BAS185 | GE58: BAS186 | GF58: BAS187 | GG58: BAS188 | GH58: BAS189 | GI58: BAS190 | GJ58: BAS191 | GK58: BAS192 | GL58: BAS193 | GM58: BAS194 | GN58: BAS195 | GO58: BAS196 | GP58: BAS197 | GQ58: BAS198 | GR58: BAS199 | GS58: BAS200 | GT58: BAS201 | GU58: BAS202 | GV58: BAS203 | GW58: BAS204 | GX58: BAS205 | GY58: BAS206 | GZ58: BAS207 | HA58: BAS208 | HB58: BAS209 | HC58: BAS210 | HD58: BAS211 | HE58: BAS212 | HF58: BAS213 | HG58: BAS214 | HH58: BAS215 | HI58: BAS216 | HJ58: BAS217 | HK58: BAS218 | HL58: BAS219 | HM58: BAS220 | HN58: BAS221 | HO58: BAS222 | HP58: BAS223 | HQ58: BAS224 | HR58: BAS225 | HS58: BAS226 | HT58: BAS227 | HU58: BAS228 | HV58: BAS229 | HW58: BAS230
A59: 1 | B59: 0 | C59: 0 | D59: 0 | E59: 0 | F59: 0 | G59: 0 | H59: 0 | I59: 0 | J59: 0 | K59: 0 | L59: 0 | M59: 0 | N59: 0 | O59: 0 | P59: 0 | Q59: 0 | R59: 0 | S59: 0 | T59: 0 | U59: 0 | V59: 0 | W59: 0 | X59: 0 | Y59: 0 | Z59: 0 | AA59: 0 | AB59: 0 | AC59: 0 | AD59: 0 | AE59: 0 | AF59: 0 | AG59: 0 | AH59: 0 | AI59: 0 | AJ59: 0 | AK59: 0 | AL59: 0 | AM59: 0 | AN59: 0 | AO59: 0 | AP59: 0 | AQ59: 0 | AR59: 0 | AS59: 0 | AT59: 0 | AU59: 0 | AV59: 0 | AW59: 0 | AX59: 0 | AY59: 0 | AZ59: 0 | BA59: 0 | BB59: 0 | BC59: 0 | BD59: 0 | BE59: 0 | BF59: 0 | BG59: 0 | BH59: 0 | BI59: 0 | BJ59: 0 | BK59: 0 | BL59: 0 | BM59: 0 | BN59: 0 | BO59: 0 | BP59: 0 | BQ59: 0 | BR59: 0 | BS59: 0 | BT59: 0 | BU59: 0 | BV59: 0 | BW59: 0 | BX59: 0 | BY59: 0 | BZ59: 0 | CA59: 0 | CB59: 0 | CC59: 0 | CD59: 0 | CE59: 0 | CF59: 0 | CG59: 0 | CH59: 0 | CI59: 0 | CJ59: 0 | CK59: 0 | CL59: 0 | CM59: 0 | CN59: 0 | CO59: 0 | CP59: 0 | CQ59: 0 | CR59: 0 | CS59: 0 | CT59: 0 | CU59: 0 | CV59: 0 | CW59: 0 | CX59: 0 | CY59: 0 | CZ59: 0 | DA59: 0 | DB59: 0 | DC59: 0 | DD59: 0 | DE59: 0 | DF59: 0 | DG59: 0 | DH59: 0 | DI59: 0 | DJ59: 0 | DK59: 0 | DL59: 0 | DM59: 0 | DN59: 0 | DO59: 0 | DP59: 0 | DQ59: 0 | DR59: 0 | DS59: 0 | DT59: 0 | DU59: 0 | DV59: 0 | DW59: 0 | DX59: 0 | DY59: 0 | DZ59: 0 | EA59: 0 | EB59: 0 | EC59: 0 | ED59: 0 | EE59: 0 | EF59: 0 | EG59: 0 | EH59: 0 | EI59: 0 | EJ59: 0 | EK59: 0 | EL59: 0 | EM59: 0 | EN59: 0 | EO59: 0 | EP59: 0 | EQ59: 0 | ER59: 0 | ES59: 0 | ET59: 0 | EU59: 0 | EV59: 0 | EW59: 0 | EX59: 0 | EY59: 0 | EZ59: 0 | FA59: 0 | FB59: 0 | FC59: 0 | FD59: 0 | FE59: 0 | FF59: 0 | FG59: 0 | FH59: 0 | FI59: 0 | FJ59: 0 | FK59: 0 | FL59: 0 | FM59: 0 | FN59: 0 | FO59: 0 | FP59: 0 | FQ59: 0 | FR59: 0 | FS59: 0 | FT59: 0 | FU59: 0 | FV59: 0 | FW59: 0 | FX59: 0 | FY59: 0 | FZ59: 0 | GA59: 0 | GB59: 0 | GC59: 0 | GD59: 0 | GE59: 0 | GF59: 0 | GG59: 0 | GH59: 0 | GI59: 0 | GJ59: 0 | GK59: 0 | GL59: 0 | GM59: 0 | GN59: 0 | GO59: 0 | GP59: 0 | GQ59: 0 | GR59: 0 | GS59: 0 | GT59: 0 | GU59: 0 | GV59: 0 | GW59: 0 | GX59: 0 | GY59: 0 | GZ59: 0 | HA59: 0 | HB59: 0 | HC59: 0 | HD59: 0 | HE59: 0 | HF59: 0 | HG59: 0 | HH59: 0 | HI59: 0 | HJ59: 0 | HK59: 0 | HL59: 0 | HM59: 0 | HN59: 0 | HO59: 0 | HP59: 0 | HQ59: 0 | HR59: 0 | HS59: 0 | HT59: 0 | HU59: 0 | HV59: 0 | HW59: 0
A60: 2 | B60: 0 | C60: 0 | D60: 0 | E60: 0 | F60: 0 | G60: 0 | H60: 0 | I60: 0 | J60: 0 | K60: 0 | L60: 0 | M60: 0 | N60: 0 | O60: 0 | P60: 0 | Q60: 0 | R60: 0 | S60: 0 | T60: 0 | U60: 0 | V60: 0 | W60: 0 | X60: 0 | Y60: 0 | Z60: 0 | AA60: 0 | AB60: 0 | AC60: 0 | AD60: 0 | AE60: 0 | AF60: 0 | AG60: 0 | AH60: 0 | AI60: 0 | AJ60: 0 | AK60: 0 | AL60: 0 | AM60: 0 | AN60: 0 | AO60: 0 | AP60: 0 | AQ60: 0 | AR60: 0 | AS60: 0 | AT60: 0 | AU60: 0 | AV60: 0 | AW60: 0 | AX60: 0 | AY60: 0 | AZ60: 0 | BA60: 0 | BB60: 0 | BC60: 0 | BD60: 0 | BE60: 0 | BF60: 0 | BG60: 0 | BH60: 0 | BI60: 0 | BJ60: 0 | BK60: 0 | BL60: 0 | BM60: 0 | BN60: 0 | BO60: 0 | BP60: 0 | BQ60: 0 | BR60: 0 | BS60: 0 | BT60: 0 | BU60: 0 | BV60: 0 | BW60: 0 | BX60: 0 | BY60: 0 | BZ60: 0 | CA60: 0 | CB60: 0 | CC60: 0 | CD60: 0 | CE60: 0 | CF60: 0 | CG60: 0 | CH60: 0 | CI60: 0 | CJ60: 0 | CK60: 0 | CL60: 0 | CM60: 0 | CN60: 0 | CO60: 0 | CP60: 0 | CQ60: 0 | CR60: 0 | CS60: 0 | CT60: 0 | CU60: 0 | CV60: 0 | CW60: 0 | CX60: 0 | CY60: 0 | CZ60: 0 | DA60: 0 | DB60: 0 | DC60: 0 | DD60: 0 | DE60: 0 | DF60: 0 | DG60: 0 | DH60: 0 | DI60: 0 | DJ60: 0 | DK60: 0 | DL60: 0 | DM60: 0 | DN60: 0 | DO60: 0 | DP60: 0 | DQ60: 0 | DR60: 0 | DS60: 0 | DT60: 0 | DU60: 0 | DV60: 0 | DW60: 0 | DX60: 0 | DY60: 0 | DZ60: 0 | EA60: 0 | EB60: 0 | EC60: 0 | ED60: 0 | EE60: 0 | EF60: 0 | EG60: 0 | EH60: 0 | EI60: 0 | EJ60: 0 | EK60: 0 | EL60: 0 | EM60: 0 | EN60: 0 | EO60: 0 | EP60: 0 | EQ60: 0 | ER60: 0 | ES60: 0 | ET60: 0 | EU60: 0 | EV60: 0 | EW60: 0 | EX60: 0 | EY60: 0 | EZ60: 0 | FA60: 0 | FB60: 0 | FC60: 0 | FD60: 0 | FE60: 0 | FF60: 0 | FG60: 0 | FH60: 0 | FI60: 0 | FJ60: 0 | FK60: 0 | FL60: 0 | FM60: 0 | FN60: 0 | FO60: 0 | FP60: 0 | FQ60: 0 | FR60: 0 | FS60: 0 | FT60: 0 | FU60: 0 | FV60: 0 | FW60: 0 | FX60: 0 | FY60: 0 | FZ60: 0 | GA60: 0 | GB60: 0 | GC60: 0 | GD60: 0 | GE60: 0 | GF60: 0 | GG60: 0 | GH60: 0 | GI60: 0 | GJ60: 0 | GK60: 0 | GL60: 0 | GM60: 0 | GN60: 0 | GO60: 0 | GP60: 0 | GQ60: 0 | GR60: 0 | GS60: 0 | GT60: 0 | GU60: 0 | GV60: 0 | GW60: 0 | GX60: 0 | GY60: 0 | GZ60: 0 | HA60: 0 | HB60: 0 | HC60: 0 | HD60: 0 | HE60: 0 | HF60: 0 | HG60: 0 | HH60: 0 | HI60: 0 | HJ60: 0 | HK60: 0 | HL60: 0 | HM60: 0 | HN60: 0 | HO60: 0 | HP60: 0 | HQ60: 0 | HR60: 0 | HS60: 0 | HT60: 0 | HU60: 0 | HV60: 0 | HW60: 0
A61: 3 | B61: 0 | C61: 0 | D61: 0 | E61: 0 | F61: 0 | G61: 0 | H61: 0 | I61: 0 | J61: 0 | K61: 0 | L61: 0 | M61: 0 | N61: 0 | O61: 0 | P61: 0 | Q61: 0 | R61: 0 | S61: 0 | T61: 0 | U61: 0 | V61: 0 | W61: 0 | X61: 0 | Y61: 0 | Z61: 1 | AA61: 0 | AB61: 0 | AC61: 0 | AD61: 0 | AE61: 0 | AF61: 0 | AG61: 0 | AH61: 0 | AI61: 0 | AJ61: 0 | AK61: 0 | AL61: 0 | AM61: 0 | AN61: 0 | AO61: 0 | AP61: 0 | AQ61: 0 | AR61: 0 | AS61: 0 | AT61: 0 | AU61: 0 | AV61: 0 | AW61: 0 | AX61: 0 | AY61: 0 | AZ61: 0 | BA61: 0 | BB61: 0 | BC61: 0 | BD61: 0 | BE61: 0 | BF61: 0 | BG61: 0 | BH61: 0 | BI61: 0 | BJ61: 0 | BK61: 0 | BL61: 0 | BM61: 0 | BN61: 0 | BO61: 0 | BP61: 0 | BQ61: 0 | BR61: 0 | BS61: 0 | BT61: 0 | BU61: 0 | BV61: 0 | BW61: 0 | BX61: 0 | BY61: 0 | BZ61: 0 | CA61: 0 | CB61: 0 | CC61: 0 | CD61: 0 | CE61: 0 | CF61: 0 | CG61: 0 | CH61: 0 | CI61: 0 | CJ61: 0 | CK61: 0 | CL61: 0 | CM61: 0 | CN61: 0 | CO61: 0 | CP61: 0 | CQ61: 0 | CR61: 0 | CS61: 0 | CT61: 0 | CU61: 0 | CV61: 0 | CW61: 0 | CX61: 0 | CY61: 0 | CZ61: 0 | DA61: 0 | DB61: 0 | DC61: 0 | DD61: 0 | DE61: 0 | DF61: 0 | DG61: 0 | DH61: 0 | DI61: 0 | DJ61: 0 | DK61: 0 | DL61: 0 | DM61: 0 | DN61: 0 | DO61: 0 | DP61: 0 | DQ61: 0 | DR61: 0 | DS61: 0 | DT61: 0 | DU61: 0 | DV61: 0 | DW61: 0 | DX61: 0 | DY61: 0 | DZ61: 0 | EA61: 0 | EB61: 0 | EC61: 0 | ED61: 0 | EE61: 0 | EF61: 0 | EG61: 0 | EH61: 0 | EI61: 0 | EJ61: 0 | EK61: 0 | EL61: 0 | EM61: 0 | EN61: 0 | EO61: 0 | EP61: 0 | EQ61: 0 | ER61: 0 | ES61: 0 | ET61: 0 | EU61: 0 | EV61: 0 | EW61: 0 | EX61: 0 | EY61: 0 | EZ61: 0 | FA61: 0 | FB61: 0 | FC61: 0 | FD61: 0 | FE61: 0 | FF61: 0 | FG61: 0 | FH61: 0 | FI61: 0 | FJ61: 0 | FK61: 0 | FL61: 0 | FM61: 0 | FN61: 0 | FO61: 0 | FP61: 0 | FQ61: 0 | FR61: 0 | FS61: 0 | FT61: 0 | FU61: 0 | FV61: 0 | FW61: 0 | FX61: 0 | FY61: 0 | FZ61: 0 | GA61: 0 | GB61: 0 | GC61: 0 | GD61: 0 | GE61: 0 | GF61: 0 | GG61: 0 | GH61: 0 | GI61: 0 | GJ61: 0 | GK61: 0 | GL61: 0 | GM61: 0 | GN61: 0 | GO61: 0 | GP61: 0 | GQ61: 0 | GR61: 0 | GS61: 0 | GT61: 0 | GU61: 0 | GV61: 0 | GW61: 0 | GX61: 0 | GY61: 0 | GZ61: 0 | HA61: 0 | HB61: 0 | HC61: 0 | HD61: 0 | HE61: 0 | HF61: 0 | HG61: 0 | HH61: 0 | HI61: 0 | HJ61: 0 | HK61: 0 | HL61: 0 | HM61: 0 | HN61: 0 | HO61: 0 | HP61: 0 | HQ61: 0 | HR61: 0 | HS61: 0 | HT61: 0 | HU61: 0 | HV61: 0 | HW61: 0
A62: Total | B62: 0 | C62: 0 | D62: 0 | E62: 0 | F62: 0 | G62: 0 | H62: 0 | I62: 0 | J62: 0 | K62: 0 | L62: 0 | M62: 0 | N62: 0 | O62: 0 | P62: 0 | Q62: 0 | R62: 0 | S62: 0 | T62: 0 | U62: 0 | V62: 0 | W62: 0 | X62: 0 | Y62: 0 | Z62: 1 | AA62: 0 | AB62: 0 | AC62: 0 | AD62: 0 | AE62: 0 | AF62: 0 | AG62: 0 | AH62: 0 | AI62: 0 | AJ62: 0 | AK62: 0 | AL62: 0 | AM62: 0 | AN62: 0 | AO62: 0 | AP62: 0 | AQ62: 0 | AR62: 0 | AS62: 0 | AT62: 0 | AU62: 0 | AV62: 0 | AW62: 0 | AX62: 0 | AY62: 0 | AZ62: 0 | BA62: 0 | BB62: 0 | BC62: 0 | BD62: 0 | BE62: 0 | BF62: 0 | BG62: 0 | BH62: 0 | BI62: 0 | BJ62: 0 | BK62: 0 | BL62: 0 | BM62: 0 | BN62: 0 | BO62: 0 | BP62: 0 | BQ62: 0 | BR62: 0 | BS62: 0 | BT62: 0 | BU62: 0 | BV62: 0 | BW62: 0 | BX62: 0 | BY62: 0 | BZ62: 0 | CA62: 0 | CB62: 0 | CC62: 0 | CD62: 0 | CE62: 0 | CF62: 0 | CG62: 0 | CH62: 0 | CI62: 0 | CJ62: 0 | CK62: 0 | CL62: 0 | CM62: 0 | CN62: 0 | CO62: 0 | CP62: 0 | CQ62: 0 | CR62: 0 | CS62: 0 | CT62: 0 | CU62: 0 | CV62: 0 | CW62: 0 | CX62: 0 | CY62: 0 | CZ62: 0 | DA62: 0 | DB62: 0 | DC62: 0 | DD62: 0 | DE62: 0 | DF62: 0 | DG62: 0 | DH62: 0 | DI62: 0 | DJ62: 0 | DK62: 0 | DL62: 0 | DM62: 0 | DN62: 0 | DO62: 0 | DP62: 0 | DQ62: 0 | DR62: 0 | DS62: 0 | DT62: 0 | DU62: 0 | DV62: 0 | DW62: 0 | DX62: 0 | DY62: 0 | DZ62: 0 | EA62: 0 | EB62: 0 | EC62: 0 | ED62: 0 | EE62: 0 | EF62: 0 | EG62: 0 | EH62: 0 | EI62: 0 | EJ62: 0 | EK62: 0 | EL62: 0 | EM62: 0 | EN62: 0 | EO62: 0 | EP62: 0 | EQ62: 0 | ER62: 0 | ES62: 0 | ET62: 0 | EU62: 0 | EV62: 0 | EW62: 0 | EX62: 0 | EY62: 0 | EZ62: 0 | FA62: 0 | FB62: 0 | FC62: 0 | FD62: 0 | FE62: 0 | FF62: 0 | FG62: 0 | FH62: 0 | FI62: 0 | FJ62: 0 | FK62: 0 | FL62: 0 | FM62: 0 | FN62: 0 | FO62: 0 | FP62: 0 | FQ62: 0 | FR62: 0 | FS62: 0 | FT62: 0 | FU62: 0 | FV62: 0 | FW62: 0 | FX62: 0 | FY62: 0 | FZ62: 0 | GA62: 0 | GB62: 0 | GC62: 0 | GD62: 0 | GE62: 0 | GF62: 0 | GG62: 0 | GH62: 0 | GI62: 0 | GJ62: 0 | GK62: 0 | GL62: 0 | GM62: 0 | GN62: 0 | GO62: 0 | GP62: 0 | GQ62: 0 | GR62: 0 | GS62: 0 | GT62: 0 | GU62: 0 | GV62: 0 | GW62: 0 | GX62: 0 | GY62: 0 | GZ62: 0 | HA62: 0 | HB62: 0 | HC62: 0 | HD62: 0 | HE62: 0 | HF62: 0 | HG62: 0 | HH62: 0 | HI62: 0 | HJ62: 0 | HK62: 0 | HL62: 0 | HM62: 0 | HN62: 0 | HO62: 0 | HP62: 0 | HQ62: 0 | HR62: 0 | HS62: 0 | HT62: 0 | HU62: 0 | HV62: 0 | HW62: 0
A77: TOTAL
A78: =COUNT(A59:A75) -> 3 | B78: =SUM(B59:B75) -> 0 | C78: =SUM(C59:C75) -> 0 | D78: 0 | E78: 0 | F78: 0 | G78: 0 | H78: 0 | I78: 0 | J78: 0 | K78: 0 | L78: 0 | M78: 0 | N78: 0 | O78: 0 | P78: 0 | Q78: 0 | R78: 0 | S78: 0 | T78: 0 | U78: 0 | V78: 0 | W78: 0 | X78: 0 | Y78: 0 | Z78: 2 | AA78: 0 | AB78: 0 | AC78: 0 | AD78: 0 | AE78: 0 | AF78: 0 | AG78: 0 | AH78: 0 | AI78: 0 | AJ78: 0 | AK78: 0 | AL78: 0 | AM78: 0 | AN78: 0 | AO78: 0 | AP78: 0 | AQ78: 0 | AR78: 0 | AS78: 0 | AT78: 0 | AU78: 0 | AV78: 0 | AW78: 0 | AX78: 0 | AY78: 0 | AZ78: 0 | BA78: 0 | BB78: 0 | BC78: 0 | BD78: 0 | BE78: 0 | BF78: 0 | BG78: 0 | BH78: 0 | BI78: 0 | BJ78: 0 | BK78: 0 | BL78: 0 | BM78: 0 | BN78: 0 | BO78: =SUM(BO59:BO75) -> 0 | BP78: 0 | BQ78: 0 | BR78: 0 | BS78: 0 | BT78: 0 | BU78: 0 | BV78: 0 | BW78: 0 | BX78: 0 | BY78: 0 | BZ78: 0 | CA78: 0 | CB78: 0 | CC78: 0 | CD78: 0 | CE78: 0 | CF78: 0 | CG78: 0 | CH78: 0 | CI78: 0 | CJ78: 0 | CK78: 0 | CL78: 0 | CM78: 0 | CN78: 0 | CO78: 0 | CP78: 0 | CQ78: 0 | CR78: 0 | CS78: 0 | CT78: 0 | CU78: 0 | CV78: 0 | CW78: 0 | CX78: 0 | CY78: 0 | CZ78: 0 | DA78: 0 | DB78: 0 | DC78: 0 | DD78: 0 | DE78: 0 | DF78: 0 | DG78: 0 | DH78: 0 | DI78: 0 | DJ78: 0 | DK78: 0 | DL78: 0 | DM78: 0 | DN78: 0 | DO78: 0 | DP78: 0 | DQ78: 0 | DR78: 0 | DS78: 0 | DT78: 0 | DU78: 0 | DV78: 0 | DW78: 0 | DX78: 0 | DY78: 0 | DZ78: 0 | EA78: =SUM(EA59:EA75) -> 0 | EB78: 0 | EC78: 0 | ED78: 0 | EE78: 0 | EF78: 0 | EG78: 0 | EH78: 0 | EI78: 0 | EJ78: 0 | EK78: 0 | EL78: 0 | EM78: 0 | EN78: 0 | EO78: 0 | EP78: 0 | EQ78: 0 | ER78: 0 | ES78: 0 | ET78: 0 | EU78: 0 | EV78: 0 | EW78: 0 | EX78: 0 | EY78: 0 | EZ78: 0 | FA78: 0 | FB78: 0 | FC78: 0 | FD78: 0 | FE78: 0 | FF78: 0 | FG78: 0 | FH78: 0 | FI78: 0 | FJ78: 0 | FK78: 0 | FL78: 0 | FM78: 0 | FN78: 0 | FO78: 0 | FP78: 0 | FQ78: 0 | FR78: 0 | FS78: 0 | FT78: 0 | FU78: 0 | FV78: 0 | FW78: 0 | FX78: 0 | FY78: 0 | FZ78: 0 | GA78: 0 | GB78: 0 | GC78: 0 | GD78: 0 | GE78: 0 | GF78: 0 | GG78: 0 | GH78: 0 | GI78: 0 | GJ78: 0 | GK78: 0 | GL78: 0 | GM78: =SUM(GM59:GM75) -> 0 | GN78: 0 | GO78: 0 | GP78: 0 | GQ78: 0 | GR78: 0 | GS78: 0 | GT78: 0 | GU78: 0 | GV78: 0 | GW78: 0 | GX78: 0 | GY78: 0 | GZ78: 0 | HA78: 0 | HB78: 0 | HC78: 0 | HD78: 0 | HE78: 0 | HF78: 0 | HG78: 0 | HH78: 0 | HI78: 0 | HJ78: 0 | HK78: 0 | HL78: 0 | HM78: 0 | HN78: 0 | HO78: 0 | HP78: 0 | HQ78: 0 | HR78: 0 | HS78: 0 | HT78: 0 | HU78: 0 | HV78: 0 | HW78: 0 | HX78: 0
A79: =CONCATENATE(A59,"-",A60,"-",A61,"-",A62,"-",A63,"-",A64,"-",A65,"-",A66,"-",A67,"-",A68,"-",A69,"-",A70) -> 1-2-3-Total--------
B80: BAS001 | C80: BAS002 | D80: BAS003 | E80: BAS004 | F80: BAS005 | G80: BAS006 | H80: BAS007 | I80: BAS008 | J80: BAS009 | K80: BAS010 | L80: BAS011 | M80: BAS012 | N80: BAS013 | O80: BAS014 | P80: BAS015 | Q80: BAS016 | R80: BAS017 | S80: BAS018 | T80: BAS019 | U80: BAS020 | V80: BAS021 | W80: BAS022 | X80: BAS023 | Y80: BAS024 | Z80: BAS025 | AA80: BAS026 | AB80: BAS027 | AC80: BAS028 | AD80: BAS029 | AE80: BAS030 | AF80: BAS031 | AG80: BAS032 | AH80: BAS033 | AI80: BAS034 | AJ80: BAS035 | AK80: BAS036 | AL80: BAS037 | AM80: BAS038 | AN80: BAS039 | AO80: BAS040 | AP80: BAS041 | AQ80: BAS042 | AR80: BAS043 | AS80: BAS044 | AT80: BAS045 | AU80: BAS046 | AV80: BAS047 | AW80: BAS048 | AX80: BAS049 | AY80: BAS050 | AZ80: BAS051 | BA80: BAS052 | BB80: BAS053 | BC80: BAS054 | BD80: BAS055 | BE80: BAS056 | BF80: BAS057 | BG80: BAS058 | BH80: BAS059 | BI80: BAS060 | BJ80: BAS061 | BK80: BAS062 | BL80: BAS063 | BM80: BAS064 | BN80: BAS065 | BO80: BAS066 | BP80: BAS067 | BQ80: BAS068 | BR80: BAS069 | BS80: BAS070 | BT80: BAS071 | BU80: BAS072 | BV80: BAS073 | BW80: BAS074 | BX80: BAS075 | BY80: BAS076 | BZ80: BAS077 | CA80: BAS078 | CB80: BAS079 | CC80: BAS080 | CD80: BAS081 | CE80: BAS082 | CF80: BAS083 | CG80: BAS084 | CH80: BAS085 | CI80: BAS086 | CJ80: BAS087 | CK80: BAS088 | CL80: BAS089 | CM80: BAS090 | CN80: BAS091 | CO80: BAS092 | CP80: BAS093 | CQ80: BAS094 | CR80: BAS095 | CS80: BAS096 | CT80: BAS097 | CU80: BAS098 | CV80: BAS099 | CW80: BAS100 | CX80: BAS101 | CY80: BAS102 | CZ80: BAS103 | DA80: BAS104 | DB80: BAS105 | DC80: BAS106 | DD80: BAS107 | DE80: BAS108 | DF80: BAS109 | DG80: BAS110 | DH80: BAS111 | DI80: BAS112 | DJ80: BAS113 | DK80: BAS114 | DL80: BAS115 | DM80: BAS116 | DN80: BAS117 | DO80: BAS118 | DP80: BAS119 | DQ80: BAS120 | DR80: BAS121 | DS80: BAS122 | DT80: BAS123 | DU80: BAS124 | DV80: BAS125 | DW80: BAS126 | DX80: BAS127 | DY80: BAS128 | DZ80: BAS129 | EA80: BAS130 | EB80: BAS131 | EC80: BAS132 | ED80: BAS133 | EE80: BAS134 | EF80: BAS135 | EG80: BAS136 | EH80: BAS137 | EI80: BAS138 | EJ80: BAS139 | EK80: BAS140 | EL80: BAS141 | EM80: BAS142 | EN80: BAS143 | EO80: BAS144 | EP80: BAS145 | EQ80: BAS146 | ER80: BAS147 | ES80: BAS148 | ET80: BAS149 | EU80: BAS150 | EV80: BAS151 | EW80: BAS152 | EX80: BAS153 | EY80: BAS154 | EZ80: BAS155 | FA80: BAS156 | FB80: BAS157 | FC80: BAS158 | FD80: BAS159 | FE80: BAS160 | FF80: BAS161 | FG80: BAS162 | FH80: BAS163 | FI80: BAS164 | FJ80: BAS165 | FK80: BAS166 | FL80: BAS167 | FM80: BAS168 | FN80: BAS169 | FO80: BAS170 | FP80: BAS171 | FQ80: BAS172 | FR80: BAS173 | FS80: BAS174 | FT80: BAS175 | FU80: BAS176 | FV80: BAS177 | FW80: BAS178 | FX80: BAS179 | FY80: BAS180 | FZ80: BAS181 | GA80: BAS182 | GB80: BAS183 | GC80: BAS184 | GD80: BAS185 | GE80: BAS186 | GF80: BAS187 | GG80: BAS188 | GH80: BAS189 | GI80: BAS190 | GJ80: BAS191 | GK80: BAS192 | GL80: BAS193 | GM80: BAS194 | GN80: BAS195 | GO80: BAS196 | GP80: BAS197 | GQ80: BAS198 | GR80: BAS199 | GS80: BAS200 | GT80: BAS201 | GU80: BAS202 | GV80: BAS203 | GW80: BAS204 | GX80: BAS205 | GY80: BAS206 | GZ80: BAS207 | HA80: BAS208 | HB80: BAS209 | HC80: BAS210 | HD80: BAS211 | HE80: BAS212 | HF80: BAS213 | HG80: BAS214 | HH80: BAS215 | HI80: BAS216 | HJ80: BAS217 | HK80: BAS218 | HL80: BAS219 | HM80: BAS220 | HN80: BAS221 | HO80: BAS222 | HP80: BAS223 | HQ80: BAS224 | HR80: BAS225 | HS80: BAS226 | HT80: BAS227 | HU80: BAS228 | HV80: BAS229 | HW80: BAS230
B81: =IF(B80=B58,"SI","NO") -> SI | C81: =IF(C80=C58,"SI","NO") -> SI | D81: SI | E81: SI | F81: SI | G81: SI | H81: SI | I81: SI | J81: SI | K81: SI | L81: SI | M81: SI | N81: SI | O81: SI | P81: SI | Q81: SI | R81: SI | S81: SI | T81: SI | U81: SI | V81: SI | W81: SI | X81: SI | Y81: SI | Z81: SI | AA81: SI | AB81: SI | AC81: SI | AD81: SI | AE81: SI | AF81: SI | AG81: SI | AH81: SI | AI81: SI | AJ81: SI | AK81: SI | AL81: SI | AM81: SI | AN81: SI | AO81: SI | AP81: SI | AQ81: SI | AR81: SI | AS81: SI | AT81: SI | AU81: SI | AV81: SI | AW81: SI | AX81: SI | AY81: SI | AZ81: SI | BA81: SI | BB81: SI | BC81: SI | BD81: SI | BE81: SI | BF81: SI | BG81: SI | BH81: SI | BI81: SI | BJ81: SI | BK81: SI | BL81: SI | BM81: SI | BN81: SI | BO81: =IF(BO80=BO58,"SI","NO") -> SI | BP81: SI | BQ81: SI | BR81: SI | BS81: SI | BT81: SI | BU81: SI | BV81: SI | BW81: SI | BX81: SI | BY81: SI | BZ81: SI | CA81: SI | CB81: SI | CC81: SI | CD81: SI | CE81: SI | CF81: SI | CG81: SI | CH81: SI | CI81: SI | CJ81: SI | CK81: SI | CL81: SI | CM81: SI | CN81: SI | CO81: SI | CP81: SI | CQ81: SI | CR81: SI | CS81: SI | CT81: SI | CU81: SI | CV81: SI | CW81: SI | CX81: SI | CY81: SI | CZ81: SI | DA81: SI | DB81: SI | DC81: SI | DD81: SI | DE81: SI | DF81: SI | DG81: SI | DH81: SI | DI81: SI | DJ81: SI | DK81: SI | DL81: SI | DM81: SI | DN81: SI | DO81: SI | DP81: SI | DQ81: SI | DR81: SI | DS81: SI | DT81: SI | DU81: SI | DV81: SI | DW81: SI | DX81: SI | DY81: SI | DZ81: SI | EA81: =IF(EA80=EA58,"SI","NO") -> SI | EB81: SI | EC81: SI | ED81: SI | EE81: SI | EF81: SI | EG81: SI | EH81: SI | EI81: SI | EJ81: SI | EK81: SI | EL81: SI | EM81: SI | EN81: SI | EO81: SI | EP81: SI | EQ81: SI | ER81: SI | ES81: SI | ET81: SI | EU81: SI | EV81: SI | EW81: SI | EX81: SI | EY81: SI | EZ81: SI | FA81: SI | FB81: SI | FC81: SI | FD81: SI | FE81: SI | FF81: SI | FG81: SI | FH81: SI | FI81: SI | FJ81: SI | FK81: SI | FL81: SI | FM81: SI | FN81: SI | FO81: SI | FP81: SI | FQ81: SI | FR81: SI | FS81: SI | FT81: SI | FU81: SI | FV81: SI | FW81: SI | FX81: SI | FY81: SI | FZ81: SI | GA81: SI | GB81: SI | GC81: SI | GD81: SI | GE81: SI | GF81: SI | GG81: SI | GH81: SI | GI81: SI | GJ81: SI | GK81: SI | GL81: SI | GM81: =IF(GM80=GM58,"SI","NO") -> SI | GN81: SI | GO81: SI | GP81: SI | GQ81: SI | GR81: SI | GS81: SI | GT81: SI | GU81: SI | GV81: SI | GW81: SI | GX81: SI | GY81: SI | GZ81: SI | HA81: SI | HB81: SI | HC81: SI | HD81: SI | HE81: SI | HF81: SI | HG81: SI | HH81: SI | HI81: SI | HJ81: SI | HK81: SI | HL81: SI | HM81: SI | HN81: SI | HO81: SI | HP81: SI | HQ81: SI | HR81: SI | HS81: SI | HT81: SI | HU81: SI | HV81: SI | HW81: SI | HX81: =IF(HW80=HX58,"SI","NO") -> NO
A84: MATERNO_02
A85: ANNO | B85: 2025
A86: cod_red | B86: 03
A87: codmic | B87: (Todas)
A88: cod_prov | B88: (Todas)
A89: coddist | B89: (Todas)
A90: cod_estab | B90: (Todas)
A91: cod_eje | B91: (Todas)
B93: Valores
A94: Etiquetas de fila | B94: BAS001 | C94: BAS002 | D94: BAS003 | E94: BAS004 | F94: BAS005 | G94: BAS006 | H94: BAS007 | I94: BAS008 | J94: BAS009 | K94: BAS010 | L94: BAS011 | M94: BAS012 | N94: BAS013 | O94: BAS014 | P94: BAS015 | Q94: BAS016 | R94: BAS017 | S94: BAS018 | T94: BAS019 | U94: BAS020 | V94: BAS021 | W94: BAS022 | X94: BAS023 | Y94: BAS024 | Z94: BAS025 | AA94: BAS026 | AB94: BAS027 | AC94: BAS028 | AD94: BAS029 | AE94: BAS030 | AF94: BAS031 | AG94: BAS032 | AH94: BAS033 | AI94: BAS034 | AJ94: BAS035 | AK94: BAS036 | AL94: BAS037 | AM94: BAS038 | AN94: BAS039 | AO94: BAS040 | AP94: BAS041 | AQ94: BAS042 | AR94: BAS043 | AS94: BAS044 | AT94: BAS045 | AU94: BAS046 | AV94: BAS047 | AW94: BAS048 | AX94: BAS049 | AY94: BAS050 | AZ94: BAS051 | BA94: BAS052 | BB94: BAS053 | BC94: BAS054 | BD94: BAS055 | BE94: BAS056 | BF94: BAS057 | BG94: BAS058 | BH94: BAS059 | BI94: BAS060 | BJ94: BAS061 | BK94: BAS062 | BL94: BAS063 | BM94: BAS064 | BN94: BAS065 | BO94: BAS066 | BP94: BAS067 | BQ94: BAS068 | BR94: BAS069 | BS94: BAS070 | BT94: BAS071 | BU94: BAS072 | BV94: BAS073 | BW94: BAS074 | BX94: BAS075 | BY94: BAS076 | BZ94: BAS077 | CA94: BAS078 | CB94: BAS079 | CC94: BAS080 | CD94: BAS081 | CE94: BAS082 | CF94: BAS083 | CG94: BAS084 | CH94: BAS085 | CI94: BAS086 | CJ94: BAS087 | CK94: BAS088 | CL94: BAS089 | CM94: BAS090 | CN94: BAS091 | CO94: BAS092 | CP94: BAS093 | CQ94: BAS094 | CR94: BAS095 | CS94: BAS096 | CT94: BAS097 | CU94: BAS098 | CV94: BAS099 | CW94: BAS100 | CX94: BAS101 | CY94: BAS102 | CZ94: BAS103 | DA94: BAS104 | DB94: BAS105 | DC94: BAS106 | DD94: BAS107 | DE94: BAS108 | DF94: BAS109 | DG94: BAS110 | DH94: BAS111 | DI94: BAS112 | DJ94: BAS113 | DK94: BAS114 | DL94: BAS115 | DM94: BAS116 | DN94: BAS117 | DO94: BAS118 | DP94: BAS119 | DQ94: BAS120 | DR94: BAS121 | DS94: BAS122 | DT94: BAS123 | DU94: BAS124 | DV94: BAS125 | DW94: BAS126 | DX94: BAS127 | DY94: BAS128 | DZ94: BAS129 | EA94: BAS130 | EB94: BAS131 | EC94: BAS132 | ED94: BAS133 | EE94: BAS134 | EF94: BAS135 | EG94: BAS136 | EH94: BAS137 | EI94: BAS138 | EJ94: BAS139 | EK94: BAS140 | EL94: BAS141 | EM94: BAS142 | EN94: BAS143 | EO94: BAS144 | EP94: BAS145 | EQ94: BAS146 | ER94: BAS147 | ES94: BAS148 | ET94: BAS149 | EU94: BAS150 | EV94: BAS151 | EW94: BAS152 | EX94: BAS153 | EY94: BAS154 | EZ94: BAS155 | FA94: BAS156 | FB94: BAS157 | FC94: BAS158 | FD94: BAS159 | FE94: BAS160 | FF94: BAS161 | FG94: BAS162 | FH94: BAS163 | FI94: BAS164 | FJ94: BAS165 | FK94: BAS166 | FL94: BAS167 | FM94: BAS168 | FN94: BAS169 | FO94: BAS170 | FP94: BAS171 | FQ94: BAS172 | FR94: BAS173 | FS94: BAS174 | FT94: BAS175 | FU94: BAS176 | FV94: BAS177 | FW94: BAS178 | FX94: BAS179 | FY94: BAS180 | FZ94: BAS181 | GA94: BAS182 | GB94: BAS183 | GC94: BAS184 | GD94: BAS185 | GE94: BAS186 | GF94: BAS187 | GG94: BAS188 | GH94: BAS189 | GI94: BAS190 | GJ94: BAS191 | GK94: BAS192 | GL94: BAS193 | GM94: BAS194 | GN94: BAS195 | GO94: BAS196 | GP94: BAS197 | GQ94: BAS198 | GR94: BAS199 | GS94: BAS200 | GT94: BAS201 | GU94: BAS202 | GV94: BAS203 | GW94: BAS204 | GX94: BAS205 | GY94: BAS206 | GZ94: BAS207 | HA94: BAS208 | HB94: BAS209 | HC94: BAS210 | HD94: BAS211 | HE94: BAS212 | HF94: BAS213 | HG94: BAS214 | HH94: BAS215 | HI94: BAS216 | HJ94: BAS217 | HK94: BAS218 | HL94: BAS219 | HM94: BAS220 | HN94: BAS221 | HO94: BAS222 | HP94: BAS223 | HQ94: BAS224 | HR94: BAS225 | HS94: BAS226 | HT94: BAS227 | HU94: BAS228 | HV94: BAS229 | HW94: BAS230
A95: 1 | B95: 4 | C95: 5 | D95: 3 | E95: 71 | F95: 11 | G95: 0 | H95: 0 | I95: 12 | J95: 12 | K95: 12 | L95: 2 | M95: 7 | N95: 2 | O95: 3 | P95: 45 | Q95: 18 | R95: 25 | S95: 1 | T95: 0 | U95: 8 | V95: 0 | W95: 0 | X95: 0 | Y95: 0 | Z95: 12 | AA95: 0 | AB95: 0 | AC95: 0 | AD95: 0 | AE95: 0 | AF95: 0 | AG95: 0 | AH95: 0 | AI95: 0 | AJ95: 0 | AK95: 0 | AL95: 0 | AM95: 0 | AN95: 0 | AO95: 0 | AP95: 0 | AQ95: 0 | AR95: 0 | AS95: 0 | AT95: 0 | AU95: 0 | AV95: 0 | AW95: 0 | AX95: 0 | AY95: 0 | AZ95: 1 | BA95: 3 | BB95: 0 | BC95: 0 | BD95: 0 | BE95: 0 | BF95: 0 | BG95: 0 | BH95: 0 | BI95: 0 | BJ95: 0 | BK95: 0 | BL95: 5 | BM95: 1 | BN95: 0 | BO95: 1 | BP95: 16 | BQ95: 2 | BR95: 15 | BS95: 12 | BT95: 8 | BU95: 12 | BV95: 7 | BW95: 0 | BX95: 0 | BY95: 0 | BZ95: 0 | CA95: 0 | CB95: 0 | CC95: 0 | CD95: 0 | CE95: 0 | CF95: 0 | CG95: 0 | CH95: 12 | CI95: 3 | CJ95: 4 | CK95: 11 | CL95: 2 | CM95: 8 | CN95: 5 | CO95: 0 | CP95: 8 | CQ95: 1 | CR95: 0 | CS95: 0 | CT95: 0 | CU95: 0 | CV95: 0 | CW95: 0 | CX95: 0 | CY95: 0 | CZ95: 0 | DA95: 0 | DB95: 10 | DC95: 6 | DD95: 0 | DE95: 0 | DF95: 0 | DG95: 0 | DH95: 4 | DI95: 4 | DJ95: 0 | DK95: 0 | DL95: 0 | DM95: 11 | DN95: 0 | DO95: 4 | DP95: 4 | DQ95: 3 | DR95: 0 | DS95: 0 | DT95: 10 | DU95: 0 | DV95: 4 | DW95: 4 | DX95: 3 | DY95: 0 | DZ95: 0 | EA95: 10 | EB95: 0 | EC95: 0 | ED95: 0 | EE95: 0 | EF95: 0 | EG95: 0 | EH95: 0 | EI95: 0 | EJ95: 0 | EK95: 0 | EL95: 0 | EM95: 0 | EN95: 0 | EO95: 0 | EP95: 0 | EQ95: 0 | ER95: 0 | ES95: 0 | ET95: 0 | EU95: 0 | EV95: 0 | EW95: 0 | EX95: 0 | EY95: 0 | EZ95: 0 | FA95: 0 | FB95: 0 | FC95: 0 | FD95: 0 | FE95: 0 | FF95: 0 | FG95: 0 | FH95: 0 | FI95: 0 | FJ95: 6 | FK95: 0 | FL95: 3 | FM95: 0 | FN95: 0 | FO95: 0 | FP95: 1 | FQ95: 2 | FR95: 0 | FS95: 0 | FT95: 26 | FU95: 0 | FV95: 0 | FW95: 0 | FX95: 0 | FY95: 0 | FZ95: 0 | GA95: 0 | GB95: 1 | GC95: 0 | GD95: 0 | GE95: 0 | GF95: 0 | GG95: 0 | GH95: 0 | GI95: 0 | GJ95: 0 | GK95: 0 | GL95: 0 | GM95: 0 | GN95: 0 | GO95: 0 | GP95: 0 | GQ95: 0 | GR95: 0 | GS95: 0 | GT95: 0 | GU95: 0 | GV95: 0 | GW95: 0 | GX95: 0 | GY95: 0 | GZ95: 0 | HA95: 0 | HB95: 0 | HC95: 0 | HD95: 0 | HE95: 0 | HF95: 0 | HG95: 0 | HH95: 0 | HI95: 0 | HJ95: 0 | HK95: 0 | HL95: 0 | HM95: 0 | HN95: 0 | HO95: 0 | HP95: 0 | HQ95: 0 | HR95: 0 | HS95: 0 | HT95: 0 | HU95: 0 | HV95: 0 | HW95: 0
A96: 2 | B96: 7 | C96: 5 | D96: 2 | E96: 67 | F96: 7 | G96: 0 | H96: 0 | I96: 15 | J96: 4 | K96: 15 | L96: 4 | M96: 2 | N96: 2 | O96: 0 | P96: 39 | Q96: 15 | R96: 19 | S96: 1 | T96: 2 | U96: 6 | V96: 0 | W96: 0 | X96: 0 | Y96: 0 | Z96: 7 | AA96: 0 | AB96: 0 | AC96: 0 | AD96: 0 | AE96: 0 | AF96: 0 | AG96: 0 | AH96: 0 | AI96: 0 | AJ96: 0 | AK96: 0 | AL96: 0 | AM96: 0 | AN96: 0 | AO96: 0 | AP96: 0 | AQ96: 0 | AR96: 0 | AS96: 0 | AT96: 0 | AU96: 0 | AV96: 0 | AW96: 0 | AX96: 0 | AY96: 0 | AZ96: 6 | BA96: 4 | BB96: 0 | BC96: 0 | BD96: 0 | BE96: 0 | BF96: 0 | BG96: 0 | BH96: 0 | BI96: 0 | BJ96: 0 | BK96: 0 | BL96: 5 | BM96: 1 | BN96: 0 | BO96: 2 | BP96: 13 | BQ96: 2 | BR96: 14 | BS96: 16 | BT96: 14 | BU96: 6 | BV96: 6 | BW96: 0 | BX96: 0 | BY96: 0 | BZ96: 0 | CA96: 0 | CB96: 0 | CC96: 0 | CD96: 0 | CE96: 0 | CF96: 0 | CG96: 0 | CH96: 9 | CI96: 6 | CJ96: 0 | CK96: 7 | CL96: 2 | CM96: 6 | CN96: 6 | CO96: 3 | CP96: 6 | CQ96: 2 | CR96: 0 | CS96: 0 | CT96: 0 | CU96: 0 | CV96: 0 | CW96: 0 | CX96: 0 | CY96: 0 | CZ96: 0 | DA96: 0 | DB96: 16 | DC96: 9 | DD96: 0 | DE96: 0 | DF96: 0 | DG96: 0 | DH96: 8 | DI96: 5 | DJ96: 2 | DK96: 0 | DL96: 0 | DM96: 3 | DN96: 0 | DO96: 7 | DP96: 5 | DQ96: 2 | DR96: 0 | DS96: 0 | DT96: 3 | DU96: 0 | DV96: 7 | DW96: 5 | DX96: 2 | DY96: 0 | DZ96: 0 | EA96: 3 | EB96: 0 | EC96: 0 | ED96: 0 | EE96: 0 | EF96: 0 | EG96: 0 | EH96: 0 | EI96: 0 | EJ96: 0 | EK96: 0 | EL96: 0 | EM96: 0 | EN96: 0 | EO96: 0 | EP96: 0 | EQ96: 0 | ER96: 0 | ES96: 0 | ET96: 0 | EU96: 0 | EV96: 0 | EW96: 0 | EX96: 0 | EY96: 0 | EZ96: 0 | FA96: 0 | FB96: 0 | FC96: 0 | FD96: 0 | FE96: 0 | FF96: 0 | FG96: 0 | FH96: 0 | FI96: 0 | FJ96: 5 | FK96: 1 | FL96: 9 | FM96: 0 | FN96: 0 | FO96: 0 | FP96: 2 | FQ96: 0 | FR96: 0 | FS96: 0 | FT96: 15 | FU96: 0 | FV96: 0 | FW96: 1 | FX96: 0 | FY96: 0 | FZ96: 0 | GA96: 0 | GB96: 0 | GC96: 0 | GD96: 0 | GE96: 0 | GF96: 0 | GG96: 0 | GH96: 0 | GI96: 0 | GJ96: 0 | GK96: 0 | GL96: 0 | GM96: 0 | GN96: 0 | GO96: 0 | GP96: 0 | GQ96: 0 | GR96: 0 | GS96: 0 | GT96: 0 | GU96: 0 | GV96: 0 | GW96: 0 | GX96: 0 | GY96: 0 | GZ96: 0 | HA96: 0 | HB96: 0 | HC96: 0 | HD96: 0 | HE96: 0 | HF96: 0 | HG96: 0 | HH96: 0 | HI96: 0 | HJ96: 0 | HK96: 0 | HL96: 0 | HM96: 0 | HN96: 0 | HO96: 0 | HP96: 0 | HQ96: 0 | HR96: 0 | HS96: 0 | HT96: 0 | HU96: 0 | HV96: 0 | HW96: 0
A97: 3 | B97: 4 | C97: 5 | D97: 1 | E97: 59 | F97: 3 | G97: 0 | H97: 0 | I97: 10 | J97: 6 | K97: 11 | L97: 2 | M97: 2 | N97: 1 | O97: 2 | P97: 39 | Q97: 17 | R97: 17 | S97: 2 | T97: 4 | U97: 12 | V97: 0 | W97: 0 | X97: 0 | Y97: 0 | Z97: 11 | AA97: 0 | AB97: 0 | AC97: 0 | AD97: 0 | AE97: 0 | AF97: 0 | AG97: 0 | AH97: 0 | AI97: 0 | AJ97: 0 | AK97: 0 | AL97: 0 | AM97: 0 | AN97: 0 | AO97: 0 | AP97: 0 | AQ97: 0 | AR97: 0 | AS97: 0 | AT97: 0 | AU97: 0 | AV97: 0 | AW97: 0 | AX97: 0 | AY97: 0 | AZ97: 2 | BA97: 3 | BB97: 0 | BC97: 0 | BD97: 0 | BE97: 0 | BF97: 0 | BG97: 0 | BH97: 0 | BI97: 0 | BJ97: 0 | BK97: 0 | BL97: 0 | BM97: 0 | BN97: 0 | BO97: 0 | BP97: 9 | BQ97: 3 | BR97: 9 | BS97: 12 | BT97: 8 | BU97: 7 | BV97: 3 | BW97: 0 | BX97: 0 | BY97: 0 | BZ97: 0 | CA97: 0 | CB97: 0 | CC97: 0 | CD97: 0 | CE97: 0 | CF97: 0 | CG97: 0 | CH97: 9 | CI97: 7 | CJ97: 0 | CK97: 9 | CL97: 3 | CM97: 5 | CN97: 5 | CO97: 1 | CP97: 12 | CQ97: 2 | CR97: 0 | CS97: 0 | CT97: 0 | CU97: 0 | CV97: 0 | CW97: 0 | CX97: 0 | CY97: 0 | CZ97: 0 | DA97: 0 | DB97: 6 | DC97: 8 | DD97: 1 | DE97: 0 | DF97: 0 | DG97: 0 | DH97: 4 | DI97: 5 | DJ97: 1 | DK97: 0 | DL97: 0 | DM97: 6 | DN97: 0 | DO97: 4 | DP97: 4 | DQ97: 1 | DR97: 1 | DS97: 0 | DT97: 5 | DU97: 0 | DV97: 4 | DW97: 4 | DX97: 1 | DY97: 0 | DZ97: 0 | EA97: 5 | EB97: 0 | EC97: 0 | ED97: 0 | EE97: 0 | EF97: 0 | EG97: 0 | EH97: 0 | EI97: 0 | EJ97: 0 | EK97: 0 | EL97: 0 | EM97: 0 | EN97: 0 | EO97: 0 | EP97: 0 | EQ97: 0 | ER97: 0 | ES97: 0 | ET97: 0 | EU97: 0 | EV97: 0 | EW97: 0 | EX97: 0 | EY97: 0 | EZ97: 0 | FA97: 0 | FB97: 0 | FC97: 0 | FD97: 0 | FE97: 0 | FF97: 0 | FG97: 0 | FH97: 0 | FI97: 0 | FJ97: 2 | FK97: 1 | FL97: 2 | FM97: 0 | FN97: 0 | FO97: 0 | FP97: 0 | FQ97: 1 | FR97: 0 | FS97: 0 | FT97: 18 | FU97: 0 | FV97: 0 | FW97: 0 | FX97: 0 | FY97: 0 | FZ97: 0 | GA97: 0 | GB97: 0 | GC97: 0 | GD97: 0 | GE97: 0 | GF97: 0 | GG97: 0 | GH97: 0 | GI97: 0 | GJ97: 0 | GK97: 0 | GL97: 0 | GM97: 0 | GN97: 0 | GO97: 0 | GP97: 0 | GQ97: 0 | GR97: 0 | GS97: 0 | GT97: 0 | GU97: 0 | GV97: 0 | GW97: 0 | GX97: 0 | GY97: 0 | GZ97: 0 | HA97: 0 | HB97: 0 | HC97: 0 | HD97: 0 | HE97: 0 | HF97: 0 | HG97: 0 | HH97: 0 | HI97: 0 | HJ97: 0 | HK97: 0 | HL97: 0 | HM97: 0 | HN97: 0 | HO97: 0 | HP97: 0 | HQ97: 0 | HR97: 0 | HS97: 0 | HT97: 0 | HU97: 0 | HV97: 0 | HW97: 0
A98: Total | B98: 15 | C98: 15 | D98: 6 | E98: 197 | F98: 21 | G98: 0 | H98: 0 | I98: 37 | J98: 22 | K98: 38 | L98: 8 | M98: 11 | N98: 5 | O98: 5 | P98: 123 | Q98: 50 | R98: 61 | S98: 4 | T98: 6 | U98: 26 | V98: 0 | W98: 0 | X98: 0 | Y98: 0 | Z98: 30 | AA98: 0 | AB98: 0 | AC98: 0 | AD98: 0 | AE98: 0 | AF98: 0 | AG98: 0 | AH98: 0 | AI98: 0 | AJ98: 0 | AK98: 0 | AL98: 0 | AM98: 0 | AN98: 0 | AO98: 0 | AP98: 0 | AQ98: 0 | AR98: 0 | AS98: 0 | AT98: 0 | AU98: 0 | AV98: 0 | AW98: 0 | AX98: 0 | AY98: 0 | AZ98: 9 | BA98: 10 | BB98: 0 | BC98: 0 | BD98: 0 | BE98: 0 | BF98: 0 | BG98: 0 | BH98: 0 | BI98: 0 | BJ98: 0 | BK98: 0 | BL98: 10 | BM98: 2 | BN98: 0 | BO98: 3 | BP98: 38 | BQ98: 7 | BR98: 38 | BS98: 40 | BT98: 30 | BU98: 25 | BV98: 16 | BW98: 0 | BX98: 0 | BY98: 0 | BZ98: 0 | CA98: 0 | CB98: 0 | CC98: 0 | CD98: 0 | CE98: 0 | CF98: 0 | CG98: 0 | CH98: 30 | CI98: 16 | CJ98: 4 | CK98: 27 | CL98: 7 | CM98: 19 | CN98: 16 | CO98: 4 | CP98: 26 | CQ98: 5 | CR98: 0 | CS98: 0 | CT98: 0 | CU98: 0 | CV98: 0 | CW98: 0 | CX98: 0 | CY98: 0 | CZ98: 0 | DA98: 0 | DB98: 32 | DC98: 23 | DD98: 1 | DE98: 0 | DF98: 0 | DG98: 0 | DH98: 16 | DI98: 14 | DJ98: 3 | DK98: 0 | DL98: 0 | DM98: 20 | DN98: 0 | DO98: 15 | DP98: 13 | DQ98: 6 | DR98: 1 | DS98: 0 | DT98: 18 | DU98: 0 | DV98: 15 | DW98: 13 | DX98: 6 | DY98: 0 | DZ98: 0 | EA98: 18 | EB98: 0 | EC98: 0 | ED98: 0 | EE98: 0 | EF98: 0 | EG98: 0 | EH98: 0 | EI98: 0 | EJ98: 0 | EK98: 0 | EL98: 0 | EM98: 0 | EN98: 0 | EO98: 0 | EP98: 0 | EQ98: 0 | ER98: 0 | ES98: 0 | ET98: 0 | EU98: 0 | EV98: 0 | EW98: 0 | EX98: 0 | EY98: 0 | EZ98: 0 | FA98: 0 | FB98: 0 | FC98: 0 | FD98: 0 | FE98: 0 | FF98: 0 | FG98: 0 | FH98: 0 | FI98: 0 | FJ98: 13 | FK98: 2 | FL98: 14 | FM98: 0 | FN98: 0 | FO98: 0 | FP98: 3 | FQ98: 3 | FR98: 0 | FS98: 0 | FT98: 59 | FU98: 0 | FV98: 0 | FW98: 1 | FX98: 0 | FY98: 0 | FZ98: 0 | GA98: 0 | GB98: 1 | GC98: 0 | GD98: 0 | GE98: 0 | GF98: 0 | GG98: 0 | GH98: 0 | GI98: 0 | GJ98: 0 | GK98: 0 | GL98: 0 | GM98: 0 | GN98: 0 | GO98: 0 | GP98: 0 | GQ98: 0 | GR98: 0 | GS98: 0 | GT98: 0 | GU98: 0 | GV98: 0 | GW98: 0 | GX98: 0 | GY98: 0 | GZ98: 0 | HA98: 0 | HB98: 0 | HC98: 0 | HD98: 0 | HE98: 0 | HF98: 0 | HG98: 0 | HH98: 0 | HI98: 0 | HJ98: 0 | HK98: 0 | HL98: 0 | HM98: 0 | HN98: 0 | HO98: 0 | HP98: 0 | HQ98: 0 | HR98: 0 | HS98: 0 | HT98: 0 | HU98: 0 | HV98: 0 | HW98: 0
A113: TOTAL
A114: =COUNT(A95:A111) -> 3 | B114: =SUM(B95:B111) -> 30 | C114: =SUM(C95:C111) -> 30 | D114: 12 | E114: 394 | F114: 42 | G114: 0 | H114: 0 | I114: 74 | J114: 44 | K114: 76 | L114: 16 | M114: 22 | N114: 10 | O114: 10 | P114: 246 | Q114: 100 | R114: 122 | S114: 8 | T114: 12 | U114: 52 | V114: 0 | W114: 0 | X114: 0 | Y114: 0 | Z114: 60 | AA114: 0 | AB114: 0 | AC114: 0 | AD114: 0 | AE114: 0 | AF114: 0 | AG114: 0 | AH114: 0 | AI114: 0 | AJ114: 0 | AK114: 0 | AL114: 0 | AM114: 0 | AN114: 0 | AO114: 0 | AP114: 0 | AQ114: 0 | AR114: 0 | AS114: 0 | AT114: 0 | AU114: 0 | AV114: 0 | AW114: 0 | AX114: 0 | AY114: 0 | AZ114: 18 | BA114: 20 | BB114: 0 | BC114: 0 | BD114: 0 | BE114: 0 | BF114: 0 | BG114: 0 | BH114: 0 | BI114: 0 | BJ114: 0 | BK114: 0 | BL114: 20 | BM114: 4 | BN114: 0 | BO114: =SUM(BO95:BO111) -> 6 | BP114: 76 | BQ114: 14 | BR114: 76 | BS114: 80 | BT114: 60 | BU114: 50 | BV114: 32 | BW114: 0 | BX114: 0 | BY114: 0 | BZ114: 0 | CA114: 0 | CB114: 0 | CC114: 0 | CD114: 0 | CE114: 0 | CF114: 0 | CG114: 0 | CH114: 60 | CI114: 32 | CJ114: 8 | CK114: 54 | CL114: 14 | CM114: 38 | CN114: 32 | CO114: 8 | CP114: 52 | CQ114: 10 | CR114: 0 | CS114: 0 | CT114: 0 | CU114: 0 | CV114: 0 | CW114: 0 | CX114: 0 | CY114: 0 | CZ114: 0 | DA114: 0 | DB114: 64 | DC114: 46 | DD114: 2 | DE114: 0 | DF114: 0 | DG114: 0 | DH114: 32 | DI114: 28 | DJ114: 6 | DK114: 0 | DL114: 0 | DM114: 40 | DN114: 0 | DO114: 30 | DP114: 26 | DQ114: 12 | DR114: 2 | DS114: 0 | DT114: 36 | DU114: 0 | DV114: 30 | DW114: 26 | DX114: 12 | DY114: 0 | DZ114: 0 | EA114: =SUM(EA95:EA111) -> 36 | EB114: 0 | EC114: 0 | ED114: 0 | EE114: 0 | EF114: 0 | EG114: 0 | EH114: 0 | EI114: 0 | EJ114: 0 | EK114: 0 | EL114: 0 | EM114: 0 | EN114: 0 | EO114: 0 | EP114: 0 | EQ114: 0 | ER114: 0 | ES114: 0 | ET114: 0 | EU114: 0 | EV114: 0 | EW114: 0 | EX114: 0 | EY114: 0 | EZ114: 0 | FA114: 0 | FB114: 0 | FC114: 0 | FD114: 0 | FE114: 0 | FF114: 0 | FG114: 0 | FH114: 0 | FI114: 0 | FJ114: 26 | FK114: 4 | FL114: 28 | FM114: 0 | FN114: 0 | FO114: 0 | FP114: 6 | FQ114: 6 | FR114: 0 | FS114: 0 | FT114: 118 | FU114: 0 | FV114: 0 | FW114: 2 | FX114: 0 | FY114: 0 | FZ114: 0 | GA114: 0 | GB114: 2 | GC114: 0 | GD114: 0 | GE114: 0 | GF114: 0 | GG114: 0 | GH114: 0 | GI114: 0 | GJ114: 0 | GK114: 0 | GL114: 0 | GM114: =SUM(GM95:GM111) -> 0 | GN114: 0 | GO114: 0 | GP114: 0 | GQ114: 0 | GR114: 0 | GS114: 0 | GT114: 0 | GU114: 0 | GV114: 0 | GW114: 0 | GX114: 0 | GY114: 0 | GZ114: 0 | HA114: 0 | HB114: 0 | HC114: 0 | HD114: 0 | HE114: 0 | HF114: 0 | HG114: 0 | HH114: 0 | HI114: 0 | HJ114: 0 | HK114: 0 | HL114: 0 | HM114: 0 | HN114: 0 | HO114: 0 | HP114: 0 | HQ114: 0 | HR114: 0 | HS114: 0 | HT114: 0 | HU114: 0 | HV114: 0 | HW114: 0
A115: =CONCATENATE(A95,"-",A96,"-",A97,"-",A98,"-",A99,"-",A100,"-",A101,"-",A102,"-",A103,"-",A104,"-",A105,"-",A106) -> 1-2-3-Total--------
B116: BAS001 | C116: BAS002 | D116: BAS003 | E116: BAS004 | F116: BAS005 | G116: BAS006 | H116: BAS007 | I116: BAS008 | J116: BAS009 | K116: BAS010 | L116: BAS011 | M116: BAS012 | N116: BAS013 | O116: BAS014 | P116: BAS015 | Q116: BAS016 | R116: BAS017 | S116: BAS018 | T116: BAS019 | U116: BAS020 | V116: BAS021 | W116: BAS022 | X116: BAS023 | Y116: BAS024 | Z116: BAS025 | AA116: BAS026 | AB116: BAS027 | AC116: BAS028 | AD116: BAS029 | AE116: BAS030 | AF116: BAS031 | AG116: BAS032 | AH116: BAS033 | AI116: BAS034 | AJ116: BAS035 | AK116: BAS036 | AL116: BAS037 | AM116: BAS038 | AN116: BAS039 | AO116: BAS040 | AP116: BAS041 | AQ116: BAS042 | AR116: BAS043 | AS116: BAS044 | AT116: BAS045 | AU116: BAS046 | AV116: BAS047 | AW116: BAS048 | AX116: BAS049 | AY116: BAS050 | AZ116: BAS051 | BA116: BAS052 | BB116: BAS053 | BC116: BAS054 | BD116: BAS055 | BE116: BAS056 | BF116: BAS057 | BG116: BAS058 | BH116: BAS059 | BI116: BAS060 | BJ116: BAS061 | BK116: BAS062 | BL116: BAS063 | BM116: BAS064 | BN116: BAS065 | BO116: BAS066 | BP116: BAS067 | BQ116: BAS068 | BR116: BAS069 | BS116: BAS070 | BT116: BAS071 | BU116: BAS072 | BV116: BAS073 | BW116: BAS074 | BX116: BAS075 | BY116: BAS076 | BZ116: BAS077 | CA116: BAS078 | CB116: BAS079 | CC116: BAS080 | CD116: BAS081 | CE116: BAS082 | CF116: BAS083 | CG116: BAS084 | CH116: BAS085 | CI116: BAS086 | CJ116: BAS087 | CK116: BAS088 | CL116: BAS089 | CM116: BAS090 | CN116: BAS091 | CO116: BAS092 | CP116: BAS093 | CQ116: BAS094 | CR116: BAS095 | CS116: BAS096 | CT116: BAS097 | CU116: BAS098 | CV116: BAS099 | CW116: BAS100 | CX116: BAS101 | CY116: BAS102 | CZ116: BAS103 | DA116: BAS104 | DB116: BAS105 | DC116: BAS106 | DD116: BAS107 | DE116: BAS108 | DF116: BAS109 | DG116: BAS110 | DH116: BAS111 | DI116: BAS112 | DJ116: BAS113 | DK116: BAS114 | DL116: BAS115 | DM116: BAS116 | DN116: BAS117 | DO116: BAS118 | DP116: BAS119 | DQ116: BAS120 | DR116: BAS121 | DS116: BAS122 | DT116: BAS123 | DU116: BAS124 | DV116: BAS125 | DW116: BAS126 | DX116: BAS127 | DY116: BAS128 | DZ116: BAS129 | EA116: BAS130 | EB116: BAS131 | EC116: BAS132 | ED116: BAS133 | EE116: BAS134 | EF116: BAS135 | EG116: BAS136 | EH116: BAS137 | EI116: BAS138 | EJ116: BAS139 | EK116: BAS140 | EL116: BAS141 | EM116: BAS142 | EN116: BAS143 | EO116: BAS144 | EP116: BAS145 | EQ116: BAS146 | ER116: BAS147 | ES116: BAS148 | ET116: BAS149 | EU116: BAS150 | EV116: BAS151 | EW116: BAS152 | EX116: BAS153 | EY116: BAS154 | EZ116: BAS155 | FA116: BAS156 | FB116: BAS157 | FC116: BAS158 | FD116: BAS159 | FE116: BAS160 | FF116: BAS161 | FG116: BAS162 | FH116: BAS163 | FI116: BAS164 | FJ116: BAS165 | FK116: BAS166 | FL116: BAS167 | FM116: BAS168 | FN116: BAS169 | FO116: BAS170 | FP116: BAS171 | FQ116: BAS172 | FR116: BAS173 | FS116: BAS174 | FT116: BAS175 | FU116: BAS176 | FV116: BAS177 | FW116: BAS178 | FX116: BAS179 | FY116: BAS180 | FZ116: BAS181 | GA116: BAS182 | GB116: BAS183 | GC116: BAS184 | GD116: BAS185 | GE116: BAS186 | GF116: BAS187 | GG116: BAS188 | GH116: BAS189 | GI116: BAS190 | GJ116: BAS191 | GK116: BAS192 | GL116: BAS193 | GM116: BAS194 | GN116: BAS195 | GO116: BAS196 | GP116: BAS197 | GQ116: BAS198 | GR116: BAS199 | GS116: BAS200 | GT116: BAS201 | GU116: BAS202 | GV116: BAS203 | GW116: BAS204 | GX116: BAS205 | GY116: BAS206 | GZ116: BAS207 | HA116: BAS208 | HB116: BAS209 | HC116: BAS210 | HD116: BAS211 | HE116: BAS212 | HF116: BAS213 | HG116: BAS214 | HH116: BAS215 | HI116: BAS216 | HJ116: BAS217 | HK116: BAS218 | HL116: BAS219 | HM116: BAS220 | HN116: BAS221 | HO116: BAS222 | HP116: BAS223 | HQ116: BAS224 | HR116: BAS225 | HS116: BAS226 | HT116: BAS227 | HU116: BAS228 | HV116: BAS229 | HW116: BAS230
B117: =IF(B116=B94,"SI","NO") -> SI | C117: =IF(C116=C94,"SI","NO") -> SI | D117: SI | E117: SI | F117: SI | G117: SI | H117: SI | I117: SI | J117: SI | K117: SI | L117: SI | M117: SI | N117: SI | O117: SI | P117: SI | Q117: SI | R117: SI | S117: SI | T117: SI | U117: SI | V117: SI | W117: SI | X117: SI | Y117: SI | Z117: SI | AA117: SI | AB117: SI | AC117: SI | AD117: SI | AE117: SI | AF117: SI | AG117: SI | AH117: SI | AI117: SI | AJ117: SI | AK117: SI | AL117: SI | AM117: SI | AN117: SI | AO117: SI | AP117: SI | AQ117: SI | AR117: SI | AS117: SI | AT117: SI | AU117: SI | AV117: SI | AW117: SI | AX117: SI | AY117: SI | AZ117: SI | BA117: SI | BB117: SI | BC117: SI | BD117: SI | BE117: SI | BF117: SI | BG117: SI | BH117: SI | BI117: SI | BJ117: SI | BK117: SI | BL117: SI | BM117: SI | BN117: SI | BO117: =IF(BO116=BO94,"SI","NO") -> SI | BP117: SI | BQ117: SI | BR117: SI | BS117: SI | BT117: SI | BU117: SI | BV117: SI | BW117: SI | BX117: SI | BY117: SI | BZ117: SI | CA117: SI | CB117: SI | CC117: SI | CD117: SI | CE117: SI | CF117: SI | CG117: SI | CH117: SI | CI117: SI | CJ117: SI | CK117: SI | CL117: SI | CM117: SI | CN117: SI | CO117: SI | CP117: SI | CQ117: SI | CR117: SI | CS117: SI | CT117: SI | CU117: SI | CV117: SI | CW117: SI | CX117: SI | CY117: SI | CZ117: SI | DA117: SI | DB117: SI | DC117: SI | DD117: SI | DE117: SI | DF117: SI | DG117: SI | DH117: SI | DI117: SI | DJ117: SI | DK117: SI | DL117: SI | DM117: SI | DN117: SI | DO117: SI | DP117: SI | DQ117: SI | DR117: SI | DS117: SI | DT117: SI | DU117: SI | DV117: SI | DW117: SI | DX117: SI | DY117: SI | DZ117: SI | EA117: =IF(EA116=EA94,"SI","NO") -> SI | EB117: SI | EC117: SI | ED117: SI | EE117: SI | EF117: SI | EG117: SI | EH117: SI | EI117: SI | EJ117: SI | EK117: SI | EL117: SI | EM117: SI | EN117: SI | EO117: SI | EP117: SI | EQ117: SI | ER117: SI | ES117: SI | ET117: SI | EU117: SI | EV117: SI | EW117: SI | EX117: SI | EY117: SI | EZ117: SI | FA117: SI | FB117: SI | FC117: SI | FD117: SI | FE117: SI | FF117: SI | FG117: SI | FH117: SI | FI117: SI | FJ117: SI | FK117: SI | FL117: SI | FM117: SI | FN117: SI | FO117: SI | FP117: SI | FQ117: SI | FR117: SI | FS117: SI | FT117: SI | FU117: SI | FV117: SI | FW117: SI | FX117: SI | FY117: SI | FZ117: SI | GA117: SI | GB117: SI | GC117: SI | GD117: SI | GE117: SI | GF117: SI | GG117: SI | GH117: SI | GI117: SI | GJ117: SI | GK117: SI | GL117: SI | GM117: =IF(GM116=GM94,"SI","NO") -> SI | GN117: SI | GO117: SI | GP117: SI | GQ117: SI | GR117: SI | GS117: SI | GT117: SI | GU117: SI | GV117: SI | GW117: SI | GX117: SI | GY117: SI | GZ117: SI | HA117: SI | HB117: SI | HC117: SI | HD117: SI | HE117: SI | HF117: SI | HG117: SI | HH117: SI | HI117: SI | HJ117: SI | HK117: SI | HL117: SI | HM117: SI | HN117: SI | HO117: SI | HP117: SI | HQ117: SI | HR117: SI | HS117: SI | HT117: SI | HU117: SI | HV117: SI | HW117: SI
A119: MATERNO_03
A120: ANNO | B120: 2025
A121: cod_red | B121: 03
A122: codmic | B122: (Todas)
A123: cod_prov | B123: (Todas)
A124: coddist | B124: (Todas)
A125: cod_estab | B125: (Todas)
A126: cod_eje | B126: (Todas)
B128: Valores
A129: Etiquetas de fila | B129: BAS001 | C129: BAS002 | D129: BAS003 | E129: BAS004 | F129: BAS005 | G129: BAS006 | H129: BAS007 | I129: BAS008 | J129: BAS009 | K129: BAS010 | L129: BAS011 | M129: BAS012 | N129: BAS013 | O129: BAS014 | P129: BAS015 | Q129: BAS016 | R129: BAS017 | S129: BAS018 | T129: BAS019 | U129: BAS020 | V129: BAS021 | W129: BAS022 | X129: BAS023 | Y129: BAS024 | Z129: BAS025 | AA129: BAS026 | AB129: BAS027 | AC129: BAS028 | AD129: BAS029 | AE129: BAS030 | AF129: BAS031 | AG129: BAS032 | AH129: BAS033 | AI129: BAS034 | AJ129: BAS035 | AK129: BAS036 | AL129: BAS037 | AM129: BAS038 | AN129: BAS039 | AO129: BAS040 | AP129: BAS041 | AQ129: BAS042 | AR129: BAS043 | AS129: BAS044 | AT129: BAS045 | AU129: BAS046 | AV129: BAS047 | AW129: BAS048 | AX129: BAS049 | AY129: BAS050 | AZ129: BAS051 | BA129: BAS052 | BB129: BAS053 | BC129: BAS054 | BD129: BAS055 | BE129: BAS056 | BF129: BAS057 | BG129: BAS058 | BH129: BAS059 | BI129: BAS060 | BJ129: BAS061 | BK129: BAS062 | BL129: BAS063 | BM129: BAS064 | BN129: BAS065 | BO129: BAS066 | BP129: BAS067 | BQ129: BAS068 | BR129: BAS069 | BS129: BAS070 | BT129: BAS071 | BU129: BAS072 | BV129: BAS073 | BW129: BAS074 | BX129: BAS075 | BY129: BAS076 | BZ129: BAS077 | CA129: BAS078 | CB129: BAS079 | CC129: BAS080 | CD129: BAS081 | CE129: BAS082 | CF129: BAS083 | CG129: BAS084 | CH129: BAS085 | CI129: BAS086 | CJ129: BAS087 | CK129: BAS088 | CL129: BAS089 | CM129: BAS090 | CN129: BAS091 | CO129: BAS092 | CP129: BAS093 | CQ129: BAS094 | CR129: BAS095 | CS129: BAS096 | CT129: BAS097 | CU129: BAS098 | CV129: BAS099 | CW129: BAS100 | CX129: BAS101 | CY129: BAS102 | CZ129: BAS103 | DA129: BAS104 | DB129: BAS105 | DC129: BAS106 | DD129: BAS107 | DE129: BAS108 | DF129: BAS109 | DG129: BAS110 | DH129: BAS111 | DI129: BAS112 | DJ129: BAS113 | DK129: BAS114 | DL129: BAS115 | DM129: BAS116 | DN129: BAS117 | DO129: BAS118 | DP129: BAS119 | DQ129: BAS120 | DR129: BAS121 | DS129: BAS122 | DT129: BAS123 | DU129: BAS124 | DV129: BAS125 | DW129: BAS126 | DX129: BAS127 | DY129: BAS128 | DZ129: BAS129 | EA129: BAS130 | EB129: BAS131 | EC129: BAS132 | ED129: BAS133 | EE129: BAS134 | EF129: BAS135 | EG129: BAS136 | EH129: BAS137 | EI129: BAS138 | EJ129: BAS139 | EK129: BAS140 | EL129: BAS141 | EM129: BAS142 | EN129: BAS143 | EO129: BAS144 | EP129: BAS145 | EQ129: BAS146 | ER129: BAS147 | ES129: BAS148 | ET129: BAS149 | EU129: BAS150 | EV129: BAS151 | EW129: BAS152 | EX129: BAS153 | EY129: BAS154 | EZ129: BAS155 | FA129: BAS156 | FB129: BAS157 | FC129: BAS158 | FD129: BAS159 | FE129: BAS160 | FF129: BAS161 | FG129: BAS162 | FH129: BAS163 | FI129: BAS164 | FJ129: BAS165 | FK129: BAS166 | FL129: BAS167 | FM129: BAS168 | FN129: BAS169 | FO129: BAS170 | FP129: BAS171 | FQ129: BAS172 | FR129: BAS173 | FS129: BAS174 | FT129: BAS175 | FU129: BAS176 | FV129: BAS177 | FW129: BAS178 | FX129: BAS179 | FY129: BAS180 | FZ129: BAS181 | GA129: BAS182 | GB129: BAS183 | GC129: BAS184 | GD129: BAS185 | GE129: BAS186 | GF129: BAS187 | GG129: BAS188 | GH129: BAS189 | GI129: BAS190 | GJ129: BAS191 | GK129: BAS192 | GL129: BAS193 | GM129: BAS194 | GN129: BAS195 | GO129: BAS196 | GP129: BAS197 | GQ129: BAS198 | GR129: BAS199 | GS129: BAS200 | GT129: BAS201 | GU129: BAS202 | GV129: BAS203 | GW129: BAS204 | GX129: BAS205 | GY129: BAS206 | GZ129: BAS207 | HA129: BAS208 | HB129: BAS209 | HC129: BAS210 | HD129: BAS211 | HE129: BAS212 | HF129: BAS213 | HG129: BAS214 | HH129: BAS215 | HI129: BAS216 | HJ129: BAS217 | HK129: BAS218 | HL129: BAS219 | HM129: BAS220 | HN129: BAS221 | HO129: BAS222 | HP129: BAS223 | HQ129: BAS224 | HR129: BAS225 | HS129: BAS226 | HT129: BAS227 | HU129: BAS228 | HV129: BAS229 | HW129: BAS230
A130: 1 | B130: 55 | C130: 22 | D130: 4 | E130: 476 | F130: 45 | G130: 1 | H130: 0 | I130: 83 | J130: 50 | K130: 82 | L130: 6 | M130: 33 | N130: 11 | O130: 5 | P130: 259 | Q130: 86 | R130: 130 | S130: 2 | T130: 7 | U130: 56 | V130: 5 | W130: 4 | X130: 0 | Y130: 0 | Z130: 77 | AA130: 0 | AB130: 0 | AC130: 0 | AD130: 0 | AE130: 0 | AF130: 0 | AG130: 0 | AH130: 0 | AI130: 0 | AJ130: 0 | AK130: 0 | AL130: 0 | AM130: 0 | AN130: 0 | AO130: 0 | AP130: 0 | AQ130: 0 | AR130: 0 | AS130: 0 | AT130: 0 | AU130: 0 | AV130: 0 | AW130: 0 | AX130: 0 | AY130: 0 | AZ130: 25 | BA130: 26 | BB130: 6 | BC130: 1 | BD130: 1 | BE130: 0 | BF130: 0 | BG130: 0 | BH130: 0 | BI130: 0 | BJ130: 0 | BK130: 0 | BL130: 10 | BM130: 3 | BN130: 0 | BO130: 11 | BP130: 76 | BQ130: 13 | BR130: 83 | BS130: 82 | BT130: 66 | BU130: 56 | BV130: 25 | BW130: 0 | BX130: 0 | BY130: 0 | BZ130: 0 | CA130: 0 | CB130: 0 | CC130: 0 | CD130: 0 | CE130: 0 | CF130: 0 | CG130: 0 | CH130: 79 | CI130: 36 | CJ130: 24 | CK130: 63 | CL130: 13 | CM130: 35 | CN130: 54 | CO130: 7 | CP130: 65 | CQ130: 10 | CR130: 0 | CS130: 0 | CT130: 0 | CU130: 0 | CV130: 0 | CW130: 0 | CX130: 0 | CY130: 0 | CZ130: 0 | DA130: 0 | DB130: 50 | DC130: 62 | DD130: 2 | DE130: 0 | DF130: 0 | DG130: 0 | DH130: 52 | DI130: 21 | DJ130: 8 | DK130: 0 | DL130: 0 | DM130: 48 | DN130: 0 | DO130: 50 | DP130: 18 | DQ130: 9 | DR130: 1 | DS130: 0 | DT130: 44 | DU130: 0 | DV130: 50 | DW130: 18 | DX130: 9 | DY130: 0 | DZ130: 0 | EA130: 42 | EB130: 0 | EC130: 0 | ED130: 0 | EE130: 0 | EF130: 0 | EG130: 0 | EH130: 0 | EI130: 0 | EJ130: 0 | EK130: 0 | EL130: 0 | EM130: 0 | EN130: 0 | EO130: 0 | EP130: 0 | EQ130: 0 | ER130: 0 | ES130: 0 | ET130: 0 | EU130: 0 | EV130: 0 | EW130: 0 | EX130: 0 | EY130: 0 | EZ130: 2 | FA130: 0 | FB130: 0 | FC130: 0 | FD130: 0 | FE130: 0 | FF130: 0 | FG130: 0 | FH130: 0 | FI130: 0 | FJ130: 28 | FK130: 3 | FL130: 21 | FM130: 0 | FN130: 0 | FO130: 0 | FP130: 0 | FQ130: 9 | FR130: 0 | FS130: 2 | FT130: 98 | FU130: 0 | FV130: 0 | FW130: 0 | FX130: 0 | FY130: 0 | FZ130: 0 | GA130: 0 | GB130: 0 | GC130: 0 | GD130: 0 | GE130: 0 | GF130: 0 | GG130: 0 | GH130: 0 | GI130: 0 | GJ130: 0 | GK130: 0 | GL130: 0 | GM130: 0 | GN130: 0 | GO130: 0 | GP130: 0 | GQ130: 0 | GR130: 0 | GS130: 0 | GT130: 0 | GU130: 0 | GV130: 0 | GW130: 0 | GX130: 0 | GY130: 0 | GZ130: 0 | HA130: 0 | HB130: 0 | HC130: 0 | HD130: 0 | HE130: 0 | HF130: 0 | HG130: 0 | HH130: 0 | HI130: 0 | HJ130: 0 | HK130: 0 | HL130: 0 | HM130: 0 | HN130: 0 | HO130: 0 | HP130: 0 | HQ130: 0 | HR130: 0 | HS130: 0 | HT130: 0 | HU130: 0 | HV130: 0 | HW130: 0
A131: 2 | B131: 47 | C131: 21 | D131: 1 | E131: 492 | F131: 48 | G131: 1 | H131: 0 | I131: 71 | J131: 46 | K131: 70 | L131: 0 | M131: 20 | N131: 17 | O131: 8 | P131: 236 | Q131: 77 | R131: 129 | S131: 2 | T131: 19 | U131: 61 | V131: 1 | W131: 7 | X131: 0 | Y131: 0 | Z131: 58 | AA131: 0 | AB131: 0 | AC131: 0 | AD131: 0 | AE131: 0 | AF131: 0 | AG131: 0 | AH131: 0 | AI131: 0 | AJ131: 0 | AK131: 0 | AL131: 0 | AM131: 0 | AN131: 0 | AO131: 0 | AP131: 0 | AQ131: 0 | AR131: 0 | AS131: 0 | AT131: 0 | AU131: 0 | AV131: 0 | AW131: 0 | AX131: 0 | AY131: 0 | AZ131: 30 | BA131: 36 | BB131: 3 | BC131: 7 | BD131: 1 | BE131: 0 | BF131: 0 | BG131: 0 | BH131: 0 | BI131: 0 | BJ131: 0 | BK131: 0 | BL131: 13 | BM131: 7 | BN131: 1 | BO131: 13 | BP131: 64 | BQ131: 19 | BR131: 68 | BS131: 66 | BT131: 68 | BU131: 50 | BV131: 28 | BW131: 0 | BX131: 0 | BY131: 0 | BZ131: 0 | CA131: 0 | CB131: 0 | CC131: 0 | CD131: 0 | CE131: 0 | CF131: 0 | CG131: 0 | CH131: 55 | CI131: 42 | CJ131: 32 | CK131: 45 | CL131: 18 | CM131: 20 | CN131: 43 | CO131: 26 | CP131: 47 | CQ131: 10 | CR131: 0 | CS131: 0 | CT131: 0 | CU131: 0 | CV131: 0 | CW131: 0 | CX131: 0 | CY131: 0 | CZ131: 0 | DA131: 0 | DB131: 44 | DC131: 35 | DD131: 2 | DE131: 0 | DF131: 0 | DG131: 0 | DH131: 45 | DI131: 19 | DJ131: 4 | DK131: 0 | DL131: 1 | DM131: 43 | DN131: 0 | DO131: 41 | DP131: 18 | DQ131: 4 | DR131: 0 | DS131: 1 | DT131: 42 | DU131: 0 | DV131: 40 | DW131: 18 | DX131: 4 | DY131: 0 | DZ131: 1 | EA131: 41 | EB131: 0 | EC131: 0 | ED131: 0 | EE131: 0 | EF131: 0 | EG131: 0 | EH131: 0 | EI131: 0 | EJ131: 0 | EK131: 0 | EL131: 0 | EM131: 0 | EN131: 0 | EO131: 0 | EP131: 0 | EQ131: 0 | ER131: 0 | ES131: 0 | ET131: 0 | EU131: 0 | EV131: 0 | EW131: 0 | EX131: 0 | EY131: 0 | EZ131: 0 | FA131: 0 | FB131: 0 | FC131: 0 | FD131: 0 | FE131: 0 | FF131: 0 | FG131: 0 | FH131: 0 | FI131: 0 | FJ131: 22 | FK131: 5 | FL131: 20 | FM131: 0 | FN131: 0 | FO131: 0 | FP131: 1 | FQ131: 8 | FR131: 0 | FS131: 1 | FT131: 96 | FU131: 4 | FV131: 0 | FW131: 1 | FX131: 0 | FY131: 3 | FZ131: 0 | GA131: 0 | GB131: 0 | GC131: 0 | GD131: 0 | GE131: 0 | GF131: 0 | GG131: 0 | GH131: 0 | GI131: 0 | GJ131: 0 | GK131: 0 | GL131: 0 | GM131: 0 | GN131: 0 | GO131: 0 | GP131: 0 | GQ131: 0 | GR131: 0 | GS131: 0 | GT131: 0 | GU131: 0 | GV131: 0 | GW131: 0 | GX131: 0 | GY131: 0 | GZ131: 0 | HA131: 0 | HB131: 0 | HC131: 0 | HD131: 0 | HE131: 0 | HF131: 0 | HG131: 0 | HH131: 0 | HI131: 0 | HJ131: 0 | HK131: 0 | HL131: 0 | HM131: 0 | HN131: 0 | HO131: 0 | HP131: 0 | HQ131: 0 | HR131: 0 | HS131: 0 | HT131: 0 | HU131: 0 | HV131: 0 | HW131: 0
A132: 3 | B132: 67 | C132: 25 | D132: 5 | E132: 526 | F132: 57 | G132: 1 | H132: 0 | I132: 96 | J132: 48 | K132: 100 | L132: 7 | M132: 42 | N132: 6 | O132: 11 | P132: 274 | Q132: 74 | R132: 129 | S132: 3 | T132: 13 | U132: 59 | V132: 0 | W132: 1 | X132: 0 | Y132: 0 | Z132: 73 | AA132: 0 | AB132: 0 | AC132: 0 | AD132: 0 | AE132: 0 | AF132: 0 | AG132: 0 | AH132: 0 | AI132: 0 | AJ132: 0 | AK132: 0 | AL132: 0 | AM132: 0 | AN132: 0 | AO132: 0 | AP132: 0 | AQ132: 0 | AR132: 0 | AS132: 0 | AT132: 0 | AU132: 0 | AV132: 0 | AW132: 0 | AX132: 0 | AY132: 0 | AZ132: 31 | BA132: 36 | BB132: 8 | BC132: 4 | BD132: 0 | BE132: 0 | BF132: 0 | BG132: 0 | BH132: 0 | BI132: 0 | BJ132: 0 | BK132: 0 | BL132: 19 | BM132: 4 | BN132: 0 | BO132: 10 | BP132: 82 | BQ132: 18 | BR132: 94 | BS132: 95 | BT132: 72 | BU132: 49 | BV132: 37 | BW132: 0 | BX132: 0 | BY132: 0 | BZ132: 0 | CA132: 0 | CB132: 0 | CC132: 0 | CD132: 0 | CE132: 0 | CF132: 0 | CG132: 0 | CH132: 81 | CI132: 33 | CJ132: 21 | CK132: 61 | CL132: 15 | CM132: 40 | CN132: 64 | CO132: 17 | CP132: 60 | CQ132: 11 | CR132: 0 | CS132: 0 | CT132: 0 | CU132: 0 | CV132: 0 | CW132: 0 | CX132: 0 | CY132: 0 | CZ132: 0 | DA132: 0 | DB132: 53 | DC132: 47 | DD132: 3 | DE132: 0 | DF132: 0 | DG132: 0 | DH132: 65 | DI132: 25 | DJ132: 9 | DK132: 1 | DL132: 1 | DM132: 41 | DN132: 0 | DO132: 56 | DP132: 22 | DQ132: 8 | DR132: 4 | DS132: 1 | DT132: 40 | DU132: 3 | DV132: 58 | DW132: 23 | DX132: 7 | DY132: 0 | DZ132: 1 | EA132: 38 | EB132: 0 | EC132: 0 | ED132: 0 | EE132: 0 | EF132: 0 | EG132: 0 | EH132: 0 | EI132: 0 | EJ132: 0 | EK132: 0 | EL132: 0 | EM132: 0 | EN132: 0 | EO132: 0 | EP132: 0 | EQ132: 0 | ER132: 0 | ES132: 0 | ET132: 0 | EU132: 0 | EV132: 0 | EW132: 0 | EX132: 0 | EY132: 0 | EZ132: 0 | FA132: 0 | FB132: 0 | FC132: 0 | FD132: 0 | FE132: 0 | FF132: 0 | FG132: 0 | FH132: 0 | FI132: 0 | FJ132: 31 | FK132: 6 | FL132: 23 | FM132: 0 | FN132: 0 | FO132: 0 | FP132: 0 | FQ132: 13 | FR132: 1 | FS132: 4 | FT132: 95 | FU132: 0 | FV132: 0 | FW132: 0 | FX132: 1 | FY132: 1 | FZ132: 0 | GA132: 0 | GB132: 2 | GC132: 1 | GD132: 1 | GE132: 0 | GF132: 0 | GG132: 0 | GH132: 0 | GI132: 0 | GJ132: 0 | GK132: 0 | GL132: 0 | GM132: 0 | GN132: 0 | GO132: 0 | GP132: 0 | GQ132: 0 | GR132: 0 | GS132: 0 | GT132: 0 | GU132: 0 | GV132: 0 | GW132: 0 | GX132: 0 | GY132: 0 | GZ132: 0 | HA132: 0 | HB132: 0 | HC132: 0 | HD132: 0 | HE132: 0 | HF132: 0 | HG132: 0 | HH132: 0 | HI132: 0 | HJ132: 0 | HK132: 0 | HL132: 0 | HM132: 0 | HN132: 0 | HO132: 0 | HP132: 0 | HQ132: 0 | HR132: 0 | HS132: 0 | HT132: 0 | HU132: 0 | HV132: 0 | HW132: 0
A133: Total | B133: 169 | C133: 68 | D133: 10 | E133: 1494 | F133: 150 | G133: 3 | H133: 0 | I133: 250 | J133: 144 | K133: 252 | L133: 13 | M133: 95 | N133: 34 | O133: 24 | P133: 769 | Q133: 237 | R133: 388 | S133: 7 | T133: 39 | U133: 176 | V133: 6 | W133: 12 | X133: 0 | Y133: 0 | Z133: 208 | AA133: 0 | AB133: 0 | AC133: 0 | AD133: 0 | AE133: 0 | AF133: 0 | AG133: 0 | AH133: 0 | AI133: 0 | AJ133: 0 | AK133: 0 | AL133: 0 | AM133: 0 | AN133: 0 | AO133: 0 | AP133: 0 | AQ133: 0 | AR133: 0 | AS133: 0 | AT133: 0 | AU133: 0 | AV133: 0 | AW133: 0 | AX133: 0 | AY133: 0 | AZ133: 86 | BA133: 98 | BB133: 17 | BC133: 12 | BD133: 2 | BE133: 0 | BF133: 0 | BG133: 0 | BH133: 0 | BI133: 0 | BJ133: 0 | BK133: 0 | BL133: 42 | BM133: 14 | BN133: 1 | BO133: 34 | BP133: 222 | BQ133: 50 | BR133: 245 | BS133: 243 | BT133: 206 | BU133: 155 | BV133: 90 | BW133: 0 | BX133: 0 | BY133: 0 | BZ133: 0 | CA133: 0 | CB133: 0 | CC133: 0 | CD133: 0 | CE133: 0 | CF133: 0 | CG133: 0 | CH133: 215 | CI133: 111 | CJ133: 77 | CK133: 169 | CL133: 46 | CM133: 95 | CN133: 161 | CO133: 50 | CP133: 172 | CQ133: 31 | CR133: 0 | CS133: 0 | CT133: 0 | CU133: 0 | CV133: 0 | CW133: 0 | CX133: 0 | CY133: 0 | CZ133: 0 | DA133: 0 | DB133: 147 | DC133: 144 | DD133: 7 | DE133: 0 | DF133: 0 | DG133: 0 | DH133: 162 | DI133: 65 | DJ133: 21 | DK133: 1 | DL133: 2 | DM133: 132 | DN133: 0 | DO133: 147 | DP133: 58 | DQ133: 21 | DR133: 5 | DS133: 2 | DT133: 126 | DU133: 3 | DV133: 148 | DW133: 59 | DX133: 20 | DY133: 0 | DZ133: 2 | EA133: 121 | EB133: 0 | EC133: 0 | ED133: 0 | EE133: 0 | EF133: 0 | EG133: 0 | EH133: 0 | EI133: 0 | EJ133: 0 | EK133: 0 | EL133: 0 | EM133: 0 | EN133: 0 | EO133: 0 | EP133: 0 | EQ133: 0 | ER133: 0 | ES133: 0 | ET133: 0 | EU133: 0 | EV133: 0 | EW133: 0 | EX133: 0 | EY133: 0 | EZ133: 2 | FA133: 0 | FB133: 0 | FC133: 0 | FD133: 0 | FE133: 0 | FF133: 0 | FG133: 0 | FH133: 0 | FI133: 0 | FJ133: 81 | FK133: 14 | FL133: 64 | FM133: 0 | FN133: 0 | FO133: 0 | FP133: 1 | FQ133: 30 | FR133: 1 | FS133: 7 | FT133: 289 | FU133: 4 | FV133: 0 | FW133: 1 | FX133: 1 | FY133: 4 | FZ133: 0 | GA133: 0 | GB133: 2 | GC133: 1 | GD133: 1 | GE133: 0 | GF133: 0 | GG133: 0 | GH133: 0 | GI133: 0 | GJ133: 0 | GK133: 0 | GL133: 0 | GM133: 0 | GN133: 0 | GO133: 0 | GP133: 0 | GQ133: 0 | GR133: 0 | GS133: 0 | GT133: 0 | GU133: 0 | GV133: 0 | GW133: 0 | GX133: 0 | GY133: 0 | GZ133: 0 | HA133: 0 | HB133: 0 | HC133: 0 | HD133: 0 | HE133: 0 | HF133: 0 | HG133: 0 | HH133: 0 | HI133: 0 | HJ133: 0 | HK133: 0 | HL133: 0 | HM133: 0 | HN133: 0 | HO133: 0 | HP133: 0 | HQ133: 0 | HR133: 0 | HS133: 0 | HT133: 0 | HU133: 0 | HV133: 0 | HW133: 0
A148: TOTAL
A149: =COUNT(A130:A146) -> 3 | B149: =SUM(B130:B146) -> 338 | C149: =SUM(C130:C146) -> 136 | D149: 20 | E149: 2988 | F149: 300 | G149: 6 | H149: 0 | I149: 500 | J149: 288 | K149: 504 | L149: 26 | M149: 190 | N149: 68 | O149: 48 | P149: 1538 | Q149: 474 | R149: 776 | S149: 14 | T149: 78 | U149: 352 | V149: 12 | W149: 24 | X149: 0 | Y149: 0 | Z149: 416 | AA149: 0 | AB149: 0 | AC149: 0 | AD149: 0 | AE149: 0 | AF149: 0 | AG149: 0 | AH149: 0 | AI149: 0 | AJ149: 0 | AK149: 0 | AL149: 0 | AM149: 0 | AN149: 0 | AO149: 0 | AP149: 0 | AQ149: 0 | AR149: 0 | AS149: 0 | AT149: 0 | AU149: 0 | AV149: 0 | AW149: 0 | AX149: 0 | AY149: 0 | AZ149: 172 | BA149: 196 | BB149: 34 | BC149: 24 | BD149: 4 | BE149: 0 | BF149: 0 | BG149: 0 | BH149: 0 | BI149: 0 | BJ149: 0 | BK149: 0 | BL149: 84 | BM149: 28 | BN149: 2 | BO149: =SUM(BO130:BO146) -> 68 | BP149: 444 | BQ149: 100 | BR149: 490 | BS149: 486 | BT149: 412 | BU149: 310 | BV149: 180 | BW149: 0 | BX149: 0 | BY149: 0 | BZ149: 0 | CA149: 0 | CB149: 0 | CC149: 0 | CD149: 0 | CE149: 0 | CF149: 0 | CG149: 0 | CH149: 430 | CI149: 222 | CJ149: 154 | CK149: 338 | CL149: 92 | CM149: 190 | CN149: 322 | CO149: 100 | CP149: 344 | CQ149: 62 | CR149: 0 | CS149: 0 | CT149: 0 | CU149: 0 | CV149: 0 | CW149: 0 | CX149: 0 | CY149: 0 | CZ149: 0 | DA149: 0 | DB149: 294 | DC149: 288 | DD149: 14 | DE149: 0 | DF149: 0 | DG149: 0 | DH149: 324 | DI149: 130 | DJ149: 42 | DK149: 2 | DL149: 4 | DM149: 264 | DN149: 0 | DO149: 294 | DP149: 116 | DQ149: 42 | DR149: 10 | DS149: 4 | DT149: 252 | DU149: 6 | DV149: 296 | DW149: 118 | DX149: 40 | DY149: 0 | DZ149: 4 | EA149: =SUM(EA130:EA146) -> 242 | EB149: 0 | EC149: 0 | ED149: 0 | EE149: 0 | EF149: 0 | EG149: 0 | EH149: 0 | EI149: 0 | EJ149: 0 | EK149: 0 | EL149: 0 | EM149: 0 | EN149: 0 | EO149: 0 | EP149: 0 | EQ149: 0 | ER149: 0 | ES149: 0 | ET149: 0 | EU149: 0 | EV149: 0 | EW149: 0 | EX149: 0 | EY149: 0 | EZ149: 4 | FA149: 0 | FB149: 0 | FC149: 0 | FD149: 0 | FE149: 0 | FF149: 0 | FG149: 0 | FH149: 0 | FI149: 0 | FJ149: 162 | FK149: 28 | FL149: 128 | FM149: 0 | FN149: 0 | FO149: 0 | FP149: 2 | FQ149: 60 | FR149: 2 | FS149: 14 | FT149: 578 | FU149: 8 | FV149: 0 | FW149: 2 | FX149: 2 | FY149: 8 | FZ149: 0 | GA149: 0 | GB149: 4 | GC149: 2 | GD149: 2 | GE149: 0 | GF149: 0 | GG149: 0 | GH149: 0 | GI149: 0 | GJ149: 0 | GK149: 0 | GL149: 0 | GM149: =SUM(GM130:GM146) -> 0 | GN149: 0 | GO149: 0 | GP149: 0 | GQ149: 0 | GR149: 0 | GS149: 0 | GT149: 0 | GU149: 0 | GV149: 0 | GW149: 0 | GX149: 0 | GY149: 0 | GZ149: 0 | HA149: 0 | HB149: 0 | HC149: 0 | HD149: 0 | HE149: 0 | HF149: 0 | HG149: 0 | HH149: 0 | HI149: 0 | HJ149: 0 | HK149: 0 | HL149: 0 | HM149: 0 | HN149: 0 | HO149: 0 | HP149: 0 | HQ149: 0 | HR149: 0 | HS149: 0 | HT149: 0 | HU149: 0 | HV149: 0 | HW149: 0
A150: =CONCATENATE(A130,"-",A131,"-",A132,"-",A133,"-",A134,"-",A135,"-",A136,"-",A137,"-",A138,"-",A139,"-",A140,"-",A141) -> 1-2-3-Total--------
B151: BAS001 | C151: BAS002 | D151: BAS003 | E151: BAS004 | F151: BAS005 | G151: BAS006 | H151: BAS007 | I151: BAS008 | J151: BAS009 | K151: BAS010 | L151: BAS011 | M151: BAS012 | N151: BAS013 | O151: BAS014 | P151: BAS015 | Q151: BAS016 | R151: BAS017 | S151: BAS018 | T151: BAS019 | U151: BAS020 | V151: BAS021 | W151: BAS022 | X151: BAS023 | Y151: BAS024 | Z151: BAS025 | AA151: BAS026 | AB151: BAS027 | AC151: BAS028 | AD151: BAS029 | AE151: BAS030 | AF151: BAS031 | AG151: BAS032 | AH151: BAS033 | AI151: BAS034 | AJ151: BAS035 | AK151: BAS036 | AL151: BAS037 | AM151: BAS038 | AN151: BAS039 | AO151: BAS040 | AP151: BAS041 | AQ151: BAS042 | AR151: BAS043 | AS151: BAS044 | AT151: BAS045 | AU151: BAS046 | AV151: BAS047 | AW151: BAS048 | AX151: BAS049 | AY151: BAS050 | AZ151: BAS051 | BA151: BAS052 | BB151: BAS053 | BC151: BAS054 | BD151: BAS055 | BE151: BAS056 | BF151: BAS057 | BG151: BAS058 | BH151: BAS059 | BI151: BAS060 | BJ151: BAS061 | BK151: BAS062 | BL151: BAS063 | BM151: BAS064 | BN151: BAS065 | BO151: BAS066 | BP151: BAS067 | BQ151: BAS068 | BR151: BAS069 | BS151: BAS070 | BT151: BAS071 | BU151: BAS072 | BV151: BAS073 | BW151: BAS074 | BX151: BAS075 | BY151: BAS076 | BZ151: BAS077 | CA151: BAS078 | CB151: BAS079 | CC151: BAS080 | CD151: BAS081 | CE151: BAS082 | CF151: BAS083 | CG151: BAS084 | CH151: BAS085 | CI151: BAS086 | CJ151: BAS087 | CK151: BAS088 | CL151: BAS089 | CM151: BAS090 | CN151: BAS091 | CO151: BAS092 | CP151: BAS093 | CQ151: BAS094 | CR151: BAS095 | CS151: BAS096 | CT151: BAS097 | CU151: BAS098 | CV151: BAS099 | CW151: BAS100 | CX151: BAS101 | CY151: BAS102 | CZ151: BAS103 | DA151: BAS104 | DB151: BAS105 | DC151: BAS106 | DD151: BAS107 | DE151: BAS108 | DF151: BAS109 | DG151: BAS110 | DH151: BAS111 | DI151: BAS112 | DJ151: BAS113 | DK151: BAS114 | DL151: BAS115 | DM151: BAS116 | DN151: BAS117 | DO151: BAS118 | DP151: BAS119 | DQ151: BAS120 | DR151: BAS121 | DS151: BAS122 | DT151: BAS123 | DU151: BAS124 | DV151: BAS125 | DW151: BAS126 | DX151: BAS127 | DY151: BAS128 | DZ151: BAS129 | EA151: BAS130 | EB151: BAS131 | EC151: BAS132 | ED151: BAS133 | EE151: BAS134 | EF151: BAS135 | EG151: BAS136 | EH151: BAS137 | EI151: BAS138 | EJ151: BAS139 | EK151: BAS140 | EL151: BAS141 | EM151: BAS142 | EN151: BAS143 | EO151: BAS144 | EP151: BAS145 | EQ151: BAS146 | ER151: BAS147 | ES151: BAS148 | ET151: BAS149 | EU151: BAS150 | EV151: BAS151 | EW151: BAS152 | EX151: BAS153 | EY151: BAS154 | EZ151: BAS155 | FA151: BAS156 | FB151: BAS157 | FC151: BAS158 | FD151: BAS159 | FE151: BAS160 | FF151: BAS161 | FG151: BAS162 | FH151: BAS163 | FI151: BAS164 | FJ151: BAS165 | FK151: BAS166 | FL151: BAS167 | FM151: BAS168 | FN151: BAS169 | FO151: BAS170 | FP151: BAS171 | FQ151: BAS172 | FR151: BAS173 | FS151: BAS174 | FT151: BAS175 | FU151: BAS176 | FV151: BAS177 | FW151: BAS178 | FX151: BAS179 | FY151: BAS180 | FZ151: BAS181 | GA151: BAS182 | GB151: BAS183 | GC151: BAS184 | GD151: BAS185 | GE151: BAS186 | GF151: BAS187 | GG151: BAS188 | GH151: BAS189 | GI151: BAS190 | GJ151: BAS191 | GK151: BAS192 | GL151: BAS193 | GM151: BAS194 | GN151: BAS195 | GO151: BAS196 | GP151: BAS197 | GQ151: BAS198 | GR151: BAS199 | GS151: BAS200 | GT151: BAS201 | GU151: BAS202 | GV151: BAS203 | GW151: BAS204 | GX151: BAS205 | GY151: BAS206 | GZ151: BAS207 | HA151: BAS208 | HB151: BAS209 | HC151: BAS210 | HD151: BAS211 | HE151: BAS212 | HF151: BAS213 | HG151: BAS214 | HH151: BAS215 | HI151: BAS216 | HJ151: BAS217 | HK151: BAS218 | HL151: BAS219 | HM151: BAS220 | HN151: BAS221 | HO151: BAS222 | HP151: BAS223 | HQ151: BAS224 | HR151: BAS225 | HS151: BAS226 | HT151: BAS227 | HU151: BAS228 | HV151: BAS229 | HW151: BAS230
B152: =IF(B151=B129,"SI","NO") -> SI | C152: =IF(C151=C129,"SI","NO") -> SI | D152: SI | E152: SI | F152: SI | G152: SI | H152: SI | I152: SI | J152: SI | K152: SI | L152: SI | M152: SI | N152: SI | O152: SI | P152: SI | Q152: SI | R152: SI | S152: SI | T152: SI | U152: SI | V152: SI | W152: SI | X152: SI | Y152: SI | Z152: SI | AA152: SI | AB152: SI | AC152: SI | AD152: SI | AE152: SI | AF152: SI | AG152: SI | AH152: SI | AI152: SI | AJ152: SI | AK152: SI | AL152: SI | AM152: SI | AN152: SI | AO152: SI | AP152: SI | AQ152: SI | AR152: SI | AS152: SI | AT152: SI | AU152: SI | AV152: SI | AW152: SI | AX152: SI | AY152: SI | AZ152: SI | BA152: SI | BB152: SI | BC152: SI | BD152: SI | BE152: SI | BF152: SI | BG152: SI | BH152: SI | BI152: SI | BJ152: SI | BK152: SI | BL152: SI | BM152: SI | BN152: SI | BO152: =IF(BO151=BO129,"SI","NO") -> SI | BP152: SI | BQ152: SI | BR152: SI | BS152: SI | BT152: SI | BU152: SI | BV152: SI | BW152: SI | BX152: SI | BY152: SI | BZ152: SI | CA152: SI | CB152: SI | CC152: SI | CD152: SI | CE152: SI | CF152: SI | CG152: SI | CH152: SI | CI152: SI | CJ152: SI | CK152: SI | CL152: SI | CM152: SI | CN152: SI | CO152: SI | CP152: SI | CQ152: SI | CR152: SI | CS152: SI | CT152: SI | CU152: SI | CV152: SI | CW152: SI | CX152: SI | CY152: SI | CZ152: SI | DA152: SI | DB152: SI | DC152: SI | DD152: SI | DE152: SI | DF152: SI | DG152: SI | DH152: SI | DI152: SI | DJ152: SI | DK152: SI | DL152: SI | DM152: SI | DN152: SI | DO152: SI | DP152: SI | DQ152: SI | DR152: SI | DS152: SI | DT152: SI | DU152: SI | DV152: SI | DW152: SI | DX152: SI | DY152: SI | DZ152: SI | EA152: =IF(EA151=EA129,"SI","NO") -> SI | EB152: SI | EC152: SI | ED152: SI | EE152: SI | EF152: SI | EG152: SI | EH152: SI | EI152: SI | EJ152: SI | EK152: SI | EL152: SI | EM152: SI | EN152: SI | EO152: SI | EP152: SI | EQ152: SI | ER152: SI | ES152: SI | ET152: SI | EU152: SI | EV152: SI | EW152: SI | EX152: SI | EY152: SI | EZ152: SI | FA152: SI | FB152: SI | FC152: SI | FD152: SI | FE152: SI | FF152: SI | FG152: SI | FH152: SI | FI152: SI | FJ152: SI | FK152: SI | FL152: SI | FM152: SI | FN152: SI | FO152: SI | FP152: SI | FQ152: SI | FR152: SI | FS152: SI | FT152: SI | FU152: SI | FV152: SI | FW152: SI | FX152: SI | FY152: SI | FZ152: SI | GA152: SI | GB152: SI | GC152: SI | GD152: SI | GE152: SI | GF152: SI | GG152: SI | GH152: SI | GI152: SI | GJ152: SI | GK152: SI | GL152: SI | GM152: =IF(GM151=GM129,"SI","NO") -> SI | GN152: SI | GO152: SI | GP152: SI | GQ152: SI | GR152: SI | GS152: SI | GT152: SI | GU152: SI | GV152: SI | GW152: SI | GX152: SI | GY152: SI | GZ152: SI | HA152: SI | HB152: SI | HC152: SI | HD152: SI | HE152: SI | HF152: SI | HG152: SI | HH152: SI | HI152: SI | HJ152: SI | HK152: SI | HL152: SI | HM152: SI | HN152: SI | HO152: SI | HP152: SI | HQ152: SI | HR152: SI | HS152: SI | HT152: SI | HU152: SI | HV152: SI | HW152: SI
A154: MATERNO_04
A155: ANNO | B155: 2025
A156: cod_red | B156: 03
A157: codmic | B157: (Todas)
A158: cod_prov | B158: (Todas)
A159: coddist | B159: (Todas)
A160: cod_estab | B160: (Todas)
A161: cod_eje | B161: (Todas)
B163: Valores
A164: Etiquetas de fila | B164: BAS001 | C164: BAS002 | D164: BAS003 | E164: BAS004 | F164: BAS005 | G164: BAS006 | H164: BAS007 | I164: BAS008 | J164: BAS009 | K164: BAS010 | L164: BAS011 | M164: BAS012 | N164: BAS013 | O164: BAS014 | P164: BAS015 | Q164: BAS016 | R164: BAS017 | S164: BAS018 | T164: BAS019 | U164: BAS020 | V164: BAS021 | W164: BAS022 | X164: BAS023 | Y164: BAS024 | Z164: BAS025 | AA164: BAS026 | AB164: BAS027 | AC164: BAS028 | AD164: BAS029 | AE164: BAS030 | AF164: BAS031 | AG164: BAS032 | AH164: BAS033 | AI164: BAS034 | AJ164: BAS035 | AK164: BAS036 | AL164: BAS037 | AM164: BAS038 | AN164: BAS039 | AO164: BAS040 | AP164: BAS041 | AQ164: BAS042 | AR164: BAS043 | AS164: BAS044 | AT164: BAS045 | AU164: BAS046 | AV164: BAS047 | AW164: BAS048 | AX164: BAS049 | AY164: BAS050 | AZ164: BAS051 | BA164: BAS052 | BB164: BAS053 | BC164: BAS054 | BD164: BAS055 | BE164: BAS056 | BF164: BAS057 | BG164: BAS058 | BH164: BAS059 | BI164: BAS060 | BJ164: BAS061 | BK164: BAS062 | BL164: BAS063 | BM164: BAS064 | BN164: BAS065 | BO164: BAS066 | BP164: BAS067 | BQ164: BAS068 | BR164: BAS069 | BS164: BAS070 | BT164: BAS071 | BU164: BAS072 | BV164: BAS073 | BW164: BAS074 | BX164: BAS075 | BY164: BAS076 | BZ164: BAS077 | CA164: BAS078 | CB164: BAS079 | CC164: BAS080 | CD164: BAS081 | CE164: BAS082 | CF164: BAS083 | CG164: BAS084 | CH164: BAS085 | CI164: BAS086 | CJ164: BAS087 | CK164: BAS088 | CL164: BAS089 | CM164: BAS090 | CN164: BAS091 | CO164: BAS092 | CP164: BAS093 | CQ164: BAS094 | CR164: BAS095 | CS164: BAS096 | CT164: BAS097 | CU164: BAS098 | CV164: BAS099 | CW164: BAS100 | CX164: BAS101 | CY164: BAS102 | CZ164: BAS103 | DA164: BAS104 | DB164: BAS105 | DC164: BAS106 | DD164: BAS107 | DE164: BAS108 | DF164: BAS109 | DG164: BAS110 | DH164: BAS111 | DI164: BAS112 | DJ164: BAS113 | DK164: BAS114 | DL164: BAS115 | DM164: BAS116 | DN164: BAS117 | DO164: BAS118 | DP164: BAS119 | DQ164: BAS120 | DR164: BAS121 | DS164: BAS122 | DT164: BAS123 | DU164: BAS124 | DV164: BAS125 | DW164: BAS126 | DX164: BAS127 | DY164: BAS128 | DZ164: BAS129 | EA164: BAS130 | EB164: BAS131 | EC164: BAS132 | ED164: BAS133 | EE164: BAS134 | EF164: BAS135 | EG164: BAS136 | EH164: BAS137 | EI164: BAS138 | EJ164: BAS139 | EK164: BAS140 | EL164: BAS141 | EM164: BAS142 | EN164: BAS143 | EO164: BAS144 | EP164: BAS145 | EQ164: BAS146 | ER164: BAS147 | ES164: BAS148 | ET164: BAS149 | EU164: BAS150 | EV164: BAS151 | EW164: BAS152 | EX164: BAS153 | EY164: BAS154 | EZ164: BAS155 | FA164: BAS156 | FB164: BAS157 | FC164: BAS158 | FD164: BAS159 | FE164: BAS160 | FF164: BAS161 | FG164: BAS162 | FH164: BAS163 | FI164: BAS164 | FJ164: BAS165 | FK164: BAS166 | FL164: BAS167 | FM164: BAS168 | FN164: BAS169 | FO164: BAS170 | FP164: BAS171 | FQ164: BAS172 | FR164: BAS173 | FS164: BAS174 | FT164: BAS175 | FU164: BAS176 | FV164: BAS177 | FW164: BAS178 | FX164: BAS179 | FY164: BAS180 | FZ164: BAS181 | GA164: BAS182 | GB164: bas183 | GC164: bas184 | GD164: bas185 | GE164: bas186 | GF164: bas187 | GG164: bas188 | GH164: bas189 | GI164: bas190 | GJ164: bas191 | GK164: bas192 | GL164: bas193 | GM164: bas194 | GN164: bas195 | GO164: bas196 | GP164: bas197 | GQ164: bas198 | GR164: bas199 | GS164: bas200 | GT164: bas201 | GU164: bas202 | GV164: bas203 | GW164: bas204 | GX164: bas205 | GY164: bas206 | GZ164: bas207 | HA164: bas208 | HB164: bas209 | HC164: bas210 | HD164: bas211 | HE164: bas212 | HF164: bas213 | HG164: bas214 | HH164: bas215 | HI164: bas216 | HJ164: bas217 | HK164: bas218 | HL164: bas219 | HM164: bas220 | HN164: bas221 | HO164: bas222 | HP164: bas223 | HQ164: bas224 | HR164: bas225 | HS164: bas226 | HT164: bas227 | HU164: bas228 | HV164: bas229 | HW164: bas230
A165: 1 | B165: 57 | C165: 12 | D165: 3 | E165: 414 | F165: 41 | G165: 1 | H165: 0 | I165: 74 | J165: 47 | K165: 74 | L165: 2 | M165: 21 | N165: 11 | O165: 5 | P165: 194 | Q165: 50 | R165: 103 | S165: 3 | T165: 20 | U165: 48 | V165: 3 | W165: 5 | X165: 0 | Y165: 0 | Z165: 55 | AA165: 0 | AB165: 0 | AC165: 0 | AD165: 0 | AE165: 0 | AF165: 0 | AG165: 0 | AH165: 0 | AI165: 0 | AJ165: 0 | AK165: 0 | AL165: 0 | AM165: 0 | AN165: 0 | AO165: 0 | AP165: 0 | AQ165: 0 | AR165: 0 | AS165: 0 | AT165: 0 | AU165: 0 | AV165: 0 | AW165: 0 | AX165: 0 | AY165: 0 | AZ165: 24 | BA165: 30 | BB165: 5 | BC165: 3 | BD165: 0 | BE165: 0 | BF165: 0 | BG165: 0 | BH165: 0 | BI165: 0 | BJ165: 0 | BK165: 0 | BL165: 12 | BM165: 2 | BN165: 0 | BO165: 7 | BP165: 49 | BQ165: 25 | BR165: 71 | BS165: 72 | BT165: 59 | BU165: 48 | BV165: 32 | BW165: 0 | BX165: 0 | BY165: 0 | BZ165: 0 | CA165: 0 | CB165: 0 | CC165: 0 | CD165: 0 | CE165: 0 | CF165: 0 | CG165: 0 | CH165: 68 | CI165: 29 | CJ165: 25 | CK165: 36 | CL165: 23 | CM165: 37 | CN165: 56 | CO165: 18 | CP165: 53 | CQ165: 14 | CR165: 0 | CS165: 0 | CT165: 0 | CU165: 0 | CV165: 0 | CW165: 0 | CX165: 0 | CY165: 0 | CZ165: 0 | DA165: 0 | DB165: 54 | DC165: 46 | DD165: 4 | DE165: 0 | DF165: 0 | DG165: 0 | DH165: 58 | DI165: 12 | DJ165: 3 | DK165: 0 | DL165: 0 | DM165: 46 | DN165: 0 | DO165: 53 | DP165: 10 | DQ165: 3 | DR165: 1 | DS165: 0 | DT165: 36 | DU165: 0 | DV165: 53 | DW165: 10 | DX165: 3 | DY165: 0 | DZ165: 0 | EA165: 34 | EB165: 0 | EC165: 0 | ED165: 0 | EE165: 0 | EF165: 0 | EG165: 0 | EH165: 0 | EI165: 0 | EJ165: 0 | EK165: 0 | EL165: 0 | EM165: 0 | EN165: 0 | EO165: 0 | EP165: 0 | EQ165: 0 | ER165: 0 | ES165: 0 | ET165: 0 | EU165: 0 | EV165: 0 | EW165: 0 | EX165: 0 | EY165: 0 | EZ165: 0 | FA165: 0 | FB165: 0 | FC165: 0 | FD165: 0 | FE165: 0 | FF165: 0 | FG165: 0 | FH165: 0 | FI165: 0 | FJ165: 23 | FK165: 0 | FL165: 26 | FM165: 0 | FN165: 0 | FO165: 0 | FP165: 0 | FQ165: 19 | FR165: 0 | FS165: 1 | FT165: 76 | FU165: 1 | FV165: 2 | FW165: 2 | FX165: 1 | FY165: 1 | FZ165: 0 | GA165: 0 | GB165: 0 | GC165: 3 | GD165: 0 | GE165: 0 | GF165: 0 | GG165: 0 | GH165: 0 | GI165: 0 | GJ165: 0 | GK165: 0 | GL165: 0 | GM165: 0 | GN165: 0 | GO165: 0 | GP165: 0 | GQ165: 0 | GR165: 0 | GS165: 0 | GT165: 0 | GU165: 0 | GV165: 0 | GW165: 0 | GX165: 0 | GY165: 0 | GZ165: 0 | HA165: 0 | HB165: 0 | HC165: 0 | HD165: 0 | HE165: 0 | HF165: 0 | HG165: 0 | HH165: 0 | HI165: 0 | HJ165: 0 | HK165: 0 | HL165: 0 | HM165: 0 | HN165: 0 | HO165: 0 | HP165: 0 | HQ165: 0 | HR165: 0 | HS165: 0 | HT165: 0 | HU165: 0 | HV165: 0 | HW165: 0
A166: 2 | B166: 30 | C166: 12 | D166: 3 | E166: 365 | F166: 32 | G166: 0 | H166: 0 | I166: 45 | J166: 30 | K166: 46 | L166: 3 | M166: 12 | N166: 9 | O166: 4 | P166: 165 | Q166: 42 | R166: 91 | S166: 3 | T166: 11 | U166: 34 | V166: 0 | W166: 2 | X166: 0 | Y166: 0 | Z166: 26 | AA166: 0 | AB166: 0 | AC166: 0 | AD166: 0 | AE166: 0 | AF166: 0 | AG166: 0 | AH166: 0 | AI166: 0 | AJ166: 0 | AK166: 0 | AL166: 0 | AM166: 0 | AN166: 0 | AO166: 0 | AP166: 0 | AQ166: 0 | AR166: 0 | AS166: 0 | AT166: 0 | AU166: 0 | AV166: 0 | AW166: 0 | AX166: 0 | AY166: 0 | AZ166: 25 | BA166: 32 | BB166: 5 | BC166: 5 | BD166: 1 | BE166: 0 | BF166: 0 | BG166: 0 | BH166: 0 | BI166: 0 | BJ166: 0 | BK166: 0 | BL166: 4 | BM166: 5 | BN166: 0 | BO166: 10 | BP166: 66 | BQ166: 17 | BR166: 44 | BS166: 45 | BT166: 50 | BU166: 39 | BV166: 34 | BW166: 0 | BX166: 0 | BY166: 0 | BZ166: 0 | CA166: 0 | CB166: 0 | CC166: 0 | CD166: 0 | CE166: 0 | CF166: 0 | CG166: 0 | CH166: 38 | CI166: 20 | CJ166: 12 | CK166: 58 | CL166: 16 | CM166: 39 | CN166: 26 | CO166: 25 | CP166: 34 | CQ166: 13 | CR166: 0 | CS166: 0 | CT166: 0 | CU166: 0 | CV166: 0 | CW166: 0 | CX166: 0 | CY166: 0 | CZ166: 0 | DA166: 0 | DB166: 41 | DC166: 46 | DD166: 1 | DE166: 0 | DF166: 0 | DG166: 0 | DH166: 27 | DI166: 12 | DJ166: 2 | DK166: 0 | DL166: 0 | DM166: 29 | DN166: 0 | DO166: 31 | DP166: 11 | DQ166: 4 | DR166: 4 | DS166: 0 | DT166: 26 | DU166: 0 | DV166: 30 | DW166: 10 | DX166: 4 | DY166: 1 | DZ166: 0 | EA166: 26 | EB166: 0 | EC166: 0 | ED166: 0 | EE166: 0 | EF166: 0 | EG166: 0 | EH166: 0 | EI166: 0 | EJ166: 0 | EK166: 0 | EL166: 0 | EM166: 0 | EN166: 0 | EO166: 0 | EP166: 0 | EQ166: 0 | ER166: 0 | ES166: 0 | ET166: 0 | EU166: 0 | EV166: 0 | EW166: 0 | EX166: 0 | EY166: 0 | EZ166: 0 | FA166: 0 | FB166: 0 | FC166: 0 | FD166: 0 | FE166: 0 | FF166: 0 | FG166: 0 | FH166: 0 | FI166: 0 | FJ166: 15 | FK166: 2 | FL166: 21 | FM166: 0 | FN166: 0 | FO166: 0 | FP166: 0 | FQ166: 16 | FR166: 0 | FS166: 1 | FT166: 48 | FU166: 1 | FV166: 0 | FW166: 4 | FX166: 5 | FY166: 3 | FZ166: 0 | GA166: 0 | GB166: 0 | GC166: 0 | GD166: 0 | GE166: 0 | GF166: 0 | GG166: 0 | GH166: 0 | GI166: 0 | GJ166: 0 | GK166: 0 | GL166: 0 | GM166: 0 | GN166: 0 | GO166: 0 | GP166: 0 | GQ166: 0 | GR166: 0 | GS166: 0 | GT166: 0 | GU166: 0 | GV166: 0 | GW166: 0 | GX166: 0 | GY166: 0 | GZ166: 0 | HA166: 0 | HB166: 0 | HC166: 0 | HD166: 0 | HE166: 0 | HF166: 0 | HG166: 0 | HH166: 0 | HI166: 0 | HJ166: 0 | HK166: 0 | HL166: 0 | HM166: 0 | HN166: 0 | HO166: 0 | HP166: 0 | HQ166: 0 | HR166: 0 | HS166: 0 | HT166: 0 | HU166: 0 | HV166: 0 | HW166: 0
A167: 3 | B167: 54 | C167: 14 | D167: 4 | E167: 417 | F167: 40 | G167: 1 | H167: 0 | I167: 68 | J167: 35 | K167: 71 | L167: 8 | M167: 16 | N167: 11 | O167: 1 | P167: 203 | Q167: 60 | R167: 115 | S167: 6 | T167: 14 | U167: 41 | V167: 1 | W167: 1 | X167: 0 | Y167: 0 | Z167: 58 | AA167: 0 | AB167: 0 | AC167: 0 | AD167: 0 | AE167: 0 | AF167: 0 | AG167: 0 | AH167: 0 | AI167: 0 | AJ167: 0 | AK167: 0 | AL167: 0 | AM167: 0 | AN167: 0 | AO167: 0 | AP167: 0 | AQ167: 0 | AR167: 0 | AS167: 0 | AT167: 0 | AU167: 0 | AV167: 0 | AW167: 0 | AX167: 0 | AY167: 0 | AZ167: 35 | BA167: 15 | BB167: 1 | BC167: 2 | BD167: 0 | BE167: 0 | BF167: 0 | BG167: 0 | BH167: 0 | BI167: 0 | BJ167: 0 | BK167: 0 | BL167: 7 | BM167: 1 | BN167: 0 | BO167: 7 | BP167: 56 | BQ167: 15 | BR167: 67 | BS167: 69 | BT167: 57 | BU167: 32 | BV167: 35 | BW167: 0 | BX167: 0 | BY167: 0 | BZ167: 0 | CA167: 0 | CB167: 0 | CC167: 0 | CD167: 0 | CE167: 0 | CF167: 0 | CG167: 0 | CH167: 66 | CI167: 26 | CJ167: 17 | CK167: 48 | CL167: 13 | CM167: 42 | CN167: 52 | CO167: 12 | CP167: 52 | CQ167: 14 | CR167: 0 | CS167: 0 | CT167: 0 | CU167: 0 | CV167: 0 | CW167: 0 | CX167: 0 | CY167: 0 | CZ167: 0 | DA167: 0 | DB167: 44 | DC167: 48 | DD167: 2 | DE167: 0 | DF167: 0 | DG167: 0 | DH167: 52 | DI167: 13 | DJ167: 4 | DK167: 0 | DL167: 0 | DM167: 33 | DN167: 0 | DO167: 46 | DP167: 10 | DQ167: 4 | DR167: 0 | DS167: 0 | DT167: 30 | DU167: 0 | DV167: 46 | DW167: 10 | DX167: 4 | DY167: 0 | DZ167: 0 | EA167: 29 | EB167: 0 | EC167: 0 | ED167: 0 | EE167: 0 | EF167: 0 | EG167: 0 | EH167: 0 | EI167: 0 | EJ167: 0 | EK167: 0 | EL167: 0 | EM167: 0 | EN167: 0 | EO167: 0 | EP167: 0 | EQ167: 0 | ER167: 0 | ES167: 0 | ET167: 0 | EU167: 0 | EV167: 0 | EW167: 0 | EX167: 0 | EY167: 0 | EZ167: 0 | FA167: 0 | FB167: 0 | FC167: 0 | FD167: 0 | FE167: 0 | FF167: 0 | FG167: 0 | FH167: 0 | FI167: 0 | FJ167: 22 | FK167: 0 | FL167: 22 | FM167: 0 | FN167: 0 | FO167: 0 | FP167: 0 | FQ167: 12 | FR167: 1 | FS167: 1 | FT167: 56 | FU167: 0 | FV167: 0 | FW167: 4 | FX167: 0 | FY167: 1 | FZ167: 0 | GA167: 0 | GB167: 1 | GC167: 0 | GD167: 0 | GE167: 0 | GF167: 0 | GG167: 0 | GH167: 0 | GI167: 0 | GJ167: 0 | GK167: 0 | GL167: 0 | GM167: 0 | GN167: 0 | GO167: 0 | GP167: 0 | GQ167: 0 | GR167: 0 | GS167: 0 | GT167: 0 | GU167: 0 | GV167: 0 | GW167: 0 | GX167: 0 | GY167: 0 | GZ167: 0 | HA167: 0 | HB167: 0 | HC167: 0 | HD167: 0 | HE167: 0 | HF167: 0 | HG167: 0 | HH167: 0 | HI167: 0 | HJ167: 0 | HK167: 0 | HL167: 0 | HM167: 0 | HN167: 0 | HO167: 0 | HP167: 0 | HQ167: 0 | HR167: 0 | HS167: 0 | HT167: 0 | HU167: 0 | HV167: 0 | HW167: 0
A168: Total | B168: 141 | C168: 38 | D168: 10 | E168: 1196 | F168: 113 | G168: 2 | H168: 0 | I168: 187 | J168: 112 | K168: 191 | L168: 13 | M168: 49 | N168: 31 | O168: 10 | P168: 562 | Q168: 152 | R168: 309 | S168: 12 | T168: 45 | U168: 123 | V168: 4 | W168: 8 | X168: 0 | Y168: 0 | Z168: 139 | AA168: 0 | AB168: 0 | AC168: 0 | AD168: 0 | AE168: 0 | AF168: 0 | AG168: 0 | AH168: 0 | AI168: 0 | AJ168: 0 | AK168: 0 | AL168: 0 | AM168: 0 | AN168: 0 | AO168: 0 | AP168: 0 | AQ168: 0 | AR168: 0 | AS168: 0 | AT168: 0 | AU168: 0 | AV168: 0 | AW168: 0 | AX168: 0 | AY168: 0 | AZ168: 84 | BA168: 77 | BB168: 11 | BC168: 10 | BD168: 1 | BE168: 0 | BF168: 0 | BG168: 0 | BH168: 0 | BI168: 0 | BJ168: 0 | BK168: 0 | BL168: 23 | BM168: 8 | BN168: 0 | BO168: 24 | BP168: 171 | BQ168: 57 | BR168: 182 | BS168: 186 | BT168: 166 | BU168: 119 | BV168: 101 | BW168: 0 | BX168: 0 | BY168: 0 | BZ168: 0 | CA168: 0 | CB168: 0 | CC168: 0 | CD168: 0 | CE168: 0 | CF168: 0 | CG168: 0 | CH168: 172 | CI168: 75 | CJ168: 54 | CK168: 142 | CL168: 52 | CM168: 118 | CN168: 134 | CO168: 55 | CP168: 139 | CQ168: 41 | CR168: 0 | CS168: 0 | CT168: 0 | CU168: 0 | CV168: 0 | CW168: 0 | CX168: 0 | CY168: 0 | CZ168: 0 | DA168: 0 | DB168: 139 | DC168: 140 | DD168: 7 | DE168: 0 | DF168: 0 | DG168: 0 | DH168: 137 | DI168: 37 | DJ168: 9 | DK168: 0 | DL168: 0 | DM168: 108 | DN168: 0 | DO168: 130 | DP168: 31 | DQ168: 11 | DR168: 5 | DS168: 0 | DT168: 92 | DU168: 0 | DV168: 129 | DW168: 30 | DX168: 11 | DY168: 1 | DZ168: 0 | EA168: 89 | EB168: 0 | EC168: 0 | ED168: 0 | EE168: 0 | EF168: 0 | EG168: 0 | EH168: 0 | EI168: 0 | EJ168: 0 | EK168: 0 | EL168: 0 | EM168: 0 | EN168: 0 | EO168: 0 | EP168: 0 | EQ168: 0 | ER168: 0 | ES168: 0 | ET168: 0 | EU168: 0 | EV168: 0 | EW168: 0 | EX168: 0 | EY168: 0 | EZ168: 0 | FA168: 0 | FB168: 0 | FC168: 0 | FD168: 0 | FE168: 0 | FF168: 0 | FG168: 0 | FH168: 0 | FI168: 0 | FJ168: 60 | FK168: 2 | FL168: 69 | FM168: 0 | FN168: 0 | FO168: 0 | FP168: 0 | FQ168: 47 | FR168: 1 | FS168: 3 | FT168: 180 | FU168: 2 | FV168: 2 | FW168: 10 | FX168: 6 | FY168: 5 | FZ168: 0 | GA168: 0 | GB168: 1 | GC168: 3 | GD168: 0 | GE168: 0 | GF168: 0 | GG168: 0 | GH168: 0 | GI168: 0 | GJ168: 0 | GK168: 0 | GL168: 0 | GM168: 0 | GN168: 0 | GO168: 0 | GP168: 0 | GQ168: 0 | GR168: 0 | GS168: 0 | GT168: 0 | GU168: 0 | GV168: 0 | GW168: 0 | GX168: 0 | GY168: 0 | GZ168: 0 | HA168: 0 | HB168: 0 | HC168: 0 | HD168: 0 | HE168: 0 | HF168: 0 | HG168: 0 | HH168: 0 | HI168: 0 | HJ168: 0 | HK168: 0 | HL168: 0 | HM168: 0 | HN168: 0 | HO168: 0 | HP168: 0 | HQ168: 0 | HR168: 0 | HS168: 0 | HT168: 0 | HU168: 0 | HV168: 0 | HW168: 0
A182: TOTAL
A183: =COUNT(A165:A180) -> 3 | B183: =SUM(B165:B180) -> 282 | C183: =SUM(C165:C180) -> 76 | D183: 20 | E183: 2392 | F183: 226 | G183: 4 | H183: 0 | I183: 374 | J183: 224 | K183: 382 | L183: 26 | M183: 98 | N183: 62 | O183: 20 | P183: 1124 | Q183: 304 | R183: 618 | S183: 24 | T183: 90 | U183: 246 | V183: 8 | W183: 16 | X183: 0 | Y183: 0 | Z183: 278 | AA183: 0 | AB183: 0 | AC183: 0 | AD183: 0 | AE183: 0 | AF183: 0 | AG183: 0 | AH183: 0 | AI183: 0 | AJ183: 0 | AK183: 0 | AL183: 0 | AM183: 0 | AN183: 0 | AO183: 0 | AP183: 0 | AQ183: 0 | AR183: 0 | AS183: 0 | AT183: 0 | AU183: 0 | AV183: 0 | AW183: 0 | AX183: 0 | AY183: 0 | AZ183: 168 | BA183: 154 | BB183: 22 | BC183: 20 | BD183: 2 | BE183: 0 | BF183: 0 | BG183: 0 | BH183: 0 | BI183: 0 | BJ183: 0 | BK183: 0 | BL183: 46 | BM183: 16 | BN183: 0 | BO183: =SUM(BO165:BO180) -> 48 | BP183: 342 | BQ183: 114 | BR183: 364 | BS183: 372 | BT183: 332 | BU183: 238 | BV183: 202 | BW183: 0 | BX183: 0 | BY183: 0 | BZ183: 0 | CA183: 0 | CB183: 0 | CC183: 0 | CD183: 0 | CE183: 0 | CF183: 0 | CG183: 0 | CH183: 344 | CI183: 150 | CJ183: 108 | CK183: 284 | CL183: 104 | CM183: 236 | CN183: 268 | CO183: 110 | CP183: 278 | CQ183: 82 | CR183: 0 | CS183: 0 | CT183: 0 | CU183: 0 | CV183: 0 | CW183: 0 | CX183: 0 | CY183: 0 | CZ183: 0 | DA183: 0 | DB183: 278 | DC183: 280 | DD183: 14 | DE183: 0 | DF183: 0 | DG183: 0 | DH183: 274 | DI183: 74 | DJ183: 18 | DK183: 0 | DL183: 0 | DM183: 216 | DN183: 0 | DO183: 260 | DP183: 62 | DQ183: 22 | DR183: 10 | DS183: 0 | DT183: 184 | DU183: 0 | DV183: 258 | DW183: 60 | DX183: 22 | DY183: 2 | DZ183: 0 | EA183: =SUM(EA165:EA180) -> 178 | EB183: 0 | EC183: 0 | ED183: 0 | EE183: 0 | EF183: 0 | EG183: 0 | EH183: 0 | EI183: 0 | EJ183: 0 | EK183: 0 | EL183: 0 | EM183: 0 | EN183: 0 | EO183: 0 | EP183: 0 | EQ183: 0 | ER183: 0 | ES183: 0 | ET183: 0 | EU183: 0 | EV183: 0 | EW183: 0 | EX183: 0 | EY183: 0 | EZ183: 0 | FA183: 0 | FB183: 0 | FC183: 0 | FD183: 0 | FE183: 0 | FF183: 0 | FG183: 0 | FH183: 0 | FI183: 0 | FJ183: 120 | FK183: 4 | FL183: 138 | FM183: 0 | FN183: 0 | FO183: 0 | FP183: 0 | FQ183: 94 | FR183: 2 | FS183: 6 | FT183: 360 | FU183: 4 | FV183: 4 | FW183: 20 | FX183: 12 | FY183: 10 | FZ183: 0 | GA183: 0 | GB183: 2 | GC183: 6 | GD183: 0 | GE183: 0 | GF183: 0 | GG183: 0 | GH183: 0 | GI183: 0 | GJ183: 0 | GK183: 0 | GL183: 0 | GM183: =SUM(GM165:GM180) -> 0 | GN183: 0 | GO183: 0 | GP183: 0 | GQ183: 0 | GR183: 0 | GS183: 0 | GT183: 0 | GU183: 0 | GV183: 0 | GW183: 0 | GX183: 0 | GY183: 0 | GZ183: 0
A184: =CONCATENATE(A165,"-",A166,"-",A167,"-",A168,"-",A169,"-",A170,"-",A171,"-",A172,"-",A173,"-",A174,"-",A175,"-",A176) -> 1-2-3-Total--------
B186: BAS001 | C186: BAS002 | D186: BAS003 | E186: BAS004 | F186: BAS005 | G186: BAS006 | H186: BAS007 | I186: BAS008 | J186: BAS009 | K186: BAS010 | L186: BAS011 | M186: BAS012 | N186: BAS013 | O186: BAS014 | P186: BAS015 | Q186: BAS016 | R186: BAS017 | S186: BAS018 | T186: BAS019 | U186: BAS020 | V186: BAS021 | W186: BAS022 | X186: BAS023 | Y186: BAS024 | Z186: BAS025 | AA186: BAS026 | AB186: BAS027 | AC186: BAS028 | AD186: BAS029 | AE186: BAS030 | AF186: BAS031 | AG186: BAS032 | AH186: BAS033 | AI186: BAS034 | AJ186: BAS035 | AK186: BAS036 | AL186: BAS037 | AM186: BAS038 | AN186: BAS039 | AO186: BAS040 | AP186: BAS041 | AQ186: BAS042 | AR186: BAS043 | AS186: BAS044 | AT186: BAS045 | AU186: BAS046 | AV186: BAS047 | AW186: BAS048 | AX186: BAS049 | AY186: BAS050 | AZ186: BAS051 | BA186: BAS052 | BB186: BAS053 | BC186: BAS054 | BD186: BAS055 | BE186: BAS056 | BF186: BAS057 | BG186: BAS058 | BH186: BAS059 | BI186: BAS060 | BJ186: BAS061 | BK186: BAS062 | BL186: BAS063 | BM186: BAS064 | BN186: BAS065 | BO186: BAS066 | BP186: BAS067 | BQ186: BAS068 | BR186: BAS069 | BS186: BAS070 | BT186: BAS071 | BU186: BAS072 | BV186: BAS073 | BW186: BAS074 | BX186: BAS075 | BY186: BAS076 | BZ186: BAS077 | CA186: BAS078 | CB186: BAS079 | CC186: BAS080 | CD186: BAS081 | CE186: BAS082 | CF186: BAS083 | CG186: BAS084 | CH186: BAS085 | CI186: BAS086 | CJ186: BAS087 | CK186: BAS088 | CL186: BAS089 | CM186: BAS090 | CN186: BAS091 | CO186: BAS092 | CP186: BAS093 | CQ186: BAS094 | CR186: BAS095 | CS186: BAS096 | CT186: BAS097 | CU186: BAS098 | CV186: BAS099 | CW186: BAS100 | CX186: BAS101 | CY186: BAS102 | CZ186: BAS103 | DA186: BAS104 | DB186: BAS105 | DC186: BAS106 | DD186: BAS107 | DE186: BAS108 | DF186: BAS109 | DG186: BAS110 | DH186: BAS111 | DI186: BAS112 | DJ186: BAS113 | DK186: BAS114 | DL186: BAS115 | DM186: BAS116 | DN186: BAS117 | DO186: BAS118 | DP186: BAS119 | DQ186: BAS120 | DR186: BAS121 | DS186: BAS122 | DT186: BAS123 | DU186: BAS124 | DV186: BAS125 | DW186: BAS126 | DX186: BAS127 | DY186: BAS128 | DZ186: BAS129 | EA186: BAS130 | EB186: BAS131 | EC186: BAS132 | ED186: BAS133 | EE186: BAS134 | EF186: BAS135 | EG186: BAS136 | EH186: BAS137 | EI186: BAS138 | EJ186: BAS139 | EK186: BAS140 | EL186: BAS141 | EM186: BAS142 | EN186: BAS143 | EO186: BAS144 | EP186: BAS145 | EQ186: BAS146 | ER186: BAS147 | ES186: BAS148 | ET186: BAS149 | EU186: BAS150 | EV186: BAS151 | EW186: BAS152 | EX186: BAS153 | EY186: BAS154 | EZ186: BAS155 | FA186: BAS156 | FB186: BAS157 | FC186: BAS158 | FD186: BAS159 | FE186: BAS160 | FF186: BAS161 | FG186: BAS162 | FH186: BAS163 | FI186: BAS164 | FJ186: BAS165 | FK186: BAS166 | FL186: BAS167 | FM186: BAS168 | FN186: BAS169 | FO186: BAS170 | FP186: BAS171 | FQ186: BAS172 | FR186: BAS173 | FS186: BAS174 | FT186: BAS175 | FU186: BAS176 | FV186: BAS177 | FW186: BAS178 | FX186: BAS179 | FY186: BAS180 | FZ186: BAS181 | GA186: BAS182 | GB186: BAS183 | GC186: BAS184 | GD186: BAS185 | GE186: BAS186 | GF186: BAS187 | GG186: BAS188 | GH186: BAS189 | GI186: BAS190 | GJ186: BAS191 | GK186: BAS192 | GL186: BAS193 | GM186: BAS194 | GN186: BAS195 | GO186: BAS196 | GP186: BAS197 | GQ186: BAS198 | GR186: BAS199 | GS186: BAS200 | GT186: BAS201 | GU186: BAS202 | GV186: BAS203 | GW186: BAS204 | GX186: BAS205 | GY186: BAS206 | GZ186: BAS207 | HA186: BAS208 | HB186: BAS209 | HC186: BAS210 | HD186: BAS211 | HE186: BAS212 | HF186: BAS213 | HG186: BAS214 | HH186: BAS215 | HI186: BAS216 | HJ186: BAS217 | HK186: BAS218 | HL186: BAS219 | HM186: BAS220 | HN186: BAS221 | HO186: BAS222 | HP186: BAS223 | HQ186: BAS224 | HR186: BAS225 | HS186: BAS226 | HT186: BAS227 | HU186: BAS228 | HV186: BAS229 | HW186: BAS230
B187: =IF(B186=B164,"SI","NO") -> SI | C187: =IF(C186=C164,"SI","NO") -> SI | D187: SI | E187: SI | F187: SI | G187: SI | H187: SI | I187: SI | J187: SI | K187: SI | L187: SI | M187: SI | N187: SI | O187: SI | P187: SI | Q187: SI | R187: SI | S187: SI | T187: SI | U187: SI | V187: SI | W187: SI | X187: SI | Y187: SI | Z187: SI | AA187: SI | AB187: SI | AC187: SI | AD187: SI | AE187: SI | AF187: SI | AG187: SI | AH187: SI | AI187: SI | AJ187: SI | AK187: SI | AL187: SI | AM187: SI | AN187: SI | AO187: SI | AP187: SI | AQ187: SI | AR187: SI | AS187: SI | AT187: SI | AU187: SI | AV187: SI | AW187: SI | AX187: SI | AY187: SI | AZ187: SI | BA187: SI | BB187: SI | BC187: SI | BD187: SI | BE187: SI | BF187: SI | BG187: SI | BH187: SI | BI187: SI | BJ187: SI | BK187: SI | BL187: SI | BM187: SI | BN187: SI | BO187: =IF(BO186=BO164,"SI","NO") -> SI | BP187: SI | BQ187: SI | BR187: SI | BS187: SI | BT187: SI | BU187: SI | BV187: SI | BW187: SI | BX187: SI | BY187: SI | BZ187: SI | CA187: SI | CB187: SI | CC187: SI | CD187: SI | CE187: SI | CF187: SI | CG187: SI | CH187: SI | CI187: SI | CJ187: SI | CK187: SI | CL187: SI | CM187: SI | CN187: SI | CO187: SI | CP187: SI | CQ187: SI | CR187: SI | CS187: SI | CT187: SI | CU187: SI | CV187: SI | CW187: SI | CX187: SI | CY187: SI | CZ187: SI | DA187: SI | DB187: SI | DC187: SI | DD187: SI | DE187: SI | DF187: SI | DG187: SI | DH187: SI | DI187: SI | DJ187: SI | DK187: SI | DL187: SI | DM187: SI | DN187: SI | DO187: SI | DP187: SI | DQ187: SI | DR187: SI | DS187: SI | DT187: SI | DU187: SI | DV187: SI | DW187: SI | DX187: SI | DY187: SI | DZ187: SI | EA187: =IF(EA186=EA164,"SI","NO") -> SI | EB187: SI | EC187: SI | ED187: SI | EE187: SI | EF187: SI | EG187: SI | EH187: SI | EI187: SI | EJ187: SI | EK187: SI | EL187: SI | EM187: SI | EN187: SI | EO187: SI | EP187: SI | EQ187: SI | ER187: SI | ES187: SI | ET187: SI | EU187: SI | EV187: SI | EW187: SI | EX187: SI | EY187: SI | EZ187: SI | FA187: SI | FB187: SI | FC187: SI | FD187: SI | FE187: SI | FF187: SI | FG187: SI | FH187: SI | FI187: SI | FJ187: SI | FK187: SI | FL187: SI | FM187: SI | FN187: SI | FO187: SI | FP187: SI | FQ187: SI | FR187: SI | FS187: SI | FT187: SI | FU187: SI | FV187: SI | FW187: SI | FX187: SI | FY187: SI | FZ187: SI | GA187: SI | GB187: SI | GC187: SI | GD187: SI | GE187: SI | GF187: SI | GG187: SI | GH187: SI | GI187: SI | GJ187: SI | GK187: SI | GL187: SI | GM187: =IF(GM186=GM164,"SI","NO") -> SI | GN187: SI | GO187: SI | GP187: SI | GQ187: SI | GR187: SI | GS187: SI | GT187: SI | GU187: SI | GV187: SI | GW187: SI | GX187: SI | GY187: SI | GZ187: SI | HA187: SI | HB187: SI | HC187: SI | HD187: SI | HE187: SI | HF187: SI | HG187: SI | HH187: SI | HI187: SI | HJ187: SI | HK187: SI | HL187: SI | HM187: SI | HN187: SI | HO187: SI | HP187: SI | HQ187: SI | HR187: SI | HS187: SI | HT187: SI | HU187: SI | HV187: SI | HW187: SI
A190: MATERNO_05
A191: ANNO | B191: 2025
A192: cod_red | B192: 03
A193: codmic | B193: (Todas)
A194: cod_prov | B194: (Todas)
A195: coddist | B195: (Todas)
A196: cod_estab | B196: (Todas)
A197: cod_eje | B197: (Todas)
B199: Valores
A200: Etiquetas de fila | B200: BAS001 | C200: BAS002 | D200: BAS003 | E200: BAS004 | F200: BAS005 | G200: BAS006 | H200: BAS007 | I200: BAS008 | J200: BAS009 | K200: BAS010 | L200: BAS011 | M200: BAS012 | N200: BAS013 | O200: BAS014 | P200: BAS015 | Q200: BAS016 | R200: BAS017 | S200: BAS018 | T200: BAS019 | U200: BAS020 | V200: BAS021 | W200: BAS022 | X200: BAS023 | Y200: BAS024 | Z200: BAS025 | AA200: BAS026 | AB200: BAS027 | AC200: BAS028 | AD200: BAS029 | AE200: BAS030 | AF200: BAS031 | AG200: BAS032 | AH200: BAS033 | AI200: BAS034 | AJ200: BAS035 | AK200: BAS036 | AL200: BAS037 | AM200: BAS038 | AN200: BAS039 | AO200: BAS040 | AP200: BAS041 | AQ200: BAS042 | AR200: BAS043 | AS200: BAS044 | AT200: BAS045 | AU200: BAS046 | AV200: BAS047 | AW200: BAS048 | AX200: BAS049 | AY200: BAS050 | AZ200: BAS051 | BA200: BAS052 | BB200: BAS053 | BC200: BAS054 | BD200: BAS055 | BE200: BAS056 | BF200: BAS057 | BG200: BAS058 | BH200: BAS059 | BI200: BAS060 | BJ200: BAS061 | BK200: BAS062 | BL200: BAS063 | BM200: BAS064 | BN200: BAS065 | BO200: BAS066 | BP200: BAS067 | BQ200: BAS068 | BR200: BAS069 | BS200: BAS070 | BT200: BAS071 | BU200: BAS072 | BV200: BAS073 | BW200: BAS074 | BX200: BAS075 | BY200: BAS076 | BZ200: BAS077 | CA200: BAS078 | CB200: BAS079 | CC200: BAS080 | CD200: BAS081 | CE200: BAS082 | CF200: BAS083 | CG200: BAS084 | CH200: BAS085 | CI200: BAS086 | CJ200: BAS087 | CK200: BAS088 | CL200: BAS089 | CM200: BAS090 | CN200: BAS091 | CO200: BAS092 | CP200: BAS093 | CQ200: BAS094 | CR200: BAS095 | CS200: BAS096 | CT200: BAS097 | CU200: BAS098 | CV200: BAS099 | CW200: BAS100 | CX200: BAS101 | CY200: BAS102 | CZ200: BAS103 | DA200: BAS104 | DB200: BAS105 | DC200: BAS106 | DD200: BAS107 | DE200: BAS108 | DF200: BAS109 | DG200: BAS110 | DH200: BAS111 | DI200: BAS112 | DJ200: BAS113 | DK200: BAS114 | DL200: BAS115 | DM200: BAS116 | DN200: BAS117 | DO200: BAS118 | DP200: BAS119 | DQ200: BAS120 | DR200: BAS121 | DS200: BAS122 | DT200: BAS123 | DU200: BAS124 | DV200: BAS125 | DW200: BAS126 | DX200: BAS127 | DY200: BAS128 | DZ200: BAS129 | EA200: BAS130 | EB200: BAS131 | EC200: BAS132 | ED200: BAS133 | EE200: BAS134 | EF200: BAS135 | EG200: BAS136 | EH200: BAS137 | EI200: BAS138 | EJ200: BAS139 | EK200: BAS140 | EL200: BAS141 | EM200: BAS142 | EN200: BAS143 | EO200: BAS144 | EP200: BAS145 | EQ200: BAS146 | ER200: BAS147 | ES200: BAS148 | ET200: BAS149 | EU200: BAS150 | EV200: BAS151 | EW200: BAS152 | EX200: BAS153 | EY200: BAS154 | EZ200: BAS155 | FA200: BAS156 | FB200: BAS157 | FC200: BAS158 | FD200: BAS159 | FE200: BAS160 | FF200: BAS161 | FG200: BAS162 | FH200: BAS163 | FI200: BAS164 | FJ200: BAS165 | FK200: BAS166 | FL200: BAS167 | FM200: BAS168 | FN200: BAS169 | FO200: BAS170 | FP200: BAS171 | FQ200: BAS172 | FR200: BAS173 | FS200: BAS174 | FT200: BAS175 | FU200: BAS176 | FV200: BAS177 | FW200: BAS178 | FX200: BAS179 | FY200: BAS180 | FZ200: BAS181 | GA200: BAS182 | GB200: bas183 | GC200: bas184 | GD200: bas185 | GE200: bas186 | GF200: bas187 | GG200: bas188 | GH200: bas189 | GI200: bas190 | GJ200: bas191 | GK200: bas192 | GL200: bas193 | GM200: bas194 | GN200: bas195 | GO200: bas196 | GP200: bas197 | GQ200: bas198 | GR200: bas199 | GS200: bas200 | GT200: bas201 | GU200: bas202 | GV200: bas203 | GW200: bas204 | GX200: bas205 | GY200: bas206 | GZ200: bas207 | HA200: bas208 | HB200: bas209 | HC200: bas210 | HD200: bas211 | HE200: bas212 | HF200: bas213 | HG200: bas214 | HH200: bas215 | HI200: bas216 | HJ200: bas217 | HK200: bas218 | HL200: bas219 | HM200: bas220 | HN200: bas221 | HO200: bas222 | HP200: bas223 | HQ200: bas224 | HR200: bas225 | HS200: bas226 | HT200: bas227 | HU200: bas228 | HV200: bas229 | HW200: bas230
A201: 1 | B201: 0 | C201: 0 | D201: 45 | E201: 0 | F201: 0 | G201: 47 | H201: 47 | I201: 0 | J201: 0 | K201: 0 | L201: 9 | M201: 0 | N201: 0 | O201: 9 | P201: 9 | Q201: 0 | R201: 0 | S201: 1 | T201: 8 | U201: 1 | V201: 1 | W201: 12 | X201: 12 | Y201: 0 | Z201: 0 | AA201: 0 | AB201: 0 | AC201: 0 | AD201: 0 | AE201: 0 | AF201: 0 | AG201: 0 | AH201: 0 | AI201: 0 | AJ201: 0 | AK201: 0 | AL201: 0 | AM201: 0 | AN201: 0 | AO201: 0 | AP201: 0 | AQ201: 0 | AR201: 0 | AS201: 0 | AT201: 0 | AU201: 0 | AV201: 0 | AW201: 0 | AX201: 0 | AY201: 0 | AZ201: 0 | BA201: 0 | BB201: 0 | BC201: 0 | BD201: 0 | BE201: 0 | BF201: 0 | BG201: 0 | BH201: 0 | BI201: 0 | BJ201: 0 | BK201: 0 | BL201: 0 | BM201: 0 | BN201: 0 | BO201: 0 | BP201: 0 | BQ201: 0 | BR201: 0 | BS201: 0 | BT201: 76 | BU201: 34 | BV201: 93 | BW201: 51 | BX201: 0 | BY201: 0 | BZ201: 0 | CA201: 0 | CB201: 0 | CC201: 0 | CD201: 5 | CE201: 0 | CF201: 0 | CG201: 0 | CH201: 0 | CI201: 0 | CJ201: 0 | CK201: 0 | CL201: 0 | CM201: 0 | CN201: 0 | CO201: 0 | CP201: 0 | CQ201: 0 | CR201: 0 | CS201: 0 | CT201: 0 | CU201: 0 | CV201: 0 | CW201: 53 | CX201: 3 | CY201: 28 | CZ201: 16 | DA201: 3 | DB201: 2 | DC201: 0 | DD201: 8 | DE201: 0 | DF201: 14 | DG201: 0 | DH201: 1 | DI201: 0 | DJ201: 28 | DK201: 0 | DL201: 0 | DM201: 0 | DN201: 0 | DO201: 0 | DP201: 0 | DQ201: 0 | DR201: 40 | DS201: 2 | DT201: 2 | DU201: 43 | DV201: 0 | DW201: 1 | DX201: 2 | DY201: 0 | DZ201: 0 | EA201: 0 | EB201: 0 | EC201: 0 | ED201: 0 | EE201: 0 | EF201: 0 | EG201: 0 | EH201: 0 | EI201: 0 | EJ201: 0 | EK201: 0 | EL201: 0 | EM201: 0 | EN201: 0 | EO201: 0 | EP201: 0 | EQ201: 0 | ER201: 0 | ES201: 0 | ET201: 0 | EU201: 0 | EV201: 0 | EW201: 0 | EX201: 0 | EY201: 0 | EZ201: 0 | FA201: 0 | FB201: 0 | FC201: 0 | FD201: 0 | FE201: 0 | FF201: 0 | FG201: 4 | FH201: 0 | FI201: 3 | FJ201: 2 | FK201: 3 | FL201: 0 | FM201: 0 | FN201: 14 | FO201: 0 | FP201: 0 | FQ201: 0 | FR201: 0 | FS201: 0 | FT201: 1 | FU201: 1 | FV201: 0 | FW201: 0 | FX201: 1 | FY201: 0 | FZ201: 0 | GA201: 0 | GB201: 0 | GC201: 0 | GD201: 0 | GE201: 0 | GF201: 0 | GG201: 0 | GH201: 0 | GI201: 0 | GJ201: 0 | GK201: 0 | GL201: 0 | GM201: 0 | GN201: 0 | GO201: 0 | GP201: 0 | GQ201: 0 | GR201: 0 | GS201: 0 | GT201: 0 | GU201: 0 | GV201: 0 | GW201: 0 | GX201: 0 | GY201: 0 | GZ201: 0 | HA201: 0 | HB201: 0 | HC201: 0 | HD201: 0 | HE201: 0 | HF201: 0 | HG201: 0 | HH201: 0 | HI201: 0 | HJ201: 0 | HK201: 0 | HL201: 0 | HM201: 0 | HN201: 0 | HO201: 0 | HP201: 0 | HQ201: 0 | HR201: 0 | HS201: 0 | HT201: 0 | HU201: 0 | HV201: 0 | HW201: 0
A202: 2 | B202: 2 | C202: 0 | D202: 42 | E202: 0 | F202: 0 | G202: 44 | H202: 44 | I202: 0 | J202: 0 | K202: 1 | L202: 12 | M202: 0 | N202: 0 | O202: 13 | P202: 13 | Q202: 0 | R202: 0 | S202: 0 | T202: 17 | U202: 6 | V202: 1 | W202: 26 | X202: 26 | Y202: 0 | Z202: 0 | AA202: 0 | AB202: 0 | AC202: 0 | AD202: 0 | AE202: 0 | AF202: 0 | AG202: 0 | AH202: 0 | AI202: 0 | AJ202: 0 | AK202: 0 | AL202: 0 | AM202: 0 | AN202: 0 | AO202: 0 | AP202: 0 | AQ202: 0 | AR202: 0 | AS202: 0 | AT202: 0 | AU202: 0 | AV202: 0 | AW202: 0 | AX202: 0 | AY202: 0 | AZ202: 0 | BA202: 0 | BB202: 0 | BC202: 0 | BD202: 0 | BE202: 0 | BF202: 0 | BG202: 0 | BH202: 0 | BI202: 0 | BJ202: 0 | BK202: 0 | BL202: 0 | BM202: 0 | BN202: 0 | BO202: 0 | BP202: 0 | BQ202: 0 | BR202: 0 | BS202: 0 | BT202: 76 | BU202: 32 | BV202: 101 | BW202: 55 | BX202: 0 | BY202: 0 | BZ202: 0 | CA202: 0 | CB202: 0 | CC202: 0 | CD202: 11 | CE202: 0 | CF202: 0 | CG202: 0 | CH202: 0 | CI202: 0 | CJ202: 0 | CK202: 0 | CL202: 0 | CM202: 0 | CN202: 0 | CO202: 0 | CP202: 0 | CQ202: 0 | CR202: 0 | CS202: 0 | CT202: 0 | CU202: 0 | CV202: 0 | CW202: 54 | CX202: 3 | CY202: 20 | CZ202: 17 | DA202: 3 | DB202: 0 | DC202: 0 | DD202: 9 | DE202: 0 | DF202: 28 | DG202: 0 | DH202: 0 | DI202: 0 | DJ202: 20 | DK202: 0 | DL202: 0 | DM202: 0 | DN202: 0 | DO202: 0 | DP202: 0 | DQ202: 0 | DR202: 34 | DS202: 6 | DT202: 0 | DU202: 53 | DV202: 0 | DW202: 0 | DX202: 0 | DY202: 0 | DZ202: 0 | EA202: 0 | EB202: 0 | EC202: 0 | ED202: 0 | EE202: 0 | EF202: 0 | EG202: 0 | EH202: 0 | EI202: 0 | EJ202: 0 | EK202: 0 | EL202: 0 | EM202: 0 | EN202: 0 | EO202: 0 | EP202: 0 | EQ202: 0 | ER202: 0 | ES202: 0 | ET202: 0 | EU202: 0 | EV202: 0 | EW202: 0 | EX202: 0 | EY202: 0 | EZ202: 0 | FA202: 0 | FB202: 0 | FC202: 0 | FD202: 0 | FE202: 0 | FF202: 0 | FG202: 1 | FH202: 0 | FI202: 0 | FJ202: 2 | FK202: 3 | FL202: 0 | FM202: 0 | FN202: 16 | FO202: 0 | FP202: 0 | FQ202: 0 | FR202: 0 | FS202: 0 | FT202: 0 | FU202: 1 | FV202: 0 | FW202: 0 | FX202: 0 | FY202: 0 | FZ202: 0 | GA202: 0 | GB202: 0 | GC202: 0 | GD202: 0 | GE202: 0 | GF202: 0 | GG202: 0 | GH202: 0 | GI202: 0 | GJ202: 0 | GK202: 0 | GL202: 0 | GM202: 0 | GN202: 0 | GO202: 0 | GP202: 0 | GQ202: 0 | GR202: 0 | GS202: 0 | GT202: 0 | GU202: 0 | GV202: 0 | GW202: 0 | GX202: 0 | GY202: 0 | GZ202: 0 | HA202: 0 | HB202: 0 | HC202: 0 | HD202: 0 | HE202: 0 | HF202: 0 | HG202: 0 | HH202: 0 | HI202: 0 | HJ202: 0 | HK202: 0 | HL202: 0 | HM202: 0 | HN202: 0 | HO202: 0 | HP202: 0 | HQ202: 0 | HR202: 0 | HS202: 0 | HT202: 0 | HU202: 0 | HV202: 0 | HW202: 0
A203: 3 | B203: 1 | C203: 0 | D203: 41 | E203: 0 | F203: 0 | G203: 42 | H203: 42 | I203: 0 | J203: 0 | K203: 0 | L203: 6 | M203: 0 | N203: 0 | O203: 6 | P203: 6 | Q203: 0 | R203: 0 | S203: 0 | T203: 21 | U203: 2 | V203: 3 | W203: 27 | X203: 27 | Y203: 0 | Z203: 0 | AA203: 0 | AB203: 0 | AC203: 2 | AD203: 2 | AE203: 0 | AF203: 0 | AG203: 0 | AH203: 0 | AI203: 0 | AJ203: 0 | AK203: 0 | AL203: 0 | AM203: 0 | AN203: 0 | AO203: 0 | AP203: 0 | AQ203: 0 | AR203: 0 | AS203: 0 | AT203: 0 | AU203: 0 | AV203: 0 | AW203: 0 | AX203: 0 | AY203: 0 | AZ203: 0 | BA203: 0 | BB203: 0 | BC203: 0 | BD203: 0 | BE203: 0 | BF203: 0 | BG203: 0 | BH203: 0 | BI203: 0 | BJ203: 0 | BK203: 0 | BL203: 0 | BM203: 0 | BN203: 0 | BO203: 0 | BP203: 0 | BQ203: 0 | BR203: 0 | BS203: 0 | BT203: 65 | BU203: 19 | BV203: 111 | BW203: 56 | BX203: 0 | BY203: 0 | BZ203: 0 | CA203: 0 | CB203: 0 | CC203: 0 | CD203: 4 | CE203: 0 | CF203: 0 | CG203: 0 | CH203: 0 | CI203: 0 | CJ203: 0 | CK203: 0 | CL203: 0 | CM203: 0 | CN203: 0 | CO203: 0 | CP203: 0 | CQ203: 0 | CR203: 0 | CS203: 0 | CT203: 0 | CU203: 0 | CV203: 0 | CW203: 55 | CX203: 2 | CY203: 28 | CZ203: 21 | DA203: 2 | DB203: 1 | DC203: 0 | DD203: 4 | DE203: 0 | DF203: 18 | DG203: 0 | DH203: 0 | DI203: 0 | DJ203: 28 | DK203: 0 | DL203: 0 | DM203: 0 | DN203: 0 | DO203: 0 | DP203: 0 | DQ203: 0 | DR203: 33 | DS203: 4 | DT203: 1 | DU203: 38 | DV203: 0 | DW203: 3 | DX203: 2 | DY203: 0 | DZ203: 0 | EA203: 0 | EB203: 0 | EC203: 0 | ED203: 0 | EE203: 0 | EF203: 0 | EG203: 0 | EH203: 0 | EI203: 0 | EJ203: 0 | EK203: 0 | EL203: 0 | EM203: 0 | EN203: 0 | EO203: 0 | EP203: 0 | EQ203: 0 | ER203: 0 | ES203: 0 | ET203: 0 | EU203: 0 | EV203: 0 | EW203: 0 | EX203: 0 | EY203: 0 | EZ203: 0 | FA203: 0 | FB203: 0 | FC203: 0 | FD203: 0 | FE203: 0 | FF203: 1 | FG203: 2 | FH203: 0 | FI203: 3 | FJ203: 1 | FK203: 2 | FL203: 0 | FM203: 0 | FN203: 13 | FO203: 0 | FP203: 0 | FQ203: 0 | FR203: 1 | FS203: 3 | FT203: 2 | FU203: 0 | FV203: 0 | FW203: 3 | FX203: 0 | FY203: 0 | FZ203: 0 | GA203: 0 | GB203: 0 | GC203: 0 | GD203: 0 | GE203: 0 | GF203: 0 | GG203: 0 | GH203: 0 | GI203: 0 | GJ203: 0 | GK203: 0 | GL203: 0 | GM203: 0 | GN203: 0 | GO203: 0 | GP203: 0 | GQ203: 0 | GR203: 0 | GS203: 0 | GT203: 0 | GU203: 0 | GV203: 0 | GW203: 0 | GX203: 0 | GY203: 0 | GZ203: 0 | HA203: 0 | HB203: 0 | HC203: 0 | HD203: 0 | HE203: 0 | HF203: 0 | HG203: 0 | HH203: 0 | HI203: 0 | HJ203: 0 | HK203: 0 | HL203: 0 | HM203: 0 | HN203: 0 | HO203: 0 | HP203: 0 | HQ203: 0 | HR203: 0 | HS203: 0 | HT203: 0 | HU203: 0 | HV203: 0 | HW203: 0
A204: Total | B204: 3 | C204: 0 | D204: 128 | E204: 0 | F204: 0 | G204: 133 | H204: 133 | I204: 0 | J204: 0 | K204: 1 | L204: 27 | M204: 0 | N204: 0 | O204: 28 | P204: 28 | Q204: 0 | R204: 0 | S204: 1 | T204: 46 | U204: 9 | V204: 5 | W204: 65 | X204: 65 | Y204: 0 | Z204: 0 | AA204: 0 | AB204: 0 | AC204: 2 | AD204: 2 | AE204: 0 | AF204: 0 | AG204: 0 | AH204: 0 | AI204: 0 | AJ204: 0 | AK204: 0 | AL204: 0 | AM204: 0 | AN204: 0 | AO204: 0 | AP204: 0 | AQ204: 0 | AR204: 0 | AS204: 0 | AT204: 0 | AU204: 0 | AV204: 0 | AW204: 0 | AX204: 0 | AY204: 0 | AZ204: 0 | BA204: 0 | BB204: 0 | BC204: 0 | BD204: 0 | BE204: 0 | BF204: 0 | BG204: 0 | BH204: 0 | BI204: 0 | BJ204: 0 | BK204: 0 | BL204: 0 | BM204: 0 | BN204: 0 | BO204: 0 | BP204: 0 | BQ204: 0 | BR204: 0 | BS204: 0 | BT204: 217 | BU204: 85 | BV204: 305 | BW204: 162 | BX204: 0 | BY204: 0 | BZ204: 0 | CA204: 0 | CB204: 0 | CC204: 0 | CD204: 20 | CE204: 0 | CF204: 0 | CG204: 0 | CH204: 0 | CI204: 0 | CJ204: 0 | CK204: 0 | CL204: 0 | CM204: 0 | CN204: 0 | CO204: 0 | CP204: 0 | CQ204: 0 | CR204: 0 | CS204: 0 | CT204: 0 | CU204: 0 | CV204: 0 | CW204: 162 | CX204: 8 | CY204: 76 | CZ204: 54 | DA204: 8 | DB204: 3 | DC204: 0 | DD204: 21 | DE204: 0 | DF204: 60 | DG204: 0 | DH204: 1 | DI204: 0 | DJ204: 76 | DK204: 0 | DL204: 0 | DM204: 0 | DN204: 0 | DO204: 0 | DP204: 0 | DQ204: 0 | DR204: 107 | DS204: 12 | DT204: 3 | DU204: 134 | DV204: 0 | DW204: 4 | DX204: 4 | DY204: 0 | DZ204: 0 | EA204: 0 | EB204: 0 | EC204: 0 | ED204: 0 | EE204: 0 | EF204: 0 | EG204: 0 | EH204: 0 | EI204: 0 | EJ204: 0 | EK204: 0 | EL204: 0 | EM204: 0 | EN204: 0 | EO204: 0 | EP204: 0 | EQ204: 0 | ER204: 0 | ES204: 0 | ET204: 0 | EU204: 0 | EV204: 0 | EW204: 0 | EX204: 0 | EY204: 0 | EZ204: 0 | FA204: 0 | FB204: 0 | FC204: 0 | FD204: 0 | FE204: 0 | FF204: 1 | FG204: 7 | FH204: 0 | FI204: 6 | FJ204: 5 | FK204: 8 | FL204: 0 | FM204: 0 | FN204: 43 | FO204: 0 | FP204: 0 | FQ204: 0 | FR204: 1 | FS204: 3 | FT204: 3 | FU204: 2 | FV204: 0 | FW204: 3 | FX204: 1 | FY204: 0 | FZ204: 0 | GA204: 0 | GB204: 0 | GC204: 0 | GD204: 0 | GE204: 0 | GF204: 0 | GG204: 0 | GH204: 0 | GI204: 0 | GJ204: 0 | GK204: 0 | GL204: 0 | GM204: 0 | GN204: 0 | GO204: 0 | GP204: 0 | GQ204: 0 | GR204: 0 | GS204: 0 | GT204: 0 | GU204: 0 | GV204: 0 | GW204: 0 | GX204: 0 | GY204: 0 | GZ204: 0 | HA204: 0 | HB204: 0 | HC204: 0 | HD204: 0 | HE204: 0 | HF204: 0 | HG204: 0 | HH204: 0 | HI204: 0 | HJ204: 0 | HK204: 0 | HL204: 0 | HM204: 0 | HN204: 0 | HO204: 0 | HP204: 0 | HQ204: 0 | HR204: 0 | HS204: 0 | HT204: 0 | HU204: 0 | HV204: 0 | HW204: 0
A218: TOTAL
A219: =COUNT(A201:A216) -> 3 | B219: =SUM(B201:B216) -> 6 | C219: =SUM(C201:C216) -> 0 | D219: 256 | E219: 0 | F219: 0 | G219: 266 | H219: 266 | I219: 0 | J219: 0 | K219: 2 | L219: 54 | M219: 0 | N219: 0 | O219: 56 | P219: 56 | Q219: 0 | R219: 0 | S219: 2 | T219: 92 | U219: 18 | V219: 10 | W219: 130 | X219: 130 | Y219: 0 | Z219: 0 | AA219: 0 | AB219: 0 | AC219: 4 | AD219: 4 | AE219: 0 | AF219: 0 | AG219: 0 | AH219: 0 | AI219: 0 | AJ219: 0 | AK219: 0 | AL219: 0 | AM219: 0 | AN219: 0 | AO219: 0 | AP219: 0 | AQ219: 0 | AR219: 0 | AS219: 0 | AT219: 0 | AU219: 0 | AV219: 0 | AW219: 0 | AX219: 0 | AY219: 0 | AZ219: 0 | BA219: 0 | BB219: 0 | BC219: 0 | BD219: 0 | BE219: 0 | BF219: 0 | BG219: 0 | BH219: 0 | BI219: 0 | BJ219: 0 | BK219: 0 | BL219: 0 | BM219: 0 | BN219: 0 | BO219: =SUM(BO201:BO216) -> 0 | BP219: 0 | BQ219: 0 | BR219: 0 | BS219: 0 | BT219: 434 | BU219: 170 | BV219: 610 | BW219: 324 | BX219: 0 | BY219: 0 | BZ219: 0 | CA219: 0 | CB219: 0 | CC219: 0 | CD219: 40 | CE219: 0 | CF219: 0 | CG219: 0 | CH219: 0 | CI219: 0 | CJ219: 0 | CK219: 0 | CL219: 0 | CM219: 0 | CN219: 0 | CO219: 0 | CP219: 0 | CQ219: 0 | CR219: 0 | CS219: 0 | CT219: 0 | CU219: 0 | CV219: 0 | CW219: 324 | CX219: 16 | CY219: 152 | CZ219: 108 | DA219: 16 | DB219: 6 | DC219: 0 | DD219: 42 | DE219: 0 | DF219: 120 | DG219: 0 | DH219: 2 | DI219: 0 | DJ219: 152 | DK219: 0 | DL219: 0 | DM219: 0 | DN219: 0 | DO219: 0 | DP219: 0 | DQ219: 0 | DR219: 214 | DS219: 24 | DT219: 6 | DU219: 268 | DV219: 0 | DW219: 8 | DX219: 8 | DY219: 0 | DZ219: 0 | EA219: =SUM(EA201:EA216) -> 0 | EB219: 0 | EC219: 0 | ED219: 0 | EE219: 0 | EF219: 0 | EG219: 0 | EH219: 0 | EI219: 0 | EJ219: 0 | EK219: 0 | EL219: 0 | EM219: 0 | EN219: 0 | EO219: 0 | EP219: 0 | EQ219: 0 | ER219: 0 | ES219: 0 | ET219: 0 | EU219: 0 | EV219: 0 | EW219: 0 | EX219: 0 | EY219: 0 | EZ219: 0 | FA219: 0 | FB219: 0 | FC219: 0 | FD219: 0 | FE219: 0 | FF219: 2 | FG219: 14 | FH219: 0 | FI219: 12 | FJ219: 10 | FK219: 16 | FL219: 0 | FM219: 0 | FN219: 86 | FO219: 0 | FP219: 0 | FQ219: 0 | FR219: 2 | FS219: 6 | FT219: 6 | FU219: 4 | FV219: 0 | FW219: 6 | FX219: 2 | FY219: 0 | FZ219: 0 | GA219: 0 | GB219: 0 | GC219: 0 | GD219: 0 | GE219: 0 | GF219: 0 | GG219: 0 | GH219: 0 | GI219: 0 | GJ219: 0 | GK219: 0 | GL219: 0 | GM219: =SUM(GM201:GM216) -> 0 | GN219: 0 | GO219: 0 | GP219: 0 | GQ219: 0 | GR219: 0 | GS219: 0 | GT219: 0 | GU219: 0 | GV219: 0 | GW219: 0 | GX219: 0 | GY219: 0 | GZ219: 0
A220: =CONCATENATE(A201,"-",A202,"-",A203,"-",A204,"-",A205,"-",A206,"-",A207,"-",A208,"-",A209,"-",A210,"-",A211,"-",A212) -> 1-2-3-Total--------
B222: BAS001 | C222: BAS002 | D222: BAS003 | E222: BAS004 | F222: BAS005 | G222: BAS006 | H222: BAS007 | I222: BAS008 | J222: BAS009 | K222: BAS010 | L222: BAS011 | M222: BAS012 | N222: BAS013 | O222: BAS014 | P222: BAS015 | Q222: BAS016 | R222: BAS017 | S222: BAS018 | T222: BAS019 | U222: BAS020 | V222: BAS021 | W222: BAS022 | X222: BAS023 | Y222: BAS024 | Z222: BAS025 | AA222: BAS026 | AB222: BAS027 | AC222: BAS028 | AD222: BAS029 | AE222: BAS030 | AF222: BAS031 | AG222: BAS032 | AH222: BAS033 | AI222: BAS034 | AJ222: BAS035 | AK222: BAS036 | AL222: BAS037 | AM222: BAS038 | AN222: BAS039 | AO222: BAS040 | AP222: BAS041 | AQ222: BAS042 | AR222: BAS043 | AS222: BAS044 | AT222: BAS045 | AU222: BAS046 | AV222: BAS047 | AW222: BAS048 | AX222: BAS049 | AY222: BAS050 | AZ222: BAS051 | BA222: BAS052 | BB222: BAS053 | BC222: BAS054 | BD222: BAS055 | BE222: BAS056 | BF222: BAS057 | BG222: BAS058 | BH222: BAS059 | BI222: BAS060 | BJ222: BAS061 | BK222: BAS062 | BL222: BAS063 | BM222: BAS064 | BN222: BAS065 | BO222: BAS066 | BP222: BAS067 | BQ222: BAS068 | BR222: BAS069 | BS222: BAS070 | BT222: BAS071 | BU222: BAS072 | BV222: BAS073 | BW222: BAS074 | BX222: BAS075 | BY222: BAS076 | BZ222: BAS077 | CA222: BAS078 | CB222: BAS079 | CC222: BAS080 | CD222: BAS081 | CE222: BAS082 | CF222: BAS083 | CG222: BAS084 | CH222: BAS085 | CI222: BAS086 | CJ222: BAS087 | CK222: BAS088 | CL222: BAS089 | CM222: BAS090 | CN222: BAS091 | CO222: BAS092 | CP222: BAS093 | CQ222: BAS094 | CR222: BAS095 | CS222: BAS096 | CT222: BAS097 | CU222: BAS098 | CV222: BAS099 | CW222: BAS100 | CX222: BAS101 | CY222: BAS102 | CZ222: BAS103 | DA222: BAS104 | DB222: BAS105 | DC222: BAS106 | DD222: BAS107 | DE222: BAS108 | DF222: BAS109 | DG222: BAS110 | DH222: BAS111 | DI222: BAS112 | DJ222: BAS113 | DK222: BAS114 | DL222: BAS115 | DM222: BAS116 | DN222: BAS117 | DO222: BAS118 | DP222: BAS119 | DQ222: BAS120 | DR222: BAS121 | DS222: BAS122 | DT222: BAS123 | DU222: BAS124 | DV222: BAS125 | DW222: BAS126 | DX222: BAS127 | DY222: BAS128 | DZ222: BAS129 | EA222: BAS130 | EB222: BAS131 | EC222: BAS132 | ED222: BAS133 | EE222: BAS134 | EF222: BAS135 | EG222: BAS136 | EH222: BAS137 | EI222: BAS138 | EJ222: BAS139 | EK222: BAS140 | EL222: BAS141 | EM222: BAS142 | EN222: BAS143 | EO222: BAS144 | EP222: BAS145 | EQ222: BAS146 | ER222: BAS147 | ES222: BAS148 | ET222: BAS149 | EU222: BAS150 | EV222: BAS151 | EW222: BAS152 | EX222: BAS153 | EY222: BAS154 | EZ222: BAS155 | FA222: BAS156 | FB222: BAS157 | FC222: BAS158 | FD222: BAS159 | FE222: BAS160 | FF222: BAS161 | FG222: BAS162 | FH222: BAS163 | FI222: BAS164 | FJ222: BAS165 | FK222: BAS166 | FL222: BAS167 | FM222: BAS168 | FN222: BAS169 | FO222: BAS170 | FP222: BAS171 | FQ222: BAS172 | FR222: BAS173 | FS222: BAS174 | FT222: BAS175 | FU222: BAS176 | FV222: BAS177 | FW222: BAS178 | FX222: BAS179 | FY222: BAS180 | FZ222: BAS181 | GA222: BAS182 | GB222: BAS183 | GC222: BAS184 | GD222: BAS185 | GE222: BAS186 | GF222: BAS187 | GG222: BAS188 | GH222: BAS189 | GI222: BAS190 | GJ222: BAS191 | GK222: BAS192 | GL222: BAS193 | GM222: BAS194 | GN222: BAS195 | GO222: BAS196 | GP222: BAS197 | GQ222: BAS198 | GR222: BAS199 | GS222: BAS200 | GT222: BAS201 | GU222: BAS202 | GV222: BAS203 | GW222: BAS204 | GX222: BAS205 | GY222: BAS206 | GZ222: BAS207 | HA222: BAS208 | HB222: BAS209 | HC222: BAS210 | HD222: BAS211 | HE222: BAS212 | HF222: BAS213 | HG222: BAS214 | HH222: BAS215 | HI222: BAS216 | HJ222: BAS217 | HK222: BAS218 | HL222: BAS219 | HM222: BAS220 | HN222: BAS221 | HO222: BAS222 | HP222: BAS223 | HQ222: BAS224 | HR222: BAS225 | HS222: BAS226 | HT222: BAS227 | HU222: BAS228 | HV222: BAS229 | HW222: BAS230
B223: =IF(B222=B200,"SI","NO") -> SI | C223: =IF(C222=C200,"SI","NO") -> SI | D223: SI | E223: SI | F223: SI | G223: SI | H223: SI | I223: SI | J223: SI | K223: SI | L223: SI | M223: SI | N223: SI | O223: SI | P223: SI | Q223: SI | R223: SI | S223: SI | T223: SI | U223: SI | V223: SI | W223: SI | X223: SI | Y223: SI | Z223: SI | AA223: SI | AB223: SI | AC223: SI | AD223: SI | AE223: SI | AF223: SI | AG223: SI | AH223: SI | AI223: SI | AJ223: SI | AK223: SI | AL223: SI | AM223: SI | AN223: SI | AO223: SI | AP223: SI | AQ223: SI | AR223: SI | AS223: SI | AT223: SI | AU223: SI | AV223: SI | AW223: SI | AX223: SI | AY223: SI | AZ223: SI | BA223: SI | BB223: SI | BC223: SI | BD223: SI | BE223: SI | BF223: SI | BG223: SI | BH223: SI | BI223: SI | BJ223: SI | BK223: SI | BL223: SI | BM223: SI | BN223: SI | BO223: =IF(BO222=BO200,"SI","NO") -> SI | BP223: SI | BQ223: SI | BR223: SI | BS223: SI | BT223: SI | BU223: SI | BV223: SI | BW223: SI | BX223: SI | BY223: SI | BZ223: SI | CA223: SI | CB223: SI | CC223: SI | CD223: SI | CE223: SI | CF223: SI | CG223: SI | CH223: SI | CI223: SI | CJ223: SI | CK223: SI | CL223: SI | CM223: SI | CN223: SI | CO223: SI | CP223: SI | CQ223: SI | CR223: SI | CS223: SI | CT223: SI | CU223: SI | CV223: SI | CW223: SI | CX223: SI | CY223: SI | CZ223: SI | DA223: SI | DB223: SI | DC223: SI | DD223: SI | DE223: SI | DF223: SI | DG223: SI | DH223: SI | DI223: SI | DJ223: SI | DK223: SI | DL223: SI | DM223: SI | DN223: SI | DO223: SI | DP223: SI | DQ223: SI | DR223: SI | DS223: SI | DT223: SI | DU223: SI | DV223: SI | DW223: SI | DX223: SI | DY223: SI | DZ223: SI | EA223: =IF(EA222=EA200,"SI","NO") -> SI | EB223: SI | EC223: SI | ED223: SI | EE223: SI | EF223: SI | EG223: SI | EH223: SI | EI223: SI | EJ223: SI | EK223: SI | EL223: SI | EM223: SI | EN223: SI | EO223: SI | EP223: SI | EQ223: SI | ER223: SI | ES223: SI | ET223: SI | EU223: SI | EV223: SI | EW223: SI | EX223: SI | EY223: SI | EZ223: SI | FA223: SI | FB223: SI | FC223: SI | FD223: SI | FE223: SI | FF223: SI | FG223: SI | FH223: SI | FI223: SI | FJ223: SI | FK223: SI | FL223: SI | FM223: SI | FN223: SI | FO223: SI | FP223: SI | FQ223: SI | FR223: SI | FS223: SI | FT223: SI | FU223: SI | FV223: SI | FW223: SI | FX223: SI | FY223: SI | FZ223: SI | GA223: SI | GB223: SI | GC223: SI | GD223: SI | GE223: SI | GF223: SI | GG223: SI | GH223: SI | GI223: SI | GJ223: SI | GK223: SI | GL223: SI | GM223: =IF(GM222=GM200,"SI","NO") -> SI | GN223: SI | GO223: SI | GP223: SI | GQ223: SI | GR223: SI | GS223: SI | GT223: SI | GU223: SI | GV223: SI | GW223: SI | GX223: SI | GY223: SI | GZ223: SI | HA223: SI | HB223: SI | HC223: SI | HD223: SI | HE223: SI | HF223: SI | HG223: SI | HH223: SI | HI223: SI | HJ223: SI | HK223: SI | HL223: SI | HM223: SI | HN223: SI | HO223: SI | HP223: SI | HQ223: SI | HR223: SI | HS223: SI | HT223: SI | HU223: SI | HV223: SI | HW223: SI
A225: anno | B225: 2025
A226: cod_red | B226: 03
A227: codmic | B227: (Todas)
A228: cod_prov | B228: (Todas)
A229: coddist | B229: (Todas)
A230: cod_estab | B230: (Todas)
A231: cod_eje | B231: (Todas)
A233: Valores
A234: Suma de total | B234: Suma de emay15
A235: 0 | B235: 0
A244: ANNO | B244: 2025
A245: cod_red | B245: 03
A246: codmic | B246: (Todas)
A247: cod_prov | B247: (Todas)
A248: coddist | B248: (Todas)
A249: cod_estab | B249: (Todas)
A250: cod_eje | B250: (Todas)
A252: Valores
A253: f20087901 | B253: f23317201 | C253: f23317203 | D253: f23317204 | E253: f23317205 | F253: f23317206 | G253: f23317209 | H253: f23317210 | I253: f23317211 | J253: f23328701 | K253: f23328702 | L253: f23329101 | M253: f23329102 | N253: f23329103 | O253: f23329104 | P253: f23329105 | Q253: f23329106 | R253: f23329107 | S253: f23329108 | T253: f23329109 | U253: f23329110 | V253: f23329111 | W253: f23329112 | X253: f23329113 | Y253: f23329114 | Z253: f23329115 | AA253: f23329116 | AB253: f23329117 | AC253: f23329201 | AD253: f23329202 | AE253: f23329203 | AF253: f23329404 | AG253: f23329406 | AH253: f23329407 | AI253: f23329408 | AJ253: f23329409 | AK253: f23329413 | AL253: f23329414 | AM253: f23329415 | AN253: f23329416 | AO253: f23329417 | AP253: f23329418 | AQ253: f23329501 | AR253: f23329601 | AS253: f23329602 | AT253: f23329701 | AU253: f23329801 | AV253: f23329901 | AW253: f23329902 | AX253: f23329903 | AY253: f23330001 | AZ253: f23330002 | BA253: f23330003 | BB253: f23330004 | BC253: f23330005 | BD253: f23330401 | BE253: f23330402 | BF253: f23330403 | BG253: f23330501 | BH253: f23330503 | BI253: f23330504 | BJ253: f23330505 | BK253: f23330506 | BL253: f23330601 | BM253: f23330602 | BN253: f23330603 | BO253: f23330604 | BP253: f23330605 | BQ253: f23330606 | BR253: f23330608 | BS253: f23330609 | BT253: f23330610 | BU253: f23330611 | BV253: f23330612 | BW253: f23330613 | BX253: f23330614 | BY253: f23330615 | BZ253: f23330616 | CA253: f23330617 | CB253: f23330618 | CC253: f23330619 | CD253: f23330701 | CE253: f23330702 | CF253: f23330703 | CG253: f23330704 | CH253: f23330705 | CI253: f23330706 | CJ253: f23330707 | CK253: f23330708 | CL253: f23330709 | CM253: f23330710 | CN253: f23341201 | CO253: f23341202 | CP253: f23341203 | CQ253: f23341204 | CR253: f23341205 | CS253: f24427702 | CT253: f24427703 | CU253: f24427704 | CV253: f25000201 | CW253: f25000202 | CX253: f25000203 | CY253: f25000502 | CZ253: f25000503
A254: 4783 | B254: 1964 | C254: 1713 | D254: 1964 | E254: 1105 | F254: 1106 | G254: 652 | H254: 1558 | I254: 1211 | J254: 0 | K254: 0 | L254: 0 | M254: 0 | N254: 70 | O254: 0 | P254: 62 | Q254: 3964 | R254: 1116 | S254: 1373 | T254: 465 | U254: 11 | V254: 40 | W254: 0 | X254: 817 | Y254: 41 | Z254: 1042 | AA254: 5 | AB254: 280 | AC254: 10439 | AD254: 1305 | AE254: 179 | AF254: 27 | AG254: 197 | AH254: 40 | AI254: 57 | AJ254: 1860 | AK254: 27 | AL254: 13 | AM254: 38 | AN254: 8 | AO254: 140 | AP254: 490 | AQ254: 1433 | AR254: 241 | AS254: 136 | AT254: 379 | AU254: 1674 | AV254: 4 | AW254: 6 | AX254: 3 | AY254: 0 | AZ254: 0 | BA254: 0 | BB254: 0 | BC254: 0 | BD254: 180 | BE254: 100 | BF254: 30 | BG254: 1812 | BH254: 1591 | BI254: 0 | BJ254: 1682 | BK254: 1812 | BL254: 28 | BM254: 2 | BN254: 4 | BO254: 11 | BP254: 110 | BQ254: 4 | BR254: 7 | BS254: 2 | BT254: 8 | BU254: 34 | BV254: 15 | BW254: 0 | BX254: 0 | BY254: 7 | BZ254: 1 | CA254: 1 | CB254: 0 | CC254: 0 | CD254: 0 | CE254: 0 | CF254: 0 | CG254: 0 | CH254: 0 | CI254: 0 | CJ254: 0 | CK254: 0 | CL254: 0 | CM254: 0 | CN254: 570 | CO254: 226 | CP254: 1350 | CQ254: 228 | CR254: 11 | CS254: 2 | CT254: 2 | CU254: 0 | CV254: 0 | CW254: 0 | CX254: 0 | CY254: 8793 | CZ254: 0

Sheet INFORME
B1: GERENCIA REGIONAL DE SALUD CUSCO
B2: DIRECCION DE ESTADISTICA, INFORMATICA Y TELECOMUNICACIONES
B4: REPORTE DE ACTIVIDADES DE LA DIRECCIÓN DE SALUD SEXUAL Y REPRODUCTIVA
B5: Componente Materno Perinatal
B7: GERESA | D7: CUSCO | I7: PROVINCIA | K7: =TRIM(TABLAS!O12) ->  | P7: EJECUTORA | R7: =TRIM(TABLAS!O14) -> 
B9: RED | D9: =TRIM(TABLAS!O9) -> 03 - LA CONVENCION | I9: DISTRITO | K9: =TRIM(TABLAS!O13) -> 
B11: MICRO RED | D11: =TRIM(TABLAS!O10) ->  | I11: MES | K11: =TRIM(TABLAS!N26) -> ENE - MAR | M11: =+TABLAS!N20 -> 3
B13: ESTABLECIMIENTO | D13: =TRIM(TABLAS!O11) ->  | I13: AÑO | K13: =TRIM(TABLAS!J16) -> 2025 | P13: =IF(M11=1,MID(D13,1,9)&"_"&MID(D13,13,20)&"_"&MID(K11,1,3)&"_"&K13,MID(D13,1,9)&"_"&MID(D13,13,20)&"_"&MID(K11,1,3)&"_"&MID(K11,7,3)&"_"&K13) -> __ENE_MAR_2025
B15: I. ATENCION PRENATAL REENFOCADA | CN15: =+IMPORTARDATOSDINAMICOS("BAS | CP15: ",TABLAS!$A$199)
D16: 1 | E16: 2 | F16: 3 | G16: 4 | H16: 5 | I16: 6 | J16: 7 | K16: 8 | L16: 9 | M16: 10 | N16: 11 | O16: 12 | P16: 13 | Q16: 14 | R16: 15 | S16: 16 | T16: 17 | U16: 18 | V16: 19 | W16: 20 | X16: 21 | Y16: 22 | Z16: 23 | AA16: 24 | AB16: 25 | CN16: =+IMPORTARDATOSDINAMICOS("BAS | CP16: ",TABLAS!$A$93) | CQ16: 93
B17: Grupo Etáreo | C17: Gestante | I17: Papanicolaou | K17: Gestante con Bateria Completa | M17: Violencia Basada en Género (VBG) | O17: Ecografía 3317205 | R17: Tamizaje de Bacteriuria | T17: Tamizaje de Proteniuria | V17: Gestante con Atención Prenatal Reenfocada | W17: Inmunización a la Gestante 3317211 | AB17: Atencion odontologica | CN17: =+IMPORTARDATOSDINAMICOS("BAS | CP17: ",TABLAS!$A$128) | CQ17: 128
C18: Atendida | G18: Atenciones | H18: Controlada 3317201 | W18: DTPA | X18: DT | Y18: HvB | Z18: Influenza | AA18: COVID | CN18: =+IMPORTARDATOSDINAMICOS("BAS | CP18: ",TABLAS!$A$199) | CQ18: 163
C19: Total | D19: I Trim | E19: II Trim | F19: III Trim | I19: Toma de Muestra | J19: Positivo | K19: 1° Bateria | L19: 2° Bateria 3317204 | M19: Tamizaje | N19: Positivo | O19: 1º Ecografía | P19: 2º Ecografía | Q19: 3º Ecografía | R19: N° | S19: Positivo | T19: N° | U19: Positivo | W19: Protegidas | X19: Protegidas | Y19: Protegidas | Z19: Protegidas | AA19: Protegidas | AB19: Protegidas | CN19: =+CM19+1 -> 1 | CO19: =+CN19+1 -> 2 | CP19: 3 | CQ19: 4 | CR19: 5 | CS19: 6 | CT19: 7 | CU19: 8 | CV19: 9 | CW19: 10 | CX19: 11 | CY19: 12 | CZ19: 13 | DA19: 14 | DB19: 15 | DC19: 16 | DD19: 17 | DE19: 18 | DF19: 19 | DG19: 20 | DH19: 21 | DI19: 22 | DJ19: 23 | DK19: 24 | DL19: 25
B20: < 12 a. | C20: =SUM(D20:F20) -> 0 | D20: =+GETPIVOTDATA("BAS001",TABLAS!$A$57) -> 0 | E20: =+GETPIVOTDATA("BAS002",TABLAS!$A$57) -> 0 | F20: =+GETPIVOTDATA("BAS003",TABLAS!$A$57) -> 0 | G20: =+GETPIVOTDATA("BAS004",TABLAS!$A$57) -> 0 | H20: =+GETPIVOTDATA("BAS005",TABLAS!$A$57) -> 0 | I20: =+GETPIVOTDATA("BAS006",TABLAS!$A$57) -> 0 | J20: =+GETPIVOTDATA("BAS007",TABLAS!$A$57) -> 0 | K20: =+GETPIVOTDATA("BAS008",TABLAS!$A$57) -> 0 | L20: =+GETPIVOTDATA("BAS009",TABLAS!$A$57) -> 0 | M20: =+GETPIVOTDATA("BAS010",TABLAS!$A$57) -> 0 | N20: =+GETPIVOTDATA("BAS011",TABLAS!$A$57) -> 0 | O20: =+GETPIVOTDATA("BAS012",TABLAS!$A$57) -> 0 | P20: =+GETPIVOTDATA("BAS013",TABLAS!$A$57) -> 0 | Q20: =+GETPIVOTDATA("BAS014",TABLAS!$A$57) -> 0 | R20: =+GETPIVOTDATA("BAS015",TABLAS!$A$57) -> 0 | S20: =+GETPIVOTDATA("BAS016",TABLAS!$A$57) -> 0 | T20: =+GETPIVOTDATA("BAS017",TABLAS!$A$57) -> 0 | U20: =+GETPIVOTDATA("BAS018",TABLAS!$A$57) -> 0 | V20: =+GETPIVOTDATA("BAS019",TABLAS!$A$57) -> 0 | W20: =+GETPIVOTDATA("BAS020",TABLAS!$A$57) -> 0 | X20: =+GETPIVOTDATA("BAS021",TABLAS!$A$57) -> 0 | Y20: =+GETPIVOTDATA("BAS022",TABLAS!$A$57) -> 0 | Z20: =+GETPIVOTDATA("BAS023",TABLAS!$A$57) -> 0 | AA20: =+GETPIVOTDATA("BAS024",TABLAS!$A$57) -> 0 | AB20: =+GETPIVOTDATA("BAS025",TABLAS!$A$57) -> 1 | AL20: 1 | AM20: =+AL20+1 -> 2 | AN20: =+AM20+1 -> 3 | AO20: 4 | AP20: 5 | AQ20: 6 | AR20: 7 | AS20: 8 | AT20: 9 | AU20: 10 | AV20: 11 | AW20: 12 | AX20: 13 | AY20: 14 | AZ20: 15 | BA20: 16 | BB20: 17 | BC20: 18 | BD20: 19 | BE20: 20 | BF20: 21 | BG20: 22 | BH20: 23 | BI20: 24 | BJ20: 25 | BM20: =IF(AL20<10,CONCATENATE("00",AL20),IF(AND(AL20<100,AL20>9),CONCATENATE("0",AL20),AL20)) -> 001 | BN20: =IF(AM20<10,CONCATENATE("00",AM20),IF(AND(AM20<100,AM20>9),CONCATENATE("0",AM20),AM20)) -> 002 | BO20: 003 | BP20: 004 | BQ20: 005 | BR20: 006 | BS20: 007 | BT20: 008 | BU20: 009 | BV20: 010 | BW20: 011 | BX20: 012 | BY20: 013 | BZ20: 014 | CA20: =IF(AZ20<10,CONCATENATE("00",AZ20),IF(AND(AZ20<100,AZ20>9),CONCATENATE("0",AZ20),AZ20)) -> 015 | CB20: =IF(BA20<10,CONCATENATE("00",BA20),IF(AND(BA20<100,BA20>9),CONCATENATE("0",BA20),BA20)) -> 016 | CC20: =IF(BB20<10,CONCATENATE("00",BB20),IF(AND(BB20<100,BB20>9),CONCATENATE("0",BB20),BB20)) -> 017 | CD20: =IF(BC20<10,CONCATENATE("00",BC20),IF(AND(BC20<100,BC20>9),CONCATENATE("0",BC20),BC20)) -> 018 | CE20: =IF(BD20<10,CONCATENATE("00",BD20),IF(AND(BD20<100,BD20>9),CONCATENATE("0",BD20),BD20)) -> 019 | CF20: =IF(BE20<10,CONCATENATE("00",BE20),IF(AND(BE20<100,BE20>9),CONCATENATE("0",BE20),BE20)) -> 020 | CG20: =IF(BF20<10,CONCATENATE("00",BF20),IF(AND(BF20<100,BF20>9),CONCATENATE("0",BF20),BF20)) -> 021 | CH20: =IF(BG20<10,CONCATENATE("00",BG20),IF(AND(BG20<100,BG20>9),CONCATENATE("0",BG20),BG20)) -> 022 | CI20: =IF(BH20<10,CONCATENATE("00",BH20),IF(AND(BH20<100,BH20>9),CONCATENATE("0",BH20),BH20)) -> 023 | CJ20: =IF(BI20<10,CONCATENATE("00",BI20),IF(AND(BI20<100,BI20>9),CONCATENATE("0",BI20),BI20)) -> 024 | CK20: =IF(BJ20<10,CONCATENATE("00",BJ20),IF(AND(BJ20<100,BJ20>9),CONCATENATE("0",BJ20),BJ20)) -> 025 | CN20: =CONCATENATE($CN$15,BM20,$CP$15) -> =+IMPORTARDATOSDINAMICOS("BAS001",TABLAS!$A$199) | CO20: =CONCATENATE($CN$15,BN20,$CP$15) -> =+IMPORTARDATOSDINAMICOS("BAS002",TABLAS!$A$199) | CP20: =+IMPORTARDATOSDINAMICOS("BAS003",TABLAS!$A$199) | CQ20: =+IMPORTARDATOSDINAMICOS("BAS004",TABLAS!$A$199) | CR20: =+IMPORTARDATOSDINAMICOS("BAS005",TABLAS!$A$199) | CS20: =+IMPORTARDATOSDINAMICOS("BAS006",TABLAS!$A$199) | CT20: =+IMPORTARDATOSDINAMICOS("BAS007",TABLAS!$A$199) | CU20: =+IMPORTARDATOSDINAMICOS("BAS008",TABLAS!$A$199) | CV20: =+IMPORTARDATOSDINAMICOS("BAS009",TABLAS!$A$199) | CW20: =+IMPORTARDATOSDINAMICOS("BAS010",TABLAS!$A$199) | CX20: =+IMPORTARDATOSDINAMICOS("BAS011",TABLAS!$A$199) | CY20: =+IMPORTARDATOSDINAMICOS("BAS012",TABLAS!$A$199) | CZ20: =+IMPORTARDATOSDINAMICOS("BAS013",TABLAS!$A$199) | DA20: =+IMPORTARDATOSDINAMICOS("BAS014",TABLAS!$A$199) | DB20: =+IMPORTARDATOSDINAMICOS("BAS015",TABLAS!$A$199) | DC20: =+IMPORTARDATOSDINAMICOS("BAS016",TABLAS!$A$199) | DD20: =+IMPORTARDATOSDINAMICOS("BAS017",TABLAS!$A$199) | DE20: =+IMPORTARDATOSDINAMICOS("BAS018",TABLAS!$A$199) | DF20: =+IMPORTARDATOSDINAMICOS("BAS019",TABLAS!$A$199) | DG20: =+IMPORTARDATOSDINAMICOS("BAS020",TABLAS!$A$199) | DH20: =+IMPORTARDATOSDINAMICOS("BAS021",TABLAS!$A$199) | DI20: =+IMPORTARDATOSDINAMICOS("BAS022",TABLAS!$A$199) | DJ20: =+IMPORTARDATOSDINAMICOS("BAS023",TABLAS!$A$199) | DK20: =+IMPORTARDATOSDINAMICOS("BAS024",TABLAS!$A$199) | DL20: =+IMPORTARDATOSDINAMICOS("BAS025",TABLAS!$A$199)
B21: 12-17 | C21: =SUM(D21:F21) -> 36 | D21: =+GETPIVOTDATA("BAS001",TABLAS!$A$93) -> 15 | E21: =+GETPIVOTDATA("BAS002",TABLAS!$A$93) -> 15 | F21: =+GETPIVOTDATA("BAS003",TABLAS!$A$93) -> 6 | G21: =+GETPIVOTDATA("BAS004",TABLAS!$A$93) -> 197 | H21: =+GETPIVOTDATA("BAS005",TABLAS!$A$93) -> 21 | I21: =+GETPIVOTDATA("BAS006",TABLAS!$A$93) -> 0 | J21: =+GETPIVOTDATA("BAS007",TABLAS!$A$93) -> 0 | K21: =+GETPIVOTDATA("BAS008",TABLAS!$A$93) -> 37 | L21: =+GETPIVOTDATA("BAS009",TABLAS!$A$93) -> 22 | M21: =+GETPIVOTDATA("BAS010",TABLAS!$A$93) -> 38 | N21: =+GETPIVOTDATA("BAS011",TABLAS!$A$93) -> 8 | O21: =+GETPIVOTDATA("BAS012",TABLAS!$A$93) -> 11 | P21: =+GETPIVOTDATA("BAS013",TABLAS!$A$93) -> 5 | Q21: =+GETPIVOTDATA("BAS014",TABLAS!$A$93) -> 5 | R21: =+GETPIVOTDATA("BAS015",TABLAS!$A$93) -> 123 | S21: =+GETPIVOTDATA("BAS016",TABLAS!$A$93) -> 50 | T21: =+GETPIVOTDATA("BAS017",TABLAS!$A$93) -> 61 | U21: =+GETPIVOTDATA("BAS018",TABLAS!$A$93) -> 4 | V21: =+GETPIVOTDATA("BAS019",TABLAS!$A$93) -> 6 | W21: =+GETPIVOTDATA("BAS020",TABLAS!$A$93) -> 26 | X21: =+GETPIVOTDATA("BAS021",TABLAS!$A$93) -> 0 | Y21: =+GETPIVOTDATA("BAS022",TABLAS!$A$93) -> 0 | Z21: =+GETPIVOTDATA("BAS023",TABLAS!$A$93) -> 0 | AA21: =+GETPIVOTDATA("BAS024",TABLAS!$A$93) -> 0 | AB21: =+GETPIVOTDATA("BAS025",TABLAS!$A$93) -> 30 | AL21: 1 | AM21: =+AL21+1 -> 2 | AN21: 3 | AO21: 4 | AP21: 5 | AQ21: 6 | AR21: 7 | AS21: 8 | AT21: 9 | AU21: 10 | AV21: 11 | AW21: 12 | AX21: 13 | AY21: 14 | AZ21: 15 | BA21: 16 | BB21: 17 | BC21: 18 | BD21: 19 | BE21: 20 | BF21: 21 | BG21: 22 | BH21: 23 | BI21: 24 | BJ21: 25 | BM21: =IF(AL21<10,CONCATENATE("00",AL21),IF(AND(AL21<100,AL21>9),CONCATENATE("0",AL21),AL21)) -> 001 | BN21: =IF(AM21<10,CONCATENATE("00",AM21),IF(AND(AM21<100,AM21>9),CONCATENATE("0",AM21),AM21)) -> 002 | BO21: =IF(AN21<10,CONCATENATE("00",AN21),IF(AND(AN21<100,AN21>9),CONCATENATE("0",AN21),AN21)) -> 003 | BP21: =IF(AO21<10,CONCATENATE("00",AO21),IF(AND(AO21<100,AO21>9),CONCATENATE("0",AO21),AO21)) -> 004 | BQ21: =IF(AP21<10,CONCATENATE("00",AP21),IF(AND(AP21<100,AP21>9),CONCATENATE("0",AP21),AP21)) -> 005 | BR21: =IF(AQ21<10,CONCATENATE("00",AQ21),IF(AND(AQ21<100,AQ21>9),CONCATENATE("0",AQ21),AQ21)) -> 006 | BS21: =IF(AR21<10,CONCATENATE("00",AR21),IF(AND(AR21<100,AR21>9),CONCATENATE("0",AR21),AR21)) -> 007 | BT21: =IF(AS21<10,CONCATENATE("00",AS21),IF(AND(AS21<100,AS21>9),CONCATENATE("0",AS21),AS21)) -> 008 | BU21: =IF(AT21<10,CONCATENATE("00",AT21),IF(AND(AT21<100,AT21>9),CONCATENATE("0",AT21),AT21)) -> 009 | BV21: =IF(AU21<10,CONCATENATE("00",AU21),IF(AND(AU21<100,AU21>9),CONCATENATE("0",AU21),AU21)) -> 010 | BW21: =IF(AV21<10,CONCATENATE("00",AV21),IF(AND(AV21<100,AV21>9),CONCATENATE("0",AV21),AV21)) -> 011 | BX21: =IF(AW21<10,CONCATENATE("00",AW21),IF(AND(AW21<100,AW21>9),CONCATENATE("0",AW21),AW21)) -> 012 | BY21: =IF(AX21<10,CONCATENATE("00",AX21),IF(AND(AX21<100,AX21>9),CONCATENATE("0",AX21),AX21)) -> 013 | BZ21: =IF(AY21<10,CONCATENATE("00",AY21),IF(AND(AY21<100,AY21>9),CONCATENATE("0",AY21),AY21)) -> 014 | CA21: =IF(AZ21<10,CONCATENATE("00",AZ21),IF(AND(AZ21<100,AZ21>9),CONCATENATE("0",AZ21),AZ21)) -> 015 | CB21: 016 | CC21: 017 | CD21: 018 | CE21: 019 | CF21: 020 | CG21: 021 | CH21: 022 | CI21: =IF(BH21<10,CONCATENATE("00",BH21),IF(AND(BH21<100,BH21>9),CONCATENATE("0",BH21),BH21)) -> 023 | CJ21: 024 | CK21: 025 | CN21: =CONCATENATE($CN$15,BM21,$CP$16) -> =+IMPORTARDATOSDINAMICOS("BAS001",TABLAS!$A$93) | CO21: =CONCATENATE($CN$15,BN21,$CP$16) -> =+IMPORTARDATOSDINAMICOS("BAS002",TABLAS!$A$93) | CP21: =+IMPORTARDATOSDINAMICOS("BAS003",TABLAS!$A$93) | CQ21: =+IMPORTARDATOSDINAMICOS("BAS004",TABLAS!$A$93) | CR21: =+IMPORTARDATOSDINAMICOS("BAS005",TABLAS!$A$93) | CS21: =+IMPORTARDATOSDINAMICOS("BAS006",TABLAS!$A$93) | CT21: =+IMPORTARDATOSDINAMICOS("BAS007",TABLAS!$A$93) | CU21: =+IMPORTARDATOSDINAMICOS("BAS008",TABLAS!$A$93) | CV21: =+IMPORTARDATOSDINAMICOS("BAS009",TABLAS!$A$93) | CW21: =+IMPORTARDATOSDINAMICOS("BAS010",TABLAS!$A$93) | CX21: =+IMPORTARDATOSDINAMICOS("BAS011",TABLAS!$A$93) | CY21: =+IMPORTARDATOSDINAMICOS("BAS012",TABLAS!$A$93) | CZ21: =+IMPORTARDATOSDINAMICOS("BAS013",TABLAS!$A$93) | DA21: =+IMPORTARDATOSDINAMICOS("BAS014",TABLAS!$A$93) | DB21: =+IMPORTARDATOSDINAMICOS("BAS015",TABLAS!$A$93) | DC21: =+IMPORTARDATOSDINAMICOS("BAS016",TABLAS!$A$93) | DD21: =+IMPORTARDATOSDINAMICOS("BAS017",TABLAS!$A$93) | DE21: =+IMPORTARDATOSDINAMICOS("BAS018",TABLAS!$A$93) | DF21: =+IMPORTARDATOSDINAMICOS("BAS019",TABLAS!$A$93) | DG21: =+IMPORTARDATOSDINAMICOS("BAS020",TABLAS!$A$93) | DH21: =+IMPORTARDATOSDINAMICOS("BAS021",TABLAS!$A$93) | DI21: =+IMPORTARDATOSDINAMICOS("BAS022",TABLAS!$A$93) | DJ21: =+IMPORTARDATOSDINAMICOS("BAS023",TABLAS!$A$93) | DK21: =+IMPORTARDATOSDINAMICOS("BAS024",TABLAS!$A$93) | DL21: =+IMPORTARDATOSDINAMICOS("BAS025",TABLAS!$A$93)
B22: 18-29 | C22: =SUM(D22:F22) -> 247 | D22: =+GETPIVOTDATA("BAS001",TABLAS!$A$128) -> 169 | E22: =+GETPIVOTDATA("BAS002",TABLAS!$A$128) -> 68 | F22: =+GETPIVOTDATA("BAS003",TABLAS!$A$128) -> 10 | G22: =+GETPIVOTDATA("BAS004",TABLAS!$A$128) -> 1494 | H22: =+GETPIVOTDATA("BAS005",TABLAS!$A$128) -> 150 | I22: =+GETPIVOTDATA("BAS006",TABLAS!$A$128) -> 3 | J22: =+GETPIVOTDATA("BAS007",TABLAS!$A$128) -> 0 | K22: =+GETPIVOTDATA("BAS008",TABLAS!$A$128) -> 250 | L22: =+GETPIVOTDATA("BAS009",TABLAS!$A$128) -> 144 | M22: =+GETPIVOTDATA("BAS010",TABLAS!$A$128) -> 252 | N22: =+GETPIVOTDATA("BAS011",TABLAS!$A$128) -> 13 | O22: =+GETPIVOTDATA("BAS012",TABLAS!$A$128) -> 95 | P22: =+GETPIVOTDATA("BAS013",TABLAS!$A$128) -> 34 | Q22: =+GETPIVOTDATA("BAS014",TABLAS!$A$128) -> 24 | R22: =+GETPIVOTDATA("BAS015",TABLAS!$A$128) -> 769 | S22: =+GETPIVOTDATA("BAS016",TABLAS!$A$128) -> 237 | T22: =+GETPIVOTDATA("BAS017",TABLAS!$A$128) -> 388 | U22: =+GETPIVOTDATA("BAS018",TABLAS!$A$128) -> 7 | V22: =+GETPIVOTDATA("BAS019",TABLAS!$A$128) -> 39 | W22: =+GETPIVOTDATA("BAS020",TABLAS!$A$128) -> 176 | X22: =+GETPIVOTDATA("BAS021",TABLAS!$A$128) -> 6 | Y22: =+GETPIVOTDATA("BAS022",TABLAS!$A$128) -> 12 | Z22: =+GETPIVOTDATA("BAS023",TABLAS!$A$128) -> 0 | AA22: =+GETPIVOTDATA("BAS024",TABLAS!$A$128) -> 0 | AB22: =+GETPIVOTDATA("BAS025",TABLAS!$A$128) -> 208 | AL22: 1 | AM22: =+AL22+1 -> 2 | AN22: 3 | AO22: 4 | AP22: 5 | AQ22: 6 | AR22: 7 | AS22: 8 | AT22: 9 | AU22: 10 | AV22: 11 | AW22: 12 | AX22: 13 | AY22: 14 | AZ22: 15 | BA22: 16 | BB22: 17 | BC22: 18 | BD22: 19 | BE22: 20 | BF22: 21 | BG22: 22 | BH22: 23 | BI22: 24 | BJ22: 25 | BM22: 001 | BN22: 002 | BO22: 003 | BP22: 004 | BQ22: 005 | BR22: 006 | BS22: 007 | BT22: 008 | BU22: 009 | BV22: 010 | BW22: 011 | BX22: 012 | BY22: 013 | BZ22: 014 | CA22: 015 | CB22: 016 | CC22: 017 | CD22: 018 | CE22: 019 | CF22: 020 | CG22: 021 | CH22: 022 | CI22: 023 | CJ22: 024 | CK22: 025 | CN22: =CONCATENATE($CN$15,BM22,$CP$17) -> =+IMPORTARDATOSDINAMICOS("BAS001",TABLAS!$A$128) | CO22: =CONCATENATE($CN$15,BN22,$CP$17) -> =+IMPORTARDATOSDINAMICOS("BAS002",TABLAS!$A$128) | CP22: =+IMPORTARDATOSDINAMICOS("BAS003",TABLAS!$A$128) | CQ22: =+IMPORTARDATOSDINAMICOS("BAS004",TABLAS!$A$128) | CR22: =+IMPORTARDATOSDINAMICOS("BAS005",TABLAS!$A$128) | CS22: =+IMPORTARDATOSDINAMICOS("BAS006",TABLAS!$A$128) | CT22: =+IMPORTARDATOSDINAMICOS("BAS007",TABLAS!$A$128) | CU22: =+IMPORTARDATOSDINAMICOS("BAS008",TABLAS!$A$128) | CV22: =+IMPORTARDATOSDINAMICOS("BAS009",TABLAS!$A$128) | CW22: =+IMPORTARDATOSDINAMICOS("BAS010",TABLAS!$A$128) | CX22: =+IMPORTARDATOSDINAMICOS("BAS011",TABLAS!$A$128) | CY22: =+IMPORTARDATOSDINAMICOS("BAS012",TABLAS!$A$128) | CZ22: =+IMPORTARDATOSDINAMICOS("BAS013",TABLAS!$A$128) | DA22: =+IMPORTARDATOSDINAMICOS("BAS014",TABLAS!$A$128) | DB22: =+IMPORTARDATOSDINAMICOS("BAS015",TABLAS!$A$128) | DC22: =+IMPORTARDATOSDINAMICOS("BAS016",TABLAS!$A$128) | DD22: =+IMPORTARDATOSDINAMICOS("BAS017",TABLAS!$A$128) | DE22: =+IMPORTARDATOSDINAMICOS("BAS018",TABLAS!$A$128) | DF22: =+IMPORTARDATOSDINAMICOS("BAS019",TABLAS!$A$128) | DG22: =+IMPORTARDATOSDINAMICOS("BAS020",TABLAS!$A$128) | DH22: =+IMPORTARDATOSDINAMICOS("BAS021",TABLAS!$A$128) | DI22: =+IMPORTARDATOSDINAMICOS("BAS022",TABLAS!$A$128) | DJ22: =+IMPORTARDATOSDINAMICOS("BAS023",TABLAS!$A$128) | DK22: =+IMPORTARDATOSDINAMICOS("BAS024",TABLAS!$A$128) | DL22: =+IMPORTARDATOSDINAMICOS("BAS025",TABLAS!$A$128)
B23: 30-59 | C23: =SUM(D23:F23) -> 189 | D23: =+GETPIVOTDATA("BAS001",TABLAS!$A$163) -> 141 | E23: =+GETPIVOTDATA("BAS002",TABLAS!$A$163) -> 38 | F23: =+GETPIVOTDATA("BAS003",TABLAS!$A$163) -> 10 | G23: =+GETPIVOTDATA("BAS004",TABLAS!$A$163) -> 1196 | H23: =+GETPIVOTDATA("BAS005",TABLAS!$A$163) -> 113 | I23: =+GETPIVOTDATA("BAS006",TABLAS!$A$163) -> 2 | J23: =+GETPIVOTDATA("BAS007",TABLAS!$A$163) -> 0 | K23: =+GETPIVOTDATA("BAS008",TABLAS!$A$163) -> 187 | L23: =+GETPIVOTDATA("BAS009",TABLAS!$A$163) -> 112 | M23: =+GETPIVOTDATA("BAS010",TABLAS!$A$163) -> 191 | N23: =+GETPIVOTDATA("BAS011",TABLAS!$A$163) -> 13 | O23: =+GETPIVOTDATA("BAS012",TABLAS!$A$163) -> 49 | P23: =+GETPIVOTDATA("BAS013",TABLAS!$A$163) -> 31 | Q23: =+GETPIVOTDATA("BAS014",TABLAS!$A$163) -> 10 | R23: =+GETPIVOTDATA("BAS015",TABLAS!$A$163) -> 562 | S23: =+GETPIVOTDATA("BAS016",TABLAS!$A$163) -> 152 | T23: =+GETPIVOTDATA("BAS017",TABLAS!$A$163) -> 309 | U23: =+GETPIVOTDATA("BAS018",TABLAS!$A$163) -> 12 | V23: =+GETPIVOTDATA("BAS019",TABLAS!$A$163) -> 45 | W23: =+GETPIVOTDATA("BAS020",TABLAS!$A$163) -> 123 | X23: =+GETPIVOTDATA("BAS021",TABLAS!$A$163) -> 4 | Y23: =+GETPIVOTDATA("BAS022",TABLAS!$A$163) -> 8 | Z23: =+GETPIVOTDATA("BAS023",TABLAS!$A$163) -> 0 | AA23: =+GETPIVOTDATA("BAS024",TABLAS!$A$163) -> 0 | AB23: =+GETPIVOTDATA("BAS025",TABLAS!$A$163) -> 139 | AL23: 1 | AM23: =+AL23+1 -> 2 | AN23: 3 | AO23: 4 | AP23: 5 | AQ23: 6 | AR23: 7 | AS23: 8 | AT23: 9 | AU23: 10 | AV23: 11 | AW23: 12 | AX23: 13 | AY23: 14 | AZ23: 15 | BA23: 16 | BB23: 17 | BC23: 18 | BD23: 19 | BE23: 20 | BF23: 21 | BG23: 22 | BH23: 23 | BI23: 24 | BJ23: 25 | BM23: 001 | BN23: 002 | BO23: 003 | BP23: 004 | BQ23: 005 | BR23: 006 | BS23: 007 | BT23: 008 | BU23: 009 | BV23: 010 | BW23: 011 | BX23: 012 | BY23: 013 | BZ23: 014 | CA23: 015 | CB23: 016 | CC23: 017 | CD23: 018 | CE23: 019 | CF23: 020 | CG23: 021 | CH23: 022 | CI23: 023 | CJ23: 024 | CK23: 025 | CN23: =CONCATENATE($CN$15,BM23,$CP$18) -> =+IMPORTARDATOSDINAMICOS("BAS001",TABLAS!$A$199) | CO23: =CONCATENATE($CN$15,BN23,$CP$18) -> =+IMPORTARDATOSDINAMICOS("BAS002",TABLAS!$A$199) | CP23: =+IMPORTARDATOSDINAMICOS("BAS003",TABLAS!$A$199) | CQ23: =+IMPORTARDATOSDINAMICOS("BAS004",TABLAS!$A$199) | CR23: =+IMPORTARDATOSDINAMICOS("BAS005",TABLAS!$A$199) | CS23: =+IMPORTARDATOSDINAMICOS("BAS006",TABLAS!$A$199) | CT23: =+IMPORTARDATOSDINAMICOS("BAS007",TABLAS!$A$199) | CU23: =+IMPORTARDATOSDINAMICOS("BAS008",TABLAS!$A$199) | CV23: =+IMPORTARDATOSDINAMICOS("BAS009",TABLAS!$A$199) | CW23: =+IMPORTARDATOSDINAMICOS("BAS010",TABLAS!$A$199) | CX23: =+IMPORTARDATOSDINAMICOS("BAS011",TABLAS!$A$199) | CY23: =+IMPORTARDATOSDINAMICOS("BAS012",TABLAS!$A$199) | CZ23: =+IMPORTARDATOSDINAMICOS("BAS013",TABLAS!$A$199) | DA23: =+IMPORTARDATOSDINAMICOS("BAS014",TABLAS!$A$199) | DB23: =+IMPORTARDATOSDINAMICOS("BAS015",TABLAS!$A$199) | DC23: =+IMPORTARDATOSDINAMICOS("BAS016",TABLAS!$A$199) | DD23: =+IMPORTARDATOSDINAMICOS("BAS017",TABLAS!$A$199) | DE23: =+IMPORTARDATOSDINAMICOS("BAS018",TABLAS!$A$199) | DF23: =+IMPORTARDATOSDINAMICOS("BAS019",TABLAS!$A$199) | DG23: =+IMPORTARDATOSDINAMICOS("BAS020",TABLAS!$A$199) | DH23: =+IMPORTARDATOSDINAMICOS("BAS021",TABLAS!$A$199) | DI23: =+IMPORTARDATOSDINAMICOS("BAS022",TABLAS!$A$199) | DJ23: =+IMPORTARDATOSDINAMICOS("BAS023",TABLAS!$A$199) | DK23: =+IMPORTARDATOSDINAMICOS("BAS024",TABLAS!$A$199) | DL23: =+IMPORTARDATOSDINAMICOS("BAS025",TABLAS!$A$199)
B24: TOTAL | C24: =SUM(C20:C23) -> 472 | D24: 325 | E24: 121 | F24: 26 | G24: 2887 | H24: 284 | I24: 5 | J24: 0 | K24: 474 | L24: 278 | M24: 481 | N24: 34 | O24: 155 | P24: 70 | Q24: 39 | R24: 1454 | S24: 439 | T24: 758 | U24: 23 | V24: 90 | W24: 325 | X24: 10 | Y24: 20 | Z24: 0 | AA24: 0 | AB24: =SUM(AB20:AB23) -> 378
C25: =IF(C24=K24,1,-1) -> -1 | D25: =IF(D24=I60,1,-1) -> -1 | H25: =+GETPIVOTDATA(" f23317201",TABLAS!$A$252) -> 1964 | K25: =IF(K24=C24,1,-1) -> -1 | L25: =+GETPIVOTDATA(" f23317204",TABLAS!$A$252) -> 1964 | O25: =+GETPIVOTDATA(" f23317205",TABLAS!$A$252) -> 1105 | P25: =+GETPIVOTDATA(" f23317205",TABLAS!$A$252) -> 1105 | Q25: =+GETPIVOTDATA(" f23317205",TABLAS!$A$252) -> 1105 | R25: =IF(R24=C24,1,-1) -> -1 | V25: =IF(V24=G60,1,-1) -> -1 | W25: =+GETPIVOTDATA(" f23317211",TABLAS!$A$252) -> 1211 | X25: =+GETPIVOTDATA(" f23317211",TABLAS!$A$252) -> 1211 | Y25: =+GETPIVOTDATA(" f23317211",TABLAS!$A$252) -> 1211 | Z25: =+GETPIVOTDATA(" f23317211",TABLAS!$A$252) -> 1211 | AA25: =+GETPIVOTDATA(" f23317211",TABLAS!$A$252) -> 1211
H26: =+H24*100/H25 -> 14.46028513 | L26: =+L24*100/L25 -> 14.15478615 | O26: =+O24*100/O25 -> 14.02714932 | P26: 6.334841629 | Q26: 3.529411765 | W26: =+W24*100/W25 -> 26.83732453 | X26: =+X24*100/X25 -> 0.8257638315 | Y26: =+Y24*100/Y25 -> 1.651527663 | Z26: =+Z24*100/Z25 -> 0 | AA26: =+AA24*100/AA25 -> 0
C28: 51 | D28: =+C28+1 -> 52 | E28: =+D28+1 -> 53 | F28: 54 | G28: 55 | H28: 56 | M28: =+H28+7 -> 63 | N28: =+M28+1 -> 64 | O28: =+N28+1 -> 65 | P28: 66 | Q28: 67 | R28: 68 | S28: 69 | T28: 70 | U28: 71 | V28: 72 | W28: 73
B29: Grupo Etáreo | C29: Evaluación de Bienestar Fetal | E29: Psicoprofilaxis | G29: Estimulación Prenatal | L29: Grupo Etáreo | M29: GESTANTE | T29: Plan de Parto 3317203
E30: Atendida | F30: Preparada | G30: 1º Sesión | H30: 6º Sesión | M30: ANEMIA 3329418 | Q30: Manejo Terapeutico ® | S30: Dosaje de Hemoglobina
C31: 1º Monitoreo 3317209 | D31: 2º Monitoreo | M31: Leve | N31: Moderada | O31: Severa | P31: Recuperada | Q31: 1º entrega | R31: 6ta. Entrega | S31: 1º Dosaje | T31: 1º Entrevista | U31: 2º Entrevista | V31: 3º Entrevista | W31: Efectivo | CO31: 51 | CP31: =+CO31+1 -> 52 | CQ31: =+CP31+1 -> 53 | CR31: 54 | CS31: 55 | CT31: =+CS31+1 -> 56 | CW31: 63 | CX31: =+CW31+1 -> 64 | CY31: =+CX31+1 -> 65 | CZ31: 66 | DA31: 67 | DB31: 68 | DC31: 69 | DD31: 70 | DE31: 71 | DF31: 72 | DG31: 73
B32: < 12 a. | C32: =+GETPIVOTDATA("BAS051",TABLAS!$A$57) -> 0 | D32: =+GETPIVOTDATA("BAS052",TABLAS!$A$57) -> 0 | E32: =+GETPIVOTDATA("BAS053",TABLAS!$A$57) -> 0 | F32: =+GETPIVOTDATA("BAS054",TABLAS!$A$57) -> 0 | G32: =+GETPIVOTDATA("BAS055",TABLAS!$A$57) -> 0 | H32: =+GETPIVOTDATA("BAS056",TABLAS!$A$57) -> 0 | L32: < 12 a. | M32: =+GETPIVOTDATA("BAS063",TABLAS!$A$57) -> 0 | N32: =+GETPIVOTDATA("BAS064",TABLAS!$A$57) -> 0 | O32: =+GETPIVOTDATA("BAS065",TABLAS!$A$57) -> 0 | P32: =+GETPIVOTDATA("BAS066",TABLAS!$A$57) -> 0 | Q32: =+GETPIVOTDATA("BAS067",TABLAS!$A$57) -> 0 | R32: =+GETPIVOTDATA("BAS068",TABLAS!$A$57) -> 0 | S32: =+GETPIVOTDATA("BAS069",TABLAS!$A$57) -> 0 | T32: =+GETPIVOTDATA("BAS070",TABLAS!$A$57) -> 0 | U32: =+GETPIVOTDATA("BAS071",TABLAS!$A$57) -> 0 | V32: =+GETPIVOTDATA("BAS072",TABLAS!$A$57) -> 0 | W32: =+GETPIVOTDATA("BAS073",TABLAS!$A$57) -> 0 | AM32: =+BJ20+26 -> 51 | AN32: =+AM32+1 -> 52 | AO32: =+AN32+1 -> 53 | AP32: 54 | AQ32: 55 | AR32: 56 | AU32: =+AR32+7 -> 63 | AV32: =+AU32+1 -> 64 | AW32: =+AV32+1 -> 65 | AX32: 66 | AY32: 67 | AZ32: 68 | BA32: 69 | BB32: 70 | BC32: =+BB32+1 -> 71 | BD32: 72 | BE32: 73 | BN32: =IF(AM32<10,CONCATENATE("00",AM32),IF(AND(AM32<100,AM32>9),CONCATENATE("0",AM32),AM32)) -> 051 | BO32: =IF(AN32<10,CONCATENATE("00",AN32),IF(AND(AN32<100,AN32>9),CONCATENATE("0",AN32),AN32)) -> 052 | BP32: =IF(AO32<10,CONCATENATE("00",AO32),IF(AND(AO32<100,AO32>9),CONCATENATE("0",AO32),AO32)) -> 053 | BQ32: =IF(AP32<10,CONCATENATE("00",AP32),IF(AND(AP32<100,AP32>9),CONCATENATE("0",AP32),AP32)) -> 054 | BR32: =IF(AQ32<10,CONCATENATE("00",AQ32),IF(AND(AQ32<100,AQ32>9),CONCATENATE("0",AQ32),AQ32)) -> 055 | BS32: =IF(AR32<10,CONCATENATE("00",AR32),IF(AND(AR32<100,AR32>9),CONCATENATE("0",AR32),AR32)) -> 056 | BV32: =IF(AU32<10,CONCATENATE("00",AU32),IF(AND(AU32<100,AU32>9),CONCATENATE("0",AU32),AU32)) -> 063 | BW32: =IF(AV32<10,CONCATENATE("00",AV32),IF(AND(AV32<100,AV32>9),CONCATENATE("0",AV32),AV32)) -> 064 | BX32: =IF(AW32<10,CONCATENATE("00",AW32),IF(AND(AW32<100,AW32>9),CONCATENATE("0",AW32),AW32)) -> 065 | BY32: =IF(AX32<10,CONCATENATE("00",AX32),IF(AND(AX32<100,AX32>9),CONCATENATE("0",AX32),AX32)) -> 066 | BZ32: =IF(AY32<10,CONCATENATE("00",AY32),IF(AND(AY32<100,AY32>9),CONCATENATE("0",AY32),AY32)) -> 067 | CA32: =IF(AZ32<10,CONCATENATE("00",AZ32),IF(AND(AZ32<100,AZ32>9),CONCATENATE("0",AZ32),AZ32)) -> 068 | CB32: =IF(BA32<10,CONCATENATE("00",BA32),IF(AND(BA32<100,BA32>9),CONCATENATE("0",BA32),BA32)) -> 069 | CC32: =IF(BB32<10,CONCATENATE("00",BB32),IF(AND(BB32<100,BB32>9),CONCATENATE("0",BB32),BB32)) -> 070 | CD32: =IF(BC32<10,CONCATENATE("00",BC32),IF(AND(BC32<100,BC32>9),CONCATENATE("0",BC32),BC32)) -> 071 | CE32: =IF(BD32<10,CONCATENATE("00",BD32),IF(AND(BD32<100,BD32>9),CONCATENATE("0",BD32),BD32)) -> 072 | CF32: =IF(BE32<10,CONCATENATE("00",BE32),IF(AND(BE32<100,BE32>9),CONCATENATE("0",BE32),BE32)) -> 073 | CO32: =CONCATENATE($CN$15,BN32,$CP$15) -> =+IMPORTARDATOSDINAMICOS("BAS051",TABLAS!$A$199) | CP32: =CONCATENATE($CN$15,BO32,$CP$15) -> =+IMPORTARDATOSDINAMICOS("BAS052",TABLAS!$A$199) | CQ32: =+IMPORTARDATOSDINAMICOS("BAS053",TABLAS!$A$199) | CR32: =+IMPORTARDATOSDINAMICOS("BAS054",TABLAS!$A$199) | CS32: =+IMPORTARDATOSDINAMICOS("BAS055",TABLAS!$A$199) | CT32: =+IMPORTARDATOSDINAMICOS("BAS056",TABLAS!$A$199) | CW32: =+IMPORTARDATOSDINAMICOS("BAS063",TABLAS!$A$199) | CX32: =+IMPORTARDATOSDINAMICOS("BAS064",TABLAS!$A$199) | CY32: =+IMPORTARDATOSDINAMICOS("BAS065",TABLAS!$A$199) | CZ32: =+IMPORTARDATOSDINAMICOS("BAS066",TABLAS!$A$199) | DA32: =+IMPORTARDATOSDINAMICOS("BAS067",TABLAS!$A$199) | DB32: =+IMPORTARDATOSDINAMICOS("BAS068",TABLAS!$A$199) | DC32: =+IMPORTARDATOSDINAMICOS("BAS069",TABLAS!$A$199) | DD32: =+IMPORTARDATOSDINAMICOS("BAS070",TABLAS!$A$199) | DE32: =+IMPORTARDATOSDINAMICOS("BAS071",TABLAS!$A$199) | DF32: =+IMPORTARDATOSDINAMICOS("BAS072",TABLAS!$A$199) | DG32: =+IMPORTARDATOSDINAMICOS("BAS073",TABLAS!$A$199)
B33: 12-17 | C33: =+GETPIVOTDATA("BAS051",TABLAS!$A$93) -> 9 | D33: =+GETPIVOTDATA("BAS052",TABLAS!$A$93) -> 10 | E33: =+GETPIVOTDATA("BAS053",TABLAS!$A$93) -> 0 | F33: =+GETPIVOTDATA("BAS054",TABLAS!$A$93) -> 0 | G33: =+GETPIVOTDATA("BAS055",TABLAS!$A$93) -> 0 | H33: =+GETPIVOTDATA("BAS056",TABLAS!$A$93) -> 0 | L33: 12-17 | M33: =+GETPIVOTDATA("BAS063",TABLAS!$A$93) -> 10 | N33: =+GETPIVOTDATA("BAS064",TABLAS!$A$93) -> 2 | O33: =+GETPIVOTDATA("BAS065",TABLAS!$A$93) -> 0 | P33: =+GETPIVOTDATA("BAS066",TABLAS!$A$93) -> 3 | Q33: =+GETPIVOTDATA("BAS067",TABLAS!$A$93) -> 38 | R33: =+GETPIVOTDATA("BAS068",TABLAS!$A$93) -> 7 | S33: =+GETPIVOTDATA("BAS069",TABLAS!$A$93) -> 38 | T33: =+GETPIVOTDATA("BAS070",TABLAS!$A$93) -> 40 | U33: =+GETPIVOTDATA("BAS071",TABLAS!$A$93) -> 30 | V33: =+GETPIVOTDATA("BAS072",TABLAS!$A$93) -> 25 | W33: =+GETPIVOTDATA("BAS073",TABLAS!$A$93) -> 16 | AM33: =+BJ21+26 -> 51 | AN33: =+AM33+1 -> 52 | AO33: 53 | AP33: 54 | AQ33: 55 | AR33: 56 | AU33: =+AR33+7 -> 63 | AV33: =+AU33+1 -> 64 | AW33: 65 | AX33: 66 | AY33: 67 | AZ33: 68 | BA33: 69 | BB33: 70 | BC33: =+BB33+1 -> 71 | BD33: 72 | BE33: 73 | BN33: 051 | BO33: 052 | BP33: 053 | BQ33: 054 | BR33: 055 | BS33: 056 | BV33: 063 | BW33: 064 | BX33: 065 | BY33: 066 | BZ33: 067 | CA33: 068 | CB33: 069 | CC33: 070 | CD33: 071 | CE33: 072 | CF33: 073 | CO33: =CONCATENATE($CN$15,BN33,$CP$16) -> =+IMPORTARDATOSDINAMICOS("BAS051",TABLAS!$A$93) | CP33: =CONCATENATE($CN$15,BO33,$CP$16) -> =+IMPORTARDATOSDINAMICOS("BAS052",TABLAS!$A$93) | CQ33: =+IMPORTARDATOSDINAMICOS("BAS053",TABLAS!$A$93) | CR33: =+IMPORTARDATOSDINAMICOS("BAS054",TABLAS!$A$93) | CS33: =+IMPORTARDATOSDINAMICOS("BAS055",TABLAS!$A$93) | CT33: =+IMPORTARDATOSDINAMICOS("BAS056",TABLAS!$A$93) | CW33: =+IMPORTARDATOSDINAMICOS("BAS063",TABLAS!$A$93) | CX33: =+IMPORTARDATOSDINAMICOS("BAS064",TABLAS!$A$93) | CY33: =+IMPORTARDATOSDINAMICOS("BAS065",TABLAS!$A$93) | CZ33: =+IMPORTARDATOSDINAMICOS("BAS066",TABLAS!$A$93) | DA33: =+IMPORTARDATOSDINAMICOS("BAS067",TABLAS!$A$93) | DB33: =+IMPORTARDATOSDINAMICOS("BAS068",TABLAS!$A$93) | DC33: =+IMPORTARDATOSDINAMICOS("BAS069",TABLAS!$A$93) | DD33: =+IMPORTARDATOSDINAMICOS("BAS070",TABLAS!$A$93) | DE33: =+IMPORTARDATOSDINAMICOS("BAS071",TABLAS!$A$93) | DF33: =+IMPORTARDATOSDINAMICOS("BAS072",TABLAS!$A$93) | DG33: =+IMPORTARDATOSDINAMICOS("BAS073",TABLAS!$A$93)
B34: 18-29 | C34: =+GETPIVOTDATA("BAS051",TABLAS!$A$128) -> 86 | D34: =+GETPIVOTDATA("BAS052",TABLAS!$A$128) -> 98 | E34: =+GETPIVOTDATA("BAS053",TABLAS!$A$128) -> 17 | F34: =+GETPIVOTDATA("BAS054",TABLAS!$A$128) -> 12 | G34: =+GETPIVOTDATA("BAS055",TABLAS!$A$128) -> 2 | H34: =+GETPIVOTDATA("BAS056",TABLAS!$A$128) -> 0 | L34: 18-29 | M34: =+GETPIVOTDATA("BAS063",TABLAS!$A$128) -> 42 | N34: =+GETPIVOTDATA("BAS064",TABLAS!$A$128) -> 14 | O34: =+GETPIVOTDATA("BAS065",TABLAS!$A$128) -> 1 | P34: =+GETPIVOTDATA("BAS066",TABLAS!$A$128) -> 34 | Q34: =+GETPIVOTDATA("BAS067",TABLAS!$A$128) -> 222 | R34: =+GETPIVOTDATA("BAS068",TABLAS!$A$128) -> 50 | S34: =+GETPIVOTDATA("BAS069",TABLAS!$A$128) -> 245 | T34: =+GETPIVOTDATA("BAS070",TABLAS!$A$128) -> 243 | U34: =+GETPIVOTDATA("BAS071",TABLAS!$A$128) -> 206 | V34: =+GETPIVOTDATA("BAS072",TABLAS!$A$128) -> 155 | W34: =+GETPIVOTDATA("BAS073",TABLAS!$A$128) -> 90 | AM34: =+BJ22+26 -> 51 | AN34: =+AM34+1 -> 52 | AO34: 53 | AP34: 54 | AQ34: 55 | AR34: 56 | AU34: =+AR34+7 -> 63 | AV34: =+AU34+1 -> 64 | AW34: 65 | AX34: 66 | AY34: 67 | AZ34: 68 | BA34: 69 | BB34: 70 | BC34: =+BB34+1 -> 71 | BD34: 72 | BE34: 73 | BN34: 051 | BO34: 052 | BP34: 053 | BQ34: 054 | BR34: 055 | BS34: 056 | BV34: 063 | BW34: 064 | BX34: 065 | BY34: 066 | BZ34: 067 | CA34: 068 | CB34: 069 | CC34: 070 | CD34: 071 | CE34: 072 | CF34: 073 | CO34: =CONCATENATE($CN$15,BN34,$CP$17) -> =+IMPORTARDATOSDINAMICOS("BAS051",TABLAS!$A$128) | CP34: =CONCATENATE($CN$15,BO34,$CP$17) -> =+IMPORTARDATOSDINAMICOS("BAS052",TABLAS!$A$128) | CQ34: =+IMPORTARDATOSDINAMICOS("BAS053",TABLAS!$A$128) | CR34: =+IMPORTARDATOSDINAMICOS("BAS054",TABLAS!$A$128) | CS34: =+IMPORTARDATOSDINAMICOS("BAS055",TABLAS!$A$128) | CT34: =+IMPORTARDATOSDINAMICOS("BAS056",TABLAS!$A$128) | CW34: =+IMPORTARDATOSDINAMICOS("BAS063",TABLAS!$A$128) | CX34: =+IMPORTARDATOSDINAMICOS("BAS064",TABLAS!$A$128) | CY34: =+IMPORTARDATOSDINAMICOS("BAS065",TABLAS!$A$128) | CZ34: =+IMPORTARDATOSDINAMICOS("BAS066",TABLAS!$A$128) | DA34: =+IMPORTARDATOSDINAMICOS("BAS067",TABLAS!$A$128) | DB34: =+IMPORTARDATOSDINAMICOS("BAS068",TABLAS!$A$128) | DC34: =+IMPORTARDATOSDINAMICOS("BAS069",TABLAS!$A$128) | DD34: =+IMPORTARDATOSDINAMICOS("BAS070",TABLAS!$A$128) | DE34: =+IMPORTARDATOSDINAMICOS("BAS071",TABLAS!$A$128) | DF34: =+IMPORTARDATOSDINAMICOS("BAS072",TABLAS!$A$128) | DG34: =+IMPORTARDATOSDINAMICOS("BAS073",TABLAS!$A$128)
B35: 30-59 | C35: =+GETPIVOTDATA("BAS051",TABLAS!$A$163) -> 84 | D35: =+GETPIVOTDATA("BAS052",TABLAS!$A$163) -> 77 | E35: =+GETPIVOTDATA("BAS053",TABLAS!$A$163) -> 11 | F35: =+GETPIVOTDATA("BAS054",TABLAS!$A$163) -> 10 | G35: =+GETPIVOTDATA("BAS055",TABLAS!$A$163) -> 1 | H35: =+GETPIVOTDATA("BAS056",TABLAS!$A$163) -> 0 | L35: 30-59 | M35: =+GETPIVOTDATA("BAS063",TABLAS!$A$163) -> 23 | N35: =+GETPIVOTDATA("BAS064",TABLAS!$A$163) -> 8 | O35: =+GETPIVOTDATA("BAS065",TABLAS!$A$163) -> 0 | P35: =+GETPIVOTDATA("BAS066",TABLAS!$A$163) -> 24 | Q35: =+GETPIVOTDATA("BAS067",TABLAS!$A$163) -> 171 | R35: =+GETPIVOTDATA("BAS068",TABLAS!$A$163) -> 57 | S35: =+GETPIVOTDATA("BAS069",TABLAS!$A$163) -> 182 | T35: =+GETPIVOTDATA("BAS070",TABLAS!$A$163) -> 186 | U35: =+GETPIVOTDATA("BAS071",TABLAS!$A$163) -> 166 | V35: =+GETPIVOTDATA("BAS072",TABLAS!$A$163) -> 119 | W35: =+GETPIVOTDATA("BAS073",TABLAS!$A$163) -> 101 | AM35: =+BJ23+26 -> 51 | AN35: =+AM35+1 -> 52 | AO35: 53 | AP35: 54 | AQ35: 55 | AR35: 56 | AU35: =+AR35+7 -> 63 | AV35: =+AU35+1 -> 64 | AW35: 65 | AX35: 66 | AY35: 67 | AZ35: 68 | BA35: 69 | BB35: 70 | BC35: =+BB35+1 -> 71 | BD35: 72 | BE35: 73 | BN35: 051 | BO35: 052 | BP35: 053 | BQ35: 054 | BR35: 055 | BS35: 056 | BV35: 063 | BW35: 064 | BX35: 065 | BY35: 066 | BZ35: 067 | CA35: 068 | CB35: 069 | CC35: 070 | CD35: 071 | CE35: 072 | CF35: 073 | CO35: =CONCATENATE($CN$15,BN35,$CP$18) -> =+IMPORTARDATOSDINAMICOS("BAS051",TABLAS!$A$199) | CP35: =CONCATENATE($CN$15,BO35,$CP$18) -> =+IMPORTARDATOSDINAMICOS("BAS052",TABLAS!$A$199) | CQ35: =+IMPORTARDATOSDINAMICOS("BAS053",TABLAS!$A$199) | CR35: =+IMPORTARDATOSDINAMICOS("BAS054",TABLAS!$A$199) | CS35: =+IMPORTARDATOSDINAMICOS("BAS055",TABLAS!$A$199) | CT35: =+IMPORTARDATOSDINAMICOS("BAS056",TABLAS!$A$199) | CW35: =+IMPORTARDATOSDINAMICOS("BAS063",TABLAS!$A$199) | CX35: =+IMPORTARDATOSDINAMICOS("BAS064",TABLAS!$A$199) | CY35: =+IMPORTARDATOSDINAMICOS("BAS065",TABLAS!$A$199) | CZ35: =+IMPORTARDATOSDINAMICOS("BAS066",TABLAS!$A$199) | DA35: =+IMPORTARDATOSDINAMICOS("BAS067",TABLAS!$A$199) | DB35: =+IMPORTARDATOSDINAMICOS("BAS068",TABLAS!$A$199) | DC35: =+IMPORTARDATOSDINAMICOS("BAS069",TABLAS!$A$199) | DD35: =+IMPORTARDATOSDINAMICOS("BAS070",TABLAS!$A$199) | DE35: =+IMPORTARDATOSDINAMICOS("BAS071",TABLAS!$A$199) | DF35: =+IMPORTARDATOSDINAMICOS("BAS072",TABLAS!$A$199) | DG35: =+IMPORTARDATOSDINAMICOS("BAS073",TABLAS!$A$199)
B36: TOTAL | C36: =SUM(C32:C35) -> 179 | D36: 185 | E36: 28 | F36: 22 | G36: 3 | H36: 0 | L36: TOTAL | M36: =SUM(M32:M35) -> 75 | N36: 24 | O36: 1 | P36: 61 | Q36: 431 | R36: 114 | S36: =SUM(S32:S35) -> 465 | T36: =SUM(T32:T35) -> 469 | U36: =SUM(U32:U35) -> 402 | V36: =SUM(V32:V35) -> 299 | W36: =SUM(W32:W35) -> 207
C37: =+GETPIVOTDATA(" f23317209",TABLAS!$A$252) -> 652 | M37: =+GETPIVOTDATA(" f23329418",TABLAS!$A$252) -> 490 | N37: =+GETPIVOTDATA(" f23329418",TABLAS!$A$252) -> 490 | O37: =+GETPIVOTDATA(" f23329418",TABLAS!$A$252) -> 490 | T37: =IF(T36=C24,1,-1) -> -1 | U37: =+GETPIVOTDATA(" f23317203",TABLAS!$A$252) -> 1713 | V37: =+GETPIVOTDATA(" f23317203",TABLAS!$A$252) -> 1713
C38: =+C36*100/C37 -> 27.45398773 | M38: =+M36*100/M37 -> 15.30612245 | N38: =+N36*100/N37 -> 4.897959184 | O38: 0.2040816327 | U38: =+U36*100/U37 -> 23.4676007 | V38: 17.45475773
B40: IV. ATENCION DE LA GESTANTE CON COMPLICACIONES
B41: COMPLICACIONES | G41: TOTAL | H41: < 12 a. | I41: 12-17 | J41: 18-29 | K41: 30-59 | Q41: COMPLICACIONES | U41: TOTAL | V41: < 12 a. | W41: 12-17 | X41: 18-29 | Y41: 30-59 | CU41: 1 | CV41: 2 | CW41: 3 | CX41: 4 | DE41: 1 | DF41: 2 | DG41: 3 | DH41: 4
A42: =+M80+4 -> 171 | B42: Amenaza de parto prematuro 3329404 | G42: =SUM(J42:K42) -> 1 | H42: =+GETPIVOTDATA("BAS171",TABLAS!$A$57) -> 0 | I42: =+GETPIVOTDATA("BAS171",TABLAS!$A$93) -> 3 | J42: =+GETPIVOTDATA("BAS171",TABLAS!$A$128) -> 1 | K42: =+GETPIVOTDATA("BAS171",TABLAS!$A$163) -> 0 | L42: =+GETPIVOTDATA(" f23329404",TABLAS!$A$252) -> 27 | M42: =+G42*100/L42 -> 3.703703704 | P42: =+A49+1 -> 179 | Q42: Trastornos metabólicos del embarazo 3329416 | U42: =SUM(AJ41:AM41) -> 0 | V42: =+GETPIVOTDATA("BAS179",TABLAS!$A$57) -> 0 | W42: =+GETPIVOTDATA("BAS179",TABLAS!$A$93) -> 0 | X42: =+GETPIVOTDATA("BAS179",TABLAS!$A$128) -> 1 | Y42: =+GETPIVOTDATA("BAS179",TABLAS!$A$163) -> 6 | Z42: =+GETPIVOTDATA(" f23329416",TABLAS!$A$252) -> 8 | AA42: =+U42*100/Z42 -> 0 | AS42: =+AM96+4 -> 7 | AT42: =+AM96+4 -> 7 | AU42: =+AM96+4 -> 7 | AV42: =+AM96+4 -> 7 | BC42: =+AS49+1 -> 15 | BD42: =+AT49+1 -> 15 | BE42: 15 | BF42: 15 | BT42: =IF(AS42<10,CONCATENATE("00",AS42),IF(AND(AS42<100,AS42>9),CONCATENATE("0",AS42),AS42)) -> 007 | BU42: =IF(AT42<10,CONCATENATE("00",AT42),IF(AND(AT42<100,AT42>9),CONCATENATE("0",AT42),AT42)) -> 007 | BV42: =IF(AU42<10,CONCATENATE("00",AU42),IF(AND(AU42<100,AU42>9),CONCATENATE("0",AU42),AU42)) -> 007 | BW42: =IF(AV42<10,CONCATENATE("00",AV42),IF(AND(AV42<100,AV42>9),CONCATENATE("0",AV42),AV42)) -> 007 | CD42: =IF(BC42<10,CONCATENATE("00",BC42),IF(AND(BC42<100,BC42>9),CONCATENATE("0",BC42),BC42)) -> 015 | CE42: =IF(BD42<10,CONCATENATE("00",BD42),IF(AND(BD42<100,BD42>9),CONCATENATE("0",BD42),BD42)) -> 015 | CF42: =IF(BE42<10,CONCATENATE("00",BE42),IF(AND(BE42<100,BE42>9),CONCATENATE("0",BE42),BE42)) -> 015 | CG42: =IF(BF42<10,CONCATENATE("00",BF42),IF(AND(BF42<100,BF42>9),CONCATENATE("0",BF42),BF42)) -> 015 | CU42: =CONCATENATE($CN$15,BT42,$CP$15) -> =+IMPORTARDATOSDINAMICOS("BAS007",TABLAS!$A$199) | CV42: =CONCATENATE($CN$15,BU42,$CP$16) -> =+IMPORTARDATOSDINAMICOS("BAS007",TABLAS!$A$93) | CW42: =CONCATENATE($CN$15,BV42,$CP$17) -> =+IMPORTARDATOSDINAMICOS("BAS007",TABLAS!$A$128) | CX42: =CONCATENATE($CN$15,BW42,$CP$18) -> =+IMPORTARDATOSDINAMICOS("BAS007",TABLAS!$A$199) | DE42: =CONCATENATE($CN$15,CD42,$CP$15) -> =+IMPORTARDATOSDINAMICOS("BAS015",TABLAS!$A$199) | DF42: =CONCATENATE($CN$15,CE42,$CP$16) -> =+IMPORTARDATOSDINAMICOS("BAS015",TABLAS!$A$93) | DG42: =CONCATENATE($CN$15,CF42,$CP$17) -> =+IMPORTARDATOSDINAMICOS("BAS015",TABLAS!$A$128) | DH42: =CONCATENATE($CN$15,CG42,$CP$18) -> =+IMPORTARDATOSDINAMICOS("BAS015",TABLAS!$A$199)
A43: =+A42+1 -> 172 | B43: Hemorragias de la 1º mitad del embarazo sin laparotomía 3329406 | G43: 77 | H43: =+GETPIVOTDATA("BAS172",TABLAS!$A$57) -> 0 | I43: =+GETPIVOTDATA("BAS172",TABLAS!$A$93) -> 3 | J43: =+GETPIVOTDATA("BAS172",TABLAS!$A$128) -> 30 | K43: =+GETPIVOTDATA("BAS172",TABLAS!$A$163) -> 47 | L43: =+GETPIVOTDATA(" f23329406",TABLAS!$A$252) -> 197 | M43: =+G43*100/L43 -> 39.08629442 | P43: =+P42+1 -> 180 | Q43: Otras enfermedades del embarazo 3329417 | U43: 0 | V43: =+GETPIVOTDATA("BAS180",TABLAS!$A$57) -> 0 | W43: =+GETPIVOTDATA("BAS180",TABLAS!$A$93) -> 0 | X43: =+GETPIVOTDATA("BAS180",TABLAS!$A$128) -> 4 | Y43: =+GETPIVOTDATA("BAS180",TABLAS!$A$163) -> 5 | Z43: =+GETPIVOTDATA(" f23329417",TABLAS!$A$252) -> 140 | AA43: =+U43*100/Z43 -> 0 | AS43: =+AS42+1 -> 8 | AT43: =+AT42+1 -> 8 | AU43: =+AU42+1 -> 8 | AV43: =+AV42+1 -> 8 | BC43: =+BC42+1 -> 16 | BD43: =+BD42+1 -> 16 | BE43: 16 | BF43: 16 | BT43: =IF(AS43<10,CONCATENATE("00",AS43),IF(AND(AS43<100,AS43>9),CONCATENATE("0",AS43),AS43)) -> 008 | BU43: =IF(AT43<10,CONCATENATE("00",AT43),IF(AND(AT43<100,AT43>9),CONCATENATE("0",AT43),AT43)) -> 008 | BV43: =IF(AU43<10,CONCATENATE("00",AU43),IF(AND(AU43<100,AU43>9),CONCATENATE("0",AU43),AU43)) -> 008 | BW43: =IF(AV43<10,CONCATENATE("00",AV43),IF(AND(AV43<100,AV43>9),CONCATENATE("0",AV43),AV43)) -> 008 | CD43: 016 | CE43: 016 | CF43: 016 | CG43: 016 | CU43: =CONCATENATE($CN$15,BT43,$CP$15) -> =+IMPORTARDATOSDINAMICOS("BAS008",TABLAS!$A$199) | CV43: =CONCATENATE($CN$15,BU43,$CP$16) -> =+IMPORTARDATOSDINAMICOS("BAS008",TABLAS!$A$93) | CW43: =CONCATENATE($CN$15,BV43,$CP$17) -> =+IMPORTARDATOSDINAMICOS("BAS008",TABLAS!$A$128) | CX43: =CONCATENATE($CN$15,BW43,$CP$18) -> =+IMPORTARDATOSDINAMICOS("BAS008",TABLAS!$A$199) | DE43: =CONCATENATE($CN$15,CD43,$CP$15) -> =+IMPORTARDATOSDINAMICOS("BAS016",TABLAS!$A$199) | DF43: =CONCATENATE($CN$15,CE43,$CP$16) -> =+IMPORTARDATOSDINAMICOS("BAS016",TABLAS!$A$93) | DG43: =CONCATENATE($CN$15,CF43,$CP$17) -> =+IMPORTARDATOSDINAMICOS("BAS016",TABLAS!$A$128) | DH43: =CONCATENATE($CN$15,CG43,$CP$18) -> =+IMPORTARDATOSDINAMICOS("BAS016",TABLAS!$A$199)
A44: =+A43+1 -> 173 | B44: Hemorragia de la 2º mitad del embarazo 3329407 | G44: 2 | H44: =+GETPIVOTDATA("BAS173",TABLAS!$A$57) -> 0 | I44: =+GETPIVOTDATA("BAS173",TABLAS!$A$93) -> 0 | J44: =+GETPIVOTDATA("BAS173",TABLAS!$A$128) -> 1 | K44: =+GETPIVOTDATA("BAS173",TABLAS!$A$163) -> 1 | L44: =+GETPIVOTDATA(" f23329407",TABLAS!$A$252) -> 40 | M44: 5 | P44: =+P43+1 -> 181 | Q44: Sepsis | U44: 0 | V44: =+GETPIVOTDATA("BAS181",TABLAS!$A$57) -> 0 | W44: =+GETPIVOTDATA("BAS181",TABLAS!$A$93) -> 0 | X44: =+GETPIVOTDATA("BAS181",TABLAS!$A$128) -> 0 | Y44: =+GETPIVOTDATA("BAS181",TABLAS!$A$163) -> 0 | AS44: =+AS43+1 -> 9 | AT44: 9 | AU44: 9 | AV44: 9 | BC44: =+BC43+1 -> 17 | BD44: 17 | BE44: 17 | BF44: 17 | BT44: 009 | BU44: 009 | BV44: 009 | BW44: 009 | CD44: 017 | CE44: 017 | CF44: 017 | CG44: 017 | CU44: =+IMPORTARDATOSDINAMICOS("BAS009",TABLAS!$A$199) | CV44: =+IMPORTARDATOSDINAMICOS("BAS009",TABLAS!$A$93) | CW44: =+IMPORTARDATOSDINAMICOS("BAS009",TABLAS!$A$128) | CX44: =+IMPORTARDATOSDINAMICOS("BAS009",TABLAS!$A$199) | DE44: =+IMPORTARDATOSDINAMICOS("BAS017",TABLAS!$A$199) | DF44: =+IMPORTARDATOSDINAMICOS("BAS017",TABLAS!$A$93) | DG44: =+IMPORTARDATOSDINAMICOS("BAS017",TABLAS!$A$128) | DH44: =+IMPORTARDATOSDINAMICOS("BAS017",TABLAS!$A$199)
A45: 174 | B45: Hiperémesis gravídica 3329408 | G45: 10 | H45: =+GETPIVOTDATA("BAS174",TABLAS!$A$57) -> 0 | I45: =+GETPIVOTDATA("BAS174",TABLAS!$A$93) -> 0 | J45: =+GETPIVOTDATA("BAS174",TABLAS!$A$128) -> 7 | K45: =+GETPIVOTDATA("BAS174",TABLAS!$A$163) -> 3 | L45: =+GETPIVOTDATA(" f23329408",TABLAS!$A$252) -> 57 | M45: 17.54385965 | P45: 182 | Q45: TBC | U45: 0 | V45: =+GETPIVOTDATA("BAS182",TABLAS!$A$57) -> 0 | W45: =+GETPIVOTDATA("BAS182",TABLAS!$A$93) -> 0 | X45: =+GETPIVOTDATA("BAS182",TABLAS!$A$128) -> 0 | Y45: =+GETPIVOTDATA("BAS182",TABLAS!$A$163) -> 0 | AS45: 10 | AT45: 10 | AU45: 10 | AV45: 10 | BC45: 18 | BD45: 18 | BE45: 18 | BF45: 18 | BT45: 010 | BU45: 010 | BV45: 010 | BW45: 010 | CD45: 018 | CE45: 018 | CF45: 018 | CG45: 018 | CU45: =+IMPORTARDATOSDINAMICOS("BAS010",TABLAS!$A$199) | CV45: =+IMPORTARDATOSDINAMICOS("BAS010",TABLAS!$A$93) | CW45: =+IMPORTARDATOSDINAMICOS("BAS010",TABLAS!$A$128) | CX45: =+IMPORTARDATOSDINAMICOS("BAS010",TABLAS!$A$199) | DE45: =+IMPORTARDATOSDINAMICOS("BAS018",TABLAS!$A$199) | DF45: =+IMPORTARDATOSDINAMICOS("BAS018",TABLAS!$A$93) | DG45: =+IMPORTARDATOSDINAMICOS("BAS018",TABLAS!$A$128) | DH45: =+IMPORTARDATOSDINAMICOS("BAS018",TABLAS!$A$199)
A46: 175 | B46: Infección del tracto urinario en el embarazo 3329409 | G46: 469 | H46: =+GETPIVOTDATA("BAS175",TABLAS!$A$57) -> 0 | I46: =+GETPIVOTDATA("BAS175",TABLAS!$A$93) -> 59 | J46: =+GETPIVOTDATA("BAS175",TABLAS!$A$128) -> 289 | K46: =+GETPIVOTDATA("BAS175",TABLAS!$A$163) -> 180 | L46: =+GETPIVOTDATA(" f23329409",TABLAS!$A$252) -> 1860 | M46: 25.21505376 | P46: 183 | Q46: Retención de Placentaria | U46: 0 | V46: =+GETPIVOTDATA("BAS183",TABLAS!$A$57) -> 0 | W46: =+GETPIVOTDATA("BAS183",TABLAS!$A$93) -> 1 | X46: =+GETPIVOTDATA("BAS183",TABLAS!$A$128) -> 2 | Y46: =+GETPIVOTDATA("BAS183",TABLAS!$A$163) -> 1 | AS46: 11 | AT46: 11 | AU46: 11 | AV46: 11 | BC46: 19 | BD46: 19 | BE46: 19 | BF46: 19 | BT46: 011 | BU46: 011 | BV46: 011 | BW46: 011 | CD46: 019 | CE46: 019 | CF46: 019 | CG46: 019 | CU46: =+IMPORTARDATOSDINAMICOS("BAS011",TABLAS!$A$199) | CV46: =+IMPORTARDATOSDINAMICOS("BAS011",TABLAS!$A$93) | CW46: =+IMPORTARDATOSDINAMICOS("BAS011",TABLAS!$A$128) | CX46: =+IMPORTARDATOSDINAMICOS("BAS011",TABLAS!$A$199) | DE46: =+IMPORTARDATOSDINAMICOS("BAS019",TABLAS!$A$199) | DF46: =+IMPORTARDATOSDINAMICOS("BAS019",TABLAS!$A$93) | DG46: =+IMPORTARDATOSDINAMICOS("BAS019",TABLAS!$A$128) | DH46: =+IMPORTARDATOSDINAMICOS("BAS019",TABLAS!$A$199)
A47: 176 | B47: Ruptura prematura de membranas y otras relacionadas 3329413 | G47: 6 | H47: =+GETPIVOTDATA("BAS176",TABLAS!$A$57) -> 0 | I47: =+GETPIVOTDATA("BAS176",TABLAS!$A$93) -> 0 | J47: =+GETPIVOTDATA("BAS176",TABLAS!$A$128) -> 4 | K47: =+GETPIVOTDATA("BAS176",TABLAS!$A$163) -> 2 | L47: =+GETPIVOTDATA(" f23329413",TABLAS!$A$252) -> 27 | M47: 22.22222222 | P47: 184 | Q47: Ruptura prematura de las membranas | U47: 0 | V47: =+GETPIVOTDATA("BAS184",TABLAS!$A$57) -> 0 | W47: =+GETPIVOTDATA("BAS184",TABLAS!$A$93) -> 0 | X47: =+GETPIVOTDATA("BAS184",TABLAS!$A$128) -> 1 | Y47: =+GETPIVOTDATA("BAS184",TABLAS!$A$163) -> 3 | AS47: 12 | AT47: 12 | AU47: 12 | AV47: 12 | BC47: 20 | BD47: 20 | BE47: 20 | BF47: 20 | BT47: 012 | BU47: 012 | BV47: 012 | BW47: 012 | CD47: 020 | CE47: 020 | CF47: 020 | CG47: 020 | CU47: =+IMPORTARDATOSDINAMICOS("BAS012",TABLAS!$A$199) | CV47: =+IMPORTARDATOSDINAMICOS("BAS012",TABLAS!$A$93) | CW47: =+IMPORTARDATOSDINAMICOS("BAS012",TABLAS!$A$128) | CX47: =+IMPORTARDATOSDINAMICOS("BAS012",TABLAS!$A$199) | DE47: =+IMPORTARDATOSDINAMICOS("BAS020",TABLAS!$A$199) | DF47: =+IMPORTARDATOSDINAMICOS("BAS020",TABLAS!$A$93) | DG47: =+IMPORTARDATOSDINAMICOS("BAS020",TABLAS!$A$128) | DH47: =+IMPORTARDATOSDINAMICOS("BAS020",TABLAS!$A$199)
A48: 177 | B48: Hemorragias de la 1º mitad del embarazo con laparotomía 3329414 | G48: 2 | H48: =+GETPIVOTDATA("BAS177",TABLAS!$A$57) -> 0 | I48: =+GETPIVOTDATA("BAS177",TABLAS!$A$93) -> 0 | J48: =+GETPIVOTDATA("BAS177",TABLAS!$A$128) -> 0 | K48: =+GETPIVOTDATA("BAS177",TABLAS!$A$163) -> 2 | L48: =+GETPIVOTDATA(" f23329414",TABLAS!$A$252) -> 13 | M48: 15.38461538 | P48: 185 | Q48: Desprendimiento Prematuro de la Placenta | U48: 0 | V48: =+GETPIVOTDATA("BAS185",TABLAS!$A$57) -> 0 | W48: =+GETPIVOTDATA("BAS185",TABLAS!$A$93) -> 0 | X48: =+GETPIVOTDATA("BAS185",TABLAS!$A$128) -> 1 | Y48: =+GETPIVOTDATA("BAS185",TABLAS!$A$163) -> 0 | AS48: 13 | AT48: 13 | AU48: 13 | AV48: 13 | BC48: 21 | BD48: 21 | BE48: 21 | BF48: 21 | BT48: 013 | BU48: 013 | BV48: 013 | BW48: 013 | CD48: 021 | CE48: 021 | CF48: 021 | CG48: 021 | CU48: =+IMPORTARDATOSDINAMICOS("BAS013",TABLAS!$A$199) | CV48: =+IMPORTARDATOSDINAMICOS("BAS013",TABLAS!$A$93) | CW48: =+IMPORTARDATOSDINAMICOS("BAS013",TABLAS!$A$128) | CX48: =+IMPORTARDATOSDINAMICOS("BAS013",TABLAS!$A$199) | DE48: =+IMPORTARDATOSDINAMICOS("BAS021",TABLAS!$A$199) | DF48: =+IMPORTARDATOSDINAMICOS("BAS021",TABLAS!$A$93) | DG48: =+IMPORTARDATOSDINAMICOS("BAS021",TABLAS!$A$128) | DH48: =+IMPORTARDATOSDINAMICOS("BAS021",TABLAS!$A$199)
A49: 178 | B49: Trastorno hipertensivos en el Embarazo 3329415 | G49: 11 | H49: =+GETPIVOTDATA("BAS178",TABLAS!$A$57) -> 0 | I49: =+GETPIVOTDATA("BAS178",TABLAS!$A$93) -> 1 | J49: =+GETPIVOTDATA("BAS178",TABLAS!$A$128) -> 1 | K49: =+GETPIVOTDATA("BAS178",TABLAS!$A$163) -> 10 | L49: =+GETPIVOTDATA(" f23329415",TABLAS!$A$252) -> 38 | M49: 28.94736842 | AS49: 14 | AT49: 14 | AU49: 14 | AV49: 14 | BT49: 014 | BU49: 014 | BV49: 014 | BW49: 014 | CU49: =+IMPORTARDATOSDINAMICOS("BAS014",TABLAS!$A$199) | CV49: =+IMPORTARDATOSDINAMICOS("BAS014",TABLAS!$A$93) | CW49: =+IMPORTARDATOSDINAMICOS("BAS014",TABLAS!$A$128) | CX49: =+IMPORTARDATOSDINAMICOS("BAS014",TABLAS!$A$199)
B51: VI. TAMIZAJE DE HB Y ADMINISTRACIÓN PREVENTIVA DE MICRONUTRIENTES | O51: VII. ATENCION DE PUERPERIO
C52: =+W28+12 -> 85 | D52: =+C52+1 -> 86 | E52: =+D52+1 -> 87 | F52: 88 | G52: 89 | H52: 90 | I52: 91 | J52: 92 | K52: 93 | L52: 94 | P52: =+L52+11 -> 105 | Q52: =+P52+1 -> 106 | R52: =+Q52+1 -> 107 | U52: VIII. VISITA DOMICILIARIA
B53: Grupo Etáreo | C53: Dosaje de Hemoglobina | F53: Suplem. con Sulfato Ferroso | I53: Suplem. Ácido Fólico | K53: Suplem. Cálcio | O53: Grupo Etáreo | P53: Atendida | Q53: Controlada 3329801 | R53: Compli-cada | V53: ATC | W53: ATD 3317203
C54: 1º | D54: 2º | E54: 3º | F54: Atendida | G54: Suplementada | I54: 1° | J54: 2° | K54: Atendida 1º Dosis | L54: Suplem. 5º Dosis | T54: 71 | U54: A Gestante | V54: =+GETPIVOTDATA("BAS071",TABLAS!$A$199) -> 217 | W54: =+GETPIVOTDATA("BAS072",TABLAS!$A$199) -> 85 | X54: =+GETPIVOTDATA(" f23317203",TABLAS!$A$252) -> 1713 | Y54: =+W54*100/X54 -> 4.962054874 | BE54: =+BC48+16 -> 37
G55: Gestante 3317210 | H55: Puérpera | U55: A Puérpera | V55: =+GETPIVOTDATA("BAS073",TABLAS!$A$199) -> 305 | W55: =+GETPIVOTDATA("BAS074",TABLAS!$A$199) -> 162 | X55: 74 | BE55: =+BE54+1 -> 38 | CM55: 85 | CN55: =+CM55+1 -> 86 | CO55: =+CN55+1 -> 87 | CP55: 88 | CQ55: 89 | CR55: 90 | CS55: 91 | CT55: 92 | CU55: 93 | CV55: 94 | DA55: 105 | DB55: 106 | DC55: 107
B56: < 12a | C56: =+GETPIVOTDATA("BAS085",TABLAS!$A$57) -> 0 | D56: =+GETPIVOTDATA("BAS086",TABLAS!$A$57) -> 0 | E56: =+GETPIVOTDATA("BAS087",TABLAS!$A$57) -> 0 | F56: =+GETPIVOTDATA("BAS088",TABLAS!$A$57) -> 0 | G56: =+GETPIVOTDATA("BAS089",TABLAS!$A$57) -> 0 | H56: =+GETPIVOTDATA("BAS090",TABLAS!$A$57) -> 0 | I56: =+GETPIVOTDATA("BAS091",TABLAS!$A$57) -> 0 | J56: =+GETPIVOTDATA("BAS092",TABLAS!$A$57) -> 0 | K56: =+GETPIVOTDATA("BAS093",TABLAS!$A$57) -> 0 | L56: =+GETPIVOTDATA("BAS094",TABLAS!$A$57) -> 0 | O56: < 12a | P56: =+GETPIVOTDATA("BAS105",TABLAS!$A$57) -> 0 | Q56: =+GETPIVOTDATA("BAS106",TABLAS!$A$57) -> 0 | R56: =+GETPIVOTDATA("BAS107",TABLAS!$A$57) -> 0 | W56: =+GETPIVOTDATA(" f23317203",TABLAS!$A$252) -> 1713 | AG56: =IF(AND(AG61=1,AG62=1,AG64=1,AG66=1,AG68=1,AG69=1,AG71=1,AG72=1,AG74=1,AG75=1,AG76=1),1,-1) -> -1 | AK56: =+BE32+12 -> 85 | AL56: =+AK56+1 -> 86 | AM56: =+AL56+1 -> 87 | AN56: 88 | AO56: 89 | AP56: 90 | AQ56: 91 | AR56: 92 | AS56: 93 | AT56: 94 | AY56: =+AT56+11 -> 105 | AZ56: =+AY56+1 -> 106 | BA56: =+AZ56+1 -> 107 | BL56: =IF(AK56<10,CONCATENATE("00",AK56),IF(AND(AK56<100,AK56>9),CONCATENATE("0",AK56),AK56)) -> 085 | BM56: =IF(AL56<10,CONCATENATE("00",AL56),IF(AND(AL56<100,AL56>9),CONCATENATE("0",AL56),AL56)) -> 086 | BN56: =IF(AM56<10,CONCATENATE("00",AM56),IF(AND(AM56<100,AM56>9),CONCATENATE("0",AM56),AM56)) -> 087 | BO56: =IF(AN56<10,CONCATENATE("00",AN56),IF(AND(AN56<100,AN56>9),CONCATENATE("0",AN56),AN56)) -> 088 | BP56: =IF(AO56<10,CONCATENATE("00",AO56),IF(AND(AO56<100,AO56>9),CONCATENATE("0",AO56),AO56)) -> 089 | BQ56: =IF(AP56<10,CONCATENATE("00",AP56),IF(AND(AP56<100,AP56>9),CONCATENATE("0",AP56),AP56)) -> 090 | BR56: =IF(AQ56<10,CONCATENATE("00",AQ56),IF(AND(AQ56<100,AQ56>9),CONCATENATE("0",AQ56),AQ56)) -> 091 | BS56: =IF(AR56<10,CONCATENATE("00",AR56),IF(AND(AR56<100,AR56>9),CONCATENATE("0",AR56),AR56)) -> 092 | BT56: =IF(AS56<10,CONCATENATE("00",AS56),IF(AND(AS56<100,AS56>9),CONCATENATE("0",AS56),AS56)) -> 093 | BU56: =IF(AT56<10,CONCATENATE("00",AT56),IF(AND(AT56<100,AT56>9),CONCATENATE("0",AT56),AT56)) -> 094 | BZ56: =IF(AY56<10,CONCATENATE("00",AY56),IF(AND(AY56<100,AY56>9),CONCATENATE("0",AY56),AY56)) -> 105 | CA56: =IF(AZ56<10,CONCATENATE("00",AZ56),IF(AND(AZ56<100,AZ56>9),CONCATENATE("0",AZ56),AZ56)) -> 106 | CB56: =IF(BA56<10,CONCATENATE("00",BA56),IF(AND(BA56<100,BA56>9),CONCATENATE("0",BA56),BA56)) -> 107 | CM56: =CONCATENATE($CN$15,BL56,$CP$15) -> =+IMPORTARDATOSDINAMICOS("BAS085",TABLAS!$A$199) | CN56: =CONCATENATE($CN$15,BM56,$CP$15) -> =+IMPORTARDATOSDINAMICOS("BAS086",TABLAS!$A$199) | CO56: =+IMPORTARDATOSDINAMICOS("BAS087",TABLAS!$A$199) | CP56: =+IMPORTARDATOSDINAMICOS("BAS088",TABLAS!$A$199) | CQ56: =+IMPORTARDATOSDINAMICOS("BAS089",TABLAS!$A$199) | CR56: =+IMPORTARDATOSDINAMICOS("BAS090",TABLAS!$A$199) | CS56: =+IMPORTARDATOSDINAMICOS("BAS091",TABLAS!$A$199) | CT56: =+IMPORTARDATOSDINAMICOS("BAS092",TABLAS!$A$199) | CU56: =+IMPORTARDATOSDINAMICOS("BAS093",TABLAS!$A$199) | CV56: =+IMPORTARDATOSDINAMICOS("BAS094",TABLAS!$A$199) | DA56: =+IMPORTARDATOSDINAMICOS("BAS105",TABLAS!$A$199) | DB56: =+IMPORTARDATOSDINAMICOS("BAS106",TABLAS!$A$199) | DC56: =+IMPORTARDATOSDINAMICOS("BAS107",TABLAS!$A$199)
B57: 12a - 17a | C57: =+GETPIVOTDATA("BAS085",TABLAS!$A$93) -> 30 | D57: =+GETPIVOTDATA("BAS086",TABLAS!$A$93) -> 16 | E57: =+GETPIVOTDATA("BAS087",TABLAS!$A$93) -> 4 | F57: =+GETPIVOTDATA("BAS088",TABLAS!$A$93) -> 27 | G57: =+GETPIVOTDATA("BAS089",TABLAS!$A$93) -> 7 | H57: =+GETPIVOTDATA("BAS090",TABLAS!$A$93) -> 19 | I57: =+GETPIVOTDATA("BAS091",TABLAS!$A$93) -> 16 | J57: =+GETPIVOTDATA("BAS092",TABLAS!$A$93) -> 4 | K57: =+GETPIVOTDATA("BAS093",TABLAS!$A$93) -> 26 | L57: =+GETPIVOTDATA("BAS094",TABLAS!$A$93) -> 5 | O57: 12a - 17a | P57: =+GETPIVOTDATA("BAS105",TABLAS!$A$93) -> 32 | Q57: =+GETPIVOTDATA("BAS106",TABLAS!$A$93) -> 23 | R57: =+GETPIVOTDATA("BAS107",TABLAS!$A$93) -> 1 | W57: =+W55*100/W56 -> 9.45709282 | Y57: OBSERVACIONES DE CONTROL DE CALIDAD | AK57: =+BE33+12 -> 85 | AL57: =+AK57+1 -> 86 | AM57: 87 | AN57: 88 | AO57: 89 | AP57: 90 | AQ57: 91 | AR57: 92 | AS57: 93 | AT57: 94 | AY57: =+AT57+11 -> 105 | AZ57: =+AY57+1 -> 106 | BA57: 107 | BL57: =IF(AK57<10,CONCATENATE("00",AK57),IF(AND(AK57<100,AK57>9),CONCATENATE("0",AK57),AK57)) -> 085 | BM57: =IF(AL57<10,CONCATENATE("00",AL57),IF(AND(AL57<100,AL57>9),CONCATENATE("0",AL57),AL57)) -> 086 | BN57: =IF(AM57<10,CONCATENATE("00",AM57),IF(AND(AM57<100,AM57>9),CONCATENATE("0",AM57),AM57)) -> 087 | BO57: =IF(AN57<10,CONCATENATE("00",AN57),IF(AND(AN57<100,AN57>9),CONCATENATE("0",AN57),AN57)) -> 088 | BP57: =IF(AO57<10,CONCATENATE("00",AO57),IF(AND(AO57<100,AO57>9),CONCATENATE("0",AO57),AO57)) -> 089 | BQ57: =IF(AP57<10,CONCATENATE("00",AP57),IF(AND(AP57<100,AP57>9),CONCATENATE("0",AP57),AP57)) -> 090 | BR57: =IF(AQ57<10,CONCATENATE("00",AQ57),IF(AND(AQ57<100,AQ57>9),CONCATENATE("0",AQ57),AQ57)) -> 091 | BS57: =IF(AR57<10,CONCATENATE("00",AR57),IF(AND(AR57<100,AR57>9),CONCATENATE("0",AR57),AR57)) -> 092 | BT57: =IF(AS57<10,CONCATENATE("00",AS57),IF(AND(AS57<100,AS57>9),CONCATENATE("0",AS57),AS57)) -> 093 | BU57: =IF(AT57<10,CONCATENATE("00",AT57),IF(AND(AT57<100,AT57>9),CONCATENATE("0",AT57),AT57)) -> 094 | BZ57: =IF(AY57<10,CONCATENATE("00",AY57),IF(AND(AY57<100,AY57>9),CONCATENATE("0",AY57),AY57)) -> 105 | CA57: =IF(AZ57<10,CONCATENATE("00",AZ57),IF(AND(AZ57<100,AZ57>9),CONCATENATE("0",AZ57),AZ57)) -> 106 | CB57: =IF(BA57<10,CONCATENATE("00",BA57),IF(AND(BA57<100,BA57>9),CONCATENATE("0",BA57),BA57)) -> 107 | CM57: =CONCATENATE($CN$15,BL57,$CP$16) -> =+IMPORTARDATOSDINAMICOS("BAS085",TABLAS!$A$93) | CN57: =CONCATENATE($CN$15,BM57,$CP$16) -> =+IMPORTARDATOSDINAMICOS("BAS086",TABLAS!$A$93) | CO57: =+IMPORTARDATOSDINAMICOS("BAS087",TABLAS!$A$93) | CP57: =+IMPORTARDATOSDINAMICOS("BAS088",TABLAS!$A$93) | CQ57: =+IMPORTARDATOSDINAMICOS("BAS089",TABLAS!$A$93) | CR57: =+IMPORTARDATOSDINAMICOS("BAS090",TABLAS!$A$93) | CS57: =+IMPORTARDATOSDINAMICOS("BAS091",TABLAS!$A$93) | CT57: =+IMPORTARDATOSDINAMICOS("BAS092",TABLAS!$A$93) | CU57: =+IMPORTARDATOSDINAMICOS("BAS093",TABLAS!$A$93) | CV57: =+IMPORTARDATOSDINAMICOS("BAS094",TABLAS!$A$93) | DA57: =+IMPORTARDATOSDINAMICOS("BAS105",TABLAS!$A$93) | DB57: =+IMPORTARDATOSDINAMICOS("BAS106",TABLAS!$A$93) | DC57: =+IMPORTARDATOSDINAMICOS("BAS107",TABLAS!$A$93)
B58: 18a - 29a | C58: =+GETPIVOTDATA("BAS085",TABLAS!$A$128) -> 215 | D58: =+GETPIVOTDATA("BAS086",TABLAS!$A$128) -> 111 | E58: =+GETPIVOTDATA("BAS087",TABLAS!$A$128) -> 77 | F58: =+GETPIVOTDATA("BAS088",TABLAS!$A$128) -> 169 | G58: =+GETPIVOTDATA("BAS089",TABLAS!$A$128) -> 46 | H58: =+GETPIVOTDATA("BAS090",TABLAS!$A$128) -> 95 | I58: =+GETPIVOTDATA("BAS091",TABLAS!$A$128) -> 161 | J58: =+GETPIVOTDATA("BAS092",TABLAS!$A$128) -> 50 | K58: =+GETPIVOTDATA("BAS093",TABLAS!$A$128) -> 172 | L58: =+GETPIVOTDATA("BAS094",TABLAS!$A$128) -> 31 | O58: 18a - 29a | P58: =+GETPIVOTDATA("BAS105",TABLAS!$A$128) -> 147 | Q58: =+GETPIVOTDATA("BAS106",TABLAS!$A$128) -> 144 | R58: =+GETPIVOTDATA("BAS107",TABLAS!$A$128) -> 7 | AK58: =+BE34+12 -> 85 | AL58: =+AK58+1 -> 86 | AM58: 87 | AN58: 88 | AO58: 89 | AP58: 90 | AQ58: 91 | AR58: 92 | AS58: 93 | AT58: 94 | AY58: 105 | AZ58: =+AY58+1 -> 106 | BA58: 107 | BL58: 085 | BM58: 086 | BN58: 087 | BO58: 088 | BP58: 089 | BQ58: 090 | BR58: 091 | BS58: 092 | BT58: 093 | BU58: 094 | BZ58: 105 | CA58: 106 | CB58: 107 | CM58: =CONCATENATE($CN$15,BL58,$CP$17) -> =+IMPORTARDATOSDINAMICOS("BAS085",TABLAS!$A$128) | CN58: =CONCATENATE($CN$15,BM58,$CP$17) -> =+IMPORTARDATOSDINAMICOS("BAS086",TABLAS!$A$128) | CO58: =+IMPORTARDATOSDINAMICOS("BAS087",TABLAS!$A$128) | CP58: =+IMPORTARDATOSDINAMICOS("BAS088",TABLAS!$A$128) | CQ58: =+IMPORTARDATOSDINAMICOS("BAS089",TABLAS!$A$128) | CR58: =+IMPORTARDATOSDINAMICOS("BAS090",TABLAS!$A$128) | CS58: =+IMPORTARDATOSDINAMICOS("BAS091",TABLAS!$A$128) | CT58: =+IMPORTARDATOSDINAMICOS("BAS092",TABLAS!$A$128) | CU58: =+IMPORTARDATOSDINAMICOS("BAS093",TABLAS!$A$128) | CV58: =+IMPORTARDATOSDINAMICOS("BAS094",TABLAS!$A$128) | DA58: =+IMPORTARDATOSDINAMICOS("BAS105",TABLAS!$A$128) | DB58: =+IMPORTARDATOSDINAMICOS("BAS106",TABLAS!$A$128) | DC58: =+IMPORTARDATOSDINAMICOS("BAS107",TABLAS!$A$128)
B59: 30a - 59a | C59: =+GETPIVOTDATA("BAS085",TABLAS!$A$163) -> 172 | D59: =+GETPIVOTDATA("BAS086",TABLAS!$A$163) -> 75 | E59: =+GETPIVOTDATA("BAS087",TABLAS!$A$163) -> 54 | F59: =+GETPIVOTDATA("BAS088",TABLAS!$A$163) -> 142 | G59: =+GETPIVOTDATA("BAS089",TABLAS!$A$163) -> 52 | H59: =+GETPIVOTDATA("BAS090",TABLAS!$A$163) -> 118 | I59: =+GETPIVOTDATA("BAS091",TABLAS!$A$163) -> 134 | J59: =+GETPIVOTDATA("BAS092",TABLAS!$A$163) -> 55 | K59: =+GETPIVOTDATA("BAS093",TABLAS!$A$163) -> 139 | L59: =+GETPIVOTDATA("BAS094",TABLAS!$A$163) -> 41 | O59: 30a - 59a | P59: =+GETPIVOTDATA("BAS105",TABLAS!$A$163) -> 139 | Q59: =+GETPIVOTDATA("BAS106",TABLAS!$A$163) -> 140 | R59: =+GETPIVOTDATA("BAS107",TABLAS!$A$163) -> 7 | AB59: < 12 a. | AC59: 12-17 | AD59: 18-29 | AE59: 30-59 | AF59: TOTAL | AG59: Control | AK59: =+BE35+12 -> 85 | AL59: =+AK59+1 -> 86 | AM59: 87 | AN59: 88 | AO59: 89 | AP59: 90 | AQ59: 91 | AR59: 92 | AS59: 93 | AT59: 94 | AY59: 105 | AZ59: =+AY59+1 -> 106 | BA59: 107 | BL59: 085 | BM59: 086 | BN59: 087 | BO59: 088 | BP59: 089 | BQ59: 090 | BR59: 091 | BS59: 092 | BT59: 093 | BU59: 094 | BZ59: 105 | CA59: 106 | CB59: 107 | CM59: =CONCATENATE($CN$15,BL59,$CP$18) -> =+IMPORTARDATOSDINAMICOS("BAS085",TABLAS!$A$199) | CN59: =CONCATENATE($CN$15,BM59,$CP$18) -> =+IMPORTARDATOSDINAMICOS("BAS086",TABLAS!$A$199) | CO59: =+IMPORTARDATOSDINAMICOS("BAS087",TABLAS!$A$199) | CP59: =+IMPORTARDATOSDINAMICOS("BAS088",TABLAS!$A$199) | CQ59: =+IMPORTARDATOSDINAMICOS("BAS089",TABLAS!$A$199) | CR59: =+IMPORTARDATOSDINAMICOS("BAS090",TABLAS!$A$199) | CS59: =+IMPORTARDATOSDINAMICOS("BAS091",TABLAS!$A$199) | CT59: =+IMPORTARDATOSDINAMICOS("BAS092",TABLAS!$A$199) | CU59: =+IMPORTARDATOSDINAMICOS("BAS093",TABLAS!$A$199) | CV59: =+IMPORTARDATOSDINAMICOS("BAS094",TABLAS!$A$199) | DA59: =+IMPORTARDATOSDINAMICOS("BAS105",TABLAS!$A$199) | DB59: =+IMPORTARDATOSDINAMICOS("BAS106",TABLAS!$A$199) | DC59: =+IMPORTARDATOSDINAMICOS("BAS107",TABLAS!$A$199)
B60: TOTAL | C60: =SUM(C56:C59) -> 417 | D60: 202 | E60: 135 | F60: 338 | G60: 105 | H60: 232 | I60: 311 | J60: 109 | K60: 337 | L60: 77 | O60: TOTAL | P60: =SUM(P56:P59) -> 318 | Q60: =SUM(Q56:Q59) -> 307 | R60: =SUM(R56:R59) -> 15 | Y60: =C17&" "&C18&" "&C19 -> Gestante Atendida Total | AB60: =+C20 -> 0 | AC60: =+C21 -> 36 | AD60: =+C22 -> 247 | AE60: =+C23 -> 189 | AF60: =SUM(AB60:AE60) -> 472
C61: =IF(C60=C24,1,-1) -> -1 | G61: =+GETPIVOTDATA(" f23317210",TABLAS!$A$252) -> 1558 | H61: =IF(H60=Q60,1,-1) -> -1 | I61: =IF(I60=D24,1,-1) -> -1 | Q61: =+GETPIVOTDATA(" f23329801",TABLAS!$A$252) -> 1674 | Y61: =K17&" "&K19 -> Gestante con Bateria Completa 1° Bateria | AB61: =+K20 -> 0 | AC61: =+K21 -> 37 | AD61: =+K22 -> 250 | AE61: =+K23 -> 187 | AF61: =SUM(AB61:AE61) -> 474 | AG61: =IF(AF61=AF60,1,-1) -> -1
G62: =+G60*100/G61 -> 6.739409499 | Q62: =+Q60*100/Q61 -> 18.33930705 | Y62: =R17&" "&R19 -> Tamizaje de Bacteriuria N° | AB62: =+R20 -> 0 | AC62: =+R21 -> 123 | AD62: =+R22 -> 769 | AE62: =+R23 -> 562 | AF62: 1454 | AG62: =IF(AF62=AF60,1,-1) -> -1
G63: =IF(G60=V24,1,-1) -> -1 | Q63: =IF(Q60=H60,1,-1) -> -1
Y64: =T29&" "&T31 -> Plan de Parto 3317203 1º Entrevista | AB64: =+T32 -> 0 | AC64: =+T33 -> 40 | AD64: =+T34 -> 243 | AE64: =+T35 -> 186 | AF64: 469 | AG64: =IF(AF64=AF60,1,-1) -> -1
B65: IX. TRANSMISIÓN VERTICAL
C66: =+R52+4 -> 111 | D66: =+C66+1 -> 112 | E66: =+D66+1 -> 113 | F66: 114 | G66: 115 | H66: 116 | I66: 117 | J66: 118 | K66: 119 | L66: 120 | M66: 121 | N66: 122 | O66: 123 | P66: 124 | Q66: 125 | R66: 126 | S66: 127 | T66: 128 | U66: 129 | V66: 130 | W66: 131 | Y66: =C53&" "&C54 -> Dosaje de Hemoglobina 1º | AB66: =+C56 -> 0 | AC66: =+C57 -> 30 | AD66: =+C58 -> 215 | AE66: =+C59 -> 172 | AF66: 417 | AG66: =IF(AF66=AF60,1,-1) -> -1
B67: Grupo Etáreo | C67: GESTANTES
C68: PRUEBAS | Y68: =V17 -> Gestante con Atención Prenatal Reenfocada | AB68: =+V20 -> 0 | AC68: =+V21 -> 6 | AD68: =+V22 -> 39 | AE68: =+V23 -> 45 | AF68: 90 | AG68: =IF(AF68=AF69,1,-1) -> -1
C69: VIH/SIDA | J69: SIFILIS | Q69: HEPATITIS B | Y69: =G54&" "&G55 -> Suplementada Gestante 3317210 | AB69: =+G56 -> 0 | AC69: =+G57 -> 7 | AD69: =+G58 -> 46 | AE69: =+G59 -> 52 | AF69: 105 | AG69: =IF(AF69=AF68,1,-1) -> -1
C70: 1º TAMIZAJE | G70: 2º TAMIZAJE | J70: 1º TAMIZAJE | N70: 2º TAMIZAJE | Q70: 1º TAMIZAJE | U70: 2º TAMIZAJE
C71: I Trim | D71: II Trim | E71: III Trim | F71: Reactivo | G71: II Trim | H71: III Trim | I71: Reactivo | J71: I Trim | K71: II Trim | L71: III Trim | M71: Positivo | N71: II Trim | O71: III Trim | P71: Positivo | Q71: I Trim | R71: II Trim | S71: III Trim | T71: Reactivo | U71: II Trim | V71: III Trim | W71: Reactivo | Y71: =C17&" "&C18&" "&D19 -> Gestante Atendida I Trim | AB71: =+D20 -> 0 | AC71: =+D21 -> 15 | AD71: =+D22 -> 169 | AE71: =+D23 -> 141 | AF71: 325 | AG71: =IF(AF71=AF72,1,-1) -> -1 | CM71: 111 | CN71: =+CM71+1 -> 112 | CO71: =+CN71+1 -> 113 | CP71: 114 | CQ71: 115 | CR71: 116 | CS71: 117 | CT71: 118 | CU71: 119 | CV71: 120 | CW71: 121 | CX71: 122 | CY71: 123 | CZ71: 124 | DA71: 125 | DB71: 126 | DC71: 127 | DD71: 128 | DE71: 129 | DF71: 130 | DG71: 131
B72: < 12 a. | C72: =+GETPIVOTDATA("BAS111",TABLAS!$A$57) -> 0 | D72: =+GETPIVOTDATA("BAS112",TABLAS!$A$57) -> 0 | E72: =+GETPIVOTDATA("BAS113",TABLAS!$A$57) -> 0 | F72: =+GETPIVOTDATA("BAS114",TABLAS!$A$57) -> 0 | G72: =+GETPIVOTDATA("BAS115",TABLAS!$A$57) -> 0 | H72: =+GETPIVOTDATA("BAS116",TABLAS!$A$57) -> 0 | I72: =+GETPIVOTDATA("BAS117",TABLAS!$A$57) -> 0 | J72: =+GETPIVOTDATA("BAS118",TABLAS!$A$57) -> 0 | K72: =+GETPIVOTDATA("BAS119",TABLAS!$A$57) -> 0 | L72: =+GETPIVOTDATA("BAS120",TABLAS!$A$57) -> 0 | M72: =+GETPIVOTDATA("BAS121",TABLAS!$A$57) -> 0 | N72: =+GETPIVOTDATA("BAS122",TABLAS!$A$57) -> 0 | O72: =+GETPIVOTDATA("BAS123",TABLAS!$A$57) -> 0 | P72: =+GETPIVOTDATA("BAS124",TABLAS!$A$57) -> 0 | Q72: =+GETPIVOTDATA("BAS125",TABLAS!$A$57) -> 0 | R72: =+GETPIVOTDATA("BAS126",TABLAS!$A$57) -> 0 | S72: =+GETPIVOTDATA("BAS127",TABLAS!$A$57) -> 0 | T72: =+GETPIVOTDATA("BAS128",TABLAS!$A$57) -> 0 | U72: =+GETPIVOTDATA("BAS129",TABLAS!$A$57) -> 0 | V72: =+GETPIVOTDATA("BAS130",TABLAS!$A$57) -> 0 | W72: =+GETPIVOTDATA("BAS131",TABLAS!$A$57) -> 0 | Y72: =I53&" "&I54 -> Suplem. Ácido Fólico 1° | AB72: =+I56 -> 0 | AC72: =+I57 -> 16 | AD72: =+I58 -> 161 | AE72: =+I59 -> 134 | AF72: 311 | AG72: =IF(AF72=AF71,1,-1) -> -1 | AK72: =+BA56+4 -> 111 | AL72: =+AK72+1 -> 112 | AM72: =+AL72+1 -> 113 | AN72: 114 | AO72: 115 | AP72: 116 | AQ72: 117 | AR72: 118 | AS72: 119 | AT72: 120 | AU72: 121 | AV72: 122 | AW72: 123 | AX72: 124 | AY72: 125 | AZ72: 126 | BA72: 127 | BB72: 128 | BC72: 129 | BD72: 130 | BE72: 131 | BL72: =IF(AK72<10,CONCATENATE("00",AK72),IF(AND(AK72<100,AK72>9),CONCATENATE("0",AK72),AK72)) -> 111 | BM72: =IF(AL72<10,CONCATENATE("00",AL72),IF(AND(AL72<100,AL72>9),CONCATENATE("0",AL72),AL72)) -> 112 | BN72: =IF(AM72<10,CONCATENATE("00",AM72),IF(AND(AM72<100,AM72>9),CONCATENATE("0",AM72),AM72)) -> 113 | BO72: =IF(AN72<10,CONCATENATE("00",AN72),IF(AND(AN72<100,AN72>9),CONCATENATE("0",AN72),AN72)) -> 114 | BP72: =IF(AO72<10,CONCATENATE("00",AO72),IF(AND(AO72<100,AO72>9),CONCATENATE("0",AO72),AO72)) -> 115 | BQ72: =IF(AP72<10,CONCATENATE("00",AP72),IF(AND(AP72<100,AP72>9),CONCATENATE("0",AP72),AP72)) -> 116 | BR72: =IF(AQ72<10,CONCATENATE("00",AQ72),IF(AND(AQ72<100,AQ72>9),CONCATENATE("0",AQ72),AQ72)) -> 117 | BS72: =IF(AR72<10,CONCATENATE("00",AR72),IF(AND(AR72<100,AR72>9),CONCATENATE("0",AR72),AR72)) -> 118 | BT72: =IF(AS72<10,CONCATENATE("00",AS72),IF(AND(AS72<100,AS72>9),CONCATENATE("0",AS72),AS72)) -> 119 | BU72: =IF(AT72<10,CONCATENATE("00",AT72),IF(AND(AT72<100,AT72>9),CONCATENATE("0",AT72),AT72)) -> 120 | BV72: =IF(AU72<10,CONCATENATE("00",AU72),IF(AND(AU72<100,AU72>9),CONCATENATE("0",AU72),AU72)) -> 121 | BW72: =IF(AV72<10,CONCATENATE("00",AV72),IF(AND(AV72<100,AV72>9),CONCATENATE("0",AV72),AV72)) -> 122 | BX72: =IF(AW72<10,CONCATENATE("00",AW72),IF(AND(AW72<100,AW72>9),CONCATENATE("0",AW72),AW72)) -> 123 | BY72: =IF(AX72<10,CONCATENATE("00",AX72),IF(AND(AX72<100,AX72>9),CONCATENATE("0",AX72),AX72)) -> 124 | BZ72: =IF(AY72<10,CONCATENATE("00",AY72),IF(AND(AY72<100,AY72>9),CONCATENATE("0",AY72),AY72)) -> 125 | CA72: =IF(AZ72<10,CONCATENATE("00",AZ72),IF(AND(AZ72<100,AZ72>9),CONCATENATE("0",AZ72),AZ72)) -> 126 | CB72: =IF(BA72<10,CONCATENATE("00",BA72),IF(AND(BA72<100,BA72>9),CONCATENATE("0",BA72),BA72)) -> 127 | CC72: =IF(BB72<10,CONCATENATE("00",BB72),IF(AND(BB72<100,BB72>9),CONCATENATE("0",BB72),BB72)) -> 128 | CD72: =IF(BC72<10,CONCATENATE("00",BC72),IF(AND(BC72<100,BC72>9),CONCATENATE("0",BC72),BC72)) -> 129 | CE72: =IF(BD72<10,CONCATENATE("00",BD72),IF(AND(BD72<100,BD72>9),CONCATENATE("0",BD72),BD72)) -> 130 | CF72: =IF(BE72<10,CONCATENATE("00",BE72),IF(AND(BE72<100,BE72>9),CONCATENATE("0",BE72),BE72)) -> 131 | CM72: =CONCATENATE($CN$15,BL72,$CP$15) -> =+IMPORTARDATOSDINAMICOS("BAS111",TABLAS!$A$199) | CN72: =CONCATENATE($CN$15,BM72,$CP$15) -> =+IMPORTARDATOSDINAMICOS("BAS112",TABLAS!$A$199) | CO72: =+IMPORTARDATOSDINAMICOS("BAS113",TABLAS!$A$199) | CP72: =+IMPORTARDATOSDINAMICOS("BAS114",TABLAS!$A$199) | CQ72: =+IMPORTARDATOSDINAMICOS("BAS115",TABLAS!$A$199) | CR72: =+IMPORTARDATOSDINAMICOS("BAS116",TABLAS!$A$199) | CS72: =+IMPORTARDATOSDINAMICOS("BAS117",TABLAS!$A$199) | CT72: =+IMPORTARDATOSDINAMICOS("BAS118",TABLAS!$A$199) | CU72: =+IMPORTARDATOSDINAMICOS("BAS119",TABLAS!$A$199) | CV72: =+IMPORTARDATOSDINAMICOS("BAS120",TABLAS!$A$199) | CW72: =+IMPORTARDATOSDINAMICOS("BAS121",TABLAS!$A$199) | CX72: =+IMPORTARDATOSDINAMICOS("BAS122",TABLAS!$A$199) | CY72: =+IMPORTARDATOSDINAMICOS("BAS123",TABLAS!$A$199) | CZ72: =+IMPORTARDATOSDINAMICOS("BAS124",TABLAS!$A$199) | DA72: =+IMPORTARDATOSDINAMICOS("BAS125",TABLAS!$A$199) | DB72: =+IMPORTARDATOSDINAMICOS("BAS126",TABLAS!$A$199) | DC72: =+IMPORTARDATOSDINAMICOS("BAS127",TABLAS!$A$199) | DD72: =+IMPORTARDATOSDINAMICOS("BAS128",TABLAS!$A$199) | DE72: =+IMPORTARDATOSDINAMICOS("BAS129",TABLAS!$A$199) | DF72: =+IMPORTARDATOSDINAMICOS("BAS130",TABLAS!$A$199) | DG72: =+IMPORTARDATOSDINAMICOS("BAS131",TABLAS!$A$199)
B73: 12-17 | C73: =+GETPIVOTDATA("BAS111",TABLAS!$A$93) -> 16 | D73: =+GETPIVOTDATA("BAS112",TABLAS!$A$93) -> 14 | E73: =+GETPIVOTDATA("BAS113",TABLAS!$A$93) -> 3 | F73: =+GETPIVOTDATA("BAS114",TABLAS!$A$93) -> 0 | G73: =+GETPIVOTDATA("BAS115",TABLAS!$A$93) -> 0 | H73: =+GETPIVOTDATA("BAS116",TABLAS!$A$93) -> 20 | I73: =+GETPIVOTDATA("BAS117",TABLAS!$A$93) -> 0 | J73: =+GETPIVOTDATA("BAS118",TABLAS!$A$93) -> 15 | K73: =+GETPIVOTDATA("BAS119",TABLAS!$A$93) -> 13 | L73: =+GETPIVOTDATA("BAS120",TABLAS!$A$93) -> 6 | M73: =+GETPIVOTDATA("BAS121",TABLAS!$A$93) -> 1 | N73: =+GETPIVOTDATA("BAS122",TABLAS!$A$93) -> 0 | O73: =+GETPIVOTDATA("BAS123",TABLAS!$A$93) -> 18 | P73: =+GETPIVOTDATA("BAS124",TABLAS!$A$93) -> 0 | Q73: =+GETPIVOTDATA("BAS125",TABLAS!$A$93) -> 15 | R73: =+GETPIVOTDATA("BAS126",TABLAS!$A$93) -> 13 | S73: =+GETPIVOTDATA("BAS127",TABLAS!$A$93) -> 6 | T73: =+GETPIVOTDATA("BAS128",TABLAS!$A$93) -> 0 | U73: =+GETPIVOTDATA("BAS129",TABLAS!$A$93) -> 0 | V73: =+GETPIVOTDATA("BAS130",TABLAS!$A$93) -> 18 | W73: =+GETPIVOTDATA("BAS131",TABLAS!$A$93) -> 0 | AK73: =+BA57+4 -> 111 | AL73: =+AK73+1 -> 112 | AM73: 113 | AN73: 114 | AO73: 115 | AP73: 116 | AQ73: 117 | AR73: 118 | AS73: 119 | AT73: 120 | AU73: 121 | AV73: 122 | AW73: 123 | AX73: 124 | AY73: 125 | AZ73: 126 | BA73: 127 | BB73: 128 | BC73: 129 | BD73: 130 | BE73: 131 | BL73: =IF(AK73<10,CONCATENATE("00",AK73),IF(AND(AK73<100,AK73>9),CONCATENATE("0",AK73),AK73)) -> 111 | BM73: =IF(AL73<10,CONCATENATE("00",AL73),IF(AND(AL73<100,AL73>9),CONCATENATE("0",AL73),AL73)) -> 112 | BN73: =IF(AM73<10,CONCATENATE("00",AM73),IF(AND(AM73<100,AM73>9),CONCATENATE("0",AM73),AM73)) -> 113 | BO73: =IF(AN73<10,CONCATENATE("00",AN73),IF(AND(AN73<100,AN73>9),CONCATENATE("0",AN73),AN73)) -> 114 | BP73: =IF(AO73<10,CONCATENATE("00",AO73),IF(AND(AO73<100,AO73>9),CONCATENATE("0",AO73),AO73)) -> 115 | BQ73: =IF(AP73<10,CONCATENATE("00",AP73),IF(AND(AP73<100,AP73>9),CONCATENATE("0",AP73),AP73)) -> 116 | BR73: =IF(AQ73<10,CONCATENATE("00",AQ73),IF(AND(AQ73<100,AQ73>9),CONCATENATE("0",AQ73),AQ73)) -> 117 | BS73: =IF(AR73<10,CONCATENATE("00",AR73),IF(AND(AR73<100,AR73>9),CONCATENATE("0",AR73),AR73)) -> 118 | BT73: =IF(AS73<10,CONCATENATE("00",AS73),IF(AND(AS73<100,AS73>9),CONCATENATE("0",AS73),AS73)) -> 119 | BU73: =IF(AT73<10,CONCATENATE("00",AT73),IF(AND(AT73<100,AT73>9),CONCATENATE("0",AT73),AT73)) -> 120 | BV73: =IF(AU73<10,CONCATENATE("00",AU73),IF(AND(AU73<100,AU73>9),CONCATENATE("0",AU73),AU73)) -> 121 | BW73: =IF(AV73<10,CONCATENATE("00",AV73),IF(AND(AV73<100,AV73>9),CONCATENATE("0",AV73),AV73)) -> 122 | BX73: =IF(AW73<10,CONCATENATE("00",AW73),IF(AND(AW73<100,AW73>9),CONCATENATE("0",AW73),AW73)) -> 123 | BY73: =IF(AX73<10,CONCATENATE("00",AX73),IF(AND(AX73<100,AX73>9),CONCATENATE("0",AX73),AX73)) -> 124 | BZ73: =IF(AY73<10,CONCATENATE("00",AY73),IF(AND(AY73<100,AY73>9),CONCATENATE("0",AY73),AY73)) -> 125 | CA73: =IF(AZ73<10,CONCATENATE("00",AZ73),IF(AND(AZ73<100,AZ73>9),CONCATENATE("0",AZ73),AZ73)) -> 126 | CB73: =IF(BA73<10,CONCATENATE("00",BA73),IF(AND(BA73<100,BA73>9),CONCATENATE("0",BA73),BA73)) -> 127 | CC73: =IF(BB73<10,CONCATENATE("00",BB73),IF(AND(BB73<100,BB73>9),CONCATENATE("0",BB73),BB73)) -> 128 | CD73: =IF(BC73<10,CONCATENATE("00",BC73),IF(AND(BC73<100,BC73>9),CONCATENATE("0",BC73),BC73)) -> 129 | CE73: =IF(BD73<10,CONCATENATE("00",BD73),IF(AND(BD73<100,BD73>9),CONCATENATE("0",BD73),BD73)) -> 130 | CF73: =IF(BE73<10,CONCATENATE("00",BE73),IF(AND(BE73<100,BE73>9),CONCATENATE("0",BE73),BE73)) -> 131 | CM73: =CONCATENATE($CN$15,BL73,$CP$16) -> =+IMPORTARDATOSDINAMICOS("BAS111",TABLAS!$A$93) | CN73: =CONCATENATE($CN$15,BM73,$CP$16) -> =+IMPORTARDATOSDINAMICOS("BAS112",TABLAS!$A$93) | CO73: =+IMPORTARDATOSDINAMICOS("BAS113",TABLAS!$A$93) | CP73: =+IMPORTARDATOSDINAMICOS("BAS114",TABLAS!$A$93) | CQ73: =+IMPORTARDATOSDINAMICOS("BAS115",TABLAS!$A$93) | CR73: =+IMPORTARDATOSDINAMICOS("BAS116",TABLAS!$A$93) | CS73: =+IMPORTARDATOSDINAMICOS("BAS117",TABLAS!$A$93) | CT73: =+IMPORTARDATOSDINAMICOS("BAS118",TABLAS!$A$93) | CU73: =+IMPORTARDATOSDINAMICOS("BAS119",TABLAS!$A$93) | CV73: =+IMPORTARDATOSDINAMICOS("BAS120",TABLAS!$A$93) | CW73: =+IMPORTARDATOSDINAMICOS("BAS121",TABLAS!$A$93) | CX73: =+IMPORTARDATOSDINAMICOS("BAS122",TABLAS!$A$93) | CY73: =+IMPORTARDATOSDINAMICOS("BAS123",TABLAS!$A$93) | CZ73: =+IMPORTARDATOSDINAMICOS("BAS124",TABLAS!$A$93) | DA73: =+IMPORTARDATOSDINAMICOS("BAS125",TABLAS!$A$93) | DB73: =+IMPORTARDATOSDINAMICOS("BAS126",TABLAS!$A$93) | DC73: =+IMPORTARDATOSDINAMICOS("BAS127",TABLAS!$A$93) | DD73: =+IMPORTARDATOSDINAMICOS("BAS128",TABLAS!$A$93) | DE73: =+IMPORTARDATOSDINAMICOS("BAS129",TABLAS!$A$93) | DF73: =+IMPORTARDATOSDINAMICOS("BAS130",TABLAS!$A$93) | DG73: =+IMPORTARDATOSDINAMICOS("BAS131",TABLAS!$A$93)
B74: 18-29 | C74: =+GETPIVOTDATA("BAS111",TABLAS!$A$128) -> 162 | D74: =+GETPIVOTDATA("BAS112",TABLAS!$A$128) -> 65 | E74: =+GETPIVOTDATA("BAS113",TABLAS!$A$128) -> 21 | F74: =+GETPIVOTDATA("BAS114",TABLAS!$A$128) -> 1 | G74: =+GETPIVOTDATA("BAS115",TABLAS!$A$128) -> 2 | H74: =+GETPIVOTDATA("BAS116",TABLAS!$A$128) -> 132 | I74: =+GETPIVOTDATA("BAS117",TABLAS!$A$128) -> 0 | J74: =+GETPIVOTDATA("BAS118",TABLAS!$A$128) -> 147 | K74: =+GETPIVOTDATA("BAS119",TABLAS!$A$128) -> 58 | L74: =+GETPIVOTDATA("BAS120",TABLAS!$A$128) -> 21 | M74: =+GETPIVOTDATA("BAS121",TABLAS!$A$128) -> 5 | N74: =+GETPIVOTDATA("BAS122",TABLAS!$A$128) -> 2 | O74: =+GETPIVOTDATA("BAS123",TABLAS!$A$128) -> 126 | P74: =+GETPIVOTDATA("BAS124",TABLAS!$A$128) -> 3 | Q74: =+GETPIVOTDATA("BAS125",TABLAS!$A$128) -> 148 | R74: =+GETPIVOTDATA("BAS126",TABLAS!$A$128) -> 59 | S74: =+GETPIVOTDATA("BAS127",TABLAS!$A$128) -> 20 | T74: =+GETPIVOTDATA("BAS128",TABLAS!$A$128) -> 0 | U74: =+GETPIVOTDATA("BAS129",TABLAS!$A$128) -> 2 | V74: =+GETPIVOTDATA("BAS130",TABLAS!$A$128) -> 121 | W74: =+GETPIVOTDATA("BAS131",TABLAS!$A$128) -> 0 | Y74: =C67&" "&C69&" "&C70 -> GESTANTES VIH/SIDA 1º TAMIZAJE | AB74: =SUM(C72:E72) -> 0 | AC74: =SUM(C73:E73) -> 33 | AD74: =SUM(C74:E74) -> 248 | AE74: =SUM(C75:E75) -> 183 | AF74: 464 | AG74: =IF(AND(AF74=AF75,AF74=AF76),1,-1) -> -1 | AK74: =+BA58+4 -> 111 | AL74: =+AK74+1 -> 112 | AM74: 113 | AN74: 114 | AO74: 115 | AP74: 116 | AQ74: 117 | AR74: 118 | AS74: 119 | AT74: 120 | AU74: 121 | AV74: 122 | AW74: 123 | AX74: 124 | AY74: 125 | AZ74: 126 | BA74: 127 | BB74: 128 | BC74: 129 | BD74: 130 | BE74: 131 | BL74: 111 | BM74: 112 | BN74: 113 | BO74: 114 | BP74: 115 | BQ74: 116 | BR74: 117 | BS74: 118 | BT74: 119 | BU74: 120 | BV74: 121 | BW74: 122 | BX74: 123 | BY74: 124 | BZ74: 125 | CA74: 126 | CB74: 127 | CC74: 128 | CD74: 129 | CE74: 130 | CF74: 131 | CM74: =CONCATENATE($CN$15,BL74,$CP$17) -> =+IMPORTARDATOSDINAMICOS("BAS111",TABLAS!$A$128) | CN74: =CONCATENATE($CN$15,BM74,$CP$17) -> =+IMPORTARDATOSDINAMICOS("BAS112",TABLAS!$A$128) | CO74: =+IMPORTARDATOSDINAMICOS("BAS113",TABLAS!$A$128) | CP74: =+IMPORTARDATOSDINAMICOS("BAS114",TABLAS!$A$128) | CQ74: =+IMPORTARDATOSDINAMICOS("BAS115",TABLAS!$A$128) | CR74: =+IMPORTARDATOSDINAMICOS("BAS116",TABLAS!$A$128) | CS74: =+IMPORTARDATOSDINAMICOS("BAS117",TABLAS!$A$128) | CT74: =+IMPORTARDATOSDINAMICOS("BAS118",TABLAS!$A$128) | CU74: =+IMPORTARDATOSDINAMICOS("BAS119",TABLAS!$A$128) | CV74: =+IMPORTARDATOSDINAMICOS("BAS120",TABLAS!$A$128) | CW74: =+IMPORTARDATOSDINAMICOS("BAS121",TABLAS!$A$128) | CX74: =+IMPORTARDATOSDINAMICOS("BAS122",TABLAS!$A$128) | CY74: =+IMPORTARDATOSDINAMICOS("BAS123",TABLAS!$A$128) | CZ74: =+IMPORTARDATOSDINAMICOS("BAS124",TABLAS!$A$128) | DA74: =+IMPORTARDATOSDINAMICOS("BAS125",TABLAS!$A$128) | DB74: =+IMPORTARDATOSDINAMICOS("BAS126",TABLAS!$A$128) | DC74: =+IMPORTARDATOSDINAMICOS("BAS127",TABLAS!$A$128) | DD74: =+IMPORTARDATOSDINAMICOS("BAS128",TABLAS!$A$128) | DE74: =+IMPORTARDATOSDINAMICOS("BAS129",TABLAS!$A$128) | DF74: =+IMPORTARDATOSDINAMICOS("BAS130",TABLAS!$A$128) | DG74: =+IMPORTARDATOSDINAMICOS("BAS131",TABLAS!$A$128)
B75: 30-59 | C75: =+GETPIVOTDATA("BAS111",TABLAS!$A$163) -> 137 | D75: =+GETPIVOTDATA("BAS112",TABLAS!$A$163) -> 37 | E75: =+GETPIVOTDATA("BAS113",TABLAS!$A$163) -> 9 | F75: =+GETPIVOTDATA("BAS114",TABLAS!$A$163) -> 0 | G75: =+GETPIVOTDATA("BAS115",TABLAS!$A$163) -> 0 | H75: =+GETPIVOTDATA("BAS116",TABLAS!$A$163) -> 108 | I75: =+GETPIVOTDATA("BAS117",TABLAS!$A$163) -> 0 | J75: =+GETPIVOTDATA("BAS118",TABLAS!$A$163) -> 130 | K75: =+GETPIVOTDATA("BAS119",TABLAS!$A$163) -> 31 | L75: =+GETPIVOTDATA("BAS120",TABLAS!$A$163) -> 11 | M75: =+GETPIVOTDATA("BAS121",TABLAS!$A$163) -> 5 | N75: =+GETPIVOTDATA("BAS122",TABLAS!$A$163) -> 0 | O75: =+GETPIVOTDATA("BAS123",TABLAS!$A$163) -> 92 | P75: =+GETPIVOTDATA("BAS124",TABLAS!$A$163) -> 0 | Q75: =+GETPIVOTDATA("BAS125",TABLAS!$A$163) -> 129 | R75: =+GETPIVOTDATA("BAS126",TABLAS!$A$163) -> 30 | S75: =+GETPIVOTDATA("BAS127",TABLAS!$A$163) -> 11 | T75: =+GETPIVOTDATA("BAS128",TABLAS!$A$163) -> 1 | U75: =+GETPIVOTDATA("BAS129",TABLAS!$A$163) -> 0 | V75: =+GETPIVOTDATA("BAS130",TABLAS!$A$163) -> 89 | W75: =+GETPIVOTDATA("BAS131",TABLAS!$A$163) -> 0 | Y75: =C67&" "&J69&" "&J70 -> GESTANTES SIFILIS 1º TAMIZAJE | AB75: =SUM(J72:L72) -> 0 | AC75: =SUM(J73:L73) -> 34 | AD75: =SUM(J74:L74) -> 226 | AE75: =SUM(J75:L75) -> 172 | AF75: 432 | AG75: =IF(AND(AF75=AF74,AF75=AF76),1,-1) -> -1 | AK75: =+BA59+4 -> 111 | AL75: =+AK75+1 -> 112 | AM75: 113 | AN75: 114 | AO75: 115 | AP75: 116 | AQ75: 117 | AR75: 118 | AS75: 119 | AT75: 120 | AU75: 121 | AV75: 122 | AW75: 123 | AX75: 124 | AY75: 125 | AZ75: 126 | BA75: 127 | BB75: 128 | BC75: 129 | BD75: 130 | BE75: 131 | BL75: 111 | BM75: 112 | BN75: 113 | BO75: 114 | BP75: 115 | BQ75: 116 | BR75: 117 | BS75: 118 | BT75: 119 | BU75: 120 | BV75: 121 | BW75: 122 | BX75: 123 | BY75: 124 | BZ75: 125 | CA75: 126 | CB75: 127 | CC75: 128 | CD75: 129 | CE75: 130 | CF75: 131 | CM75: =CONCATENATE($CN$15,BL75,$CP$18) -> =+IMPORTARDATOSDINAMICOS("BAS111",TABLAS!$A$199) | CN75: =CONCATENATE($CN$15,BM75,$CP$18) -> =+IMPORTARDATOSDINAMICOS("BAS112",TABLAS!$A$199) | CO75: =+IMPORTARDATOSDINAMICOS("BAS113",TABLAS!$A$199) | CP75: =+IMPORTARDATOSDINAMICOS("BAS114",TABLAS!$A$199) | CQ75: =+IMPORTARDATOSDINAMICOS("BAS115",TABLAS!$A$199) | CR75: =+IMPORTARDATOSDINAMICOS("BAS116",TABLAS!$A$199) | CS75: =+IMPORTARDATOSDINAMICOS("BAS117",TABLAS!$A$199) | CT75: =+IMPORTARDATOSDINAMICOS("BAS118",TABLAS!$A$199) | CU75: =+IMPORTARDATOSDINAMICOS("BAS119",TABLAS!$A$199) | CV75: =+IMPORTARDATOSDINAMICOS("BAS120",TABLAS!$A$199) | CW75: =+IMPORTARDATOSDINAMICOS("BAS121",TABLAS!$A$199) | CX75: =+IMPORTARDATOSDINAMICOS("BAS122",TABLAS!$A$199) | CY75: =+IMPORTARDATOSDINAMICOS("BAS123",TABLAS!$A$199) | CZ75: =+IMPORTARDATOSDINAMICOS("BAS124",TABLAS!$A$199) | DA75: =+IMPORTARDATOSDINAMICOS("BAS125",TABLAS!$A$199) | DB75: =+IMPORTARDATOSDINAMICOS("BAS126",TABLAS!$A$199) | DC75: =+IMPORTARDATOSDINAMICOS("BAS127",TABLAS!$A$199) | DD75: =+IMPORTARDATOSDINAMICOS("BAS128",TABLAS!$A$199) | DE75: =+IMPORTARDATOSDINAMICOS("BAS129",TABLAS!$A$199) | DF75: =+IMPORTARDATOSDINAMICOS("BAS130",TABLAS!$A$199) | DG75: =+IMPORTARDATOSDINAMICOS("BAS131",TABLAS!$A$199)
B76: TOTAL | C76: =SUM(C72:C75) -> 315 | D76: =SUM(D72:D75) -> 116 | E76: 33 | F76: 1 | G76: 2 | H76: 260 | I76: 0 | J76: 292 | K76: 102 | L76: 38 | M76: 11 | N76: 2 | O76: 236 | P76: 3 | Q76: 292 | R76: 102 | S76: =SUM(S72:S75) -> 37 | T76: =SUM(T72:T75) -> 1 | U76: =SUM(U72:U75) -> 2 | V76: =SUM(V72:V75) -> 228 | W76: =SUM(W72:W75) -> 0 | Y76: =C67&" "&Q69&" "&Q70 -> GESTANTES HEPATITIS B 1º TAMIZAJE | AB76: =SUM(Q72:S72) -> 0 | AC76: =SUM(Q73:S73) -> 34 | AD76: =SUM(Q74:S74) -> 227 | AE76: =SUM(Q75:S75) -> 170 | AF76: 431 | AG76: =IF(AND(AF76=AF74,AF76=AF75),1,-1) -> -1
C77: =SUM(C76:E76) -> 464 | D77: =IF(AND(C77=J77,C77=Q77),1,-1) -> -1 | J77: =SUM(J76:L76) -> 432 | K77: =IF(AND(J77=C77,J77=Q77),1,-1) -> -1 | Q77: =SUM(Q76:S76) -> 431 | R77: =IF(AND(Q77=C77,Q77=J77),1,-1) -> -1
Y78: ="Atc Puerperio"&" "&Q53 -> Atc Puerperio Controlada 3329801 | AB78: =+Q56 -> 0 | AC78: =+Q57 -> 23 | AD78: =+Q58 -> 144 | AE78: =+Q59 -> 140 | AF78: =SUM(AB78:AE78) -> 307 | AG78: =IF(AF78=AF79,1,-1) -> -1
C79: =+W66+22 -> 153 | D79: =+C79+1 -> 154 | E79: =+D79+1 -> 155 | F79: 156 | G79: 157 | H79: 158 | J79: X. CONSEJERIA EN LACTANCIA MATERNA | P79: OTROS | V79: V. MORBILIDAD DEL RN | Y79: ="Suplem Sulferro"&" "&G54&" "&H55 -> Suplem Sulferro Suplementada Puérpera | AB79: =+H56 -> 0 | AC79: =+H57 -> 19 | AD79: =+H58 -> 95 | AE79: =+H59 -> 118 | AF79: 232 | AG79: =IF(AF79=AF78,1,-1) -> -1
B80: Grupo Etáreo | C80: PUERPERAS INMEDIATAS | K80: =+H79+7 -> 165 | L80: =+K80+1 -> 166 | M80: =+L80+1 -> 167
C81: VIH/SIDA | E81: SIFILIS | J81: Grupo Etáreo | K81: GESTANTE 3º CONSEJERÍA | L81: PUÉRPERIO INMEDIATO 4º CONSEJERIA | M81: ATENCIÓN PUÉRPERAL 5º a + CONSEJERÍA | T81: Nº | V81: Causas de Morbilidad | Y81: Nº
C82: Tamizaje para VIH | D82: Reactivo para VIH | E82: Prueba Rápida | F82: Positivo | G82: Tamizaje RPR | H82: RPR Reactivo | O82: =+U88+1 -> 88 | P82: 1º Prueba Rápida para VIH en Trabajo de Parto | T82: =+GETPIVOTDATA("BAS088",TABLAS!$A$199) -> 0 | U82: =+X55+7 -> 81 | V82: Bajo Peso 3330624 | Y82: =+GETPIVOTDATA("BAS081",TABLAS!$A$199) -> 20 | Z82: =+GETPIVOTDATA(" f23330624",TABLAS!$A$252) ->  | AA82: =+Y82*100/Z82 -> 
O83: =+O82+1 -> 89 | P83: 1º Prueba Rápida VIH en Trabajo de Parto Reactivo | T83: =+GETPIVOTDATA("BAS089",TABLAS!$A$199) -> 0 | U83: =+U82+1 -> 82 | V83: Prematuro 3330625 | Y83: =+GETPIVOTDATA("BAS082",TABLAS!$A$199) -> 0 | Z83: =+GETPIVOTDATA(" f23330625",TABLAS!$A$252) ->  | AA83: =+Y83*100/Z83 ->  | CK83: 153 | CL83: =+CK83+1 -> 154 | CM83: =+CL83+1 -> 155 | CN83: 156 | CO83: 157 | CP83: 158
B84: < 12 a. | C84: =+GETPIVOTDATA("BAS153",TABLAS!$A$57) -> 0 | D84: =+GETPIVOTDATA("BAS154",TABLAS!$A$57) -> 0 | E84: =+GETPIVOTDATA("BAS155",TABLAS!$A$57) -> 0 | F84: =+GETPIVOTDATA("BAS156",TABLAS!$A$57) -> 0 | G84: =+GETPIVOTDATA("BAS157",TABLAS!$A$57) -> 0 | H84: =+GETPIVOTDATA("BAS158",TABLAS!$A$57) -> 0 | J84: < 12 a. | K84: =+GETPIVOTDATA("BAS165",TABLAS!$A$57) -> 0 | L84: =+GETPIVOTDATA("BAS166",TABLAS!$A$57) -> 0 | M84: =+GETPIVOTDATA("BAS167",TABLAS!$A$57) -> 0 | O84: =+O83+1 -> 90 | P84: 1º Prueba Rápida para VIH en Aborto | T84: =+GETPIVOTDATA("BAS090",TABLAS!$A$199) -> 0 | U84: =+U83+1 -> 83 | V84: Hipoxia | Y84: =+GETPIVOTDATA("BAS083",TABLAS!$A$199) -> 0 | AI84: =+BE72+22 -> 153 | AJ84: =+AI84+1 -> 154 | AK84: =+AJ84+1 -> 155 | AL84: 156 | AM84: 157 | AN84: 158 | AV84: =+AT102+1 -> 1 | BJ84: =IF(AI84<10,CONCATENATE("00",AI84),IF(AND(AI84<100,AI84>9),CONCATENATE("0",AI84),AI84)) -> 153 | BK84: =IF(AJ84<10,CONCATENATE("00",AJ84),IF(AND(AJ84<100,AJ84>9),CONCATENATE("0",AJ84),AJ84)) -> 154 | BL84: =IF(AK84<10,CONCATENATE("00",AK84),IF(AND(AK84<100,AK84>9),CONCATENATE("0",AK84),AK84)) -> 155 | BM84: =IF(AL84<10,CONCATENATE("00",AL84),IF(AND(AL84<100,AL84>9),CONCATENATE("0",AL84),AL84)) -> 156 | BN84: =IF(AM84<10,CONCATENATE("00",AM84),IF(AND(AM84<100,AM84>9),CONCATENATE("0",AM84),AM84)) -> 157 | BO84: =IF(AN84<10,CONCATENATE("00",AN84),IF(AND(AN84<100,AN84>9),CONCATENATE("0",AN84),AN84)) -> 158 | BW84: =IF(AV84<10,CONCATENATE("00",AV84),IF(AND(AV84<100,AV84>9),CONCATENATE("0",AV84),AV84)) -> 001 | CK84: =CONCATENATE($CN$15,BJ84,$CP$15) -> =+IMPORTARDATOSDINAMICOS("BAS153",TABLAS!$A$199) | CL84: =CONCATENATE($CN$15,BK84,$CP$15) -> =+IMPORTARDATOSDINAMICOS("BAS154",TABLAS!$A$199) | CM84: =+IMPORTARDATOSDINAMICOS("BAS155",TABLAS!$A$199) | CN84: =+IMPORTARDATOSDINAMICOS("BAS156",TABLAS!$A$199) | CO84: =+IMPORTARDATOSDINAMICOS("BAS157",TABLAS!$A$199) | CP84: =+IMPORTARDATOSDINAMICOS("BAS158",TABLAS!$A$199) | CX84: =CONCATENATE($CN$15,BW84,$CP$15) -> =+IMPORTARDATOSDINAMICOS("BAS001",TABLAS!$A$199)
B85: ´12-17 | C85: =+GETPIVOTDATA("BAS153",TABLAS!$A$93) -> 0 | D85: =+GETPIVOTDATA("BAS154",TABLAS!$A$93) -> 0 | E85: =+GETPIVOTDATA("BAS155",TABLAS!$A$93) -> 0 | F85: =+GETPIVOTDATA("BAS156",TABLAS!$A$93) -> 0 | G85: =+GETPIVOTDATA("BAS157",TABLAS!$A$93) -> 0 | H85: =+GETPIVOTDATA("BAS158",TABLAS!$A$93) -> 0 | J85: ´12-17 | K85: =+GETPIVOTDATA("BAS165",TABLAS!$A$93) -> 13 | L85: =+GETPIVOTDATA("BAS166",TABLAS!$A$93) -> 2 | M85: =+GETPIVOTDATA("BAS167",TABLAS!$A$93) -> 14 | O85: =+O84+1 -> 91 | P85: 1º Prueba Rápida VIH en Aborto Reactvo | T85: =+GETPIVOTDATA("BAS091",TABLAS!$A$199) -> 0 | U85: 84 | V85: Síndrome de Distrés Respiratorio | Y85: =+GETPIVOTDATA("BAS084",TABLAS!$A$199) -> 0 | AI85: =+BE72+22 -> 153 | AJ85: =+AI85+1 -> 154 | AK85: 155 | AL85: 156 | AM85: 157 | AN85: 158 | AV85: =+AV84+1 -> 2 | BJ85: 153 | BK85: 154 | BL85: 155 | BM85: 156 | BN85: 157 | BO85: 158 | BW85: 002 | CK85: =CONCATENATE($CN$15,BJ85,$CP$16) -> =+IMPORTARDATOSDINAMICOS("BAS153",TABLAS!$A$93) | CL85: =CONCATENATE($CN$15,BK85,$CP$16) -> =+IMPORTARDATOSDINAMICOS("BAS154",TABLAS!$A$93) | CM85: =+IMPORTARDATOSDINAMICOS("BAS155",TABLAS!$A$93) | CN85: =+IMPORTARDATOSDINAMICOS("BAS156",TABLAS!$A$93) | CO85: =+IMPORTARDATOSDINAMICOS("BAS157",TABLAS!$A$93) | CP85: =+IMPORTARDATOSDINAMICOS("BAS158",TABLAS!$A$93) | CX85: =+IMPORTARDATOSDINAMICOS("BAS002",TABLAS!$A$199)
B86: 18-29 | C86: =+GETPIVOTDATA("BAS153",TABLAS!$A$128) -> 0 | D86: =+GETPIVOTDATA("BAS154",TABLAS!$A$128) -> 0 | E86: =+GETPIVOTDATA("BAS155",TABLAS!$A$128) -> 2 | F86: =+GETPIVOTDATA("BAS156",TABLAS!$A$128) -> 0 | G86: =+GETPIVOTDATA("BAS157",TABLAS!$A$128) -> 0 | H86: =+GETPIVOTDATA("BAS158",TABLAS!$A$128) -> 0 | J86: 18-29 | K86: =+GETPIVOTDATA("BAS165",TABLAS!$A$128) -> 81 | L86: =+GETPIVOTDATA("BAS166",TABLAS!$A$128) -> 14 | M86: =+GETPIVOTDATA("BAS167",TABLAS!$A$128) -> 64 | U86: 85 | V86: Sepsis Neonatal | Y86: =+GETPIVOTDATA("BAS085",TABLAS!$A$199) -> 0 | AI86: =+BE72+22 -> 153 | AJ86: =+AI86+1 -> 154 | AK86: 155 | AL86: 156 | AM86: 157 | AN86: 158 | AV86: =+AV85+1 -> 3 | BJ86: 153 | BK86: 154 | BL86: 155 | BM86: 156 | BN86: 157 | BO86: 158 | BW86: 003 | CK86: =CONCATENATE($CN$15,BJ86,$CP$17) -> =+IMPORTARDATOSDINAMICOS("BAS153",TABLAS!$A$128) | CL86: =CONCATENATE($CN$15,BK86,$CP$17) -> =+IMPORTARDATOSDINAMICOS("BAS154",TABLAS!$A$128) | CM86: =+IMPORTARDATOSDINAMICOS("BAS155",TABLAS!$A$128) | CN86: =+IMPORTARDATOSDINAMICOS("BAS156",TABLAS!$A$128) | CO86: =+IMPORTARDATOSDINAMICOS("BAS157",TABLAS!$A$128) | CP86: =+IMPORTARDATOSDINAMICOS("BAS158",TABLAS!$A$128) | CX86: =+IMPORTARDATOSDINAMICOS("BAS003",TABLAS!$A$199)
B87: 30-59 | C87: =+GETPIVOTDATA("BAS153",TABLAS!$A$163) -> 0 | D87: =+GETPIVOTDATA("BAS154",TABLAS!$A$163) -> 0 | E87: =+GETPIVOTDATA("BAS155",TABLAS!$A$163) -> 0 | F87: =+GETPIVOTDATA("BAS156",TABLAS!$A$163) -> 0 | G87: =+GETPIVOTDATA("BAS157",TABLAS!$A$163) -> 0 | H87: =+GETPIVOTDATA("BAS158",TABLAS!$A$163) -> 0 | J87: 30-59 | K87: =+GETPIVOTDATA("BAS165",TABLAS!$A$163) -> 60 | L87: =+GETPIVOTDATA("BAS166",TABLAS!$A$163) -> 2 | M87: =+GETPIVOTDATA("BAS167",TABLAS!$A$163) -> 69 | U87: 86 | V87: Sífilis Congénita | Y87: =+GETPIVOTDATA("BAS086",TABLAS!$A$199) -> 0 | AI87: =+BE72+22 -> 153 | AJ87: =+AI87+1 -> 154 | AK87: 155 | AL87: 156 | AM87: 157 | AN87: 158 | AV87: 4 | BJ87: 153 | BK87: 154 | BL87: 155 | BM87: 156 | BN87: 157 | BO87: 158 | BW87: 004 | CK87: =CONCATENATE($CN$15,BJ87,$CP$18) -> =+IMPORTARDATOSDINAMICOS("BAS153",TABLAS!$A$199) | CL87: =CONCATENATE($CN$15,BK87,$CP$18) -> =+IMPORTARDATOSDINAMICOS("BAS154",TABLAS!$A$199) | CM87: =+IMPORTARDATOSDINAMICOS("BAS155",TABLAS!$A$199) | CN87: =+IMPORTARDATOSDINAMICOS("BAS156",TABLAS!$A$199) | CO87: =+IMPORTARDATOSDINAMICOS("BAS157",TABLAS!$A$199) | CP87: =+IMPORTARDATOSDINAMICOS("BAS158",TABLAS!$A$199) | CX87: =+IMPORTARDATOSDINAMICOS("BAS004",TABLAS!$A$199)
B88: TOTAL | C88: =SUM(C84:C87) -> 0 | D88: =SUM(D84:D87) -> 0 | E88: =SUM(E84:E87) -> 2 | F88: 0 | G88: =SUM(G84:G87) -> 0 | H88: =SUM(H84:H87) -> 0 | J88: TOTAL | K88: =SUM(K84:K87) -> 154 | L88: =SUM(L84:L87) -> 18 | M88: 147 | U88: 87 | V88: RN - VIH Expuesto | Y88: =+GETPIVOTDATA("BAS087",TABLAS!$A$199) -> 0
B92: IV ATENCION DEL PARTO | AA92: Nº
C93: 1 | D93: =+C93+1 -> 2 | E93: =+D93+1 -> 3 | F93: 4 | G93: 5 | H93: 6 | I93: 7 | J93: 8 | M93: 28 | N93: 29 | O93: 30 | R93: 40 | S93: 41 | T93: 42 | V93: 161 | W93: 3033299 ATENCION DEL PUERPERIO CON COMPLICACIONES | X93: 3329901 ENDOMETRITIS PUERPERAL | Z93: O85X | AA93: =+GETPIVOTDATA("BAS161",TABLAS!$A$199) -> 1 | AB93: =+GETPIVOTDATA(" f23329901",TABLAS!$A$252) -> 4 | AC93: =+AA93*100/AB93 -> 25
B94: ATENCION PARTO INSTITUCIONAL | K94: PARTO DOMICILIARIO | P94: PARTO EN EL TRAYECTO | V94: =+V93+1 -> 162 | X94: 3329902 MASTITIS | Z94: O91 | AA94: =+GETPIVOTDATA("BAS162",TABLAS!$A$199) -> 7 | AB94: =+GETPIVOTDATA(" f23329902",TABLAS!$A$252) -> 6 | AC94: 116.6666667
B95: FON | C95: GINECO -OBSTETRA | D95: MEDICO GENERAL | E95: OBST. | F95: OTRO PROFES DE SALUD | G95: TEC. ENF. | H95: TOTAL DE PARTOS | I95: TOTAL DE RN VIVOS | J95: TOTAL DE RN MUERTOS | K95: Quién atiende el parto? | M95: Nro de partos | N95: TOTAL DE RN VIVOS | O95: TOTAL DE RN MUERTOS | P95: Quién atiende el parto? | R95: Nro de partos | S95: TOTAL DE RN VIVOS | T95: TOTAL DE RN MUERTOS | V95: 163 | X95: 3329903 OTRAS COMPLICACIONES DEL PUERPERIO | Z95: O87 | AA95: =+GETPIVOTDATA("BAS163",TABLAS!$A$199) -> 0 | CM95: 165 | CN95: =+CM95+1 -> 166 | CO95: =+CN95+1 -> 167
V96: 164 | Z96: O86 | AA96: =+GETPIVOTDATA("BAS164",TABLAS!$A$199) -> 6 | AK96: 1 | AL96: =+AK96+1 -> 2 | AM96: =+AL96+1 -> 3 | AN96: =+AM96+1 -> 4 | AO96: =+AN96+1 -> 5 | AP96: =+AO96+1 -> 6 | AQ96: =+AP96+1 -> 7 | AR96: =+AQ96+1 -> 8 | AT96: 28 | AU96: =+AT96+1 -> 29 | AV96: =+AU96+1 -> 30 | AX96: =+AV99+1 -> 40 | AY96: =+AX96+1 -> 41 | AZ96: =+AY96+1 -> 42 | BL96: =IF(AK96<10,CONCATENATE("00",AK96),IF(AND(AK96<100,AK96>9),CONCATENATE("0",AK96),AK96)) -> 001 | BM96: =IF(AL96<10,CONCATENATE("00",AL96),IF(AND(AL96<100,AL96>9),CONCATENATE("0",AL96),AL96)) -> 002 | BN96: =IF(AM96<10,CONCATENATE("00",AM96),IF(AND(AM96<100,AM96>9),CONCATENATE("0",AM96),AM96)) -> 003 | BO96: =IF(AN96<10,CONCATENATE("00",AN96),IF(AND(AN96<100,AN96>9),CONCATENATE("0",AN96),AN96)) -> 004 | BP96: =IF(AO96<10,CONCATENATE("00",AO96),IF(AND(AO96<100,AO96>9),CONCATENATE("0",AO96),AO96)) -> 005 | BQ96: =IF(AP96<10,CONCATENATE("00",AP96),IF(AND(AP96<100,AP96>9),CONCATENATE("0",AP96),AP96)) -> 006 | BR96: =IF(AQ96<10,CONCATENATE("00",AQ96),IF(AND(AQ96<100,AQ96>9),CONCATENATE("0",AQ96),AQ96)) -> 007 | BS96: =IF(AR96<10,CONCATENATE("00",AR96),IF(AND(AR96<100,AR96>9),CONCATENATE("0",AR96),AR96)) -> 008 | BU96: =IF(AT96<10,CONCATENATE("00",AT96),IF(AND(AT96<100,AT96>9),CONCATENATE("0",AT96),AT96)) -> 028 | BV96: =IF(AU96<10,CONCATENATE("00",AU96),IF(AND(AU96<100,AU96>9),CONCATENATE("0",AU96),AU96)) -> 029 | BW96: =IF(AV96<10,CONCATENATE("00",AV96),IF(AND(AV96<100,AV96>9),CONCATENATE("0",AV96),AV96)) -> 030 | BY96: =IF(AX96<10,CONCATENATE("00",AX96),IF(AND(AX96<100,AX96>9),CONCATENATE("0",AX96),AX96)) -> 040 | BZ96: =IF(AY96<10,CONCATENATE("00",AY96),IF(AND(AY96<100,AY96>9),CONCATENATE("0",AY96),AY96)) -> 041 | CA96: =IF(AZ96<10,CONCATENATE("00",AZ96),IF(AND(AZ96<100,AZ96>9),CONCATENATE("0",AZ96),AZ96)) -> 042 | CM96: =CONCATENATE($CN$15,BL96,$CP$15) -> =+IMPORTARDATOSDINAMICOS("BAS001",TABLAS!$A$199) | CN96: =CONCATENATE($CN$15,BM96,$CP$15) -> =+IMPORTARDATOSDINAMICOS("BAS002",TABLAS!$A$199) | CO96: =CONCATENATE($CN$15,BN96,$CP$15) -> =+IMPORTARDATOSDINAMICOS("BAS003",TABLAS!$A$199) | CP96: =CONCATENATE($CN$15,BO96,$CP$15) -> =+IMPORTARDATOSDINAMICOS("BAS004",TABLAS!$A$199) | CQ96: =CONCATENATE($CN$15,BP96,$CP$15) -> =+IMPORTARDATOSDINAMICOS("BAS005",TABLAS!$A$199) | CR96: =CONCATENATE($CN$15,BQ96,$CP$15) -> =+IMPORTARDATOSDINAMICOS("BAS006",TABLAS!$A$199) | CS96: =CONCATENATE($CN$15,BR96,$CP$15) -> =+IMPORTARDATOSDINAMICOS("BAS007",TABLAS!$A$199) | CT96: =CONCATENATE($CN$15,BS96,$CP$15) -> =+IMPORTARDATOSDINAMICOS("BAS008",TABLAS!$A$199) | CU96: =CONCATENATE($CN$15,BT96,$CP$15) -> =+IMPORTARDATOSDINAMICOS("BAS",TABLAS!$A$199) | CV96: =CONCATENATE($CN$15,BU96,$CP$15) -> =+IMPORTARDATOSDINAMICOS("BAS028",TABLAS!$A$199) | CW96: =CONCATENATE($CN$15,BV96,$CP$15) -> =+IMPORTARDATOSDINAMICOS("BAS029",TABLAS!$A$199) | CX96: =CONCATENATE($CN$15,BW96,$CP$15) -> =+IMPORTARDATOSDINAMICOS("BAS030",TABLAS!$A$199) | CY96: =CONCATENATE($CN$15,BX96,$CP$15) -> =+IMPORTARDATOSDINAMICOS("BAS",TABLAS!$A$199) | CZ96: =CONCATENATE($CN$15,BY96,$CP$15) -> =+IMPORTARDATOSDINAMICOS("BAS040",TABLAS!$A$199) | DA96: =CONCATENATE($CN$15,BZ96,$CP$15) -> =+IMPORTARDATOSDINAMICOS("BAS041",TABLAS!$A$199) | DB96: =CONCATENATE($CN$15,CA96,$CP$15) -> =+IMPORTARDATOSDINAMICOS("BAS042",TABLAS!$A$199) | DC96: =CONCATENATE($CN$15,CB96,$CP$15) -> =+IMPORTARDATOSDINAMICOS("BAS",TABLAS!$A$199) | DD96: =CONCATENATE($CN$15,CC96,$CP$15) -> =+IMPORTARDATOSDINAMICOS("BAS",TABLAS!$A$199) | DE96: =CONCATENATE($CN$15,CD96,$CP$15) -> =+IMPORTARDATOSDINAMICOS("BAS",TABLAS!$A$199) | DF96: =CONCATENATE($CN$15,CE96,$CP$15) -> =+IMPORTARDATOSDINAMICOS("BAS",TABLAS!$A$199) | DG96: =CONCATENATE($CN$15,CF96,$CP$15) -> =+IMPORTARDATOSDINAMICOS("BAS",TABLAS!$A$199)
B97: FONI | K97: PERSONAL DE SALUD | M97: =+GETPIVOTDATA("BAS028",TABLAS!$A$199) -> 2 | N97: =+GETPIVOTDATA("BAS029",TABLAS!$A$199) -> 2 | O97: =+GETPIVOTDATA("BAS030",TABLAS!$A$199) -> 0 | P97: PERSONAL DE SALUD | R97: =+GETPIVOTDATA("BAS040",TABLAS!$A$199) -> 0 | S97: =+GETPIVOTDATA("BAS041",TABLAS!$A$199) -> 0 | T97: =+GETPIVOTDATA("BAS042",TABLAS!$A$199) -> 0 | V97: 165 | Z97: O90 | AA97: =+GETPIVOTDATA("BAS165",TABLAS!$A$199) -> 5 | AK97: =+AR96+1 -> 9 | AL97: =+AK97+1 -> 10 | AM97: 11 | AN97: 12 | AO97: 13 | AP97: 14 | AQ97: 15 | AR97: 16 | AT97: =+AV96+1 -> 31 | AU97: 32 | AV97: 33 | AX97: =+AZ96+1 -> 43 | AY97: 44 | AZ97: 45 | BL97: 009 | BM97: 010 | BN97: 011 | BO97: 012 | BP97: 013 | BQ97: 014 | BR97: 015 | BS97: 016 | BU97: 031 | BV97: 032 | BW97: 033 | BY97: 043 | BZ97: 044 | CA97: 045 | CM97: =CONCATENATE($CN$15,BL97,$CP$16) -> =+IMPORTARDATOSDINAMICOS("BAS009",TABLAS!$A$93) | CN97: =CONCATENATE($CN$15,BM97,$CP$16) -> =+IMPORTARDATOSDINAMICOS("BAS010",TABLAS!$A$93) | CO97: =CONCATENATE($CN$15,BN97,$CP$16) -> =+IMPORTARDATOSDINAMICOS("BAS011",TABLAS!$A$93) | CP97: =CONCATENATE($CN$15,BO97,$CP$16) -> =+IMPORTARDATOSDINAMICOS("BAS012",TABLAS!$A$93) | CQ97: =CONCATENATE($CN$15,BP97,$CP$16) -> =+IMPORTARDATOSDINAMICOS("BAS013",TABLAS!$A$93) | CR97: =CONCATENATE($CN$15,BQ97,$CP$16) -> =+IMPORTARDATOSDINAMICOS("BAS014",TABLAS!$A$93) | CS97: =CONCATENATE($CN$15,BR97,$CP$16) -> =+IMPORTARDATOSDINAMICOS("BAS015",TABLAS!$A$93) | CT97: =CONCATENATE($CN$15,BS97,$CP$16) -> =+IMPORTARDATOSDINAMICOS("BAS016",TABLAS!$A$93) | CU97: =CONCATENATE($CN$15,BT97,$CP$16) -> =+IMPORTARDATOSDINAMICOS("BAS",TABLAS!$A$93) | CV97: =CONCATENATE($CN$15,BU97,$CP$16) -> =+IMPORTARDATOSDINAMICOS("BAS031",TABLAS!$A$93) | CW97: =CONCATENATE($CN$15,BV97,$CP$16) -> =+IMPORTARDATOSDINAMICOS("BAS032",TABLAS!$A$93) | CX97: =CONCATENATE($CN$15,BW97,$CP$16) -> =+IMPORTARDATOSDINAMICOS("BAS033",TABLAS!$A$93) | CY97: =CONCATENATE($CN$15,BX97,$CP$16) -> =+IMPORTARDATOSDINAMICOS("BAS",TABLAS!$A$93) | CZ97: =CONCATENATE($CN$15,BY97,$CP$16) -> =+IMPORTARDATOSDINAMICOS("BAS043",TABLAS!$A$93) | DA97: =CONCATENATE($CN$15,BZ97,$CP$16) -> =+IMPORTARDATOSDINAMICOS("BAS044",TABLAS!$A$93) | DB97: =CONCATENATE($CN$15,CA97,$CP$16) -> =+IMPORTARDATOSDINAMICOS("BAS045",TABLAS!$A$93) | DC97: =CONCATENATE($CN$15,CB97,$CP$16) -> =+IMPORTARDATOSDINAMICOS("BAS",TABLAS!$A$93) | DD97: =CONCATENATE($CN$15,CC97,$CP$16) -> =+IMPORTARDATOSDINAMICOS("BAS",TABLAS!$A$93) | DE97: =CONCATENATE($CN$15,CD97,$CP$16) -> =+IMPORTARDATOSDINAMICOS("BAS",TABLAS!$A$93) | DF97: =CONCATENATE($CN$15,CE97,$CP$16) -> =+IMPORTARDATOSDINAMICOS("BAS",TABLAS!$A$93) | DG97: =CONCATENATE($CN$15,CF97,$CP$16) -> =+IMPORTARDATOSDINAMICOS("BAS",TABLAS!$A$93)
B98: FONE | C98: =+GETPIVOTDATA("BAS001",TABLAS!$A$199) -> 3 | D98: =+GETPIVOTDATA("BAS002",TABLAS!$A$199) -> 0 | E98: =+GETPIVOTDATA("BAS003",TABLAS!$A$199) -> 128 | F98: =+GETPIVOTDATA("BAS004",TABLAS!$A$199) -> 0 | G98: =+GETPIVOTDATA("BAS005",TABLAS!$A$199) -> 0 | H98: =+GETPIVOTDATA("BAS006",TABLAS!$A$199) -> 133 | I98: =+GETPIVOTDATA("BAS007",TABLAS!$A$199) -> 133 | J98: =+GETPIVOTDATA("BAS008",TABLAS!$A$199) -> 0 | K98: ACS | M98: =+GETPIVOTDATA("BAS031",TABLAS!$A$199) -> 0 | N98: =+GETPIVOTDATA("BAS032",TABLAS!$A$199) -> 0 | O98: =+GETPIVOTDATA("BAS033",TABLAS!$A$199) -> 0 | P98: ACS | R98: =+GETPIVOTDATA("BAS043",TABLAS!$A$199) -> 0 | S98: =+GETPIVOTDATA("BAS044",TABLAS!$A$199) -> 0 | T98: =+GETPIVOTDATA("BAS045",TABLAS!$A$199) -> 0 | Z98: TOTAL | AA98: =SUM(AA95:AA97) -> 11 | AB98: =+GETPIVOTDATA(" f23329903",TABLAS!$A$252) -> 3 | AC98: =+AA98*100/AB98 -> 366.6666667 | AK98: =+AR97+1 -> 17 | AL98: 18 | AM98: 19 | AN98: 20 | AO98: 21 | AP98: 22 | AQ98: 23 | AR98: 24 | AT98: =+AV97+1 -> 34 | AU98: 35 | AV98: 36 | AX98: =+AZ97+1 -> 46 | AY98: 47 | AZ98: 48 | BL98: 017 | BM98: 018 | BN98: 019 | BO98: 020 | BP98: 021 | BQ98: 022 | BR98: 023 | BS98: 024 | BU98: 034 | BV98: 035 | BW98: 036 | BY98: 046 | BZ98: 047 | CA98: 048 | CM98: =CONCATENATE($CN$15,BL98,$CP$17) -> =+IMPORTARDATOSDINAMICOS("BAS017",TABLAS!$A$128) | CN98: =CONCATENATE($CN$15,BM98,$CP$17) -> =+IMPORTARDATOSDINAMICOS("BAS018",TABLAS!$A$128) | CO98: =CONCATENATE($CN$15,BN98,$CP$17) -> =+IMPORTARDATOSDINAMICOS("BAS019",TABLAS!$A$128) | CP98: =CONCATENATE($CN$15,BO98,$CP$17) -> =+IMPORTARDATOSDINAMICOS("BAS020",TABLAS!$A$128) | CQ98: =CONCATENATE($CN$15,BP98,$CP$17) -> =+IMPORTARDATOSDINAMICOS("BAS021",TABLAS!$A$128) | CR98: =CONCATENATE($CN$15,BQ98,$CP$17) -> =+IMPORTARDATOSDINAMICOS("BAS022",TABLAS!$A$128) | CS98: =CONCATENATE($CN$15,BR98,$CP$17) -> =+IMPORTARDATOSDINAMICOS("BAS023",TABLAS!$A$128) | CT98: =CONCATENATE($CN$15,BS98,$CP$17) -> =+IMPORTARDATOSDINAMICOS("BAS024",TABLAS!$A$128) | CU98: =CONCATENATE($CN$15,BT98,$CP$17) -> =+IMPORTARDATOSDINAMICOS("BAS",TABLAS!$A$128) | CV98: =CONCATENATE($CN$15,BU98,$CP$17) -> =+IMPORTARDATOSDINAMICOS("BAS034",TABLAS!$A$128) | CW98: =CONCATENATE($CN$15,BV98,$CP$17) -> =+IMPORTARDATOSDINAMICOS("BAS035",TABLAS!$A$128) | CX98: =CONCATENATE($CN$15,BW98,$CP$17) -> =+IMPORTARDATOSDINAMICOS("BAS036",TABLAS!$A$128) | CY98: =CONCATENATE($CN$15,BX98,$CP$17) -> =+IMPORTARDATOSDINAMICOS("BAS",TABLAS!$A$128) | CZ98: =CONCATENATE($CN$15,BY98,$CP$17) -> =+IMPORTARDATOSDINAMICOS("BAS046",TABLAS!$A$128) | DA98: =CONCATENATE($CN$15,BZ98,$CP$17) -> =+IMPORTARDATOSDINAMICOS("BAS047",TABLAS!$A$128) | DB98: =CONCATENATE($CN$15,CA98,$CP$17) -> =+IMPORTARDATOSDINAMICOS("BAS048",TABLAS!$A$128) | DC98: =CONCATENATE($CN$15,CB98,$CP$17) -> =+IMPORTARDATOSDINAMICOS("BAS",TABLAS!$A$128) | DD98: =CONCATENATE($CN$15,CC98,$CP$17) -> =+IMPORTARDATOSDINAMICOS("BAS",TABLAS!$A$128) | DE98: =CONCATENATE($CN$15,CD98,$CP$17) -> =+IMPORTARDATOSDINAMICOS("BAS",TABLAS!$A$128) | DF98: =CONCATENATE($CN$15,CE98,$CP$17) -> =+IMPORTARDATOSDINAMICOS("BAS",TABLAS!$A$128) | DG98: =CONCATENATE($CN$15,CF98,$CP$17) -> =+IMPORTARDATOSDINAMICOS("BAS",TABLAS!$A$128)
B99: FONB | C99: =+GETPIVOTDATA("BAS009",TABLAS!$A$199) -> 0 | D99: =+GETPIVOTDATA("BAS010",TABLAS!$A$199) -> 1 | E99: =+GETPIVOTDATA("BAS011",TABLAS!$A$199) -> 27 | F99: =+GETPIVOTDATA("BAS012",TABLAS!$A$199) -> 0 | G99: =+GETPIVOTDATA("BAS013",TABLAS!$A$199) -> 0 | H99: =+GETPIVOTDATA("BAS014",TABLAS!$A$199) -> 28 | I99: =+GETPIVOTDATA("BAS015",TABLAS!$A$199) -> 28 | J99: =+GETPIVOTDATA("BAS016",TABLAS!$A$199) -> 0 | K99: FAMILIAR | M99: =+GETPIVOTDATA("BAS034",TABLAS!$A$199) -> 0 | N99: =+GETPIVOTDATA("BAS035",TABLAS!$A$199) -> 0 | O99: =+GETPIVOTDATA("BAS036",TABLAS!$A$199) -> 0 | P99: FAMILIAR | R99: =+GETPIVOTDATA("BAS046",TABLAS!$A$199) -> 0 | S99: =+GETPIVOTDATA("BAS047",TABLAS!$A$199) -> 0 | T99: =+GETPIVOTDATA("BAS048",TABLAS!$A$199) -> 0 | V99: =+V97+1 -> 166 | W99: PARTO COMPLICADO | X99: 3329601 TRABAJO DE PARTO DISFUNCIONAL | Z99: O68 | AA99: =+GETPIVOTDATA("BAS166",TABLAS!$A$199) -> 8 | AT99: =+AV98+1 -> 37 | AU99: =+AT99+1 -> 38 | AV99: =+AU99+1 -> 39 | AX99: =+AZ98+1 -> 49 | AY99: =+AX99+1 -> 50 | AZ99: =+AY99+1 -> 51 | BL99: 00 | BM99: 00 | BN99: 00 | BO99: 00 | BP99: 00 | BQ99: 00 | BR99: 00 | BS99: 00 | BU99: 037 | BV99: 038 | BW99: 039 | BY99: 049 | BZ99: 050 | CA99: 051 | CM99: =CONCATENATE($CN$15,BL99,$CP$18) -> =+IMPORTARDATOSDINAMICOS("BAS00",TABLAS!$A$199) | CN99: =CONCATENATE($CN$15,BM99,$CP$18) -> =+IMPORTARDATOSDINAMICOS("BAS00",TABLAS!$A$199) | CO99: =CONCATENATE($CN$15,BN99,$CP$18) -> =+IMPORTARDATOSDINAMICOS("BAS00",TABLAS!$A$199) | CP99: =CONCATENATE($CN$15,BO99,$CP$18) -> =+IMPORTARDATOSDINAMICOS("BAS00",TABLAS!$A$199) | CQ99: =CONCATENATE($CN$15,BP99,$CP$18) -> =+IMPORTARDATOSDINAMICOS("BAS00",TABLAS!$A$199) | CR99: =CONCATENATE($CN$15,BQ99,$CP$18) -> =+IMPORTARDATOSDINAMICOS("BAS00",TABLAS!$A$199) | CS99: =CONCATENATE($CN$15,BR99,$CP$18) -> =+IMPORTARDATOSDINAMICOS("BAS00",TABLAS!$A$199) | CT99: =CONCATENATE($CN$15,BS99,$CP$18) -> =+IMPORTARDATOSDINAMICOS("BAS00",TABLAS!$A$199) | CU99: =CONCATENATE($CN$15,BT99,$CP$18) -> =+IMPORTARDATOSDINAMICOS("BAS",TABLAS!$A$199) | CV99: =CONCATENATE($CN$15,BU99,$CP$18) -> =+IMPORTARDATOSDINAMICOS("BAS037",TABLAS!$A$199) | CW99: =CONCATENATE($CN$15,BV99,$CP$18) -> =+IMPORTARDATOSDINAMICOS("BAS038",TABLAS!$A$199) | CX99: =CONCATENATE($CN$15,BW99,$CP$18) -> =+IMPORTARDATOSDINAMICOS("BAS039",TABLAS!$A$199) | CY99: =CONCATENATE($CN$15,BX99,$CP$18) -> =+IMPORTARDATOSDINAMICOS("BAS",TABLAS!$A$199) | CZ99: =CONCATENATE($CN$15,BY99,$CP$18) -> =+IMPORTARDATOSDINAMICOS("BAS049",TABLAS!$A$199) | DA99: =CONCATENATE($CN$15,BZ99,$CP$18) -> =+IMPORTARDATOSDINAMICOS("BAS050",TABLAS!$A$199) | DB99: =CONCATENATE($CN$15,CA99,$CP$18) -> =+IMPORTARDATOSDINAMICOS("BAS051",TABLAS!$A$199) | DC99: =CONCATENATE($CN$15,CB99,$CP$18) -> =+IMPORTARDATOSDINAMICOS("BAS",TABLAS!$A$199) | DD99: =CONCATENATE($CN$15,CC99,$CP$18) -> =+IMPORTARDATOSDINAMICOS("BAS",TABLAS!$A$199) | DE99: =CONCATENATE($CN$15,CD99,$CP$18) -> =+IMPORTARDATOSDINAMICOS("BAS",TABLAS!$A$199) | DF99: =CONCATENATE($CN$15,CE99,$CP$18) -> =+IMPORTARDATOSDINAMICOS("BAS",TABLAS!$A$199) | DG99: =CONCATENATE($CN$15,CF99,$CP$18) -> =+IMPORTARDATOSDINAMICOS("BAS",TABLAS!$A$199)
B100: FONP | C100: =+GETPIVOTDATA("BAS017",TABLAS!$A$199) -> 0 | D100: =+GETPIVOTDATA("BAS018",TABLAS!$A$199) -> 1 | E100: =+GETPIVOTDATA("BAS019",TABLAS!$A$199) -> 46 | F100: =+GETPIVOTDATA("BAS020",TABLAS!$A$199) -> 9 | G100: =+GETPIVOTDATA("BAS021",TABLAS!$A$199) -> 5 | H100: =+GETPIVOTDATA("BAS022",TABLAS!$A$199) -> 65 | I100: =+GETPIVOTDATA("BAS023",TABLAS!$A$199) -> 65 | J100: =+GETPIVOTDATA("BAS024",TABLAS!$A$199) -> 0 | K100: OTROS | M100: =+GETPIVOTDATA("BAS037",TABLAS!$A$199) -> 0 | N100: =+GETPIVOTDATA("BAS038",TABLAS!$A$199) -> 0 | O100: =+GETPIVOTDATA("BAS039",TABLAS!$A$199) -> 0 | P100: OTROS | R100: =+GETPIVOTDATA("BAS049",TABLAS!$A$199) -> 0 | S100: =+GETPIVOTDATA("BAS050",TABLAS!$A$199) -> 0 | T100: =+GETPIVOTDATA("BAS051",TABLAS!$A$199) -> 0 | U100: 51 | V100: 167 | Z100: O630 | AA100: =+GETPIVOTDATA("BAS167",TABLAS!$A$199) -> 0
B101: TOTAL | C101: =SUM(C97:C100) -> 3 | D101: =SUM(D97:D100) -> 2 | E101: 201 | F101: 9 | G101: 5 | H101: 226 | I101: 226 | J101: 0 | K101: TOTAL | M101: =SUM(M97:M100) -> 2 | N101: =SUM(N97:N100) -> 2 | O101: =SUM(O97:O100) -> 0 | P101: TOTAL | R101: =SUM(R97:R100) -> 0 | S101: =SUM(S97:S100) -> 0 | T101: =SUM(T97:T100) -> 0 | V101: 168 | Z101: O631 | AA101: =+GETPIVOTDATA("BAS168",TABLAS!$A$199) -> 0
Z102: TOTAL | AA102: =SUM(AA99:AA101) -> 8 | AB102: =+GETPIVOTDATA(" f23329601",TABLAS!$A$252) -> 241 | AC102: =+AA102*100/AB102 -> 3.319502075
B103: INFORMACION ADICIONAL DEL TOTAL DE PARTOS INSTITUCIONALES Y RECIEN NACIDOS (Nº)* | O103: V. MORBILIDAD MATERNA | V103: =+V101+1 -> 169 | X103: 3329602 HEMORRAGIAS INTRAPARTO Y POSTPARTO | Z103: O70 | AA103: =+GETPIVOTDATA("BAS169",TABLAS!$A$199) -> 43 | AK103: 100 | AN103: =+AK111+1 -> 109 | AQ103: =+AN107+1 -> 114 | AS103: =+AQ110+1 -> 122 | BL103: =IF(AK103<10,CONCATENATE("00",AK103),IF(AND(AK103<100,AK103>9),CONCATENATE("0",AK103),AK103)) -> 100 | BO103: =IF(AN103<10,CONCATENATE("00",AN103),IF(AND(AN103<100,AN103>9),CONCATENATE("0",AN103),AN103)) -> 109 | BR103: =IF(AQ103<10,CONCATENATE("00",AQ103),IF(AND(AQ103<100,AQ103>9),CONCATENATE("0",AQ103),AQ103)) -> 114 | BT103: =IF(AS103<10,CONCATENATE("00",AS103),IF(AND(AS103<100,AS103>9),CONCATENATE("0",AS103),AS103)) -> 122 | CM103: =CONCATENATE($CN$15,BL103,$CP$18) -> =+IMPORTARDATOSDINAMICOS("BAS100",TABLAS!$A$199) | CP103: =CONCATENATE($CN$15,BO103,$CP$18) -> =+IMPORTARDATOSDINAMICOS("BAS109",TABLAS!$A$199) | CS103: =CONCATENATE($CN$15,BR103,$CP$18) -> =+IMPORTARDATOSDINAMICOS("BAS114",TABLAS!$A$199) | CU103: =CONCATENATE($CN$15,BT103,$CP$18) -> =+IMPORTARDATOSDINAMICOS("BAS122",TABLAS!$A$199)
B104: Causas de Morbilidad | G104: Nº | N104: Causas de Morbilidad | R104: Nº | V104: 170 | Z104: O71 [0,1,5-9] | AA104: =+GETPIVOTDATA("BAS170",TABLAS!$A$199) -> 0 | AK104: =+AK103+1 -> 101 | AN104: =+AN103+1 -> 110 | AQ104: =+AQ103+1 -> 115 | AS104: =+AS103+1 -> 123 | BL104: 101 | BO104: 110 | BR104: 115 | BT104: 123 | CM104: =CONCATENATE($CN$15,BL104,$CP$18) -> =+IMPORTARDATOSDINAMICOS("BAS101",TABLAS!$A$199) | CP104: =CONCATENATE($CN$15,BO104,$CP$18) -> =+IMPORTARDATOSDINAMICOS("BAS110",TABLAS!$A$199) | CS104: =CONCATENATE($CN$15,BR104,$CP$18) -> =+IMPORTARDATOSDINAMICOS("BAS115",TABLAS!$A$199) | CU104: =+IMPORTARDATOSDINAMICOS("BAS123",TABLAS!$A$199)
A105: =+O85+9 -> 100 | B105: Atención de parto vaginal no complicado 3329501 | G105: =+GETPIVOTDATA("BAS100",TABLAS!$A$199) -> 162 | H105: =+GETPIVOTDATA(" f23329501",TABLAS!$A$252) -> 1433 | I105: =+G105*100/H105 -> 11.30495464 | M105: =+A118+8 -> 121 | N105: Hemorragias | R105: =+GETPIVOTDATA("BAS121",TABLAS!$A$199) -> 107 | V105: 171 | Z105: O712 | AA105: =+GETPIVOTDATA("BAS171",TABLAS!$A$199) -> 0 | AK105: =+AK104+1 -> 102 | AN105: =+AN104+1 -> 111 | AQ105: =+AQ104+1 -> 116 | AS105: 124 | BL105: 102 | BO105: 111 | BR105: 116 | BT105: 124 | CM105: =+IMPORTARDATOSDINAMICOS("BAS102",TABLAS!$A$199) | CP105: =+IMPORTARDATOSDINAMICOS("BAS111",TABLAS!$A$199) | CS105: =+IMPORTARDATOSDINAMICOS("BAS116",TABLAS!$A$199) | CU105: =+IMPORTARDATOSDINAMICOS("BAS124",TABLAS!$A$199)
A106: =+A105+1 -> 101 | B106: Atención del parto complicado no Qx 3329501 | G106: =+GETPIVOTDATA("BAS101",TABLAS!$A$199) -> 8 | H106: =+GETPIVOTDATA(" f23329501",TABLAS!$A$252) -> 1433 | I106: 0.558269365 | M106: =+M105+1 -> 122 | N106: HIE | R106: =+GETPIVOTDATA("BAS122",TABLAS!$A$199) -> 12 | V106: 172 | Z106: O713 | AA106: =+GETPIVOTDATA("BAS172",TABLAS!$A$199) -> 0 | AK106: 103 | AN106: 112 | AQ106: 117 | AS106: 125 | BL106: 103 | BO106: 112 | BR106: 117 | BT106: 125 | CM106: =+IMPORTARDATOSDINAMICOS("BAS103",TABLAS!$A$199) | CP106: =+IMPORTARDATOSDINAMICOS("BAS112",TABLAS!$A$199) | CS106: =+IMPORTARDATOSDINAMICOS("BAS117",TABLAS!$A$199) | CU106: =+IMPORTARDATOSDINAMICOS("BAS125",TABLAS!$A$199)
A107: =+A106+1 -> 102 | B107: CESAREAS (atencion del parto complicado quirúrgico) 3329701 | G107: =+GETPIVOTDATA("BAS102",TABLAS!$A$199) -> 76 | H107: =+GETPIVOTDATA(" f23329701",TABLAS!$A$252) -> 379 | I107: 20.05277045 | M107: 123 | N107: SEPSIS | R107: =+GETPIVOTDATA("BAS123",TABLAS!$A$199) -> 3 | V107: 173 | Z107: O714 | AA107: =+GETPIVOTDATA("BAS173",TABLAS!$A$199) -> 1 | AK107: 104 | AN107: 113 | AQ107: 118 | AS107: 126 | BL107: 104 | BO107: 113 | BR107: 118 | BT107: 126 | CM107: =+IMPORTARDATOSDINAMICOS("BAS104",TABLAS!$A$199) | CP107: =+IMPORTARDATOSDINAMICOS("BAS113",TABLAS!$A$199) | CS107: =+IMPORTARDATOSDINAMICOS("BAS118",TABLAS!$A$199) | CU107: =+IMPORTARDATOSDINAMICOS("BAS126",TABLAS!$A$199)
A108: 103 | B108: Hemorragias Intraparto y postparto 3329602 | G108: =+GETPIVOTDATA("BAS103",TABLAS!$A$199) -> 54 | H108: =+GETPIVOTDATA(" f23329602",TABLAS!$A$252) -> 136 | I108: 39.70588235 | M108: 124 | N108: ANEMIA | R108: =+GETPIVOTDATA("BAS124",TABLAS!$A$199) -> 134 | V108: 174 | Z108: O720 | AA108: =+GETPIVOTDATA("BAS174",TABLAS!$A$199) -> 3 | AK108: 105 | AQ108: 119 | AS108: 127 | BL108: 105 | BR108: 119 | BT108: 127 | CM108: =+IMPORTARDATOSDINAMICOS("BAS105",TABLAS!$A$199) | CS108: =+IMPORTARDATOSDINAMICOS("BAS119",TABLAS!$A$199) | CU108: =+IMPORTARDATOSDINAMICOS("BAS127",TABLAS!$A$199)
A109: 104 | B109: Parto en Gestante Controlada | G109: =+GETPIVOTDATA("BAS104",TABLAS!$A$199) -> 8 | M109: 125 | N109: TBC | R109: =+GETPIVOTDATA("BAS125",TABLAS!$A$199) -> 0 | V109: 175 | Z109: O721 | AA109: =+GETPIVOTDATA("BAS175",TABLAS!$A$199) -> 3 | AK109: 106 | AQ109: 120 | AS109: 128 | BL109: 106 | BR109: 120 | BT109: 128 | CM109: =+IMPORTARDATOSDINAMICOS("BAS106",TABLAS!$A$199) | CS109: =+IMPORTARDATOSDINAMICOS("BAS120",TABLAS!$A$199) | CU109: =+IMPORTARDATOSDINAMICOS("BAS128",TABLAS!$A$199)
A110: 105 | B110: Parto Gemelar | G110: =+GETPIVOTDATA("BAS105",TABLAS!$A$199) -> 3 | M110: 126 | N110: Retención de Placenta | R110: =+GETPIVOTDATA("BAS126",TABLAS!$A$199) -> 4 | V110: 176 | Z110: O722 | AA110: =+GETPIVOTDATA("BAS176",TABLAS!$A$199) -> 2 | AK110: 107 | AQ110: 121 | AS110: 129 | BL110: 107 | BR110: 121 | BT110: 129 | CM110: =+IMPORTARDATOSDINAMICOS("BAS107",TABLAS!$A$199) | CS110: =+IMPORTARDATOSDINAMICOS("BAS121",TABLAS!$A$199) | CU110: =+IMPORTARDATOSDINAMICOS("BAS129",TABLAS!$A$199)
A111: 106 | B111: Parto con Trillizos | G111: =+GETPIVOTDATA("BAS106",TABLAS!$A$199) -> 0 | M111: 127 | N111: ATENCION OBSTETRICA EN UCI 3033300 | R111: =+GETPIVOTDATA("BAS127",TABLAS!$A$199) -> 4 | S111: =+GETPIVOTDATA(" f23033300",TABLAS!$A$252) ->  | T111: =+R111*100/S111 ->  | V111: 177 | Z111: O723 | AA111: =+GETPIVOTDATA("BAS177",TABLAS!$A$199) -> 0 | AK111: 108 | BL111: 108 | CM111: =+IMPORTARDATOSDINAMICOS("BAS108",TABLAS!$A$199)
A112: 107 | B112: Atención de partos a adolescentes (12 a 17 AÑOS) | G112: =+GETPIVOTDATA("BAS107",TABLAS!$A$199) -> 21 | M112: 128 | N112: ATENCION OBSTETRICA EN UCEO | R112: =+GETPIVOTDATA("BAS128",TABLAS!$A$199) -> 0 | V112: 178 | Z112: O730 | AA112: =+GETPIVOTDATA("BAS178",TABLAS!$A$199) -> 3
A113: 108 | B113: Atención de partos < de 12 a | G113: =+GETPIVOTDATA("BAS108",TABLAS!$A$199) -> 0 | V113: 179 | Z113: O731 | AA113: =+GETPIVOTDATA("BAS179",TABLAS!$A$199) -> 1
A114: =+A113+1 -> 109 | B114: Parto vertical | G114: =+GETPIVOTDATA("BAS109",TABLAS!$A$199) -> 60 | Z114: TOTAL | AA114: =SUM(AA103:AA113) -> 56 | AB114: =+GETPIVOTDATA(" f23329602",TABLAS!$A$252) -> 136 | AC114: =+AA114*100/AB114 -> 41.17647059
A115: =+A114+1 -> 110 | B115: Manejo Activo en la 3era Etapa del Parto | G115: =+GETPIVOTDATA("BAS110",TABLAS!$A$199) -> 0
A116: =+A115+1 -> 111 | B116: Parto Pódalico | G116: =+GETPIVOTDATA("BAS111",TABLAS!$A$199) -> 1
A117: =+A116+1 -> 112 | B117: Atencion del RN Normal | G117: =+GETPIVOTDATA("BAS112",TABLAS!$A$199) -> 0
A118: =+A117+1 -> 113 | B118: Parto Distocico | G118: =+GETPIVOTDATA("BAS113",TABLAS!$A$199) -> 76

Sheet CNV_Total
A1: REPORTE CNV - TOTAL CNV
A2: FECHA: 2016 AL
A14: TOTAL | B14: Etiquetas de columna | L14: TOTAL | M14: Etiquetas de columna
A15: Etiquetas de fila | L15: Etiquetas de fila

Sheet menor12a
A2: ANNO | B2: 2025
A3: MES | B3: (Todas) | C3: 1 | D3: =+C3+1 -> 2 | E3: 3 | F3: 4 | G3: 5 | H3: 6 | I3: 7 | J3: 8 | K3: 9 | L3: 10 | M3: 11 | N3: 12 | O3: 13 | P3: 14 | Q3: 15 | R3: 16 | S3: 17 | T3: 18 | U3: 19 | V3: 20 | W3: 21 | X3: 22 | Y3: 23 | Z3: 24 | AA3: 25 | AB3: 51 | AC3: 52 | AD3: 53 | AE3: 54 | AF3: 55 | AG3: 56 | AH3: 57 | AI3: 58 | AJ3: 59 | AK3: 60 | AL3: 61 | AM3: 62 | AN3: 63 | AO3: 64 | AP3: 65 | AQ3: 66 | AR3: 67 | AS3: 68 | AT3: 69 | AU3: 70 | AV3: 71 | AW3: 72 | AX3: 73 | AY3: 74 | AZ3: 75 | BA3: 76 | BB3: 77 | BC3: 78 | BD3: 79 | BE3: 80 | BF3: 81 | BG3: 82 | BH3: 83 | BI3: 84 | BJ3: 85 | BK3: 86 | BL3: 87 | BM3: 88 | BN3: 89 | BO3: 90 | BP3: =+BO3+1 -> 91 | BQ3: 92 | BR3: 93 | BS3: 94 | BT3: 95 | BU3: 96 | BV3: 97 | BW3: 98 | BX3: 99 | BY3: 100 | BZ3: 101 | CA3: 102 | CB3: 103 | CC3: 104 | CD3: 105 | CE3: 106 | CF3: 107 | CG3: 108 | CH3: 109 | CI3: 110 | CJ3: 111 | CK3: 112 | CL3: 113 | CM3: 114 | CN3: 115 | CO3: 116 | CP3: 117 | CQ3: 118 | CR3: 119 | CS3: 120 | CT3: 121 | CU3: 122 | CV3: 123 | CW3: 124 | CX3: 125
A4: DESC_MICRO | B4: (Todas)
B6: Valores
A7: DESC_RED | B7: 0.Gest_Total_Atd | C7: 1.Gest_Atd_I_Trim | D7: 2.Gest_Atd_II_Trim | E7: 3.Gest_Atd_III_Trim | F7: 4.Gest_Atc | G7: 5.Gest_Ctrla | H7: 6.PpNic_T_Mstra | I7: 7.PpNic_Positivo | J7: 8.GBC_1ra | K7: 9.GBC_2da | L7: 10.VBG_Tam | M7: 11.VBG_Pos | N7: 12.Ecog_1ra | O7: 13.Ecog_2da | P7: 14.Ecog_3ra | Q7: 15.TamBac_Nro | R7: 16.TamBac_Pos | S7: 17.TamPro_Nro | T7: 18.TamPro_Pos | U7: 19.Gest_AtcPreN | V7: 20.Imn_DTPA | W7: 21.Imn_DT | X7: 22.Imn_HvB | Y7: 23.Imn_Influenza | Z7: 24.Imn_COVID | AA7: 25.Atc_Odonto | AB7: 51.EVF_1ra | AC7: 52.EVF_2da | AD7: 53.Psico_Atd | AE7: 54.Psico_Prep | AF7: 55.Epre_1ra | AG7: 56.Epre_6ta | AH7: 63.Gest_Anem_Lev | AI7: 64.Gest_Anem_Mod | AJ7: 65.Gest_Anem_Sev | AK7: 66.Gest_Anem_Rec | AL7: 67.Gest_ManTer_1ra | AM7: 68.Gest_ManTer_6ta | AN7: 69.Gest_DosHemog | AO7: 70.PlanP_1ra_Ent | AP7: 71.PlanP_2da_Ent | AQ7: 72.PlanP_3ra_Ent | AR7: 73.PlanP_Efec_Ent | AS7: 85.DosHemog_1ra | AT7: 86.DosHemog_2da | AU7: 87.DosHemog_3ra | AV7: 88.SSF_Atd | AW7: 89.SSF_Suplem_Gest | AX7: 90.SSF_Suplem_Puerp | AY7: 91.SAF_1ra | AZ7: 92.SAF_2da | BA7: 93.SCa_1ra | BB7: 94.SCa_5ta | BC7: 105.AtcPuerp_Atd | BD7: 106.AtcPuerp_Ctrl | BE7: 107.AtcPuerp_Cplicd | BF7: 111.Gest_VIH/SIDAI_Trim | BG7: 112.Gest_VIH/SIDAII_Trim | BH7: 113.Gest_VIH/SIDAIII_Trim | BI7: 114.Gest_VIH/SIDAReactivo | BJ7: 115.Gest_VIH/SIDAII_Trim | BK7: 116.Gest_VIH/SIDAIII_Trim | BL7: 117.Gest_VIH/SIDAReactivo | BM7: 118.Gest_SifilisI_Trim | BN7: 119.Gest_SifilisII_Trim | BO7: 120.Gest_SifilisIII_Trim | BP7: 121.Gest_SifilisPositivo | BQ7: 122.Gest_SifilisII_Trim | BR7: 123.Gest_SifilisIII_Trim | BS7: 124.Gest_SifilisPositivo | BT7: 125.Gest_HepatitBI_Trim | BU7: 126.Gest_HepatitBII_Trim | BV7: 127.Gest_HepatitBIII_Trim | BW7: 128.Gest_HepatitBReactivo | BX7: 129.Gest_HepatitBII_Trim | BY7: 130.Gest_HepatitBIII_Trim | BZ7: 131.Gest_HepatitBReactivo | CA7: 153.Puep_VIH/SIDATamizaje | CB7: 154.Puep_VIH/SIDAReactivo | CC7: 155.Puep_SifilisPruRap | CD7: 156.Puep_SifilisPositivo | CE7: 157.Puep_SifilisTamizajeRPR | CF7: 158.Puep_SifilisRPR_Reactivo | CG7: 165.Gest_3ra | CH7: 166.Puep_4ta | CI7: 167.Puep_5ta | CJ7: 171.G_Comp_Amenaza_Parto | CK7: 172.G_Comp_Hemo_1m_Emb_S/Lap | CL7: 173.G_Comp_Hemo_2m_Emb | CM7: 174.G_Comp_HiperGrav | CN7: 175.G_Comp_Inf_TracUrin_Emb | CO7: 176.G_Comp_RupPrematMembran | CP7: 177.G_Comp_Hemo_1m_Emb_C/Lap | CQ7: 178.G_Comp_Trasto_Hipertens_Emb | CR7: 179.G_Comp_Trast_Metab_Emb | CS7: 180.G_Comp_Otras_Enf_Embarazo | CT7: 181.G_Comp_Sepsis | CU7: 182.G_Comp_TBC | CV7: 183.G_Comp_Ret_Placent | CW7: 184.G_Comp_Rup_Premat_Membr | CX7: 185.G_Comp_Despren_Prem_Place
A8: CANAS-CANCHIS-ESPINAR | B8: 0 | C8: 0 | D8: 0 | E8: 0 | F8: 0 | G8: 0 | H8: 0 | I8: 0 | J8: 0 | K8: 0 | L8: 0 | M8: 0 | N8: 0 | O8: 0 | P8: 0 | Q8: 0 | R8: 0 | S8: 0 | T8: 0 | U8: 0 | V8: 0 | W8: 0 | X8: 0 | Y8: 0 | Z8: 0 | AA8: 0 | AB8: 0 | AC8: 0 | AD8: 0 | AE8: 0 | AF8: 0 | AG8: 0 | AH8: 0 | AI8: 0 | AJ8: 0 | AK8: 0 | AL8: 0 | AM8: 0 | AN8: 0 | AO8: 0 | AP8: 0 | AQ8: 0 | AR8: 0 | AS8: 0 | AT8: 0 | AU8: 0 | AV8: 0 | AW8: 0 | AX8: 0 | AY8: 0 | AZ8: 0 | BA8: 0 | BB8: 0 | BC8: 0 | BD8: 0 | BE8: 0 | BF8: 0 | BG8: 0 | BH8: 0 | BI8: 0 | BJ8: 0 | BK8: 0 | BL8: 0 | BM8: 0 | BN8: 0 | BO8: 0 | BP8: 0 | BQ8: 0 | BR8: 0 | BS8: 0 | BT8: 0 | BU8: 0 | BV8: 0 | BW8: 0 | BX8: 0 | BY8: 0 | BZ8: 0 | CA8: 0 | CB8: 0 | CC8: 0 | CD8: 0 | CE8: 0 | CF8: 0 | CG8: 0 | CH8: 0 | CI8: 0 | CJ8: 0 | CK8: 0 | CL8: 0 | CM8: 0 | CN8: 0 | CO8: 0 | CP8: 0 | CQ8: 0 | CR8: 0 | CS8: 0 | CT8: 0 | CU8: 0 | CV8: 0 | CW8: 0 | CX8: 0
A9: CHUMBIVILCAS | B9: 0 | C9: 0 | D9: 0 | E9: 0 | F9: 0 | G9: 0 | H9: 0 | I9: 0 | J9: 0 | K9: 0 | L9: 0 | M9: 0 | N9: 0 | O9: 0 | P9: 0 | Q9: 0 | R9: 0 | S9: 0 | T9: 0 | U9: 0 | V9: 0 | W9: 0 | X9: 0 | Y9: 0 | Z9: 0 | AA9: 0 | AB9: 0 | AC9: 0 | AD9: 0 | AE9: 0 | AF9: 0 | AG9: 0 | AH9: 0 | AI9: 0 | AJ9: 0 | AK9: 0 | AL9: 0 | AM9: 0 | AN9: 0 | AO9: 0 | AP9: 0 | AQ9: 0 | AR9: 0 | AS9: 0 | AT9: 0 | AU9: 0 | AV9: 0 | AW9: 0 | AX9: 0 | AY9: 0 | AZ9: 0 | BA9: 0 | BB9: 0 | BC9: 0 | BD9: 0 | BE9: 0 | BF9: 0 | BG9: 0 | BH9: 0 | BI9: 0 | BJ9: 0 | BK9: 0 | BL9: 0 | BM9: 0 | BN9: 0 | BO9: 0 | BP9: 0 | BQ9: 0 | BR9: 0 | BS9: 0 | BT9: 0 | BU9: 0 | BV9: 0 | BW9: 0 | BX9: 0 | BY9: 0 | BZ9: 0 | CA9: 0 | CB9: 0 | CC9: 0 | CD9: 0 | CE9: 0 | CF9: 0 | CG9: 0 | CH9: 0 | CI9: 0 | CJ9: 0 | CK9: 0 | CL9: 0 | CM9: 0 | CN9: 0 | CO9: 0 | CP9: 0 | CQ9: 0 | CR9: 0 | CS9: 0 | CT9: 0 | CU9: 0 | CV9: 0 | CW9: 0 | CX9: 0
A10: CUSCO NORTE | B10: 0 | C10: 0 | D10: 0 | E10: 0 | F10: 0 | G10: 0 | H10: 0 | I10: 0 | J10: 0 | K10: 0 | L10: 0 | M10: 0 | N10: 0 | O10: 0 | P10: 0 | Q10: 0 | R10: 0 | S10: 0 | T10: 0 | U10: 0 | V10: 0 | W10: 0 | X10: 0 | Y10: 0 | Z10: 0 | AA10: 0 | AB10: 0 | AC10: 0 | AD10: 0 | AE10: 0 | AF10: 0 | AG10: 0 | AH10: 0 | AI10: 0 | AJ10: 0 | AK10: 0 | AL10: 0 | AM10: 0 | AN10: 0 | AO10: 0 | AP10: 0 | AQ10: 0 | AR10: 0 | AS10: 0 | AT10: 0 | AU10: 0 | AV10: 0 | AW10: 0 | AX10: 0 | AY10: 0 | AZ10: 0 | BA10: 0 | BB10: 0 | BC10: 0 | BD10: 0 | BE10: 0 | BF10: 0 | BG10: 0 | BH10: 0 | BI10: 0 | BJ10: 0 | BK10: 0 | BL10: 0 | BM10: 0 | BN10: 0 | BO10: 0 | BP10: 0 | BQ10: 0 | BR10: 0 | BS10: 0 | BT10: 0 | BU10: 0 | BV10: 0 | BW10: 0 | BX10: 0 | BY10: 0 | BZ10: 0 | CA10: 0 | CB10: 0 | CC10: 0 | CD10: 0 | CE10: 0 | CF10: 0 | CG10: 0 | CH10: 0 | CI10: 0 | CJ10: 0 | CK10: 0 | CL10: 0 | CM10: 0 | CN10: 0 | CO10: 0 | CP10: 0 | CQ10: 0 | CR10: 0 | CS10: 0 | CT10: 0 | CU10: 0 | CV10: 0 | CW10: 0 | CX10: 0
A11: CUSCO SUR | B11: 0 | C11: 0 | D11: 0 | E11: 0 | F11: 0 | G11: 0 | H11: 0 | I11: 0 | J11: 0 | K11: 0 | L11: 0 | M11: 0 | N11: 0 | O11: 0 | P11: 0 | Q11: 0 | R11: 0 | S11: 0 | T11: 0 | U11: 0 | V11: 0 | W11: 0 | X11: 0 | Y11: 0 | Z11: 0 | AA11: 0 | AB11: 0 | AC11: 0 | AD11: 0 | AE11: 0 | AF11: 0 | AG11: 0 | AH11: 0 | AI11: 0 | AJ11: 0 | AK11: 0 | AL11: 0 | AM11: 0 | AN11: 0 | AO11: 0 | AP11: 0 | AQ11: 0 | AR11: 0 | AS11: 0 | AT11: 0 | AU11: 0 | AV11: 0 | AW11: 0 | AX11: 0 | AY11: 0 | AZ11: 0 | BA11: 0 | BB11: 0 | BC11: 0 | BD11: 0 | BE11: 0 | BF11: 0 | BG11: 0 | BH11: 0 | BI11: 0 | BJ11: 0 | BK11: 0 | BL11: 0 | BM11: 0 | BN11: 0 | BO11: 0 | BP11: 0 | BQ11: 0 | BR11: 0 | BS11: 0 | BT11: 0 | BU11: 0 | BV11: 0 | BW11: 0 | BX11: 0 | BY11: 0 | BZ11: 0 | CA11: 0 | CB11: 0 | CC11: 0 | CD11: 0 | CE11: 0 | CF11: 0 | CG11: 0 | CH11: 0 | CI11: 0 | CJ11: 0 | CK11: 0 | CL11: 0 | CM11: 0 | CN11: 0 | CO11: 0 | CP11: 0 | CQ11: 0 | CR11: 0 | CS11: 0 | CT11: 0 | CU11: 0 | CV11: 0 | CW11: 0 | CX11: 0
A12: KIMBIRI PICHARI | B12: 0 | C12: 0 | D12: 0 | E12: 0 | F12: 0 | G12: 0 | H12: 0 | I12: 0 | J12: 0 | K12: 0 | L12: 0 | M12: 0 | N12: 0 | O12: 0 | P12: 0 | Q12: 0 | R12: 0 | S12: 0 | T12: 0 | U12: 0 | V12: 0 | W12: 0 | X12: 0 | Y12: 0 | Z12: 0 | AA12: 0 | AB12: 0 | AC12: 0 | AD12: 0 | AE12: 0 | AF12: 0 | AG12: 0 | AH12: 0 | AI12: 0 | AJ12: 0 | AK12: 0 | AL12: 0 | AM12: 0 | AN12: 0 | AO12: 0 | AP12: 0 | AQ12: 0 | AR12: 0 | AS12: 0 | AT12: 0 | AU12: 0 | AV12: 0 | AW12: 0 | AX12: 0 | AY12: 0 | AZ12: 0 | BA12: 0 | BB12: 0 | BC12: 0 | BD12: 0 | BE12: 0 | BF12: 0 | BG12: 0 | BH12: 0 | BI12: 0 | BJ12: 0 | BK12: 0 | BL12: 0 | BM12: 0 | BN12: 0 | BO12: 0 | BP12: 0 | BQ12: 0 | BR12: 0 | BS12: 0 | BT12: 0 | BU12: 0 | BV12: 0 | BW12: 0 | BX12: 0 | BY12: 0 | BZ12: 0 | CA12: 0 | CB12: 0 | CC12: 0 | CD12: 0 | CE12: 0 | CF12: 0 | CG12: 0 | CH12: 0 | CI12: 0 | CJ12: 0 | CK12: 0 | CL12: 0 | CM12: 0 | CN12: 0 | CO12: 0 | CP12: 0 | CQ12: 0 | CR12: 0 | CS12: 0 | CT12: 0 | CU12: 0 | CV12: 0 | CW12: 0 | CX12: 0
A13: LA CONVENCION | B13: 0 | C13: 0 | D13: 0 | E13: 0 | F13: 0 | G13: 0 | H13: 0 | I13: 0 | J13: 0 | K13: 0 | L13: 0 | M13: 0 | N13: 0 | O13: 0 | P13: 0 | Q13: 0 | R13: 0 | S13: 0 | T13: 0 | U13: 0 | V13: 0 | W13: 0 | X13: 0 | Y13: 0 | Z13: 0 | AA13: 1 | AB13: 0 | AC13: 0 | AD13: 0 | AE13: 0 | AF13: 0 | AG13: 0 | AH13: 0 | AI13: 0 | AJ13: 0 | AK13: 0 | AL13: 0 | AM13: 0 | AN13: 0 | AO13: 0 | AP13: 0 | AQ13: 0 | AR13: 0 | AS13: 0 | AT13: 0 | AU13: 0 | AV13: 0 | AW13: 0 | AX13: 0 | AY13: 0 | AZ13: 0 | BA13: 0 | BB13: 0 | BC13: 0 | BD13: 0 | BE13: 0 | BF13: 0 | BG13: 0 | BH13: 0 | BI13: 0 | BJ13: 0 | BK13: 0 | BL13: 0 | BM13: 0 | BN13: 0 | BO13: 0 | BP13: 0 | BQ13: 0 | BR13: 0 | BS13: 0 | BT13: 0 | BU13: 0 | BV13: 0 | BW13: 0 | BX13: 0 | BY13: 0 | BZ13: 0 | CA13: 0 | CB13: 0 | CC13: 0 | CD13: 0 | CE13: 0 | CF13: 0 | CG13: 0 | CH13: 0 | CI13: 0 | CJ13: 0 | CK13: 0 | CL13: 0 | CM13: 0 | CN13: 0 | CO13: 0 | CP13: 0 | CQ13: 0 | CR13: 0 | CS13: 0 | CT13: 0 | CU13: 0 | CV13: 0 | CW13: 0 | CX13: 0
A14: NO PERTENECE A NINGUNA RED | B14: 0 | C14: 0 | D14: 0 | E14: 0 | F14: 0 | G14: 0 | H14: 0 | I14: 0 | J14: 0 | K14: 0 | L14: 0 | M14: 0 | N14: 0 | O14: 0 | P14: 0 | Q14: 0 | R14: 0 | S14: 0 | T14: 0 | U14: 0 | V14: 0 | W14: 0 | X14: 0 | Y14: 0 | Z14: 0 | AA14: 0 | AB14: 0 | AC14: 0 | AD14: 0 | AE14: 0 | AF14: 0 | AG14: 0 | AH14: 0 | AI14: 0 | AJ14: 0 | AK14: 0 | AL14: 0 | AM14: 0 | AN14: 0 | AO14: 0 | AP14: 0 | AQ14: 0 | AR14: 0 | AS14: 0 | AT14: 0 | AU14: 0 | AV14: 0 | AW14: 0 | AX14: 0 | AY14: 0 | AZ14: 0 | BA14: 0 | BB14: 0 | BC14: 0 | BD14: 0 | BE14: 0 | BF14: 0 | BG14: 0 | BH14: 0 | BI14: 0 | BJ14: 0 | BK14: 0 | BL14: 0 | BM14: 0 | BN14: 0 | BO14: 0 | BP14: 0 | BQ14: 0 | BR14: 0 | BS14: 0 | BT14: 0 | BU14: 0 | BV14: 0 | BW14: 0 | BX14: 0 | BY14: 0 | BZ14: 0 | CA14: 0 | CB14: 0 | CC14: 0 | CD14: 0 | CE14: 0 | CF14: 0 | CG14: 0 | CH14: 0 | CI14: 0 | CJ14: 0 | CK14: 0 | CL14: 0 | CM14: 0 | CN14: 0 | CO14: 0 | CP14: 0 | CQ14: 0 | CR14: 0 | CS14: 0 | CT14: 0 | CU14: 0 | CV14: 0 | CW14: 0 | CX14: 0
A15: Total general | B15: 0 | C15: 0 | D15: 0 | E15: 0 | F15: 0 | G15: 0 | H15: 0 | I15: 0 | J15: 0 | K15: 0 | L15: 0 | M15: 0 | N15: 0 | O15: 0 | P15: 0 | Q15: 0 | R15: 0 | S15: 0 | T15: 0 | U15: 0 | V15: 0 | W15: 0 | X15: 0 | Y15: 0 | Z15: 0 | AA15: 1 | AB15: 0 | AC15: 0 | AD15: 0 | AE15: 0 | AF15: 0 | AG15: 0 | AH15: 0 | AI15: 0 | AJ15: 0 | AK15: 0 | AL15: 0 | AM15: 0 | AN15: 0 | AO15: 0 | AP15: 0 | AQ15: 0 | AR15: 0 | AS15: 0 | AT15: 0 | AU15: 0 | AV15: 0 | AW15: 0 | AX15: 0 | AY15: 0 | AZ15: 0 | BA15: 0 | BB15: 0 | BC15: 0 | BD15: 0 | BE15: 0 | BF15: 0 | BG15: 0 | BH15: 0 | BI15: 0 | BJ15: 0 | BK15: 0 | BL15: 0 | BM15: 0 | BN15: 0 | BO15: 0 | BP15: 0 | BQ15: 0 | BR15: 0 | BS15: 0 | BT15: 0 | BU15: 0 | BV15: 0 | BW15: 0 | BX15: 0 | BY15: 0 | BZ15: 0 | CA15: 0 | CB15: 0 | CC15: 0 | CD15: 0 | CE15: 0 | CF15: 0 | CG15: 0 | CH15: 0 | CI15: 0 | CJ15: 0 | CK15: 0 | CL15: 0 | CM15: 0 | CN15: 0 | CO15: 0 | CP15: 0 | CQ15: 0 | CR15: 0 | CS15: 0 | CT15: 0 | CU15: 0 | CV15: 0 | CW15: 0 | CX15: 0

Sheet 12_17a
A1: ANNO | B1: 2025
A2: MES | B2: (Todas)
A3: DESC_RED | B3: (Todas) | C3: 1 | D3: =+C3+1 -> 2 | E3: 3 | F3: 4 | G3: 5 | H3: 6 | I3: 7 | J3: 8 | K3: 9 | L3: 10 | M3: 11 | N3: 12 | O3: 13 | P3: 14 | Q3: 15 | R3: 16 | S3: 17 | T3: 18 | U3: 19 | V3: 20 | W3: 21 | X3: 22 | Y3: 23 | Z3: 24 | AA3: 25 | AB3: 51 | AC3: 52 | AD3: 53 | AE3: 54 | AF3: 55 | AG3: 56 | AH3: 57 | AI3: 58 | AJ3: 59 | AK3: 60 | AL3: 61 | AM3: 62 | AN3: 63 | AO3: 64 | AP3: 65 | AQ3: 66 | AR3: 67 | AS3: 68 | AT3: 69 | AU3: 70 | AV3: 71 | AW3: 72 | AX3: 73 | AY3: 74 | AZ3: 75 | BA3: 76 | BB3: 77 | BC3: 78 | BD3: 79 | BE3: 80 | BF3: 81 | BG3: 82 | BH3: 83 | BI3: 84 | BJ3: 85 | BK3: 86 | BL3: 87 | BM3: 88 | BN3: 89 | BO3: 90 | BP3: =+BO3+1 -> 91 | BQ3: 92 | BR3: 93 | BS3: 94 | BT3: 95 | BU3: 96 | BV3: 97 | BW3: 98 | BX3: 99 | BY3: 100 | BZ3: 101 | CA3: 102 | CB3: 103 | CC3: 104 | CD3: 105 | CE3: 106 | CF3: 107 | CG3: 108 | CH3: 109 | CI3: 110 | CJ3: 111 | CK3: 112 | CL3: 113 | CM3: 114 | CN3: 115 | CO3: 116 | CP3: 117 | CQ3: 118 | CR3: 119 | CS3: 120 | CT3: 121 | CU3: 122 | CV3: 123 | CW3: 124 | CX3: 125
A4: DESC_MICRO | B4: (Todas)
B6: Valores
A7: DESC_ESTAB | B7: 0.Gest_Total_Atd | C7: 1.Gest_Atd_I_Trim | D7: 2.Gest_Atd_II_Trim | E7: 3.Gest_Atd_III_Trim | F7: 4.Gest_Atc | G7: 5.Gest_Ctrla | H7: 6.PpNic_T_Mstra | I7: 7.PpNic_Positivo | J7: 8.GBC_1ra | K7: 9.GBC_2da | L7: 10.VBG_Tam | M7: 11.VBG_Pos | N7: 12.Ecog_1ra | O7: 13.Ecog_2da | P7: 14.Ecog_3ra | Q7: 15.TamBac_Nro | R7: 16.TamBac_Pos | S7: 17.TamPro_Nro | T7: 18.TamPro_Pos | U7: 19.Gest_AtcPreN | V7: 20.Imn_DTPA | W7: 21.Imn_DT | X7: 22.Imn_HvB | Y7: 23.Imn_Influenza | Z7: 24.Imn_COVID | AA7: 25.Atc_Odonto | AB7: 51.EVF_1ra | AC7: 52.EVF_2da | AD7: 53.Psico_Atd | AE7: 54.Psico_Prep | AF7: 55.Epre_1ra | AG7: 56.Epre_6ta | AH7: 63.Gest_Anem_Lev | AI7: 64.Gest_Anem_Mod | AJ7: 65.Gest_Anem_Sev | AK7: 66.Gest_Anem_Rec | AL7: 67.Gest_ManTer_1ra | AM7: 68.Gest_ManTer_6ta | AN7: 69.Gest_DosHemog | AO7: 70.PlanP_1ra_Ent | AP7: 71.PlanP_2da_Ent | AQ7: 72.PlanP_3ra_Ent | AR7: 73.PlanP_Efec_Ent | AS7: 85.DosHemog_1ra | AT7: 86.DosHemog_2da | AU7: 87.DosHemog_3ra | AV7: 88.SSF_Atd | AW7: 89.SSF_Suplem_Gest | AX7: 90.SSF_Suplem_Puerp | AY7: 91.SAF_1ra | AZ7: 92.SAF_2da | BA7: 93.SCa_1ra | BB7: 94.SCa_5ta | BC7: 105.AtcPuerp_Atd | BD7: 106.AtcPuerp_Ctrl | BE7: 107.AtcPuerp_Cplicd | BF7: 111.Gest_VIH/SIDAI_Trim | BG7: 112.Gest_VIH/SIDAII_Trim | BH7: 113.Gest_VIH/SIDAIII_Trim | BI7: 114.Gest_VIH/SIDAReactivo | BJ7: 115.Gest_VIH/SIDAII_Trim | BK7: 116.Gest_VIH/SIDAIII_Trim | BL7: 117.Gest_VIH/SIDAReactivo | BM7: 118.Gest_SifilisI_Trim | BN7: 119.Gest_SifilisII_Trim | BO7: 120.Gest_SifilisIII_Trim | BP7: 121.Gest_SifilisPositivo | BQ7: 122.Gest_SifilisII_Trim | BR7: 123.Gest_SifilisIII_Trim | BS7: 124.Gest_SifilisPositivo | BT7: 125.Gest_HepatitBI_Trim | BU7: 126.Gest_HepatitBII_Trim | BV7: 127.Gest_HepatitBIII_Trim | BW7: 128.Gest_HepatitBReactivo | BX7: 129.Gest_HepatitBII_Trim | BY7: 130.Gest_HepatitBIII_Trim | BZ7: 131.Gest_HepatitBReactivo | CA7: 153.Puep_VIH/SIDATamizaje | CB7: 154.Puep_VIH/SIDAReactivo | CC7: 155.Puep_SifilisPruRap | CD7: 156.Puep_SifilisPositivo | CE7: 157.Puep_SifilisTamizajeRPR | CF7: 158.Puep_SifilisRPR_Reactivo | CG7: 165.Gest_3ra | CH7: 166.Puep_4ta | CI7: 167.Puep_5ta | CJ7: 171.G_Comp_Amenaza_Parto | CK7: 172.G_Comp_Hemo_1m_Emb_S/Lap | CL7: 173.G_Comp_Hemo_2m_Emb | CM7: 174.G_Comp_HiperGrav | CN7: 175.G_Comp_Inf_TracUrin_Emb | CO7: 176.G_Comp_RupPrematMembran | CP7: 177.G_Comp_Hemo_1m_Emb_C/Lap | CQ7: 178.G_Comp_Trasto_Hipertens_Emb | CR7: 179.G_Comp_Trast_Metab_Emb | CS7: 180.G_Comp_Otras_Enf_Embarazo | CT7: 181.G_Comp_Sepsis | CU7: 182.G_Comp_TBC | CV7: 183.G_Comp_Ret_Placent | CW7: 184.G_Comp_Rup_Premat_Membr | CX7: 185.G_Comp_Despren_Prem_Place
A8: ACCHA | B8: 0 | C8: 0 | D8: 0 | E8: 0 | F8: 0 | G8: 0 | H8: 0 | I8: 0 | J8: 0 | K8: 0 | L8: 0 | M8: 0 | N8: 0 | O8: 0 | P8: 0 | Q8: 0 | R8: 0 | S8: 0 | T8: 0 | U8: 0 | V8: 0 | W8: 0 | X8: 0 | Y8: 0 | Z8: 0 | AA8: 0 | AB8: 0 | AC8: 0 | AD8: 0 | AE8: 0 | AF8: 0 | AG8: 0 | AH8: 0 | AI8: 0 | AJ8: 0 | AK8: 0 | AL8: 0 | AM8: 0 | AN8: 0 | AO8: 0 | AP8: 0 | AQ8: 0 | AR8: 0 | AS8: 0 | AT8: 0 | AU8: 0 | AV8: 0 | AW8: 0 | AX8: 0 | AY8: 0 | AZ8: 0 | BA8: 0 | BB8: 0 | BC8: 0 | BD8: 0 | BE8: 0 | BF8: 0 | BG8: 0 | BH8: 0 | BI8: 0 | BJ8: 0 | BK8: 0 | BL8: 0 | BM8: 0 | BN8: 0 | BO8: 0 | BP8: 0 | BQ8: 0 | BR8: 0 | BS8: 0 | BT8: 0 | BU8: 0 | BV8: 0 | BW8: 0 | BX8: 0 | BY8: 0 | BZ8: 0 | CA8: 0 | CB8: 0 | CC8: 0 | CD8: 0 | CE8: 0 | CF8: 0 | CG8: 0 | CH8: 0 | CI8: 0 | CJ8: 0 | CK8: 0 | CL8: 0 | CM8: 0 | CN8: 0 | CO8: 0 | CP8: 0 | CQ8: 0 | CR8: 0 | CS8: 0 | CT8: 0 | CU8: 0 | CV8: 0 | CW8: 0 | CX8: 0
A9: ACCHA ALTA - PAMPALLACTA | B9: 0 | C9: 0 | D9: 0 | E9: 0 | F9: 0 | G9: 0 | H9: 0 | I9: 0 | J9: 0 | K9: 0 | L9: 0 | M9: 0 | N9: 0 | O9: 0 | P9: 0 | Q9: 0 | R9: 0 | S9: 0 | T9: 0 | U9: 0 | V9: 0 | W9: 0 | X9: 0 | Y9: 0 | Z9: 0 | AA9: 0 | AB9: 0 | AC9: 0 | AD9: 0 | AE9: 0 | AF9: 0 | AG9: 0 | AH9: 0 | AI9: 0 | AJ9: 0 | AK9: 0 | AL9: 0 | AM9: 0 | AN9: 0 | AO9: 0 | AP9: 0 | AQ9: 0 | AR9: 0 | AS9: 0 | AT9: 0 | AU9: 0 | AV9: 0 | AW9: 0 | AX9: 0 | AY9: 0 | AZ9: 0 | BA9: 0 | BB9: 0 | BC9: 0 | BD9: 0 | BE9: 0 | BF9: 0 | BG9: 0 | BH9: 0 | BI9: 0 | BJ9: 0 | BK9: 0 | BL9: 0 | BM9: 0 | BN9: 0 | BO9: 0 | BP9: 0 | BQ9: 0 | BR9: 0 | BS9: 0 | BT9: 0 | BU9: 0 | BV9: 0 | BW9: 0 | BX9: 0 | BY9: 0 | BZ9: 0 | CA9: 0 | CB9: 0 | CC9: 0 | CD9: 0 | CE9: 0 | CF9: 0 | CG9: 0 | CH9: 0 | CI9: 0 | CJ9: 0 | CK9: 0 | CL9: 0 | CM9: 0 | CN9: 0 | CO9: 0 | CP9: 0 | CQ9: 0 | CR9: 0 | CS9: 0 | CT9: 0 | CU9: 0 | CV9: 0 | CW9: 0 | CX9: 0
A10: ACCOCUNCA | B10: 0 | C10: 0 | D10: 0 | E10: 0 | F10: 0 | G10: 0 | H10: 0 | I10: 0 | J10: 0 | K10: 0 | L10: 0 | M10: 0 | N10: 0 | O10: 0 | P10: 0 | Q10: 0 | R10: 0 | S10: 0 | T10: 0 | U10: 0 | V10: 0 | W10: 0 | X10: 0 | Y10: 0 | Z10: 0 | AA10: 0 | AB10: 0 | AC10: 0 | AD10: 0 | AE10: 0 | AF10: 0 | AG10: 0 | AH10: 0 | AI10: 0 | AJ10: 0 | AK10: 0 | AL10: 0 | AM10: 0 | AN10: 0 | AO10: 0 | AP10: 0 | AQ10: 0 | AR10: 0 | AS10: 0 | AT10: 0 | AU10: 0 | AV10: 0 | AW10: 0 | AX10: 0 | AY10: 0 | AZ10: 0 | BA10: 0 | BB10: 0 | BC10: 0 | BD10: 0 | BE10: 0 | BF10: 0 | BG10: 0 | BH10: 0 | BI10: 0 | BJ10: 0 | BK10: 0 | BL10: 0 | BM10: 0 | BN10: 0 | BO10: 0 | BP10: 0 | BQ10: 0 | BR10: 0 | BS10: 0 | BT10: 0 | BU10: 0 | BV10: 0 | BW10: 0 | BX10: 0 | BY10: 0 | BZ10: 0 | CA10: 0 | CB10: 0 | CC10: 0 | CD10: 0 | CE10: 0 | CF10: 0 | CG10: 0 | CH10: 0 | CI10: 0 | CJ10: 0 | CK10: 0 | CL10: 0 | CM10: 0 | CN10: 0 | CO10: 0 | CP10: 0 | CQ10: 0 | CR10: 0 | CS10: 0 | CT10: 0 | CU10: 0 | CV10: 0 | CW10: 0 | CX10: 0
A11: ACOMAYO | B11: 0 | C11: 0 | D11: 0 | E11: 0 | F11: 0 | G11: 0 | H11: 0 | I11: 0 | J11: 0 | K11: 0 | L11: 0 | M11: 0 | N11: 0 | O11: 0 | P11: 0 | Q11: 0 | R11: 0 | S11: 0 | T11: 0 | U11: 0 | V11: 0 | W11: 0 | X11: 0 | Y11: 0 | Z11: 0 | AA11: 0 | AB11: 0 | AC11: 0 | AD11: 0 | AE11: 0 | AF11: 0 | AG11: 0 | AH11: 0 | AI11: 0 | AJ11: 0 | AK11: 0 | AL11: 0 | AM11: 0 | AN11: 0 | AO11: 0 | AP11: 0 | AQ11: 0 | AR11: 0 | AS11: 0 | AT11: 0 | AU11: 0 | AV11: 0 | AW11: 0 | AX11: 0 | AY11: 0 | AZ11: 0 | BA11: 0 | BB11: 0 | BC11: 0 | BD11: 0 | BE11: 0 | BF11: 0 | BG11: 0 | BH11: 0 | BI11: 0 | BJ11: 0 | BK11: 0 | BL11: 0 | BM11: 0 | BN11: 0 | BO11: 0 | BP11: 0 | BQ11: 0 | BR11: 0 | BS11: 0 | BT11: 0 | BU11: 0 | BV11: 0 | BW11: 0 | BX11: 0 | BY11: 0 | BZ11: 0 | CA11: 0 | CB11: 0 | CC11: 0 | CD11: 0 | CE11: 0 | CF11: 0 | CG11: 0 | CH11: 0 | CI11: 0 | CJ11: 0 | CK11: 0 | CL11: 0 | CM11: 0 | CN11: 0 | CO11: 0 | CP11: 0 | CQ11: 0 | CR11: 0 | CS11: 0 | CT11: 0 | CU11: 0 | CV11: 0 | CW11: 0 | CX11: 0
A12: ACOPIA | B12: 0 | C12: 0 | D12: 0 | E12: 0 | F12: 0 | G12: 0 | H12: 0 | I12: 0 | J12: 0 | K12: 0 | L12: 0 | M12: 0 | N12: 0 | O12: 0 | P12: 0 | Q12: 0 | R12: 0 | S12: 0 | T12: 0 | U12: 0 | V12: 0 | W12: 0 | X12: 0 | Y12: 0 | Z12: 0 | AA12: 0 | AB12: 0 | AC12: 0 | AD12: 0 | AE12: 0 | AF12: 0 | AG12: 0 | AH12: 0 | AI12: 0 | AJ12: 0 | AK12: 0 | AL12: 0 | AM12: 0 | AN12: 0 | AO12: 0 | AP12: 0 | AQ12: 0 | AR12: 0 | AS12: 0 | AT12: 0 | AU12: 0 | AV12: 0 | AW12: 0 | AX12: 0 | AY12: 0 | AZ12: 0 | BA12: 0 | BB12: 0 | BC12: 0 | BD12: 0 | BE12: 0 | BF12: 0 | BG12: 0 | BH12: 0 | BI12: 0 | BJ12: 0 | BK12: 0 | BL12: 0 | BM12: 0 | BN12: 0 | BO12: 0 | BP12: 0 | BQ12: 0 | BR12: 0 | BS12: 0 | BT12: 0 | BU12: 0 | BV12: 0 | BW12: 0 | BX12: 0 | BY12: 0 | BZ12: 0 | CA12: 0 | CB12: 0 | CC12: 0 | CD12: 0 | CE12: 0 | CF12: 0 | CG12: 0 | CH12: 0 | CI12: 0 | CJ12: 0 | CK12: 0 | CL12: 0 | CM12: 0 | CN12: 0 | CO12: 0 | CP12: 0 | CQ12: 0 | CR12: 0 | CS12: 0 | CT12: 0 | CU12: 0 | CV12: 0 | CW12: 0 | CX12: 0
A13: ACOS | B13: 0 | C13: 0 | D13: 0 | E13: 0 | F13: 0 | G13: 0 | H13: 0 | I13: 0 | J13: 0 | K13: 0 | L13: 0 | M13: 0 | N13: 0 | O13: 0 | P13: 0 | Q13: 0 | R13: 0 | S13: 0 | T13: 0 | U13: 0 | V13: 0 | W13: 0 | X13: 0 | Y13: 0 | Z13: 0 | AA13: 0 | AB13: 0 | AC13: 0 | AD13: 0 | AE13: 0 | AF13: 0 | AG13: 0 | AH13: 0 | AI13: 0 | AJ13: 0 | AK13: 0 | AL13: 0 | AM13: 0 | AN13: 0 | AO13: 0 | AP13: 0 | AQ13: 0 | AR13: 0 | AS13: 0 | AT13: 0 | AU13: 0 | AV13: 0 | AW13: 0 | AX13: 0 | AY13: 0 | AZ13: 0 | BA13: 0 | BB13: 0 | BC13: 0 | BD13: 0 | BE13: 0 | BF13: 0 | BG13: 0 | BH13: 0 | BI13: 0 | BJ13: 0 | BK13: 0 | BL13: 0 | BM13: 0 | BN13: 0 | BO13: 0 | BP13: 0 | BQ13: 0 | BR13: 0 | BS13: 0 | BT13: 0 | BU13: 0 | BV13: 0 | BW13: 0 | BX13: 0 | BY13: 0 | BZ13: 0 | CA13: 0 | CB13: 0 | CC13: 0 | CD13: 0 | CE13: 0 | CF13: 0 | CG13: 0 | CH13: 0 | CI13: 0 | CJ13: 0 | CK13: 0 | CL13: 0 | CM13: 0 | CN13: 0 | CO13: 0 | CP13: 0 | CQ13: 0 | CR13: 0 | CS13: 0 | CT13: 0 | CU13: 0 | CV13: 0 | CW13: 0 | CX13: 0
A14: ALCCA VICTORIA | B14: 0 | C14: 0 | D14: 0 | E14: 0 | F14: 0 | G14: 0 | H14: 0 | I14: 0 | J14: 0 | K14: 0 | L14: 0 | M14: 0 | N14: 0 | O14: 0 | P14: 0 | Q14: 0 | R14: 0 | S14: 0 | T14: 0 | U14: 0 | V14: 0 | W14: 0 | X14: 0 | Y14: 0 | Z14: 0 | AA14: 0 | AB14: 0 | AC14: 0 | AD14: 0 | AE14: 0 | AF14: 0 | AG14: 0 | AH14: 0 | AI14: 0 | AJ14: 0 | AK14: 0 | AL14: 0 | AM14: 0 | AN14: 0 | AO14: 0 | AP14: 0 | AQ14: 0 | AR14: 0 | AS14: 0 | AT14: 0 | AU14: 0 | AV14: 0 | AW14: 0 | AX14: 0 | AY14: 0 | AZ14: 0 | BA14: 0 | BB14: 0 | BC14: 0 | BD14: 0 | BE14: 0 | BF14: 0 | BG14: 0 | BH14: 0 | BI14: 0 | BJ14: 0 | BK14: 0 | BL14: 0 | BM14: 0 | BN14: 0 | BO14: 0 | BP14: 0 | BQ14: 0 | BR14: 0 | BS14: 0 | BT14: 0 | BU14: 0 | BV14: 0 | BW14: 0 | BX14: 0 | BY14: 0 | BZ14: 0 | CA14: 0 | CB14: 0 | CC14: 0 | CD14: 0 | CE14: 0 | CF14: 0 | CG14: 0 | CH14: 0 | CI14: 0 | CJ14: 0 | CK14: 0 | CL14: 0 | CM14: 0 | CN14: 0 | CO14: 0 | CP14: 0 | CQ14: 0 | CR14: 0 | CS14: 0 | CT14: 0 | CU14: 0 | CV14: 0 | CW14: 0 | CX14: 0
A15: ALFAMAYO | B15: 0 | C15: 0 | D15: 0 | E15: 0 | F15: 0 | G15: 0 | H15: 0 | I15: 0 | J15: 0 | K15: 0 | L15: 0 | M15: 0 | N15: 0 | O15: 0 | P15: 0 | Q15: 0 | R15: 0 | S15: 0 | T15: 0 | U15: 0 | V15: 0 | W15: 0 | X15: 0 | Y15: 0 | Z15: 0 | AA15: 0 | AB15: 0 | AC15: 0 | AD15: 0 | AE15: 0 | AF15: 0 | AG15: 0 | AH15: 0 | AI15: 0 | AJ15: 0 | AK15: 0 | AL15: 0 | AM15: 0 | AN15: 0 | AO15: 0 | AP15: 0 | AQ15: 0 | AR15: 0 | AS15: 0 | AT15: 0 | AU15: 0 | AV15: 0 | AW15: 0 | AX15: 0 | AY15: 0 | AZ15: 0 | BA15: 0 | BB15: 0 | BC15: 0 | BD15: 0 | BE15: 0 | BF15: 0 | BG15: 0 | BH15: 0 | BI15: 0 | BJ15: 0 | BK15: 0 | BL15: 0 | BM15: 0 | BN15: 0 | BO15: 0 | BP15: 0 | BQ15: 0 | BR15: 0 | BS15: 0 | BT15: 0 | BU15: 0 | BV15: 0 | BW15: 0 | BX15: 0 | BY15: 0 | BZ15: 0 | CA15: 0 | CB15: 0 | CC15: 0 | CD15: 0 | CE15: 0 | CF15: 0 | CG15: 0 | CH15: 0 | CI15: 0 | CJ15: 0 | CK15: 0 | CL15: 0 | CM15: 0 | CN15: 0 | CO15: 0 | CP15: 0 | CQ15: 0 | CR15: 0 | CS15: 0 | CT15: 0 | CU15: 0 | CV15: 0 | CW15: 0 | CX15: 0
A16: ALHUACCHULLO | B16: 0 | C16: 0 | D16: 0 | E16: 0 | F16: 0 | G16: 0 | H16: 0 | I16: 0 | J16: 0 | K16: 0 | L16: 0 | M16: 0 | N16: 0 | O16: 0 | P16: 0 | Q16: 0 | R16: 0 | S16: 0 | T16: 0 | U16: 0 | V16: 0 | W16: 0 | X16: 0 | Y16: 0 | Z16: 0 | AA16: 0 | AB16: 0 | AC16: 0 | AD16: 0 | AE16: 0 | AF16: 0 | AG16: 0 | AH16: 0 | AI16: 0 | AJ16: 0 | AK16: 0 | AL16: 0 | AM16: 0 | AN16: 0 | AO16: 0 | AP16: 0 | AQ16: 0 | AR16: 0 | AS16: 0 | AT16: 0 | AU16: 0 | AV16: 0 | AW16: 0 | AX16: 0 | AY16: 0 | AZ16: 0 | BA16: 0 | BB16: 0 | BC16: 0 | BD16: 0 | BE16: 0 | BF16: 0 | BG16: 0 | BH16: 0 | BI16: 0 | BJ16: 0 | BK16: 0 | BL16: 0 | BM16: 0 | BN16: 0 | BO16: 0 | BP16: 0 | BQ16: 0 | BR16: 0 | BS16: 0 | BT16: 0 | BU16: 0 | BV16: 0 | BW16: 0 | BX16: 0 | BY16: 0 | BZ16: 0 | CA16: 0 | CB16: 0 | CC16: 0 | CD16: 0 | CE16: 0 | CF16: 0 | CG16: 0 | CH16: 0 | CI16: 0 | CJ16: 0 | CK16: 0 | CL16: 0 | CM16: 0 | CN16: 0 | CO16: 0 | CP16: 0 | CQ16: 0 | CR16: 0 | CS16: 0 | CT16: 0 | CU16: 0 | CV16: 0 | CW16: 0 | CX16: 0
A17: AMAYBAMBA | B17: 0 | C17: 0 | D17: 0 | E17: 0 | F17: 0 | G17: 0 | H17: 0 | I17: 0 | J17: 0 | K17: 0 | L17: 0 | M17: 0 | N17: 0 | O17: 0 | P17: 0 | Q17: 0 | R17: 0 | S17: 0 | T17: 0 | U17: 0 | V17: 0 | W17: 0 | X17: 0 | Y17: 0 | Z17: 0 | AA17: 0 | AB17: 0 | AC17: 0 | AD17: 0 | AE17: 0 | AF17: 0 | AG17: 0 | AH17: 0 | AI17: 0 | AJ17: 0 | AK17: 0 | AL17: 0 | AM17: 0 | AN17: 0 | AO17: 0 | AP17: 0 | AQ17: 0 | AR17: 0 | AS17: 0 | AT17: 0 | AU17: 0 | AV17: 0 | AW17: 0 | AX17: 0 | AY17: 0 | AZ17: 0 | BA17: 0 | BB17: 0 | BC17: 0 | BD17: 0 | BE17: 0 | BF17: 0 | BG17: 0 | BH17: 0 | BI17: 0 | BJ17: 0 | BK17: 0 | BL17: 0 | BM17: 0 | BN17: 0 | BO17: 0 | BP17: 0 | BQ17: 0 | BR17: 0 | BS17: 0 | BT17: 0 | BU17: 0 | BV17: 0 | BW17: 0 | BX17: 0 | BY17: 0 | BZ17: 0 | CA17: 0 | CB17: 0 | CC17: 0 | CD17: 0 | CE17: 0 | CF17: 0 | CG17: 0 | CH17: 0 | CI17: 0 | CJ17: 0 | CK17: 0 | CL17: 0 | CM17: 0 | CN17: 0 | CO17: 0 | CP17: 0 | CQ17: 0 | CR17: 0 | CS17: 0 | CT17: 0 | CU17: 0 | CV17: 0 | CW17: 0 | CX17: 0
A18: AMPARAES | B18: 0 | C18: 0 | D18: 0 | E18: 0 | F18: 0 | G18: 0 | H18: 0 | I18: 0 | J18: 0 | K18: 0 | L18: 0 | M18: 0 | N18: 0 | O18: 0 | P18: 0 | Q18: 0 | R18: 0 | S18: 0 | T18: 0 | U18: 0 | V18: 0 | W18: 0 | X18: 0 | Y18: 0 | Z18: 0 | AA18: 0 | AB18: 0 | AC18: 0 | AD18: 0 | AE18: 0 | AF18: 0 | AG18: 0 | AH18: 0 | AI18: 0 | AJ18: 0 | AK18: 0 | AL18: 0 | AM18: 0 | AN18: 0 | AO18: 0 | AP18: 0 | AQ18: 0 | AR18: 0 | AS18: 0 | AT18: 0 | AU18: 0 | AV18: 0 | AW18: 0 | AX18: 0 | AY18: 0 | AZ18: 0 | BA18: 0 | BB18: 0 | BC18: 0 | BD18: 0 | BE18: 0 | BF18: 0 | BG18: 0 | BH18: 0 | BI18: 0 | BJ18: 0 | BK18: 0 | BL18: 0 | BM18: 0 | BN18: 0 | BO18: 0 | BP18: 0 | BQ18: 0 | BR18: 0 | BS18: 0 | BT18: 0 | BU18: 0 | BV18: 0 | BW18: 0 | BX18: 0 | BY18: 0 | BZ18: 0 | CA18: 0 | CB18: 0 | CC18: 0 | CD18: 0 | CE18: 0 | CF18: 0 | CG18: 0 | CH18: 0 | CI18: 0 | CJ18: 0 | CK18: 0 | CL18: 0 | CM18: 0 | CN18: 0 | CO18: 0 | CP18: 0 | CQ18: 0 | CR18: 0 | CS18: 0 | CT18: 0 | CU18: 0 | CV18: 0 | CW18: 0 | CX18: 0
A19: ANCAHUASI | B19: 0 | C19: 0 | D19: 0 | E19: 0 | F19: 0 | G19: 0 | H19: 0 | I19: 0 | J19: 0 | K19: 0 | L19: 0 | M19: 0 | N19: 0 | O19: 0 | P19: 0 | Q19: 0 | R19: 0 | S19: 0 | T19: 0 | U19: 0 | V19: 0 | W19: 0 | X19: 0 | Y19: 0 | Z19: 0 | AA19: 0 | AB19: 0 | AC19: 0 | AD19: 0 | AE19: 0 | AF19: 0 | AG19: 0 | AH19: 0 | AI19: 0 | AJ19: 0 | AK19: 0 | AL19: 0 | AM19: 0 | AN19: 0 | AO19: 0 | AP19: 0 | AQ19: 0 | AR19: 0 | AS19: 0 | AT19: 0 | AU19: 0 | AV19: 0 | AW19: 0 | AX19: 0 | AY19: 0 | AZ19: 0 | BA19: 0 | BB19: 0 | BC19: 0 | BD19: 0 | BE19: 0 | BF19: 0 | BG19: 0 | BH19: 0 | BI19: 0 | BJ19: 0 | BK19: 0 | BL19: 0 | BM19: 0 | BN19: 0 | BO19: 0 | BP19: 0 | BQ19: 0 | BR19: 0 | BS19: 0 | BT19: 0 | BU19: 0 | BV19: 0 | BW19: 0 | BX19: 0 | BY19: 0 | BZ19: 0 | CA19: 0 | CB19: 0 | CC19: 0 | CD19: 0 | CE19: 0 | CF19: 0 | CG19: 0 | CH19: 0 | CI19: 0 | CJ19: 0 | CK19: 0 | CL19: 0 | CM19: 0 | CN19: 0 | CO19: 0 | CP19: 0 | CQ19: 0 | CR19: 0 | CS19: 0 | CT19: 0 | CU19: 0 | CV19: 0 | CW19: 0 | CX19: 0
A20: ANDAHUAYLILLAS | B20: 0 | C20: 0 | D20: 0 | E20: 0 | F20: 0 | G20: 0 | H20: 0 | I20: 0 | J20: 0 | K20: 0 | L20: 0 | M20: 0 | N20: 0 | O20: 0 | P20: 0 | Q20: 0 | R20: 0 | S20: 0 | T20: 0 | U20: 0 | V20: 0 | W20: 0 | X20: 0 | Y20: 0 | Z20: 0 | AA20: 0 | AB20: 0 | AC20: 0 | AD20: 0 | AE20: 0 | AF20: 0 | AG20: 0 | AH20: 0 | AI20: 0 | AJ20: 0 | AK20: 0 | AL20: 0 | AM20: 0 | AN20: 0 | AO20: 0 | AP20: 0 | AQ20: 0 | AR20: 0 | AS20: 0 | AT20: 0 | AU20: 0 | AV20: 0 | AW20: 0 | AX20: 0 | AY20: 0 | AZ20: 0 | BA20: 0 | BB20: 0 | BC20: 0 | BD20: 0 | BE20: 0 | BF20: 0 | BG20: 0 | BH20: 0 | BI20: 0 | BJ20: 0 | BK20: 0 | BL20: 0 | BM20: 0 | BN20: 0 | BO20: 0 | BP20: 0 | BQ20: 0 | BR20: 0 | BS20: 0 | BT20: 0 | BU20: 0 | BV20: 0 | BW20: 0 | BX20: 0 | BY20: 0 | BZ20: 0 | CA20: 0 | CB20: 0 | CC20: 0 | CD20: 0 | CE20: 0 | CF20: 0 | CG20: 0 | CH20: 0 | CI20: 0 | CJ20: 0 | CK20: 0 | CL20: 0 | CM20: 0 | CN20: 0 | CO20: 0 | CP20: 0 | CQ20: 0 | CR20: 0 | CS20: 0 | CT20: 0 | CU20: 0 | CV20: 0 | CW20: 0 | CX20: 0
A21: ANGELES | B21: 0 | C21: 0 | D21: 0 | E21: 0 | F21: 0 | G21: 0 | H21: 0 | I21: 0 | J21: 0 | K21: 0 | L21: 0 | M21: 0 | N21: 0 | O21: 0 | P21: 0 | Q21: 0 | R21: 0 | S21: 0 | T21: 0 | U21: 0 | V21: 0 | W21: 0 | X21: 0 | Y21: 0 | Z21: 0 | AA21: 0 | AB21: 0 | AC21: 0 | AD21: 0 | AE21: 0 | AF21: 0 | AG21: 0 | AH21: 0 | AI21: 0 | AJ21: 0 | AK21: 0 | AL21: 0 | AM21: 0 | AN21: 0 | AO21: 0 | AP21: 0 | AQ21: 0 | AR21: 0 | AS21: 0 | AT21: 0 | AU21: 0 | AV21: 0 | AW21: 0 | AX21: 0 | AY21: 0 | AZ21: 0 | BA21: 0 | BB21: 0 | BC21: 0 | BD21: 0 | BE21: 0 | BF21: 0 | BG21: 0 | BH21: 0 | BI21: 0 | BJ21: 0 | BK21: 0 | BL21: 0 | BM21: 0 | BN21: 0 | BO21: 0 | BP21: 0 | BQ21: 0 | BR21: 0 | BS21: 0 | BT21: 0 | BU21: 0 | BV21: 0 | BW21: 0 | BX21: 0 | BY21: 0 | BZ21: 0 | CA21: 0 | CB21: 0 | CC21: 0 | CD21: 0 | CE21: 0 | CF21: 0 | CG21: 0 | CH21: 0 | CI21: 0 | CJ21: 0 | CK21: 0 | CL21: 0 | CM21: 0 | CN21: 0 | CO21: 0 | CP21: 0 | CQ21: 0 | CR21: 0 | CS21: 0 | CT21: 0 | CU21: 0 | CV21: 0 | CW21: 0 | CX21: 0
A22: ANTA | B22: 0 | C22: 0 | D22: 0 | E22: 0 | F22: 0 | G22: 0 | H22: 0 | I22: 0 | J22: 0 | K22: 0 | L22: 0 | M22: 0 | N22: 0 | O22: 0 | P22: 0 | Q22: 0 | R22: 0 | S22: 0 | T22: 0 | U22: 0 | V22: 0 | W22: 0 | X22: 0 | Y22: 0 | Z22: 0 | AA22: 0 | AB22: 0 | AC22: 0 | AD22: 0 | AE22: 0 | AF22: 0 | AG22: 0 | AH22: 0 | AI22: 0 | AJ22: 0 | AK22: 0 | AL22: 0 | AM22: 0 | AN22: 0 | AO22: 0 | AP22: 0 | AQ22: 0 | AR22: 0 | AS22: 0 | AT22: 0 | AU22: 0 | AV22: 0 | AW22: 0 | AX22: 0 | AY22: 0 | AZ22: 0 | BA22: 0 | BB22: 0 | BC22: 0 | BD22: 0 | BE22: 0 | BF22: 0 | BG22: 0 | BH22: 0 | BI22: 0 | BJ22: 0 | BK22: 0 | BL22: 0 | BM22: 0 | BN22: 0 | BO22: 0 | BP22: 0 | BQ22: 0 | BR22: 0 | BS22: 0 | BT22: 0 | BU22: 0 | BV22: 0 | BW22: 0 | BX22: 0 | BY22: 0 | BZ22: 0 | CA22: 0 | CB22: 0 | CC22: 0 | CD22: 0 | CE22: 0 | CF22: 0 | CG22: 0 | CH22: 0 | CI22: 0 | CJ22: 0 | CK22: 0 | CL22: 0 | CM22: 0 | CN22: 0 | CO22: 0 | CP22: 0 | CQ22: 0 | CR22: 0 | CS22: 0 | CT22: 0 | CU22: 0 | CV22: 0 | CW22: 0 | CX22: 0
A23: ANTAPALLPA | B23: 0 | C23: 0 | D23: 0 | E23: 0 | F23: 0 | G23: 0 | H23: 0 | I23: 0 | J23: 0 | K23: 0 | L23: 0 | M23: 0 | N23: 0 | O23: 0 | P23: 0 | Q23: 0 | R23: 0 | S23: 0 | T23: 0 | U23: 0 | V23: 0 | W23: 0 | X23: 0 | Y23: 0 | Z23: 0 | AA23: 0 | AB23: 0 | AC23: 0 | AD23: 0 | AE23: 0 | AF23: 0 | AG23: 0 | AH23: 0 | AI23: 0 | AJ23: 0 | AK23: 0 | AL23: 0 | AM23: 0 | AN23: 0 | AO23: 0 | AP23: 0 | AQ23: 0 | AR23: 0 | AS23: 0 | AT23: 0 | AU23: 0 | AV23: 0 | AW23: 0 | AX23: 0 | AY23: 0 | AZ23: 0 | BA23: 0 | BB23: 0 | BC23: 0 | BD23: 0 | BE23: 0 | BF23: 0 | BG23: 0 | BH23: 0 | BI23: 0 | BJ23: 0 | BK23: 0 | BL23: 0 | BM23: 0 | BN23: 0 | BO23: 0 | BP23: 0 | BQ23: 0 | BR23: 0 | BS23: 0 | BT23: 0 | BU23: 0 | BV23: 0 | BW23: 0 | BX23: 0 | BY23: 0 | BZ23: 0 | CA23: 0 | CB23: 0 | CC23: 0 | CD23: 0 | CE23: 0 | CF23: 0 | CG23: 0 | CH23: 0 | CI23: 0 | CJ23: 0 | CK23: 0 | CL23: 0 | CM23: 0 | CN23: 0 | CO23: 0 | CP23: 0 | CQ23: 0 | CR23: 0 | CS23: 0 | CT23: 0 | CU23: 0 | CV23: 0 | CW23: 0 | CX23: 0
A24: ANTONIO LORENA DEL CUSCO | B24: 0 | C24: 0 | D24: 0 | E24: 0 | F24: 0 | G24: 0 | H24: 0 | I24: 0 | J24: 0 | K24: 0 | L24: 0 | M24: 0 | N24: 0 | O24: 0 | P24: 0 | Q24: 0 | R24: 0 | S24: 0 | T24: 0 | U24: 0 | V24: 0 | W24: 0 | X24: 0 | Y24: 0 | Z24: 0 | AA24: 0 | AB24: 0 | AC24: 0 | AD24: 0 | AE24: 0 | AF24: 0 | AG24: 0 | AH24: 0 | AI24: 0 | AJ24: 0 | AK24: 0 | AL24: 0 | AM24: 0 | AN24: 0 | AO24: 0 | AP24: 0 | AQ24: 0 | AR24: 0 | AS24: 0 | AT24: 0 | AU24: 0 | AV24: 0 | AW24: 0 | AX24: 0 | AY24: 0 | AZ24: 0 | BA24: 0 | BB24: 0 | BC24: 0 | BD24: 0 | BE24: 0 | BF24: 0 | BG24: 0 | BH24: 0 | BI24: 0 | BJ24: 0 | BK24: 0 | BL24: 0 | BM24: 0 | BN24: 0 | BO24: 0 | BP24: 0 | BQ24: 0 | BR24: 0 | BS24: 0 | BT24: 0 | BU24: 0 | BV24: 0 | BW24: 0 | BX24: 0 | BY24: 0 | BZ24: 0 | CA24: 0 | CB24: 0 | CC24: 0 | CD24: 0 | CE24: 0 | CF24: 0 | CG24: 0 | CH24: 0 | CI24: 0 | CJ24: 0 | CK24: 0 | CL24: 0 | CM24: 0 | CN24: 0 | CO24: 0 | CP24: 0 | CQ24: 0 | CR24: 0 | CS24: 0 | CT24: 0 | CU24: 0 | CV24: 0 | CW24: 0 | CX24: 0
A25: ANTUYO | B25: 0 | C25: 0 | D25: 0 | E25: 0 | F25: 0 | G25: 0 | H25: 0 | I25: 0 | J25: 0 | K25: 0 | L25: 0 | M25: 0 | N25: 0 | O25: 0 | P25: 0 | Q25: 0 | R25: 0 | S25: 0 | T25: 0 | U25: 0 | V25: 0 | W25: 0 | X25: 0 | Y25: 0 | Z25: 0 | AA25: 0 | AB25: 0 | AC25: 0 | AD25: 0 | AE25: 0 | AF25: 0 | AG25: 0 | AH25: 0 | AI25: 0 | AJ25: 0 | AK25: 0 | AL25: 0 | AM25: 0 | AN25: 0 | AO25: 0 | AP25: 0 | AQ25: 0 | AR25: 0 | AS25: 0 | AT25: 0 | AU25: 0 | AV25: 0 | AW25: 0 | AX25: 0 | AY25: 0 | AZ25: 0 | BA25: 0 | BB25: 0 | BC25: 0 | BD25: 0 | BE25: 0 | BF25: 0 | BG25: 0 | BH25: 0 | BI25: 0 | BJ25: 0 | BK25: 0 | BL25: 0 | BM25: 0 | BN25: 0 | BO25: 0 | BP25: 0 | BQ25: 0 | BR25: 0 | BS25: 0 | BT25: 0 | BU25: 0 | BV25: 0 | BW25: 0 | BX25: 0 | BY25: 0 | BZ25: 0 | CA25: 0 | CB25: 0 | CC25: 0 | CD25: 0 | CE25: 0 | CF25: 0 | CG25: 0 | CH25: 0 | CI25: 0 | CJ25: 0 | CK25: 0 | CL25: 0 | CM25: 0 | CN25: 0 | CO25: 0 | CP25: 0 | CQ25: 0 | CR25: 0 | CS25: 0 | CT25: 0 | CU25: 0 | CV25: 0 | CW25: 0 | CX25: 0
A26: AÑAHUICHI | B26: 0 | C26: 0 | D26: 0 | E26: 0 | F26: 0 | G26: 0 | H26: 0 | I26: 0 | J26: 0 | K26: 0 | L26: 0 | M26: 0 | N26: 0 | O26: 0 | P26: 0 | Q26: 0 | R26: 0 | S26: 0 | T26: 0 | U26: 0 | V26: 0 | W26: 0 | X26: 0 | Y26: 0 | Z26: 0 | AA26: 0 | AB26: 0 | AC26: 0 | AD26: 0 | AE26: 0 | AF26: 0 | AG26: 0 | AH26: 0 | AI26: 0 | AJ26: 0 | AK26: 0 | AL26: 0 | AM26: 0 | AN26: 0 | AO26: 0 | AP26: 0 | AQ26: 0 | AR26: 0 | AS26: 0 | AT26: 0 | AU26: 0 | AV26: 0 | AW26: 0 | AX26: 0 | AY26: 0 | AZ26: 0 | BA26: 0 | BB26: 0 | BC26: 0 | BD26: 0 | BE26: 0 | BF26: 0 | BG26: 0 | BH26: 0 | BI26: 0 | BJ26: 0 | BK26: 0 | BL26: 0 | BM26: 0 | BN26: 0 | BO26: 0 | BP26: 0 | BQ26: 0 | BR26: 0 | BS26: 0 | BT26: 0 | BU26: 0 | BV26: 0 | BW26: 0 | BX26: 0 | BY26: 0 | BZ26: 0 | CA26: 0 | CB26: 0 | CC26: 0 | CD26: 0 | CE26: 0 | CF26: 0 | CG26: 0 | CH26: 0 | CI26: 0 | CJ26: 0 | CK26: 0 | CL26: 0 | CM26: 0 | CN26: 0 | CO26: 0 | CP26: 0 | CQ26: 0 | CR26: 0 | CS26: 0 | CT26: 0 | CU26: 0 | CV26: 0 | CW26: 0 | CX26: 0
A27: ARCANGEL SAN MIGUEL DE ESQUINA CONGUNYA | B27: 0 | C27: 0 | D27: 0 | E27: 0 | F27: 0 | G27: 0 | H27: 0 | I27: 0 | J27: 0 | K27: 0 | L27: 0 | M27: 0 | N27: 0 | O27: 0 | P27: 0 | Q27: 0 | R27: 0 | S27: 0 | T27: 0 | U27: 0 | V27: 0 | W27: 0 | X27: 0 | Y27: 0 | Z27: 0 | AA27: 0 | AB27: 0 | AC27: 0 | AD27: 0 | AE27: 0 | AF27: 0 | AG27: 0 | AH27: 0 | AI27: 0 | AJ27: 0 | AK27: 0 | AL27: 0 | AM27: 0 | AN27: 0 | AO27: 0 | AP27: 0 | AQ27: 0 | AR27: 0 | AS27: 0 | AT27: 0 | AU27: 0 | AV27: 0 | AW27: 0 | AX27: 0 | AY27: 0 | AZ27: 0 | BA27: 0 | BB27: 0 | BC27: 0 | BD27: 0 | BE27: 0 | BF27: 0 | BG27: 0 | BH27: 0 | BI27: 0 | BJ27: 0 | BK27: 0 | BL27: 0 | BM27: 0 | BN27: 0 | BO27: 0 | BP27: 0 | BQ27: 0 | BR27: 0 | BS27: 0 | BT27: 0 | BU27: 0 | BV27: 0 | BW27: 0 | BX27: 0 | BY27: 0 | BZ27: 0 | CA27: 0 | CB27: 0 | CC27: 0 | CD27: 0 | CE27: 0 | CF27: 0 | CG27: 0 | CH27: 0 | CI27: 0 | CJ27: 0 | CK27: 0 | CL27: 0 | CM27: 0 | CN27: 0 | CO27: 0 | CP27: 0 | CQ27: 0 | CR27: 0 | CS27: 0 | CT27: 0 | CU27: 0 | CV27: 0 | CW27: 0 | CX27: 0
A28: ARMA | B28: 0 | C28: 0 | D28: 0 | E28: 0 | F28: 0 | G28: 0 | H28: 0 | I28: 0 | J28: 0 | K28: 0 | L28: 0 | M28: 0 | N28: 0 | O28: 0 | P28: 0 | Q28: 0 | R28: 0 | S28: 0 | T28: 0 | U28: 0 | V28: 0 | W28: 0 | X28: 0 | Y28: 0 | Z28: 0 | AA28: 0 | AB28: 0 | AC28: 0 | AD28: 0 | AE28: 0 | AF28: 0 | AG28: 0 | AH28: 0 | AI28: 0 | AJ28: 0 | AK28: 0 | AL28: 0 | AM28: 0 | AN28: 0 | AO28: 0 | AP28: 0 | AQ28: 0 | AR28: 0 | AS28: 0 | AT28: 0 | AU28: 0 | AV28: 0 | AW28: 0 | AX28: 0 | AY28: 0 | AZ28: 0 | BA28: 0 | BB28: 0 | BC28: 0 | BD28: 0 | BE28: 0 | BF28: 0 | BG28: 0 | BH28: 0 | BI28: 0 | BJ28: 0 | BK28: 0 | BL28: 0 | BM28: 0 | BN28: 0 | BO28: 0 | BP28: 0 | BQ28: 0 | BR28: 0 | BS28: 0 | BT28: 0 | BU28: 0 | BV28: 0 | BW28: 0 | BX28: 0 | BY28: 0 | BZ28: 0 | CA28: 0 | CB28: 0 | CC28: 0 | CD28: 0 | CE28: 0 | CF28: 0 | CG28: 0 | CH28: 0 | CI28: 0 | CJ28: 0 | CK28: 0 | CL28: 0 | CM28: 0 | CN28: 0 | CO28: 0 | CP28: 0 | CQ28: 0 | CR28: 0 | CS28: 0 | CT28: 0 | CU28: 0 | CV28: 0 | CW28: 0 | CX28: 0
A29: AUSANTA | B29: 0 | C29: 0 | D29: 0 | E29: 0 | F29: 0 | G29: 0 | H29: 0 | I29: 0 | J29: 0 | K29: 0 | L29: 0 | M29: 0 | N29: 0 | O29: 0 | P29: 0 | Q29: 0 | R29: 0 | S29: 0 | T29: 0 | U29: 0 | V29: 0 | W29: 0 | X29: 0 | Y29: 0 | Z29: 0 | AA29: 0 | AB29: 0 | AC29: 0 | AD29: 0 | AE29: 0 | AF29: 0 | AG29: 0 | AH29: 0 | AI29: 0 | AJ29: 0 | AK29: 0 | AL29: 0 | AM29: 0 | AN29: 0 | AO29: 0 | AP29: 0 | AQ29: 0 | AR29: 0 | AS29: 0 | AT29: 0 | AU29: 0 | AV29: 0 | AW29: 0 | AX29: 0 | AY29: 0 | AZ29: 0 | BA29: 0 | BB29: 0 | BC29: 0 | BD29: 0 | BE29: 0 | BF29: 0 | BG29: 0 | BH29: 0 | BI29: 0 | BJ29: 0 | BK29: 0 | BL29: 0 | BM29: 0 | BN29: 0 | BO29: 0 | BP29: 0 | BQ29: 0 | BR29: 0 | BS29: 0 | BT29: 0 | BU29: 0 | BV29: 0 | BW29: 0 | BX29: 0 | BY29: 0 | BZ29: 0 | CA29: 0 | CB29: 0 | CC29: 0 | CD29: 0 | CE29: 0 | CF29: 0 | CG29: 0 | CH29: 0 | CI29: 0 | CJ29: 0 | CK29: 0 | CL29: 0 | CM29: 0 | CN29: 0 | CO29: 0 | CP29: 0 | CQ29: 0 | CR29: 0 | CS29: 0 | CT29: 0 | CU29: 0 | CV29: 0 | CW29: 0 | CX29: 0
A30: AYACCASI | B30: 0 | C30: 0 | D30: 0 | E30: 0 | F30: 0 | G30: 0 | H30: 0 | I30: 0 | J30: 0 | K30: 0 | L30: 0 | M30: 0 | N30: 0 | O30: 0 | P30: 0 | Q30: 0 | R30: 0 | S30: 0 | T30: 0 | U30: 0 | V30: 0 | W30: 0 | X30: 0 | Y30: 0 | Z30: 0 | AA30: 0 | AB30: 0 | AC30: 0 | AD30: 0 | AE30: 0 | AF30: 0 | AG30: 0 | AH30: 0 | AI30: 0 | AJ30: 0 | AK30: 0 | AL30: 0 | AM30: 0 | AN30: 0 | AO30: 0 | AP30: 0 | AQ30: 0 | AR30: 0 | AS30: 0 | AT30: 0 | AU30: 0 | AV30: 0 | AW30: 0 | AX30: 0 | AY30: 0 | AZ30: 0 | BA30: 0 | BB30: 0 | BC30: 0 | BD30: 0 | BE30: 0 | BF30: 0 | BG30: 0 | BH30: 0 | BI30: 0 | BJ30: 0 | BK30: 0 | BL30: 0 | BM30: 0 | BN30: 0 | BO30: 0 | BP30: 0 | BQ30: 0 | BR30: 0 | BS30: 0 | BT30: 0 | BU30: 0 | BV30: 0 | BW30: 0 | BX30: 0 | BY30: 0 | BZ30: 0 | CA30: 0 | CB30: 0 | CC30: 0 | CD30: 0 | CE30: 0 | CF30: 0 | CG30: 0 | CH30: 0 | CI30: 0 | CJ30: 0 | CK30: 0 | CL30: 0 | CM30: 0 | CN30: 0 | CO30: 0 | CP30: 0 | CQ30: 0 | CR30: 0 | CS30: 0 | CT30: 0 | CU30: 0 | CV30: 0 | CW30: 0 | CX30: 0
A31: AYRE | B31: 0 | C31: 0 | D31: 0 | E31: 0 | F31: 0 | G31: 0 | H31: 0 | I31: 0 | J31: 0 | K31: 0 | L31: 0 | M31: 0 | N31: 0 | O31: 0 | P31: 0 | Q31: 0 | R31: 0 | S31: 0 | T31: 0 | U31: 0 | V31: 0 | W31: 0 | X31: 0 | Y31: 0 | Z31: 0 | AA31: 0 | AB31: 0 | AC31: 0 | AD31: 0 | AE31: 0 | AF31: 0 | AG31: 0 | AH31: 0 | AI31: 0 | AJ31: 0 | AK31: 0 | AL31: 0 | AM31: 0 | AN31: 0 | AO31: 0 | AP31: 0 | AQ31: 0 | AR31: 0 | AS31: 0 | AT31: 0 | AU31: 0 | AV31: 0 | AW31: 0 | AX31: 0 | AY31: 0 | AZ31: 0 | BA31: 0 | BB31: 0 | BC31: 0 | BD31: 0 | BE31: 0 | BF31: 0 | BG31: 0 | BH31: 0 | BI31: 0 | BJ31: 0 | BK31: 0 | BL31: 0 | BM31: 0 | BN31: 0 | BO31: 0 | BP31: 0 | BQ31: 0 | BR31: 0 | BS31: 0 | BT31: 0 | BU31: 0 | BV31: 0 | BW31: 0 | BX31: 0 | BY31: 0 | BZ31: 0 | CA31: 0 | CB31: 0 | CC31: 0 | CD31: 0 | CE31: 0 | CF31: 0 | CG31: 0 | CH31: 0 | CI31: 0 | CJ31: 0 | CK31: 0 | CL31: 0 | CM31: 0 | CN31: 0 | CO31: 0 | CP31: 0 | CQ31: 0 | CR31: 0 | CS31: 0 | CT31: 0 | CU31: 0 | CV31: 0 | CW31: 0 | CX31: 0
A32: BELEMPAMPA | B32: 0 | C32: 0 | D32: 0 | E32: 0 | F32: 0 | G32: 0 | H32: 0 | I32: 0 | J32: 0 | K32: 0 | L32: 0 | M32: 0 | N32: 0 | O32: 0 | P32: 0 | Q32: 0 | R32: 0 | S32: 0 | T32: 0 | U32: 0 | V32: 0 | W32: 0 | X32: 0 | Y32: 0 | Z32: 0 | AA32: 0 | AB32: 0 | AC32: 0 | AD32: 0 | AE32: 0 | AF32: 0 | AG32: 0 | AH32: 0 | AI32: 0 | AJ32: 0 | AK32: 0 | AL32: 0 | AM32: 0 | AN32: 0 | AO32: 0 | AP32: 0 | AQ32: 0 | AR32: 0 | AS32: 0 | AT32: 0 | AU32: 0 | AV32: 0 | AW32: 0 | AX32: 0 | AY32: 0 | AZ32: 0 | BA32: 0 | BB32: 0 | BC32: 0 | BD32: 0 | BE32: 0 | BF32: 0 | BG32: 0 | BH32: 0 | BI32: 0 | BJ32: 0 | BK32: 0 | BL32: 0 | BM32: 0 | BN32: 0 | BO32: 0 | BP32: 0 | BQ32: 0 | BR32: 0 | BS32: 0 | BT32: 0 | BU32: 0 | BV32: 0 | BW32: 0 | BX32: 0 | BY32: 0 | BZ32: 0 | CA32: 0 | CB32: 0 | CC32: 0 | CD32: 0 | CE32: 0 | CF32: 0 | CG32: 0 | CH32: 0 | CI32: 0 | CJ32: 0 | CK32: 0 | CL32: 0 | CM32: 0 | CN32: 0 | CO32: 0 | CP32: 0 | CQ32: 0 | CR32: 0 | CS32: 0 | CT32: 0 | CU32: 0 | CV32: 0 | CW32: 0 | CX32: 0
A33: BELLAVISTA | B33: 0 | C33: 0 | D33: 0 | E33: 0 | F33: 0 | G33: 0 | H33: 0 | I33: 0 | J33: 0 | K33: 0 | L33: 0 | M33: 0 | N33: 0 | O33: 0 | P33: 0 | Q33: 0 | R33: 0 | S33: 0 | T33: 0 | U33: 0 | V33: 0 | W33: 0 | X33: 0 | Y33: 0 | Z33: 0 | AA33: 0 | AB33: 0 | AC33: 0 | AD33: 0 | AE33: 0 | AF33: 0 | AG33: 0 | AH33: 0 | AI33: 0 | AJ33: 0 | AK33: 0 | AL33: 0 | AM33: 0 | AN33: 0 | AO33: 0 | AP33: 0 | AQ33: 0 | AR33: 0 | AS33: 0 | AT33: 0 | AU33: 0 | AV33: 0 | AW33: 0 | AX33: 0 | AY33: 0 | AZ33: 0 | BA33: 0 | BB33: 0 | BC33: 0 | BD33: 0 | BE33: 0 | BF33: 0 | BG33: 0 | BH33: 0 | BI33: 0 | BJ33: 0 | BK33: 0 | BL33: 0 | BM33: 0 | BN33: 0 | BO33: 0 | BP33: 0 | BQ33: 0 | BR33: 0 | BS33: 0 | BT33: 0 | BU33: 0 | BV33: 0 | BW33: 0 | BX33: 0 | BY33: 0 | BZ33: 0 | CA33: 0 | CB33: 0 | CC33: 0 | CD33: 0 | CE33: 0 | CF33: 0 | CG33: 0 | CH33: 0 | CI33: 0 | CJ33: 0 | CK33: 0 | CL33: 0 | CM33: 0 | CN33: 0 | CO33: 0 | CP33: 0 | CQ33: 0 | CR33: 0 | CS33: 0 | CT33: 0 | CU33: 0 | CV33: 0 | CW33: 0 | CX33: 0
A34: BUENA VISTA | B34: 0 | C34: 0 | D34: 0 | E34: 0 | F34: 0 | G34: 0 | H34: 0 | I34: 0 | J34: 0 | K34: 0 | L34: 0 | M34: 0 | N34: 0 | O34: 0 | P34: 0 | Q34: 0 | R34: 0 | S34: 0 | T34: 0 | U34: 0 | V34: 0 | W34: 0 | X34: 0 | Y34: 0 | Z34: 0 | AA34: 0 | AB34: 0 | AC34: 0 | AD34: 0 | AE34: 0 | AF34: 0 | AG34: 0 | AH34: 0 | AI34: 0 | AJ34: 0 | AK34: 0 | AL34: 0 | AM34: 0 | AN34: 0 | AO34: 0 | AP34: 0 | AQ34: 0 | AR34: 0 | AS34: 0 | AT34: 0 | AU34: 0 | AV34: 0 | AW34: 0 | AX34: 0 | AY34: 0 | AZ34: 0 | BA34: 0 | BB34: 0 | BC34: 0 | BD34: 0 | BE34: 0 | BF34: 0 | BG34: 0 | BH34: 0 | BI34: 0 | BJ34: 0 | BK34: 0 | BL34: 0 | BM34: 0 | BN34: 0 | BO34: 0 | BP34: 0 | BQ34: 0 | BR34: 0 | BS34: 0 | BT34: 0 | BU34: 0 | BV34: 0 | BW34: 0 | BX34: 0 | BY34: 0 | BZ34: 0 | CA34: 0 | CB34: 0 | CC34: 0 | CD34: 0 | CE34: 0 | CF34: 0 | CG34: 0 | CH34: 0 | CI34: 0 | CJ34: 0 | CK34: 0 | CL34: 0 | CM34: 0 | CN34: 0 | CO34: 0 | CP34: 0 | CQ34: 0 | CR34: 0 | CS34: 0 | CT34: 0 | CU34: 0 | CV34: 0 | CW34: 0 | CX34: 0
A35: CACHIMAYO | B35: 0 | C35: 0 | D35: 0 | E35: 0 | F35: 0 | G35: 0 | H35: 0 | I35: 0 | J35: 0 | K35: 0 | L35: 0 | M35: 0 | N35: 0 | O35: 0 | P35: 0 | Q35: 0 | R35: 0 | S35: 0 | T35: 0 | U35: 0 | V35: 0 | W35: 0 | X35: 0 | Y35: 0 | Z35: 0 | AA35: 0 | AB35: 0 | AC35: 0 | AD35: 0 | AE35: 0 | AF35: 0 | AG35: 0 | AH35: 0 | AI35: 0 | AJ35: 0 | AK35: 0 | AL35: 0 | AM35: 0 | AN35: 0 | AO35: 0 | AP35: 0 | AQ35: 0 | AR35: 0 | AS35: 0 | AT35: 0 | AU35: 0 | AV35: 0 | AW35: 0 | AX35: 0 | AY35: 0 | AZ35: 0 | BA35: 0 | BB35: 0 | BC35: 0 | BD35: 0 | BE35: 0 | BF35: 0 | BG35: 0 | BH35: 0 | BI35: 0 | BJ35: 0 | BK35: 0 | BL35: 0 | BM35: 0 | BN35: 0 | BO35: 0 | BP35: 0 | BQ35: 0 | BR35: 0 | BS35: 0 | BT35: 0 | BU35: 0 | BV35: 0 | BW35: 0 | BX35: 0 | BY35: 0 | BZ35: 0 | CA35: 0 | CB35: 0 | CC35: 0 | CD35: 0 | CE35: 0 | CF35: 0 | CG35: 0 | CH35: 0 | CI35: 0 | CJ35: 0 | CK35: 0 | CL35: 0 | CM35: 0 | CN35: 0 | CO35: 0 | CP35: 0 | CQ35: 0 | CR35: 0 | CS35: 0 | CT35: 0 | CU35: 0 | CV35: 0 | CW35: 0 | CX35: 0
A36: CAICAY | B36: 0 | C36: 0 | D36: 0 | E36: 0 | F36: 0 | G36: 0 | H36: 0 | I36: 0 | J36: 0 | K36: 0 | L36: 0 | M36: 0 | N36: 0 | O36: 0 | P36: 0 | Q36: 0 | R36: 0 | S36: 0 | T36: 0 | U36: 0 | V36: 0 | W36: 0 | X36: 0 | Y36: 0 | Z36: 0 | AA36: 0 | AB36: 0 | AC36: 0 | AD36: 0 | AE36: 0 | AF36: 0 | AG36: 0 | AH36: 0 | AI36: 0 | AJ36: 0 | AK36: 0 | AL36: 0 | AM36: 0 | AN36: 0 | AO36: 0 | AP36: 0 | AQ36: 0 | AR36: 0 | AS36: 0 | AT36: 0 | AU36: 0 | AV36: 0 | AW36: 0 | AX36: 0 | AY36: 0 | AZ36: 0 | BA36: 0 | BB36: 0 | BC36: 0 | BD36: 0 | BE36: 0 | BF36: 0 | BG36: 0 | BH36: 0 | BI36: 0 | BJ36: 0 | BK36: 0 | BL36: 0 | BM36: 0 | BN36: 0 | BO36: 0 | BP36: 0 | BQ36: 0 | BR36: 0 | BS36: 0 | BT36: 0 | BU36: 0 | BV36: 0 | BW36: 0 | BX36: 0 | BY36: 0 | BZ36: 0 | CA36: 0 | CB36: 0 | CC36: 0 | CD36: 0 | CE36: 0 | CF36: 0 | CG36: 0 | CH36: 0 | CI36: 0 | CJ36: 0 | CK36: 0 | CL36: 0 | CM36: 0 | CN36: 0 | CO36: 0 | CP36: 0 | CQ36: 0 | CR36: 0 | CS36: 0 | CT36: 0 | CU36: 0 | CV36: 0 | CW36: 0 | CX36: 0
A37: CALCA | B37: 0 | C37: 0 | D37: 0 | E37: 0 | F37: 0 | G37: 0 | H37: 0 | I37: 0 | J37: 0 | K37: 0 | L37: 0 | M37: 0 | N37: 0 | O37: 0 | P37: 0 | Q37: 0 | R37: 0 | S37: 0 | T37: 0 | U37: 0 | V37: 0 | W37: 0 | X37: 0 | Y37: 0 | Z37: 0 | AA37: 0 | AB37: 0 | AC37: 0 | AD37: 0 | AE37: 0 | AF37: 0 | AG37: 0 | AH37: 0 | AI37: 0 | AJ37: 0 | AK37: 0 | AL37: 0 | AM37: 0 | AN37: 0 | AO37: 0 | AP37: 0 | AQ37: 0 | AR37: 0 | AS37: 0 | AT37: 0 | AU37: 0 | AV37: 0 | AW37: 0 | AX37: 0 | AY37: 0 | AZ37: 0 | BA37: 0 | BB37: 0 | BC37: 0 | BD37: 0 | BE37: 0 | BF37: 0 | BG37: 0 | BH37: 0 | BI37: 0 | BJ37: 0 | BK37: 0 | BL37: 0 | BM37: 0 | BN37: 0 | BO37: 0 | BP37: 0 | BQ37: 0 | BR37: 0 | BS37: 0 | BT37: 0 | BU37: 0 | BV37: 0 | BW37: 0 | BX37: 0 | BY37: 0 | BZ37: 0 | CA37: 0 | CB37: 0 | CC37: 0 | CD37: 0 | CE37: 0 | CF37: 0 | CG37: 0 | CH37: 0 | CI37: 0 | CJ37: 0 | CK37: 0 | CL37: 0 | CM37: 0 | CN37: 0 | CO37: 0 | CP37: 0 | CQ37: 0 | CR37: 0 | CS37: 0 | CT37: 0 | CU37: 0 | CV37: 0 | CW37: 0 | CX37: 0
A38: CAMINO INCA HUAYLLABAMBA | B38: 0 | C38: 0 | D38: 0 | E38: 0 | F38: 0 | G38: 0 | H38: 0 | I38: 0 | J38: 0 | K38: 0 | L38: 0 | M38: 0 | N38: 0 | O38: 0 | P38: 0 | Q38: 0 | R38: 0 | S38: 0 | T38: 0 | U38: 0 | V38: 0 | W38: 0 | X38: 0 | Y38: 0 | Z38: 0 | AA38: 0 | AB38: 0 | AC38: 0 | AD38: 0 | AE38: 0 | AF38: 0 | AG38: 0 | AH38: 0 | AI38: 0 | AJ38: 0 | AK38: 0 | AL38: 0 | AM38: 0 | AN38: 0 | AO38: 0 | AP38: 0 | AQ38: 0 | AR38: 0 | AS38: 0 | AT38: 0 | AU38: 0 | AV38: 0 | AW38: 0 | AX38: 0 | AY38: 0 | AZ38: 0 | BA38: 0 | BB38: 0 | BC38: 0 | BD38: 0 | BE38: 0 | BF38: 0 | BG38: 0 | BH38: 0 | BI38: 0 | BJ38: 0 | BK38: 0 | BL38: 0 | BM38: 0 | BN38: 0 | BO38: 0 | BP38: 0 | BQ38: 0 | BR38: 0 | BS38: 0 | BT38: 0 | BU38: 0 | BV38: 0 | BW38: 0 | BX38: 0 | BY38: 0 | BZ38: 0 | CA38: 0 | CB38: 0 | CC38: 0 | CD38: 0 | CE38: 0 | CF38: 0 | CG38: 0 | CH38: 0 | CI38: 0 | CJ38: 0 | CK38: 0 | CL38: 0 | CM38: 0 | CN38: 0 | CO38: 0 | CP38: 0 | CQ38: 0 | CR38: 0 | CS38: 0 | CT38: 0 | CU38: 0 | CV38: 0 | CW38: 0 | CX38: 0
A39: CANCAHUANI | B39: 0 | C39: 0 | D39: 0 | E39: 0 | F39: 0 | G39: 0 | H39: 0 | I39: 0 | J39: 0 | K39: 0 | L39: 0 | M39: 0 | N39: 0 | O39: 0 | P39: 0 | Q39: 0 | R39: 0 | S39: 0 | T39: 0 | U39: 0 | V39: 0 | W39: 0 | X39: 0 | Y39: 0 | Z39: 0 | AA39: 0 | AB39: 0 | AC39: 0 | AD39: 0 | AE39: 0 | AF39: 0 | AG39: 0 | AH39: 0 | AI39: 0 | AJ39: 0 | AK39: 0 | AL39: 0 | AM39: 0 | AN39: 0 | AO39: 0 | AP39: 0 | AQ39: 0 | AR39: 0 | AS39: 0 | AT39: 0 | AU39: 0 | AV39: 0 | AW39: 0 | AX39: 0 | AY39: 0 | AZ39: 0 | BA39: 0 | BB39: 0 | BC39: 0 | BD39: 0 | BE39: 0 | BF39: 0 | BG39: 0 | BH39: 0 | BI39: 0 | BJ39: 0 | BK39: 0 | BL39: 0 | BM39: 0 | BN39: 0 | BO39: 0 | BP39: 0 | BQ39: 0 | BR39: 0 | BS39: 0 | BT39: 0 | BU39: 0 | BV39: 0 | BW39: 0 | BX39: 0 | BY39: 0 | BZ39: 0 | CA39: 0 | CB39: 0 | CC39: 0 | CD39: 0 | CE39: 0 | CF39: 0 | CG39: 0 | CH39: 0 | CI39: 0 | CJ39: 0 | CK39: 0 | CL39: 0 | CM39: 0 | CN39: 0 | CO39: 0 | CP39: 0 | CQ39: 0 | CR39: 0 | CS39: 0 | CT39: 0 | CU39: 0 | CV39: 0 | CW39: 0 | CX39: 0
A40: CASHIRIARI | B40: 0 | C40: 0 | D40: 0 | E40: 0 | F40: 0 | G40: 0 | H40: 0 | I40: 0 | J40: 0 | K40: 0 | L40: 0 | M40: 0 | N40: 0 | O40: 0 | P40: 0 | Q40: 0 | R40: 0 | S40: 0 | T40: 0 | U40: 0 | V40: 0 | W40: 0 | X40: 0 | Y40: 0 | Z40: 0 | AA40: 0 | AB40: 0 | AC40: 0 | AD40: 0 | AE40: 0 | AF40: 0 | AG40: 0 | AH40: 0 | AI40: 0 | AJ40: 0 | AK40: 0 | AL40: 0 | AM40: 0 | AN40: 0 | AO40: 0 | AP40: 0 | AQ40: 0 | AR40: 0 | AS40: 0 | AT40: 0 | AU40: 0 | AV40: 0 | AW40: 0 | AX40: 1 | AY40: 0 | AZ40: 0 | BA40: 0 | BB40: 0 | BC40: 0 | BD40: 1 | BE40: 0 | BF40: 0 | BG40: 0 | BH40: 0 | BI40: 0 | BJ40: 0 | BK40: 0 | BL40: 0 | BM40: 0 | BN40: 0 | BO40: 0 | BP40: 0 | BQ40: 0 | BR40: 0 | BS40: 0 | BT40: 0 | BU40: 0 | BV40: 0 | BW40: 0 | BX40: 0 | BY40: 0 | BZ40: 0 | CA40: 0 | CB40: 0 | CC40: 0 | CD40: 0 | CE40: 0 | CF40: 0 | CG40: 0 | CH40: 0 | CI40: 0 | CJ40: 0 | CK40: 0 | CL40: 0 | CM40: 0 | CN40: 0 | CO40: 0 | CP40: 0 | CQ40: 0 | CR40: 0 | CS40: 0 | CT40: 0 | CU40: 0 | CV40: 1 | CW40: 0 | CX40: 0
A41: CCACHIN | B41: 0 | C41: 0 | D41: 0 | E41: 0 | F41: 0 | G41: 0 | H41: 0 | I41: 0 | J41: 0 | K41: 0 | L41: 0 | M41: 0 | N41: 0 | O41: 0 | P41: 0 | Q41: 0 | R41: 0 | S41: 0 | T41: 0 | U41: 0 | V41: 0 | W41: 0 | X41: 0 | Y41: 0 | Z41: 0 | AA41: 0 | AB41: 0 | AC41: 0 | AD41: 0 | AE41: 0 | AF41: 0 | AG41: 0 | AH41: 0 | AI41: 0 | AJ41: 0 | AK41: 0 | AL41: 0 | AM41: 0 | AN41: 0 | AO41: 0 | AP41: 0 | AQ41: 0 | AR41: 0 | AS41: 0 | AT41: 0 | AU41: 0 | AV41: 0 | AW41: 0 | AX41: 0 | AY41: 0 | AZ41: 0 | BA41: 0 | BB41: 0 | BC41: 0 | BD41: 0 | BE41: 0 | BF41: 0 | BG41: 0 | BH41: 0 | BI41: 0 | BJ41: 0 | BK41: 0 | BL41: 0 | BM41: 0 | BN41: 0 | BO41: 0 | BP41: 0 | BQ41: 0 | BR41: 0 | BS41: 0 | BT41: 0 | BU41: 0 | BV41: 0 | BW41: 0 | BX41: 0 | BY41: 0 | BZ41: 0 | CA41: 0 | CB41: 0 | CC41: 0 | CD41: 0 | CE41: 0 | CF41: 0 | CG41: 0 | CH41: 0 | CI41: 0 | CJ41: 0 | CK41: 0 | CL41: 0 | CM41: 0 | CN41: 0 | CO41: 0 | CP41: 0 | CQ41: 0 | CR41: 0 | CS41: 0 | CT41: 0 | CU41: 0 | CV41: 0 | CW41: 0 | CX41: 0
A42: CCAPACMARCA | B42: 0 | C42: 0 | D42: 0 | E42: 0 | F42: 0 | G42: 0 | H42: 0 | I42: 0 | J42: 0 | K42: 0 | L42: 0 | M42: 0 | N42: 0 | O42: 0 | P42: 0 | Q42: 0 | R42: 0 | S42: 0 | T42: 0 | U42: 0 | V42: 0 | W42: 0 | X42: 0 | Y42: 0 | Z42: 0 | AA42: 0 | AB42: 0 | AC42: 0 | AD42: 0 | AE42: 0 | AF42: 0 | AG42: 0 | AH42: 0 | AI42: 0 | AJ42: 0 | AK42: 0 | AL42: 0 | AM42: 0 | AN42: 0 | AO42: 0 | AP42: 0 | AQ42: 0 | AR42: 0 | AS42: 0 | AT42: 0 | AU42: 0 | AV42: 0 | AW42: 0 | AX42: 0 | AY42: 0 | AZ42: 0 | BA42: 0 | BB42: 0 | BC42: 0 | BD42: 0 | BE42: 0 | BF42: 0 | BG42: 0 | BH42: 0 | BI42: 0 | BJ42: 0 | BK42: 0 | BL42: 0 | BM42: 0 | BN42: 0 | BO42: 0 | BP42: 0 | BQ42: 0 | BR42: 0 | BS42: 0 | BT42: 0 | BU42: 0 | BV42: 0 | BW42: 0 | BX42: 0 | BY42: 0 | BZ42: 0 | CA42: 0 | CB42: 0 | CC42: 0 | CD42: 0 | CE42: 0 | CF42: 0 | CG42: 0 | CH42: 0 | CI42: 0 | CJ42: 0 | CK42: 0 | CL42: 0 | CM42: 0 | CN42: 0 | CO42: 0 | CP42: 0 | CQ42: 0 | CR42: 0 | CS42: 0 | CT42: 0 | CU42: 0 | CV42: 0 | CW42: 0 | CX42: 0
A43: CCAPANA | B43: 0 | C43: 0 | D43: 0 | E43: 0 | F43: 0 | G43: 0 | H43: 0 | I43: 0 | J43: 0 | K43: 0 | L43: 0 | M43: 0 | N43: 0 | O43: 0 | P43: 0 | Q43: 0 | R43: 0 | S43: 0 | T43: 0 | U43: 0 | V43: 0 | W43: 0 | X43: 0 | Y43: 0 | Z43: 0 | AA43: 0 | AB43: 0 | AC43: 0 | AD43: 0 | AE43: 0 | AF43: 0 | AG43: 0 | AH43: 0 | AI43: 0 | AJ43: 0 | AK43: 0 | AL43: 0 | AM43: 0 | AN43: 0 | AO43: 0 | AP43: 0 | AQ43: 0 | AR43: 0 | AS43: 0 | AT43: 0 | AU43: 0 | AV43: 0 | AW43: 0 | AX43: 0 | AY43: 0 | AZ43: 0 | BA43: 0 | BB43: 0 | BC43: 0 | BD43: 0 | BE43: 0 | BF43: 0 | BG43: 0 | BH43: 0 | BI43: 0 | BJ43: 0 | BK43: 0 | BL43: 0 | BM43: 0 | BN43: 0 | BO43: 0 | BP43: 0 | BQ43: 0 | BR43: 0 | BS43: 0 | BT43: 0 | BU43: 0 | BV43: 0 | BW43: 0 | BX43: 0 | BY43: 0 | BZ43: 0 | CA43: 0 | CB43: 0 | CC43: 0 | CD43: 0 | CE43: 0 | CF43: 0 | CG43: 0 | CH43: 0 | CI43: 0 | CJ43: 0 | CK43: 0 | CL43: 0 | CM43: 0 | CN43: 0 | CO43: 0 | CP43: 0 | CQ43: 0 | CR43: 0 | CS43: 0 | CT43: 0 | CU43: 0 | CV43: 0 | CW43: 0 | CX43: 0
A44: CCAPI | B44: 0 | C44: 0 | D44: 0 | E44: 0 | F44: 0 | G44: 0 | H44: 0 | I44: 0 | J44: 0 | K44: 0 | L44: 0 | M44: 0 | N44: 0 | O44: 0 | P44: 0 | Q44: 0 | R44: 0 | S44: 0 | T44: 0 | U44: 0 | V44: 0 | W44: 0 | X44: 0 | Y44: 0 | Z44: 0 | AA44: 0 | AB44: 0 | AC44: 0 | AD44: 0 | AE44: 0 | AF44: 0 | AG44: 0 | AH44: 0 | AI44: 0 | AJ44: 0 | AK44: 0 | AL44: 0 | AM44: 0 | AN44: 0 | AO44: 0 | AP44: 0 | AQ44: 0 | AR44: 0 | AS44: 0 | AT44: 0 | AU44: 0 | AV44: 0 | AW44: 0 | AX44: 0 | AY44: 0 | AZ44: 0 | BA44: 0 | BB44: 0 | BC44: 0 | BD44: 0 | BE44: 0 | BF44: 0 | BG44: 0 | BH44: 0 | BI44: 0 | BJ44: 0 | BK44: 0 | BL44: 0 | BM44: 0 | BN44: 0 | BO44: 0 | BP44: 0 | BQ44: 0 | BR44: 0 | BS44: 0 | BT44: 0 | BU44: 0 | BV44: 0 | BW44: 0 | BX44: 0 | BY44: 0 | BZ44: 0 | CA44: 0 | CB44: 0 | CC44: 0 | CD44: 0 | CE44: 0 | CF44: 0 | CG44: 0 | CH44: 0 | CI44: 0 | CJ44: 0 | CK44: 0 | CL44: 0 | CM44: 0 | CN44: 0 | CO44: 0 | CP44: 0 | CQ44: 0 | CR44: 0 | CS44: 0 | CT44: 0 | CU44: 0 | CV44: 0 | CW44: 0 | CX44: 0
A45: CCARCCO | B45: 0 | C45: 0 | D45: 0 | E45: 0 | F45: 0 | G45: 0 | H45: 0 | I45: 0 | J45: 0 | K45: 0 | L45: 0 | M45: 0 | N45: 0 | O45: 0 | P45: 0 | Q45: 0 | R45: 0 | S45: 0 | T45: 0 | U45: 0 | V45: 0 | W45: 0 | X45: 0 | Y45: 0 | Z45: 0 | AA45: 0 | AB45: 0 | AC45: 0 | AD45: 0 | AE45: 0 | AF45: 0 | AG45: 0 | AH45: 0 | AI45: 0 | AJ45: 0 | AK45: 0 | AL45: 0 | AM45: 0 | AN45: 0 | AO45: 0 | AP45: 0 | AQ45: 0 | AR45: 0 | AS45: 0 | AT45: 0 | AU45: 0 | AV45: 0 | AW45: 0 | AX45: 0 | AY45: 0 | AZ45: 0 | BA45: 0 | BB45: 0 | BC45: 0 | BD45: 0 | BE45: 0 | BF45: 0 | BG45: 0 | BH45: 0 | BI45: 0 | BJ45: 0 | BK45: 0 | BL45: 0 | BM45: 0 | BN45: 0 | BO45: 0 | BP45: 0 | BQ45: 0 | BR45: 0 | BS45: 0 | BT45: 0 | BU45: 0 | BV45: 0 | BW45: 0 | BX45: 0 | BY45: 0 | BZ45: 0 | CA45: 0 | CB45: 0 | CC45: 0 | CD45: 0 | CE45: 0 | CF45: 0 | CG45: 0 | CH45: 0 | CI45: 0 | CJ45: 0 | CK45: 0 | CL45: 0 | CM45: 0 | CN45: 0 | CO45: 0 | CP45: 0 | CQ45: 0 | CR45: 0 | CS45: 0 | CT45: 0 | CU45: 0 | CV45: 0 | CW45: 0 | CX45: 0
A46: CCARHUAYO | B46: 0 | C46: 0 | D46: 0 | E46: 0 | F46: 0 | G46: 0 | H46: 0 | I46: 0 | J46: 0 | K46: 0 | L46: 0 | M46: 0 | N46: 0 | O46: 0 | P46: 0 | Q46: 0 | R46: 0 | S46: 0 | T46: 0 | U46: 0 | V46: 0 | W46: 0 | X46: 0 | Y46: 0 | Z46: 0 | AA46: 0 | AB46: 0 | AC46: 0 | AD46: 0 | AE46: 0 | AF46: 0 | AG46: 0 | AH46: 0 | AI46: 0 | AJ46: 0 | AK46: 0 | AL46: 0 | AM46: 0 | AN46: 0 | AO46: 0 | AP46: 0 | AQ46: 0 | AR46: 0 | AS46: 0 | AT46: 0 | AU46: 0 | AV46: 0 | AW46: 0 | AX46: 0 | AY46: 0 | AZ46: 0 | BA46: 0 | BB46: 0 | BC46: 0 | BD46: 0 | BE46: 0 | BF46: 0 | BG46: 0 | BH46: 0 | BI46: 0 | BJ46: 0 | BK46: 0 | BL46: 0 | BM46: 0 | BN46: 0 | BO46: 0 | BP46: 0 | BQ46: 0 | BR46: 0 | BS46: 0 | BT46: 0 | BU46: 0 | BV46: 0 | BW46: 0 | BX46: 0 | BY46: 0 | BZ46: 0 | CA46: 0 | CB46: 0 | CC46: 0 | CD46: 0 | CE46: 0 | CF46: 0 | CG46: 0 | CH46: 0 | CI46: 0 | CJ46: 0 | CK46: 0 | CL46: 0 | CM46: 0 | CN46: 0 | CO46: 0 | CP46: 0 | CQ46: 0 | CR46: 0 | CS46: 0 | CT46: 0 | CU46: 0 | CV46: 0 | CW46: 0 | CX46: 0
A47: CCATCCA | B47: 0 | C47: 0 | D47: 0 | E47: 0 | F47: 0 | G47: 0 | H47: 0 | I47: 0 | J47: 0 | K47: 0 | L47: 0 | M47: 0 | N47: 0 | O47: 0 | P47: 0 | Q47: 0 | R47: 0 | S47: 0 | T47: 0 | U47: 0 | V47: 0 | W47: 0 | X47: 0 | Y47: 0 | Z47: 0 | AA47: 0 | AB47: 0 | AC47: 0 | AD47: 0 | AE47: 0 | AF47: 0 | AG47: 0 | AH47: 0 | AI47: 0 | AJ47: 0 | AK47: 0 | AL47: 0 | AM47: 0 | AN47: 0 | AO47: 0 | AP47: 0 | AQ47: 0 | AR47: 0 | AS47: 0 | AT47: 0 | AU47: 0 | AV47: 0 | AW47: 0 | AX47: 0 | AY47: 0 | AZ47: 0 | BA47: 0 | BB47: 0 | BC47: 0 | BD47: 0 | BE47: 0 | BF47: 0 | BG47: 0 | BH47: 0 | BI47: 0 | BJ47: 0 | BK47: 0 | BL47: 0 | BM47: 0 | BN47: 0 | BO47: 0 | BP47: 0 | BQ47: 0 | BR47: 0 | BS47: 0 | BT47: 0 | BU47: 0 | BV47: 0 | BW47: 0 | BX47: 0 | BY47: 0 | BZ47: 0 | CA47: 0 | CB47: 0 | CC47: 0 | CD47: 0 | CE47: 0 | CF47: 0 | CG47: 0 | CH47: 0 | CI47: 0 | CJ47: 0 | CK47: 0 | CL47: 0 | CM47: 0 | CN47: 0 | CO47: 0 | CP47: 0 | CQ47: 0 | CR47: 0 | CS47: 0 | CT47: 0 | CU47: 0 | CV47: 0 | CW47: 0 | CX47: 0
A48: CCOCHAPATA | B48: 0 | C48: 0 | D48: 0 | E48: 0 | F48: 0 | G48: 0 | H48: 0 | I48: 0 | J48: 0 | K48: 0 | L48: 0 | M48: 0 | N48: 0 | O48: 0 | P48: 0 | Q48: 0 | R48: 0 | S48: 0 | T48: 0 | U48: 0 | V48: 0 | W48: 0 | X48: 0 | Y48: 0 | Z48: 0 | AA48: 0 | AB48: 0 | AC48: 0 | AD48: 0 | AE48: 0 | AF48: 0 | AG48: 0 | AH48: 0 | AI48: 0 | AJ48: 0 | AK48: 0 | AL48: 0 | AM48: 0 | AN48: 0 | AO48: 0 | AP48: 0 | AQ48: 0 | AR48: 0 | AS48: 0 | AT48: 0 | AU48: 0 | AV48: 0 | AW48: 0 | AX48: 0 | AY48: 0 | AZ48: 0 | BA48: 0 | BB48: 0 | BC48: 0 | BD48: 0 | BE48: 0 | BF48: 0 | BG48: 0 | BH48: 0 | BI48: 0 | BJ48: 0 | BK48: 0 | BL48: 0 | BM48: 0 | BN48: 0 | BO48: 0 | BP48: 0 | BQ48: 0 | BR48: 0 | BS48: 0 | BT48: 0 | BU48: 0 | BV48: 0 | BW48: 0 | BX48: 0 | BY48: 0 | BZ48: 0 | CA48: 0 | CB48: 0 | CC48: 0 | CD48: 0 | CE48: 0 | CF48: 0 | CG48: 0 | CH48: 0 | CI48: 0 | CJ48: 0 | CK48: 0 | CL48: 0 | CM48: 0 | CN48: 0 | CO48: 0 | CP48: 0 | CQ48: 0 | CR48: 0 | CS48: 0 | CT48: 0 | CU48: 0 | CV48: 0 | CW48: 0 | CX48: 0
A49: CCOCHIRIHUAY | B49: 0 | C49: 0 | D49: 0 | E49: 0 | F49: 0 | G49: 0 | H49: 0 | I49: 0 | J49: 0 | K49: 0 | L49: 0 | M49: 0 | N49: 0 | O49: 0 | P49: 0 | Q49: 0 | R49: 0 | S49: 0 | T49: 0 | U49: 0 | V49: 0 | W49: 0 | X49: 0 | Y49: 0 | Z49: 0 | AA49: 0 | AB49: 0 | AC49: 0 | AD49: 0 | AE49: 0 | AF49: 0 | AG49: 0 | AH49: 0 | AI49: 0 | AJ49: 0 | AK49: 0 | AL49: 0 | AM49: 0 | AN49: 0 | AO49: 0 | AP49: 0 | AQ49: 0 | AR49: 0 | AS49: 0 | AT49: 0 | AU49: 0 | AV49: 0 | AW49: 0 | AX49: 0 | AY49: 0 | AZ49: 0 | BA49: 0 | BB49: 0 | BC49: 0 | BD49: 0 | BE49: 0 | BF49: 0 | BG49: 0 | BH49: 0 | BI49: 0 | BJ49: 0 | BK49: 0 | BL49: 0 | BM49: 0 | BN49: 0 | BO49: 0 | BP49: 0 | BQ49: 0 | BR49: 0 | BS49: 0 | BT49: 0 | BU49: 0 | BV49: 0 | BW49: 0 | BX49: 0 | BY49: 0 | BZ49: 0 | CA49: 0 | CB49: 0 | CC49: 0 | CD49: 0 | CE49: 0 | CF49: 0 | CG49: 0 | CH49: 0 | CI49: 0 | CJ49: 0 | CK49: 0 | CL49: 0 | CM49: 0 | CN49: 0 | CO49: 0 | CP49: 0 | CQ49: 0 | CR49: 0 | CS49: 0 | CT49: 0 | CU49: 0 | CV49: 0 | CW49: 0 | CX49: 0
A50: CCOLCA | B50: 0 | C50: 0 | D50: 0 | E50: 0 | F50: 0 | G50: 0 | H50: 0 | I50: 0 | J50: 0 | K50: 0 | L50: 0 | M50: 0 | N50: 0 | O50: 0 | P50: 0 | Q50: 0 | R50: 0 | S50: 0 | T50: 0 | U50: 0 | V50: 0 | W50: 0 | X50: 0 | Y50: 0 | Z50: 0 | AA50: 0 | AB50: 0 | AC50: 0 | AD50: 0 | AE50: 0 | AF50: 0 | AG50: 0 | AH50: 0 | AI50: 0 | AJ50: 0 | AK50: 0 | AL50: 0 | AM50: 0 | AN50: 0 | AO50: 0 | AP50: 0 | AQ50: 0 | AR50: 0 | AS50: 0 | AT50: 0 | AU50: 0 | AV50: 0 | AW50: 0 | AX50: 0 | AY50: 0 | AZ50: 0 | BA50: 0 | BB50: 0 | BC50: 0 | BD50: 0 | BE50: 0 | BF50: 0 | BG50: 0 | BH50: 0 | BI50: 0 | BJ50: 0 | BK50: 0 | BL50: 0 | BM50: 0 | BN50: 0 | BO50: 0 | BP50: 0 | BQ50: 0 | BR50: 0 | BS50: 0 | BT50: 0 | BU50: 0 | BV50: 0 | BW50: 0 | BX50: 0 | BY50: 0 | BZ50: 0 | CA50: 0 | CB50: 0 | CC50: 0 | CD50: 0 | CE50: 0 | CF50: 0 | CG50: 0 | CH50: 0 | CI50: 0 | CJ50: 0 | CK50: 0 | CL50: 0 | CM50: 0 | CN50: 0 | CO50: 0 | CP50: 0 | CQ50: 0 | CR50: 0 | CS50: 0 | CT50: 0 | CU50: 0 | CV50: 0 | CW50: 0 | CX50: 0
A51: CCOLLANA | B51: 0 | C51: 0 | D51: 0 | E51: 0 | F51: 0 | G51: 0 | H51: 0 | I51: 0 | J51: 0 | K51: 0 | L51: 0 | M51: 0 | N51: 0 | O51: 0 | P51: 0 | Q51: 0 | R51: 0 | S51: 0 | T51: 0 | U51: 0 | V51: 0 | W51: 0 | X51: 0 | Y51: 0 | Z51: 0 | AA51: 0 | AB51: 0 | AC51: 0 | AD51: 0 | AE51: 0 | AF51: 0 | AG51: 0 | AH51: 0 | AI51: 0 | AJ51: 0 | AK51: 0 | AL51: 0 | AM51: 0 | AN51: 0 | AO51: 0 | AP51: 0 | AQ51: 0 | AR51: 0 | AS51: 0 | AT51: 0 | AU51: 0 | AV51: 0 | AW51: 0 | AX51: 0 | AY51: 0 | AZ51: 0 | BA51: 0 | BB51: 0 | BC51: 0 | BD51: 0 | BE51: 0 | BF51: 0 | BG51: 0 | BH51: 0 | BI51: 0 | BJ51: 0 | BK51: 0 | BL51: 0 | BM51: 0 | BN51: 0 | BO51: 0 | BP51: 0 | BQ51: 0 | BR51: 0 | BS51: 0 | BT51: 0 | BU51: 0 | BV51: 0 | BW51: 0 | BX51: 0 | BY51: 0 | BZ51: 0 | CA51: 0 | CB51: 0 | CC51: 0 | CD51: 0 | CE51: 0 | CF51: 0 | CG51: 0 | CH51: 0 | CI51: 0 | CJ51: 0 | CK51: 0 | CL51: 0 | CM51: 0 | CN51: 0 | CO51: 0 | CP51: 0 | CQ51: 0 | CR51: 0 | CS51: 0 | CT51: 0 | CU51: 0 | CV51: 0 | CW51: 0 | CX51: 0
A52: CCONCHACCOLLO | B52: 0 | C52: 0 | D52: 0 | E52: 0 | F52: 0 | G52: 0 | H52: 0 | I52: 0 | J52: 0 | K52: 0 | L52: 0 | M52: 0 | N52: 0 | O52: 0 | P52: 0 | Q52: 0 | R52: 0 | S52: 0 | T52: 0 | U52: 0 | V52: 0 | W52: 0 | X52: 0 | Y52: 0 | Z52: 0 | AA52: 0 | AB52: 0 | AC52: 0 | AD52: 0 | AE52: 0 | AF52: 0 | AG52: 0 | AH52: 0 | AI52: 0 | AJ52: 0 | AK52: 0 | AL52: 0 | AM52: 0 | AN52: 0 | AO52: 0 | AP52: 0 | AQ52: 0 | AR52: 0 | AS52: 0 | AT52: 0 | AU52: 0 | AV52: 0 | AW52: 0 | AX52: 0 | AY52: 0 | AZ52: 0 | BA52: 0 | BB52: 0 | BC52: 0 | BD52: 0 | BE52: 0 | BF52: 0 | BG52: 0 | BH52: 0 | BI52: 0 | BJ52: 0 | BK52: 0 | BL52: 0 | BM52: 0 | BN52: 0 | BO52: 0 | BP52: 0 | BQ52: 0 | BR52: 0 | BS52: 0 | BT52: 0 | BU52: 0 | BV52: 0 | BW52: 0 | BX52: 0 | BY52: 0 | BZ52: 0 | CA52: 0 | CB52: 0 | CC52: 0 | CD52: 0 | CE52: 0 | CF52: 0 | CG52: 0 | CH52: 0 | CI52: 0 | CJ52: 0 | CK52: 0 | CL52: 0 | CM52: 0 | CN52: 0 | CO52: 0 | CP52: 0 | CQ52: 0 | CR52: 0 | CS52: 0 | CT52: 0 | CU52: 0 | CV52: 0 | CW52: 0 | CX52: 0
A53: CCORAO | B53: 0 | C53: 0 | D53: 0 | E53: 0 | F53: 0 | G53: 0 | H53: 0 | I53: 0 | J53: 0 | K53: 0 | L53: 0 | M53: 0 | N53: 0 | O53: 0 | P53: 0 | Q53: 0 | R53: 0 | S53: 0 | T53: 0 | U53: 0 | V53: 0 | W53: 0 | X53: 0 | Y53: 0 | Z53: 0 | AA53: 0 | AB53: 0 | AC53: 0 | AD53: 0 | AE53: 0 | AF53: 0 | AG53: 0 | AH53: 0 | AI53: 0 | AJ53: 0 | AK53: 0 | AL53: 0 | AM53: 0 | AN53: 0 | AO53: 0 | AP53: 0 | AQ53: 0 | AR53: 0 | AS53: 0 | AT53: 0 | AU53: 0 | AV53: 0 | AW53: 0 | AX53: 0 | AY53: 0 | AZ53: 0 | BA53: 0 | BB53: 0 | BC53: 0 | BD53: 0 | BE53: 0 | BF53: 0 | BG53: 0 | BH53: 0 | BI53: 0 | BJ53: 0 | BK53: 0 | BL53: 0 | BM53: 0 | BN53: 0 | BO53: 0 | BP53: 0 | BQ53: 0 | BR53: 0 | BS53: 0 | BT53: 0 | BU53: 0 | BV53: 0 | BW53: 0 | BX53: 0 | BY53: 0 | BZ53: 0 | CA53: 0 | CB53: 0 | CC53: 0 | CD53: 0 | CE53: 0 | CF53: 0 | CG53: 0 | CH53: 0 | CI53: 0 | CJ53: 0 | CK53: 0 | CL53: 0 | CM53: 0 | CN53: 0 | CO53: 0 | CP53: 0 | CQ53: 0 | CR53: 0 | CS53: 0 | CT53: 0 | CU53: 0 | CV53: 0 | CW53: 0 | CX53: 0
A54: CCORCCA | B54: 0 | C54: 0 | D54: 0 | E54: 0 | F54: 0 | G54: 0 | H54: 0 | I54: 0 | J54: 0 | K54: 0 | L54: 0 | M54: 0 | N54: 0 | O54: 0 | P54: 0 | Q54: 0 | R54: 0 | S54: 0 | T54: 0 | U54: 0 | V54: 0 | W54: 0 | X54: 0 | Y54: 0 | Z54: 0 | AA54: 0 | AB54: 0 | AC54: 0 | AD54: 0 | AE54: 0 | AF54: 0 | AG54: 0 | AH54: 0 | AI54: 0 | AJ54: 0 | AK54: 0 | AL54: 0 | AM54: 0 | AN54: 0 | AO54: 0 | AP54: 0 | AQ54: 0 | AR54: 0 | AS54: 0 | AT54: 0 | AU54: 0 | AV54: 0 | AW54: 0 | AX54: 0 | AY54: 0 | AZ54: 0 | BA54: 0 | BB54: 0 | BC54: 0 | BD54: 0 | BE54: 0 | BF54: 0 | BG54: 0 | BH54: 0 | BI54: 0 | BJ54: 0 | BK54: 0 | BL54: 0 | BM54: 0 | BN54: 0 | BO54: 0 | BP54: 0 | BQ54: 0 | BR54: 0 | BS54: 0 | BT54: 0 | BU54: 0 | BV54: 0 | BW54: 0 | BX54: 0 | BY54: 0 | BZ54: 0 | CA54: 0 | CB54: 0 | CC54: 0 | CD54: 0 | CE54: 0 | CF54: 0 | CG54: 0 | CH54: 0 | CI54: 0 | CJ54: 0 | CK54: 0 | CL54: 0 | CM54: 0 | CN54: 0 | CO54: 0 | CP54: 0 | CQ54: 0 | CR54: 0 | CS54: 0 | CT54: 0 | CU54: 0 | CV54: 0 | CW54: 0 | CX54: 0
A55: CCORIMAYO | B55: 0 | C55: 0 | D55: 0 | E55: 0 | F55: 0 | G55: 0 | H55: 0 | I55: 0 | J55: 0 | K55: 0 | L55: 0 | M55: 0 | N55: 0 | O55: 0 | P55: 0 | Q55: 0 | R55: 0 | S55: 0 | T55: 0 | U55: 0 | V55: 0 | W55: 0 | X55: 0 | Y55: 0 | Z55: 0 | AA55: 0 | AB55: 0 | AC55: 0 | AD55: 0 | AE55: 0 | AF55: 0 | AG55: 0 | AH55: 0 | AI55: 0 | AJ55: 0 | AK55: 0 | AL55: 0 | AM55: 0 | AN55: 0 | AO55: 0 | AP55: 0 | AQ55: 0 | AR55: 0 | AS55: 0 | AT55: 0 | AU55: 0 | AV55: 0 | AW55: 0 | AX55: 0 | AY55: 0 | AZ55: 0 | BA55: 0 | BB55: 0 | BC55: 0 | BD55: 0 | BE55: 0 | BF55: 0 | BG55: 0 | BH55: 0 | BI55: 0 | BJ55: 0 | BK55: 0 | BL55: 0 | BM55: 0 | BN55: 0 | BO55: 0 | BP55: 0 | BQ55: 0 | BR55: 0 | BS55: 0 | BT55: 0 | BU55: 0 | BV55: 0 | BW55: 0 | BX55: 0 | BY55: 0 | BZ55: 0 | CA55: 0 | CB55: 0 | CC55: 0 | CD55: 0 | CE55: 0 | CF55: 0 | CG55: 0 | CH55: 0 | CI55: 0 | CJ55: 0 | CK55: 0 | CL55: 0 | CM55: 0 | CN55: 0 | CO55: 0 | CP55: 0 | CQ55: 0 | CR55: 0 | CS55: 0 | CT55: 0 | CU55: 0 | CV55: 0 | CW55: 0 | CX55: 0
A56: CCOYABAMBA | B56: 0 | C56: 0 | D56: 0 | E56: 0 | F56: 0 | G56: 0 | H56: 0 | I56: 0 | J56: 0 | K56: 0 | L56: 0 | M56: 0 | N56: 0 | O56: 0 | P56: 0 | Q56: 0 | R56: 0 | S56: 0 | T56: 0 | U56: 0 | V56: 0 | W56: 0 | X56: 0 | Y56: 0 | Z56: 0 | AA56: 0 | AB56: 0 | AC56: 0 | AD56: 0 | AE56: 0 | AF56: 0 | AG56: 0 | AH56: 0 | AI56: 0 | AJ56: 0 | AK56: 0 | AL56: 0 | AM56: 0 | AN56: 0 | AO56: 0 | AP56: 0 | AQ56: 0 | AR56: 0 | AS56: 0 | AT56: 0 | AU56: 0 | AV56: 0 | AW56: 0 | AX56: 0 | AY56: 0 | AZ56: 0 | BA56: 0 | BB56: 0 | BC56: 0 | BD56: 0 | BE56: 0 | BF56: 0 | BG56: 0 | BH56: 0 | BI56: 0 | BJ56: 0 | BK56: 0 | BL56: 0 | BM56: 0 | BN56: 0 | BO56: 0 | BP56: 0 | BQ56: 0 | BR56: 0 | BS56: 0 | BT56: 0 | BU56: 0 | BV56: 0 | BW56: 0 | BX56: 0 | BY56: 0 | BZ56: 0 | CA56: 0 | CB56: 0 | CC56: 0 | CD56: 0 | CE56: 0 | CF56: 0 | CG56: 0 | CH56: 0 | CI56: 0 | CJ56: 0 | CK56: 0 | CL56: 0 | CM56: 0 | CN56: 0 | CO56: 0 | CP56: 0 | CQ56: 0 | CR56: 0 | CS56: 0 | CT56: 0 | CU56: 0 | CV56: 0 | CW56: 0 | CX56: 0
A57: CCOYO | B57: 0 | C57: 0 | D57: 0 | E57: 0 | F57: 0 | G57: 0 | H57: 0 | I57: 0 | J57: 0 | K57: 0 | L57: 0 | M57: 0 | N57: 0 | O57: 0 | P57: 0 | Q57: 0 | R57: 0 | S57: 0 | T57: 0 | U57: 0 | V57: 0 | W57: 0 | X57: 0 | Y57: 0 | Z57: 0 | AA57: 0 | AB57: 0 | AC57: 0 | AD57: 0 | AE57: 0 | AF57: 0 | AG57: 0 | AH57: 0 | AI57: 0 | AJ57: 0 | AK57: 0 | AL57: 0 | AM57: 0 | AN57: 0 | AO57: 0 | AP57: 0 | AQ57: 0 | AR57: 0 | AS57: 0 | AT57: 0 | AU57: 0 | AV57: 0 | AW57: 0 | AX57: 0 | AY57: 0 | AZ57: 0 | BA57: 0 | BB57: 0 | BC57: 0 | BD57: 0 | BE57: 0 | BF57: 0 | BG57: 0 | BH57: 0 | BI57: 0 | BJ57: 0 | BK57: 0 | BL57: 0 | BM57: 0 | BN57: 0 | BO57: 0 | BP57: 0 | BQ57: 0 | BR57: 0 | BS57: 0 | BT57: 0 | BU57: 0 | BV57: 0 | BW57: 0 | BX57: 0 | BY57: 0 | BZ57: 0 | CA57: 0 | CB57: 0 | CC57: 0 | CD57: 0 | CE57: 0 | CF57: 0 | CG57: 0 | CH57: 0 | CI57: 0 | CJ57: 0 | CK57: 0 | CL57: 0 | CM57: 0 | CN57: 0 | CO57: 0 | CP57: 0 | CQ57: 0 | CR57: 0 | CS57: 0 | CT57: 0 | CU57: 0 | CV57: 0 | CW57: 0 | CX57: 0
A58: CCUYO | B58: 0 | C58: 0 | D58: 0 | E58: 0 | F58: 0 | G58: 0 | H58: 0 | I58: 0 | J58: 0 | K58: 0 | L58: 0 | M58: 0 | N58: 0 | O58: 0 | P58: 0 | Q58: 0 | R58: 0 | S58: 0 | T58: 0 | U58: 0 | V58: 0 | W58: 0 | X58: 0 | Y58: 0 | Z58: 0 | AA58: 0 | AB58: 0 | AC58: 0 | AD58: 0 | AE58: 0 | AF58: 0 | AG58: 0 | AH58: 0 | AI58: 0 | AJ58: 0 | AK58: 0 | AL58: 0 | AM58: 0 | AN58: 0 | AO58: 0 | AP58: 0 | AQ58: 0 | AR58: 0 | AS58: 0 | AT58: 0 | AU58: 0 | AV58: 0 | AW58: 0 | AX58: 0 | AY58: 0 | AZ58: 0 | BA58: 0 | BB58: 0 | BC58: 0 | BD58: 0 | BE58: 0 | BF58: 0 | BG58: 0 | BH58: 0 | BI58: 0 | BJ58: 0 | BK58: 0 | BL58: 0 | BM58: 0 | BN58: 0 | BO58: 0 | BP58: 0 | BQ58: 0 | BR58: 0 | BS58: 0 | BT58: 0 | BU58: 0 | BV58: 0 | BW58: 0 | BX58: 0 | BY58: 0 | BZ58: 0 | CA58: 0 | CB58: 0 | CC58: 0 | CD58: 0 | CE58: 0 | CF58: 0 | CG58: 0 | CH58: 0 | CI58: 0 | CJ58: 0 | CK58: 0 | CL58: 0 | CM58: 0 | CN58: 0 | CO58: 0 | CP58: 0 | CQ58: 0 | CR58: 0 | CS58: 0 | CT58: 0 | CU58: 0 | CV58: 0 | CW58: 0 | CX58: 0
A59: CHACAN | B59: 0 | C59: 0 | D59: 0 | E59: 0 | F59: 0 | G59: 0 | H59: 0 | I59: 0 | J59: 0 | K59: 0 | L59: 0 | M59: 0 | N59: 0 | O59: 0 | P59: 0 | Q59: 0 | R59: 0 | S59: 0 | T59: 0 | U59: 0 | V59: 0 | W59: 0 | X59: 0 | Y59: 0 | Z59: 0 | AA59: 0 | AB59: 0 | AC59: 0 | AD59: 0 | AE59: 0 | AF59: 0 | AG59: 0 | AH59: 0 | AI59: 0 | AJ59: 0 | AK59: 0 | AL59: 0 | AM59: 0 | AN59: 0 | AO59: 0 | AP59: 0 | AQ59: 0 | AR59: 0 | AS59: 0 | AT59: 0 | AU59: 0 | AV59: 0 | AW59: 0 | AX59: 0 | AY59: 0 | AZ59: 0 | BA59: 0 | BB59: 0 | BC59: 0 | BD59: 0 | BE59: 0 | BF59: 0 | BG59: 0 | BH59: 0 | BI59: 0 | BJ59: 0 | BK59: 0 | BL59: 0 | BM59: 0 | BN59: 0 | BO59: 0 | BP59: 0 | BQ59: 0 | BR59: 0 | BS59: 0 | BT59: 0 | BU59: 0 | BV59: 0 | BW59: 0 | BX59: 0 | BY59: 0 | BZ59: 0 | CA59: 0 | CB59: 0 | CC59: 0 | CD59: 0 | CE59: 0 | CF59: 0 | CG59: 0 | CH59: 0 | CI59: 0 | CJ59: 0 | CK59: 0 | CL59: 0 | CM59: 0 | CN59: 0 | CO59: 0 | CP59: 0 | CQ59: 0 | CR59: 0 | CS59: 0 | CT59: 0 | CU59: 0 | CV59: 0 | CW59: 0 | CX59: 0
A60: CHACCO | B60: 0 | C60: 0 | D60: 0 | E60: 0 | F60: 0 | G60: 0 | H60: 0 | I60: 0 | J60: 0 | K60: 0 | L60: 0 | M60: 0 | N60: 0 | O60: 0 | P60: 0 | Q60: 0 | R60: 0 | S60: 0 | T60: 0 | U60: 0 | V60: 0 | W60: 0 | X60: 0 | Y60: 0 | Z60: 0 | AA60: 0 | AB60: 0 | AC60: 0 | AD60: 0 | AE60: 0 | AF60: 0 | AG60: 0 | AH60: 0 | AI60: 0 | AJ60: 0 | AK60: 0 | AL60: 0 | AM60: 0 | AN60: 0 | AO60: 0 | AP60: 0 | AQ60: 0 | AR60: 0 | AS60: 0 | AT60: 0 | AU60: 0 | AV60: 0 | AW60: 0 | AX60: 0 | AY60: 0 | AZ60: 0 | BA60: 0 | BB60: 0 | BC60: 0 | BD60: 0 | BE60: 0 | BF60: 0 | BG60: 0 | BH60: 0 | BI60: 0 | BJ60: 0 | BK60: 0 | BL60: 0 | BM60: 0 | BN60: 0 | BO60: 0 | BP60: 0 | BQ60: 0 | BR60: 0 | BS60: 0 | BT60: 0 | BU60: 0 | BV60: 0 | BW60: 0 | BX60: 0 | BY60: 0 | BZ60: 0 | CA60: 0 | CB60: 0 | CC60: 0 | CD60: 0 | CE60: 0 | CF60: 0 | CG60: 0 | CH60: 0 | CI60: 0 | CJ60: 0 | CK60: 0 | CL60: 0 | CM60: 0 | CN60: 0 | CO60: 0 | CP60: 0 | CQ60: 0 | CR60: 0 | CS60: 0 | CT60: 0 | CU60: 0 | CV60: 0 | CW60: 0 | CX60: 0
A61: CHAHUARES | B61: 0 | C61: 0 | D61: 0 | E61: 0 | F61: 0 | G61: 0 | H61: 0 | I61: 0 | J61: 0 | K61: 0 | L61: 0 | M61: 0 | N61: 0 | O61: 0 | P61: 0 | Q61: 0 | R61: 0 | S61: 0 | T61: 0 | U61: 0 | V61: 0 | W61: 0 | X61: 0 | Y61: 0 | Z61: 0 | AA61: 0 | AB61: 0 | AC61: 0 | AD61: 0 | AE61: 0 | AF61: 0 | AG61: 0 | AH61: 0 | AI61: 0 | AJ61: 0 | AK61: 0 | AL61: 0 | AM61: 0 | AN61: 0 | AO61: 0 | AP61: 0 | AQ61: 0 | AR61: 0 | AS61: 0 | AT61: 0 | AU61: 0 | AV61: 0 | AW61: 0 | AX61: 0 | AY61: 0 | AZ61: 0 | BA61: 0 | BB61: 0 | BC61: 0 | BD61: 0 | BE61: 0 | BF61: 0 | BG61: 0 | BH61: 0 | BI61: 0 | BJ61: 0 | BK61: 0 | BL61: 0 | BM61: 0 | BN61: 0 | BO61: 0 | BP61: 0 | BQ61: 0 | BR61: 0 | BS61: 0 | BT61: 0 | BU61: 0 | BV61: 0 | BW61: 0 | BX61: 0 | BY61: 0 | BZ61: 0 | CA61: 0 | CB61: 0 | CC61: 0 | CD61: 0 | CE61: 0 | CF61: 0 | CG61: 0 | CH61: 0 | CI61: 0 | CJ61: 0 | CK61: 0 | CL61: 0 | CM61: 0 | CN61: 0 | CO61: 0 | CP61: 0 | CQ61: 0 | CR61: 0 | CS61: 0 | CT61: 0 | CU61: 0 | CV61: 0 | CW61: 0 | CX61: 0
A62: CHALLABAMBA | B62: 0 | C62: 0 | D62: 0 | E62: 0 | F62: 0 | G62: 0 | H62: 0 | I62: 0 | J62: 0 | K62: 0 | L62: 0 | M62: 0 | N62: 0 | O62: 0 | P62: 0 | Q62: 0 | R62: 0 | S62: 0 | T62: 0 | U62: 0 | V62: 0 | W62: 0 | X62: 0 | Y62: 0 | Z62: 0 | AA62: 0 | AB62: 0 | AC62: 0 | AD62: 0 | AE62: 0 | AF62: 0 | AG62: 0 | AH62: 0 | AI62: 0 | AJ62: 0 | AK62: 0 | AL62: 0 | AM62: 0 | AN62: 0 | AO62: 0 | AP62: 0 | AQ62: 0 | AR62: 0 | AS62: 0 | AT62: 0 | AU62: 0 | AV62: 0 | AW62: 0 | AX62: 0 | AY62: 0 | AZ62: 0 | BA62: 0 | BB62: 0 | BC62: 0 | BD62: 0 | BE62: 0 | BF62: 0 | BG62: 0 | BH62: 0 | BI62: 0 | BJ62: 0 | BK62: 0 | BL62: 0 | BM62: 0 | BN62: 0 | BO62: 0 | BP62: 0 | BQ62: 0 | BR62: 0 | BS62: 0 | BT62: 0 | BU62: 0 | BV62: 0 | BW62: 0 | BX62: 0 | BY62: 0 | BZ62: 0 | CA62: 0 | CB62: 0 | CC62: 0 | CD62: 0 | CE62: 0 | CF62: 0 | CG62: 0 | CH62: 0 | CI62: 0 | CJ62: 0 | CK62: 0 | CL62: 0 | CM62: 0 | CN62: 0 | CO62: 0 | CP62: 0 | CQ62: 0 | CR62: 0 | CS62: 0 | CT62: 0 | CU62: 0 | CV62: 0 | CW62: 0 | CX62: 0
A63: CHAMACA | B63: 0 | C63: 0 | D63: 0 | E63: 0 | F63: 0 | G63: 0 | H63: 0 | I63: 0 | J63: 0 | K63: 0 | L63: 0 | M63: 0 | N63: 0 | O63: 0 | P63: 0 | Q63: 0 | R63: 0 | S63: 0 | T63: 0 | U63: 0 | V63: 0 | W63: 0 | X63: 0 | Y63: 0 | Z63: 0 | AA63: 0 | AB63: 0 | AC63: 0 | AD63: 0 | AE63: 0 | AF63: 0 | AG63: 0 | AH63: 0 | AI63: 0 | AJ63: 0 | AK63: 0 | AL63: 0 | AM63: 0 | AN63: 0 | AO63: 0 | AP63: 0 | AQ63: 0 | AR63: 0 | AS63: 0 | AT63: 0 | AU63: 0 | AV63: 0 | AW63: 0 | AX63: 0 | AY63: 0 | AZ63: 0 | BA63: 0 | BB63: 0 | BC63: 0 | BD63: 0 | BE63: 0 | BF63: 0 | BG63: 0 | BH63: 0 | BI63: 0 | BJ63: 0 | BK63: 0 | BL63: 0 | BM63: 0 | BN63: 0 | BO63: 0 | BP63: 0 | BQ63: 0 | BR63: 0 | BS63: 0 | BT63: 0 | BU63: 0 | BV63: 0 | BW63: 0 | BX63: 0 | BY63: 0 | BZ63: 0 | CA63: 0 | CB63: 0 | CC63: 0 | CD63: 0 | CE63: 0 | CF63: 0 | CG63: 0 | CH63: 0 | CI63: 0 | CJ63: 0 | CK63: 0 | CL63: 0 | CM63: 0 | CN63: 0 | CO63: 0 | CP63: 0 | CQ63: 0 | CR63: 0 | CS63: 0 | CT63: 0 | CU63: 0 | CV63: 0 | CW63: 0 | CX63: 0
